{"text_format":"1","workbook":"xlsx","n_sheets":8,"sheets":["021","Prestaciones 021","011 y  022 ","031","SP 031A (2)","POLICIAS","SP 031A","B 031"],"not_rendered":{"charts":0,"images":3,"macros":1,"external_links":2,"defined_names":8,"comments":0,"pivot_tables":0},"unopened":[],"bounds":{"document_bytes":16777216,"sheet_cells":100000,"rows_first":2000,"rows_last":500,"rows_between":2000,"halvings":0,"cell_chars":16384,"cell_head_chars":4096},"cells_cut":0,"cells_raw":0,"read":"whole","date_system":"1900"}

{"sheet":"021","index":0,"n_rows":36,"n_cols":22,"rows_kept":36,"cut":false,"hidden":false,"merged":[[9,0,12,0],[9,4,12,4],[8,0,8,20],[9,20,12,20],[9,19,12,19],[11,15,12,15],[9,1,12,1],[9,2,12,2],[11,12,12,12],[9,7,12,7],[5,0,5,19],[9,5,12,5],[9,13,12,13],[11,17,12,17],[9,9,9,12],[11,10,12,10],[11,9,12,9],[9,6,12,6],[9,3,12,3],[9,8,12,8],[11,11,12,11],[11,14,12,14],[11,16,12,16],[10,11,10,12],[9,14,9,17],[9,18,12,18],[33,15,33,18],[21,6,21,8],[31,15,31,18],[32,15,32,18],[31,8,31,12],[32,8,32,12],[33,8,33,12]]}
[]
[]
[]
[]
[]
["AUTORIDAD PARA EL MANEJO SUSTENTABLE DE LA CUENCA Y DEL LAGO DE AMATITLÁN\nNOMINA DE SUELDOS PERSONAL CONTRATADO BAJO EL  RENGLÓN 021 \"PERSONAL SUPERNUMERARIO\"  \nCORRESPONDIENTE AL MES DE ABRIL 2017"]
[]
[]
[]
["No.","CODIGO EMPLEADO","PUESTO","NIT","NOMBRE","Puesto Oficial","Contrato","Fecha de\nIngreso","Fecha de \nIngreso","Devengado Mensual",null,null,null,"Total Devengado Mensual","Deducciones",null,null,null,"Total\nDeducciones","Líquido","Número de\nCuenta"]
[null,null,null,null,null,null,null,null,null,"Renglón 021","Renglón 026","Renglón 027",null,null,118,202,201,203,null,null,"CUENTA MONETARIA"]
[null,null,null,null,null,null,null,null,null,"Sueldo\nMensual","Bono \nProfesional","Bono \nMonetario","Bono \n66-2000",null,"Montepío","Fianza","IGSS","ISR"]
[null,null,null,null,null,null,null,null,null,null,null,26,27,null,"PROMEDIO POR 12 MESES",26,27]
[1,990091785,775401,30968232,"Silvia Gabriela Porras de León","Encargada de Compras","01-2017-021-AMSA","02/01/2017","2015-05-04",8700,0,2000,250,{"$f":"SUM(J14:M14)","v":10950},{"$f":"ROUND(SUM(J14:L14)*15%,2)","v":1605},{"$f":"ROUND(SUM(J14:L14)*1.344%,2)","v":143.81},{"$f":"ROUND(SUM(J14:L14)*3%,2)","v":321},249.99,{"$f":"SUM(O14:R14)","v":2319.8000000000002},{"$f":"+N14-S14","v":8630.2000000000007},3216007805,9901371921]
[2,9901150282,775402,null,"Jonnathan René Pernillo Salazar","Encargado de Presupuesto","10-2017-021-AMSA","14/02/2017","2015-03-10",8200,0,2000,250,10450,{"$f":"ROUND(SUM(J15+K15+L15)*15%,2)","v":1530},137.09,306,194.34,2167.4299999999998,8282.57,3099177364,9901150282]
[3,null,775406,null,"Elena María Reyes Solares","Encargada de Laboratorio","03-2017-021-AMSA","02/01/2017",null,6500,null,2000,250,8750,{"$f":"ROUND(SUM(J16+K16+L16)*14%,2)","v":1190},114.24,255,164.27,1723.51,7026.49]
[4,990091724,775400,46905030,"Yeimy Daleicy Rodriguez González","Encargada de Nomina","09-2017-021-AMSA","14/02/2017","2015-04-13",5300,0,2000,250,7550,{"$f":"ROUND(SUM(J17:L17)*13%,2)","v":949},98.11,219,87.45,1353.56,6196.4400000000005]
[5,9901116935,775404,"1208204K  ","Juan Carlos Ardón Cardona","Encargado de Contabilidad","05-2017-021-AMSA","02/01/2017","2015-05-04",3500,0,1500,250,5250,{"$f":"ROUND(SUM(J18:L18)*12%,2)","v":600},67.2,150,24.4,841.6,4408.3999999999996,null,9901116935]
[6,9901160910,775403,40316173,"Yanira Rubet Santos López","Encargada de Tesorería","06-2017-021-AMSA","02/01/2017","2015-05-04",3500,0,1500,250,5250,{"$f":"ROUND(SUM(J19:L19)*12%,2)","v":600},67.2,150,24.4,841.6,4408.3999999999996,3755004477,9901160910]
[7,9901227385,781020,26424169,"Sibia de Jesús Debroy Franco","Encargada de Bodega","07-2017-021-AMSA","02/01/2017","2015-05-04",3000,0,1500,250,4750,{"$f":"ROUND(SUM(J20:L20)*12%,2)","v":540},60.48,135,0,735.48,4014.52,3164068218,9901227385]
[8,9901349724,775405,null,"Claudia Maribel Duran Rosales","Encargada de Inventarios ","11-2017-021-AMSA","01/03/2017","2015-04-06",3000,0,1500,250,4750,{"$f":"ROUND(SUM(J21:L21)*12%,2)","v":540},60.48,135,0,735.48,4014.52]
[null,null,null,null,null,null,"Totales",null,null,{"$f":"SUM(J14:J21)","v":41700},0,14000,2000,57700,7554,748.61000000000013,1671,744.85,10718.46,46981.54]
[]
[]
[]
[]
[]
[]
[]
[]
[null,null,"Elaboró:",null,null,null,null,"Revisó:",null,null,null,null,null,null,"Vo.Bo."]
[null,null,null,null,"Yeimy Daleicy Rodriguez González",null,null,null,"Víctor Aníbal López Aquino",null,null,null,null,null,null,"Ing. Oscar Amed Juárez Sosa"]
[null,null,null,null,"Encargada de Nómina",null,null,null,"Jefe Administrativo Financiero",null,null,null,null,null,null,"Director Ejecutivo"]
[null,null,null,null,"AMSA",null,null,null,"AMSA",null,null,null,null,null,null,"AMSA"]
[]
[null,null,null,null,null,null,null,null,null,null,null,null,null,null,null,null,null,null,null,"1/1"]

{"sheet":"Prestaciones 021","index":1,"n_rows":38,"n_cols":27,"rows_kept":38,"cut":false,"hidden":false,"merged":[[30,5,30,19],[30,23,30,25],[31,5,31,19],[31,23,31,25],[13,2,13,3],[13,16,13,17],[14,2,14,3],[14,4,14,17],[29,5,29,19],[29,23,29,25],[9,18,10,18],[9,19,10,20],[9,21,12,21],[9,22,10,22],[9,23,10,23],[11,20,12,20],[11,22,12,22],[11,23,12,23],[11,18,12,18],[11,19,12,19],[11,24,12,24],[11,25,12,25],[9,16,12,17],[1,0,1,26],[2,0,2,26],[3,0,3,26],[5,2,5,3],[7,0,7,26],[8,0,8,26],[9,0,12,0],[9,1,12,1],[9,2,12,3],[9,4,12,4],[9,5,12,5],[9,24,10,25],[9,26,12,26]]}
[]
["NÓMINA ADICIONAL PARA PAGO DE PRESTACIONES "]
["RENGLÓN 021 \"PERSONAL SUPERNUMERARIO\"  "]
[]
[]
[]
[]
["PAGO DE PRESTACIONES"]
["AGUINALDO, BONO VACACIONAL Y BONO 14 "]
["No.","Empleado","Puesto ",null,"Contrato","Fecha de \nIngreso",null,null,null,null,null,null,null,null,null,null,"Días Laborados en el Año",null,"RENGLÓN 021","RENGLÓN 027",null,"Total Devengado Mensual","Renglón 071","Renglón 073","Renglón 072",null,"Líquido"]
[]
[null,null,null,null,null,null,null,null,null,null,null,null,null,null,null,null,null,null,"Sueldo Mensual","Bono Monetario","Bono            66-2000",null,"Aguinaldo","Bono Vacacional","Salarios Devengados","Bono 14"]
[]
[1,"Brian Antonio Archila Koppler","Encargado de Inventarios",null,"08-2017-021-AMSA","2017-01-01",null,null,{"$f":"(200/365)*(26+31+30+31+30+31+31+30+31+30+31)","v":181.91780821917808},{"$f":"#REF!+I14","v":{"$error":"#REF!"}},null,null,null,null,null,null,58,null,3000,1500,250,{"$f":"SUM(S14:U14)","v":4750},{"$f":"4500*58/365","v":715.06849315068496},{"$f":"200*58/365","v":31.780821917808218},{"$f":"(4500*1)+(4500/31*30)","v":8854.8387096774204},{"$f":"Y14/12","v":737.9032258064517},{"$f":"W14+X14+Z14","v":1484.7525408749448}]
[null,null,null,null,"Totales",null,null,null,null,null,null,null,null,null,null,null,null,null,{"$f":"SUM(S14:S14)","v":3000},1500,250,4750,{"$f":"SUM(W14)","v":715.06849315068496},{"$f":"SUM(X14)","v":31.780821917808218},{"$f":"SUM(Y14)","v":8854.8387096774204},{"$f":"SUM(Z14)","v":737.9032258064517},{"$f":"SUM(AA14:AA14)","v":1484.7525408749448}]
[null,null,null,null,null,null,{"$f":"SUM(G15:G15)","v":0},{"$f":"SUM(#REF!)","v":{"$error":"#REF!"}},{"$f":"SUM(I14:I15)","v":181.91780821917808},{"$f":"SUM(J14:J15)","v":{"$error":"#REF!"}}]
["Al señor  Brian Antonio Archila Koppler se le esta efectuando el pago de prestaciones laborales hasta el día 28 de febrero de 2017, según Acuerdo número RH-047-2016 de fecha 31 de octubre de 2016."]
[]
[]
[]
[]
[]
[]
[]
[]
[]
[]
[]
["Elaboró",null,null,null,"Revisó:",null,null,null,null,null,null,null,null,null,null,null,null,null,null,null,null,null,"Vo.Bo."]
[null,"Yeimy Daleicy Rodriguez González",null,null,null,"Víctor Aníbal López Aquino",null,null,null,null,null,null,null,null,null,null,null,null,null,null,null,null,null,"Ing. Oscar Amed Juárez Sosa"]
[null,"Encargada de Nómina",null,null,null,"Jefe Administrativo Financiero",null,null,null,null,null,null,null,null,null,null,null,null,null,null,null,null,null,"Director Ejecutivo"]
[null,"AMSA",null,null,null,"AMSA",null,null,null,null,null,null,null,null,null,null,null,null,null,null,null,null,null,"AMSA"]
[]
[]
[]
[]
[]
[null,null,null,null,null,null,null,null,null,null,null,null,null,null,null,null,null,null,null,null,null,null,null,null,null,null,"1/1"]

{"sheet":"011 y  022 ","index":2,"n_rows":42,"n_cols":42,"rows_kept":42,"cut":false,"hidden":false,"merged":[[24,9,24,10],[41,3,41,4],[41,11,41,27],[41,32,41,35],[28,11,28,12],[29,11,29,12],[38,3,38,4],[38,32,38,35],[39,3,39,4],[39,11,39,27],[39,32,39,35],[40,3,40,4],[40,11,40,27],[40,32,40,35],[25,9,25,10],[23,9,23,10],[12,1,15,1],[12,2,15,2],[12,3,15,3],[12,4,15,4],[12,6,15,6],[12,7,15,7],[12,8,15,8],[12,5,15,5],[19,9,19,10],[17,9,17,10],[16,9,16,10],[12,13,15,13],[12,14,15,14],[8,9,8,10],[9,11,9,12],[11,0,11,40],[12,39,15,39],[12,40,15,40],[12,27,12,30],[12,22,15,22],[12,25,15,25],[14,27,15,27],[14,28,15,28],[12,12,15,12],[14,32,15,32],[14,33,15,33],[12,20,15,20],[12,26,15,26],[12,9,15,10],[12,11,15,11],[12,21,15,21],[12,23,15,23],[14,35,15,35],[14,34,15,34],[14,30,15,30],[12,16,15,16],[12,17,15,17],[12,18,15,18],[12,19,15,19],[12,24,15,24],[12,31,15,31],[6,27,7,27],[6,28,7,28],[6,29,7,29],[6,30,7,30],[4,23,7,23],[4,24,7,24],[4,25,7,25],[4,26,7,26],[4,16,7,16],[4,31,7,31],[4,9,7,10],[4,11,7,11],[4,12,7,12],[4,13,7,13],[4,39,7,39],[6,32,7,32],[4,21,7,21],[4,22,7,22],[6,33,7,33],[6,35,7,35],[4,27,4,30],[4,14,7,14],[6,34,7,34],[14,38,15,38],[14,37,15,37],[4,40,7,40],[6,38,7,38],[12,32,12,37],[4,32,4,37],[6,37,7,37],[12,0,15,0],[1,0,1,40],[2,0,2,40],[3,0,3,40],[4,0,7,0],[4,1,7,1],[4,2,7,2],[4,3,7,3],[4,4,7,4],[4,5,7,5],[4,6,7,6],[4,17,7,17],[4,18,7,18],[4,19,7,19],[4,20,7,20],[4,7,7,7],[4,8,7,8]]}
[]
["AUTORIDAD PARA EL MANEJO SUSTENTABLE DE LA CUENCA Y DEL LAGO DE AMATITLÁN\nNÓMINA DE SUELDOS CORRESPONDIENTES AL MES DE MAYO DE 2017"]
[]
["RENGLÓN 011 PERSONAL PERMANENTE"]
["No.","Renglón","ÁREA","Puesto Nominal","Puesto Funcional","Código\nPuesto","CÓDIGO DE\nEMPLEADO","PARTIDA\nINDIVIDUAL","UBICACIÓN","NOMBRE",null,"Acuerdo","Fecha de \nIngreso","NIT","IGSS",null,"CÉDULA","EXTENDIDA EN ","FECHA DE\nNACIMIENTO","DIRECCIÓN","TELÉFONO","CORREO ELECTRÓNICO","ESTADO CIVIL","PROFESIÓN","OTROS ESTUDIOS","COLEGIADO\nACTIVO","CUENTA\nBANCARIA","Devengado Mensual",null,null,null,"Total \nDevengado \nMensual","Deducciones",null,null,null,null,null,null,"Total \nDeducciones","Líquido"]
[null,null,null,null,null,null,null,null,null,null,null,null,null,null,null,null,null,null,null,null,null,null,null,null,null,null,null,"Renglón 011","Renglón 014","Renglón 015","Renglón 063",null,118,202,201,203,211,102,120]
[null,null,null,null,null,null,null,null,null,null,null,null,null,null,null,null,null,null,null,null,null,null,null,null,null,null,null,"Sueldo\nMensual","Bono \nProfesional","Bono\n66-2000","Gastos de\nRepresent.",null,"Montepío","Fianza","IGSS","ISR","DESC.","Amort \nBANTRAB","Decreto 81-70"]
[null,null,null,null,null,null,null,null,null,null,null,null,null,null,null,null,null,null,null,null,null,null,null,null,null,null,null,null,null,27,null,null,"PROMEDIO POR 12 MESES",26,27,null,"JUDICIAL"]
[1,"011",990074989,"Director Ejecutivo","Director Ejecutivo",55272,990074989,"00001","Dirección y Coordinación","Oscar Amed Juárez Sosa",null,37,"2016-02-02","444872-3",160312179,null,"N-14 23657","Joyabaj, Quiche","1960-12-22","Lote 23 manzana D sector 3 Prados de Villa Hermosa, zona 7 san miguel Petapa",null,"edvinramos2000@yahoo.es","casado","Ingeniero Agrónomo",null,2258,3031032222,{"$f":"17500","v":17500},375,250,12000,{"$f":"SUM(AB9:AE9)","v":30125},{"$f":"ROUND(SUM(AB9:AC9)*15%,2)","v":2681.25},{"$f":"ROUND(SUM(AB9+AC9)*1.344%,2)","v":240.24},{"$f":"ROUND(SUM(AB9+AC9)*3%,2)","v":536.25},545.38,3575,null,null,{"$f":"SUM(AG9:AL9)","v":7578.12},{"$f":"+AF9-AN9","v":22546.880000000001},990074989]
[null,null,null,null,null,null,null,null,null,null,null,"Total 011",null,null,null,null,null,null,null,null,null,null,null,null,null,null,null,{"$f":"SUM(AB9)","v":17500},375,250,12000,30125,{"$f":"SUM(AG9)","v":2681.25},240.24,536.25,545.38,{"$f":"SUM(AK9)","v":3575},0,0,7578.12,{"$f":"SUM(AO9)","v":22546.880000000001}]
[]
["RENGLÓN 022 PERSONAL POR CONTRATO"]
["No.","Renglón","ÁREA","Puesto Nominal","Puesto Funcional","Código\nPuesto","CÓDIGO DE\nEMPLEADO","PARTIDA\nINDIVIDUAL","UBICACIÓN","NOMBRE",null,"Contrato","Fecha de \nIngreso","NIT","IGSS",null,"CÉDULA","EXTENDIDA EN ","FECHA DE\nNACIMIENTO","DIRECCIÓN","TELÉFONO","CORREO ELECTRÓNICO","ESTADO CIVIL","PROFESIÓN","OTROS ESTUDIOS","COLEGIADO\nACTIVO","CUENTA\nBANCARIA","Devengado Mensual",null,null,null,"TOTAL DEVENGADO MENSUAL","Deducciones",null,null,null,null,null,null,"Total \nDeducciones","Líquido"]
[null,null,null,null,null,null,null,null,null,null,null,null,null,null,null,null,null,null,null,null,null,null,null,null,null,null,null,"Renglón 022","Renglón 026","Renglón 027","Renglón 063",null,118,202,201,203,211,102,120]
[null,null,null,null,null,null,null,null,null,null,null,null,null,null,null,"DPI",null,null,null,null,null,null,null,null,null,null,null,"Sueldo\nMensual","Bono \nProfesional","Bono\n66-2000","Gastos de\nRepresent.",null,"Montepío","Fianza","IGSS","ISR","DESC.","Amort \nBANTRAB","Decreto 81-70"]
[null,null,null,null,null,null,null,null,null,null,null,null,null,null,null,null,null,null,null,null,null,null,null,null,null,null,null,null,null,27,null,null,"PROMEDIO POR 12 MESES",26,null,null,"JUDICIAL"]
[1,"022",null,"Subdirector Ejecutivo II","Auditor Interno",308379,null,null,null,"Oscar Leopoldo Ovando Hernández",null,"03-2015-022-AMSA","2015-03-23",null,null,null,null,null,null,null,null,null,null,null,null,null,null,10000,375,250,0,{"$f":"ROUND(SUM(AB17:AE17),2)","v":10625},{"$f":"ROUND(SUM(AB17:AC17)*15%,2)","v":1556.25},{"$f":"ROUND(SUM(AB17+AC17)*1.344%,2)","v":139.44},{"$f":"ROUND(SUM(AB17+AC17)*3%,2)","v":311.25},237.88,null,null,null,{"$f":"SUM(AG17:AM17)","v":2244.8200000000002},{"$f":"+AF17-AN17","v":8380.18},9901350757]
[2,"022","A","Director Ejecutivo II","Jefe Administrativo Financiero",351675,990097519,"00011","División Financiera","Víctor Aníbal López Aquino",null,"01-2016-022-AMSA","2016-02-19","2017446-2",272086356,null,"A-1 849029","Guatemala, Guatemala","1972-05-25","12 calle 9-97 zona 7 de Mixco","5405-4377",null,"casada",{"$f":"'[1]021'!$S$21","v":"Licenciatura en Administracion de Empresas"},null,null,null,12000,0,250,0,{"$f":"ROUND(SUM(AB18:AE18),2)","v":12250},1800,{"$f":"ROUND(SUM(AB18+AC18)*1.344%,2)","v":161.28},{"$f":"ROUND(SUM(AB18+AC18)*3%,2)","v":360},304.5,null,3107.34,null,5733.12,6516.88,990038244]
[3,"022",null,"Director Ejecutivo III","Jefe Ordenamiento Territorial",351670,null,null,null,"Víctor René Mazariegos Ortiz",null,"02-2016-022-AMSA","2016-02-19",null,null,null,null,null,null,null,null,null,null,null,null,null,null,13500,375,250,0,{"$f":"ROUND(SUM(AB19:AE19),2)","v":14125},2081.25,186.48,{"$f":"ROUND(SUM(AB19+AC19)*3%,2)","v":416.25},381.38,null,null,null,3065.36,11059.64,9901370183]
[4,"022",null,"Director Ejecutivo II","Jefa Asesoría Jurídica",401225,null,null,null,"Margarita Dulce María Maldonado \nHernández",null,"03-2016-022-AMSA","2016-02-19",null,null,null,null,null,null,null,null,null,null,null,null,null,null,12000,375,250,0,{"$f":"ROUND(SUM(AB20:AE20),2)","v":12625},1856.25,166.32,{"$f":"ROUND(SUM(AB20+AC20)*3%,2)","v":371.25},319.88,null,null,null,2713.7,9911.2999999999993,9901370188]
[5,"022",null,"Director Ejecutivo II","Jefe Desechos Sólidos",351677,null,null,null,"Edgar Eduardo Pérez Cabrera",null,"04-2016-022-AMSA","2016-03-10",null,null,null,null,null,null,null,null,null,null,null,null,null,null,12000,375,250,0,12625,1856.25,166.32,371.25,319.88,null,null,null,2713.7,9911.2999999999993,9901054715]
[6,"022",null,"Director Ejecutivo II","Jefe Forestal",352692,null,null,null,"Hugo Ronaldo Gutiérrez Ramírez",null,"03-2017-022-AMSA","2017-03-01",null,null,null,null,null,null,null,null,null,null,null,null,null,null,12000,375,250,0,12625,1856.25,166.32,371.25,261.13,null,null,null,2654.95,9970.0499999999993,9901373798]
[7,"022",null,"Director Ejecutivo II","Jefe Control Ambiental",351673,null,null,null,"Manuel Francisco Cano Alfaro",null,"06-2016-022-AMSA","2016-03-10",null,null,null,null,null,null,null,null,null,null,null,null,null,null,12000,375,250,0,12625,1856.25,166.32,371.25,319.88,null,null,null,2713.7,9911.2999999999993,9901052694]
[8,"022",null,"Director Ejecutivo II","Jefa de Relaciones Interinstitucionales",351672,null,null,null,"Maria Alejandra Guzman García",null,"02-2017-022-AMSA","2017-02-14",null,null,null,null,null,null,null,null,null,null,null,null,null,null,12000,0,250,0,12250,1800,161.28,{"$f":"ROUND(SUM(AB24+AC24)*3%,2)","v":360},265.02,null,null,null,2586.2999999999997,9663.7000000000007,990054468]
[9,"022",null,"Subdirector Ejecutivo III","Jefa de Educación Ambiental",351674,null,null,null,"Maria Alejandra Punti Martínez",null,"08-2016-022-AMSA","2016-04-04",null,null,null,null,null,null,null,null,null,null,null,null,null,null,11300,0,250,0,11550,1695,151.87,339,275.8,null,null,null,2461.67,9088.33,9901378098]
[10,"022",null,"Director Ejecutivo II","Jefe Desechos Liquidos",352693,null,null,null,"Heber Amilcar Barrios De León",null,"10-2016-022-AMSA","2016-06-13",null,null,null,null,null,null,null,null,null,null,null,null,null,null,12000,375,250,0,{"$f":"ROUND(SUM(AB26:AE26),2)","v":12625},1856.25,166.32,371.25,319.88,null,null,null,2713.7,9911.2999999999993,9901100971]
[11,"022",null,"Director Ejecutivo ll","Jede de Evaluacion y Seguimiento",351678,null,null,null,"Harold Alexander Cruz Juarez",null,"01-2017-022-AMSA","2017-01-30",null,null,null,null,null,null,null,null,null,null,null,null,null,null,12000,375,250,0,12625,1856.25,166.32,371.25,303.22000000000003,null,null,null,2697.04,9927.9599999999991]
[12,"022",null,"Subdirector Ejecutivo II","Subdirector Ejecutivo",308378,null,null,null,"Mayra Carolina Tobar Zuleta",null,"11-2016-022-AMSA\nAcuerdo 116","2016-12-19",null,null,null,null,null,null,null,null,null,null,null,null,null,null,10000,375,250,8000,18625,1556.25,139.44,311.25,237.88,null,null,null,2244.8200000000002,16380.18]
[null,null,null,null,null,null,null,null,null,null,null,"Total 022",null,null,null,null,null,null,null,null,null,null,null,null,null,null,null,{"$f":"SUM(AB17:AB28)","v":140800},3375,3000,8000,155175,21626.25,1937.7099999999996,4325.25,3546.3300000000008,0,3107.34,0,34542.880000000005,120632.12]
[null,null,null,null,null,null,null,null,null,null,null,"Total 011 y 022",null,null,null,null,null,null,null,null,null,null,null,null,null,null,null,{"$f":"+AB29+AB10","v":158300},{"$f":"+AC29+AC10","v":3750},{"$f":"+AD29+AD10","v":3250},{"$f":"+AE29+AE10","v":20000},{"$f":"SUM(AF29+AF10)","v":185300},24307.5,2177.9499999999998,4861.5,4091.7100000000009,3575,3107.34,0,42121.000000000007,{"$f":"AF30-AN30","v":143179}]
[]
[]
[]
[]
[]
[]
[]
[]
[null,"Elaboró:",null,null,null,null,null,null,null,null,"Revisó:",null,null,null,null,null,null,null,null,null,null,null,null,null,null,null,null,null,null,null,null,"Vo.Bo."]
[null,null,null,"Yeimy Daleicy Rodriguez González",null,null,null,null,null,null,null,"Víctor Aníbal López Aquino",null,null,null,null,null,null,null,null,null,null,null,null,null,null,null,null,null,null,null,null,"Ing. Oscar Amed Juárez Sosa"]
[null,null,null,"Encargada de Nómina",null,null,null,null,null,null,null,"Jefe Administrativo Financiero",null,null,null,null,null,null,null,null,null,null,null,null,null,null,null,null,null,null,null,null,"Director Ejecutivo"]
[null,null,null,"AMSA",null,null,"AMSA",null,null,null,null,"AMSA",null,null,null,null,null,null,null,null,null,null,null,null,null,null,null,null,null,null,null,null,"AMSA",null,null,null,null,null,null,null,"1/1"]

{"sheet":"031","index":3,"n_rows":160,"n_cols":23,"rows_kept":160,"cut":false,"hidden":false,"merged":[[77,6,77,9],[83,12,84,12],[12,18,14,18],[12,19,14,19],[12,12,13,12],[46,19,48,19],[65,11,66,11],[65,13,67,13],[12,10,13,10],[46,14,46,16],[53,6,53,9],[46,12,47,12],[65,12,66,12],[62,1,62,19],[46,3,48,3],[46,4,48,4],[1,1,1,19],[2,1,2,19],[3,1,3,19],[4,1,4,19],[8,1,8,19],[9,1,9,19],[12,9,14,9],[12,8,14,8],[12,7,14,7],[12,6,14,6],[12,5,14,5],[12,4,14,4],[12,3,14,3],[12,1,14,1],[12,13,14,13],[12,17,14,17],[80,1,80,19],[83,19,85,19],[142,6,142,9],[12,14,12,16],[12,11,13,11],[42,1,42,19],[43,1,43,19],[46,13,48,13],[46,17,48,17],[46,18,48,18],[38,6,38,9],[65,19,67,19],[46,5,48,5],[46,6,48,6],[46,7,48,7],[46,8,48,8],[46,9,48,9],[46,10,47,10],[46,11,47,11],[65,14,65,16],[65,17,67,17],[65,18,67,18],[46,1,48,1],[61,1,61,19],[65,1,67,1],[65,3,67,3],[65,4,67,4],[65,5,67,5],[65,6,67,6],[65,7,67,7],[65,8,67,8],[65,9,67,9],[65,10,66,10],[157,7,157,11],[158,7,158,11],[159,7,159,11],[157,4,157,5],[157,15,157,19],[158,4,158,5],[158,15,158,19],[159,4,159,5],[116,1,116,19],[117,1,117,19],[119,1,121,1],[119,3,121,3],[119,4,121,4],[119,5,121,5],[119,6,121,6],[119,17,121,17],[119,11,120,11],[119,13,121,13],[159,15,159,19],[119,19,121,19],[119,7,121,7],[119,8,121,8],[119,9,121,9],[119,10,120,10],[83,5,85,5],[83,6,85,6],[119,14,119,16],[83,14,83,16],[83,18,85,18],[81,1,81,19],[83,1,85,1],[83,3,85,3],[83,4,85,4],[83,7,85,7],[83,8,85,8],[83,9,85,9],[83,10,84,10],[83,11,84,11],[83,13,85,13],[83,17,85,17],[119,12,120,12],[119,18,121,18],[144,10,145,10],[144,11,145,11],[144,12,145,12],[144,13,146,13],[144,14,144,16],[144,17,146,17],[144,18,146,18],[146,1,147,9],[102,6,102,9]]}
[]
[null,"AUTORIDAD PARA EL MANEJO SUSTENTABLE DE LA CUENCA Y DEL LAGO DE AMATITLÁN"]
[null,"NOMINA CORRESPONDIENTE AL MES DE MAYO 2017"]
[null,"NÚMERO 7-2017"]
[null," RENGLÓN 031 \"JORNALES\" "]
[]
[null,null,null,"SOLICITUD DE PAGO ",{"$f":"B4","v":"NÚMERO 7-2017"}]
[]
[null,"SUBPRODUCTO: DIRECCIÓN Y COORDINACIÓN   001-001-001"]
[null,"11130016-219-00-33-00-000-001-000-031-0115-11-0000-0000"]
[]
[]
[null,"No.","PUESTO ","Titulo Jornal \nDiario ","Ubicación","Empleado","Contrato","Fecha de \nIngreso","Jornal","Días","Renglón 031","Renglón 033","Renglón 033","Total Devengado\n Mensual","Deducciones",null,null,"Total\nDeducciones","Liquido","Número de\nCuenta"]
[null,null,null,null,null,null,null,null,null,null,null,null,null,null,201,211,120]
[null,null,null,null,null,null,null,null,null,null,"Jornales","Bono 66-2000","complemento específico por nivelación",null,"IGSS","Retenciones \nJudiciales","Decreto \n81-70"]
[null,1,"Encargada de Limpieza","Constructor de Puentes","Adiministrativo","Gladis Mirtala Ramírez Sánchez","01-2017-031-AMSA","2008-01-02",80.86,31,{"$f":"I16*J16","v":2506.66},250,{"$f":"6.04*J16","v":187.24},{"$f":"SUM(K16:M16)","v":2943.8999999999996},{"$f":"ROUND((K16+M16)*4.83%,2)","v":130.12},0,0,{"$f":"SUM(O16:Q16)","v":130.12},{"$f":"+N16-R16","v":2813.7799999999997},3216012953]
[null,2,null,"Constructor de Puentes","Adiministrativo","Vidal Cruz Martínez","02-2017-031-AMSA","2002-02-02",80.86,31,2506.66,250,187.24,2943.8999999999996,130.12,0,0,130.12,2813.7799999999997,3216001970]
[null,3,"Jardinero","Constructor de Puentes","Adiministrativo","Victorina de Jesús Peralta Peralta","03-2017-031-AMSA","01/10/2014",80.86,31,2506.66,250,187.24,2943.8999999999996,130.12,0,0,130.12,2813.7799999999997,3393002669]
[null,4,null,"Constructor de Puentes","Adiministrativo","Sara Adelaida Quevedo Alcántara","04-2017-031-AMSA","03/12/2012",80.86,31,2506.66,250,187.24,2943.8999999999996,130.12,0,0,130.12,2813.7799999999997,4322082859]
[null,5,"Encargada de Limpieza","Constructor de Puentes","Adiministrativo","Elida Etelvina Obando Hernandez","05-2017-031-AMSA","25/10/2013",80.86,31,2506.66,250,187.24,2943.8999999999996,130.12,0,0,130.12,2813.7799999999997,4654012114]
[null,6,"Encargada de Limpieza","Constructor de Puentes","Adiministrativo","Yomara Ninett Escobar Calderón","06-2017-031-AMSA","03/10/2014",80.86,31,2506.66,250,187.24,2943.8999999999996,130.12,0,null,130.12,2813.7799999999997,3164072096]
[null,7,null,"Constructor de Puentes","Adiministrativo","Elmer Arám Chacón Portillo","07-2017-031-AMSA","2015-01-05",80.86,31,2506.66,250,187.24,2943.8999999999996,130.12,0,0,130.12,2813.7799999999997,3298033742]
[null,8,"Peon Vigilante","Peon Vigilante V","Humedal","Estuardo Randolfo Gutierrez Cruz","65-2017-031-AMSA","2017-03-01",75.64,31,{"$f":"I23*J23","v":2344.84},250,{"$f":"11.26*J23","v":349.06},{"$f":"SUM(K23:M23)","v":2943.9},{"$f":"ROUND((K23+M23)*4.83%,2)","v":130.12},0,0,{"$f":"SUM(O23:Q23)","v":130.12},{"$f":"+N23-R23","v":2813.78},3607017078]
[null,9,"Peon Vigilante","Peon Vigilante V","Humedal","Biayner Soto Arana","66-2017-031-AMSA","2017-02-20",75.64,31,2344.84,250,{"$f":"11.26*30","v":337.8},2932.6400000000003,129.57,0,0,129.57,2803.07,3287038944]
[null,10,"Peon Vigilante","Peon Vigilante V","La Cerra","Werlington Jeffrey Robinzon Alvarado Hernandez","67-2017-031-AMSA","2017-02-20",75.64,31,2344.84,250,337.8,2932.6400000000003,129.57,0,0,129.57,2803.07,3287038994]
[null,11,"Peon Vigilante","Peon Vigilante V","La Cerra","Hamilton Wilfredo Hernández Hernández","68-2017-031-AMSA","2017-02-20",75.64,31,2344.84,250,337.8,2932.6400000000003,129.57,0,0,129.57,2803.07,3287039080]
[null,12,"Peon Vigilante","Peon Vigilante V","Acuatica","Hugo Concepcion Escobar Veliz","70-2017-031-AMSA","2017-02-20",75.64,31,2344.84,250,337.8,2932.6400000000003,129.57,0,0,129.57,2803.07,3759033361]
[null,13,"Peon Vigilante","Peon Vigilante V","Km 22","Nazario Hernández Osorio","71-2017-031-AMSA","2017-02-20",75.64,31,2344.84,250,337.8,2932.6400000000003,129.57,0,0,129.57,2803.07,3364085352]
[null,14,"Peon Vigilante","Peon Vigilante V","Km 22","Sebastián Alfredo Morales Morales","72-2017-031-AMSA","2017-02-20",75.64,31,2344.84,250,337.8,2932.6400000000003,129.57,0,0,129.57,2803.07,3164078022]
[null,15,"Peon Vigilante","Peon Vigilante V","Km 22","Candido Samayoa y Samayoa","73-2017-031-AMSA","2017-02-20",75.64,31,2344.84,250,337.8,2932.6400000000003,129.57,0,0,129.57,2803.07,3532020817]
[null,16,"Peon Vigilante","Peon Vigilante V","Km 22","Axel Augusto Lopez De León","73-2017-031-AMSA","2017-02-20",75.64,31,2344.84,250,337.8,2932.6400000000003,129.57,0,0,129.57,2803.07,3424051646]
[null,17,"Peon Vigilante","Peon Vigilante V","Km 22","Rolando Gonzalez Tahuico","75-2017-031-AMSA","2017-02-20",75.64,31,2344.84,250,337.8,2932.6400000000003,129.57,0,0,129.57,2803.07,3661018168]
[null,18,"Peon Vigilante","Peon Vigilante V","Km 22","Jose Urias Muñoz","75-2017-031-AMSA","2017-02-20",75.64,31,2344.84,250,337.8,2932.6400000000003,129.57,0,0,129.57,2803.07,3137127054]
[null,19,"Peon Vigilante","Peon Vigilante V","La Cerra","Manolo Gabriel Godoy","77-2017-031-AMSA","2017-02-20",75.64,31,2344.84,250,337.8,2932.6400000000003,129.57,0,0,129.57,2803.07,4393006466]
[null,20,"Peon Vigilante","Peon Vigilante V","La Cerra","Henry Alejandro Ventura Hernandez","78-2017-031-AMSA","2017-02-20",75.64,31,2344.84,250,337.8,2932.6400000000003,129.57,0,0,129.57,2803.07,3287039109]
[null,21,"Peon Vigilante","Peon Vigilante V","Humedal","Jorge Adán Arizandieta García","79-2017-031-AMSA","2017-02-20",75.64,31,2344.84,250,337.8,2932.6400000000003,129.57,0,0,129.57,2803.07,3287038912]
[null,22,"Peon Vigilante","Peon Vigilante V","Humedal","Ricardo Arizandieta García","80-2017-031-AMSA","2017-02-20",75.64,31,2344.84,250,337.8,2932.6400000000003,129.57,0,0,129.57,2803.07,3287038926]
[null,23,"Peon Vigilante","Peon Vigilante V","Km 22","Rutilia Gomez Lopez","81-2017-031-AMSA","2017-05-16",75.64,16,1210.24,250,337.8,1798.04,74.77,0,0,74.77,1723.27,3153059040]
[null,null,null,null,null,null,"Totales ",null,null,null,{"$f":"SUM(K16:K38)","v":53929.45999999997},5750,6726.7400000000025,66406.199999999983,2929.7100000000005,0,0,2929.7100000000005,63476.489999999991]
[]
[]
[]
[null,"SUBPRODUCTO: CONTROL Y MANEJO DE LOS DESECHOS SÓLIDOS EN LA CUENCA DEL LAGO DE AMATITLÁN    001-002-0005 "]
[null,"11130016-219-00-33-00-000-002-000-031-0115-11-0000-0000"]
[]
[]
[null,"No.","PUESTO ","Titulo Jornal \nDiario ","Ubicación","Empleado","Contrato","Fecha de \nIngreso","Jornal","Días","Renglón 031","Renglón 033","Renglón 033","Total Devengado\n Mensual","Deducciones",null,null,"Total\nDeducciones","Liquido","Número de\nCuenta",null,"0010 / 692 - UC RELLENO SANITARIO (004)"]
[null,null,null,null,null,null,null,null,null,null,null,null,null,null,201,211,120]
[null,null,null,null,null,null,null,null,null,null,"Jornales","Bono 66-2000","complemento específico por nivelación",null,"IGSS","Retenciones \nJudiciales","Decreto \n81-70"]
[null,1,"Peón de Campo","Constructor de Puentes","Desechos Sólidos","Maynor de Jesús De León Dionicio","08-2017-031-AMSA","05/01/2015",80.86,31,{"$f":"I50*J50","v":2506.66},250,{"$f":"6.04*J50","v":187.24},{"$f":"SUM(K50:M50)","v":2943.8999999999996},{"$f":"ROUND((K50+M50)*4.83%,2)","v":130.12},0,0,{"$f":"SUM(O50:Q50)","v":130.12},{"$f":"+N50-R50","v":2813.7799999999997},3216010363]
[null,2,null,"Constructor de Puentes","Desechos Sólidos","Cecilio Antonio Vásquez Soto","09-2017-031-AMSA","2012-10-02",80.86,31,{"$f":"I51*J51","v":2506.66},250,{"$f":"6.04*J51","v":187.24},{"$f":"SUM(K51:M51)","v":2943.8999999999996},{"$f":"ROUND((K51+M51)*4.83%,2)","v":130.12},0,0,{"$f":"SUM(O51:Q51)","v":130.12},{"$f":"+N51-R51","v":2813.7799999999997},3532007563]
[null,3,null,"Constructor de Puentes","Desechos Sólidos","Roberto Romero Peralta","10-2017-031-AMSA","17/02/2015",80.86,31,{"$f":"I52*J52","v":2506.66},250,{"$f":"6.04*J52","v":187.24},{"$f":"SUM(K52:M52)","v":2943.8999999999996},{"$f":"ROUND((K52+M52)*4.83%,2)","v":130.12},0,0,{"$f":"SUM(O52:Q52)","v":130.12},{"$f":"+N52-R52","v":2813.7799999999997},3164072927]
[null,4,null,"Constructor de Puentes","Desechos Sólidos","Rafael de Jesús Perea Peralta","11-2017-031-AMSA","01/01/2016",80.86,31,{"$f":"I53*J53","v":2506.66},250,{"$f":"6.04*J53","v":187.24},{"$f":"SUM(K53:M53)","v":2943.8999999999996},{"$f":"ROUND((K53+M53)*4.83%,2)","v":130.12},0,0,{"$f":"SUM(O53:Q53)","v":130.12},{"$f":"+N53-R53","v":2813.7799999999997},3216008208]
[null,null,null,null,null,null,"Totales ",null,null,null,{"$f":"SUM(K50:K53)","v":10026.64},{"$f":"SUM(L50:L53)","v":1000},748.96,{"$f":"SUM(N50:N53)","v":11775.599999999999},520.48,0,0,520.48,11255.119999999999]
[]
[]
[]
[]
[]
[]
[]
[null,"SUBPRODUCTO: TRATAMIENTO DE LAS AGUAS RESIDUALES A TRÁVES DE LAS PLANTAS DE TRATAMIENTO A CARGO DE LA INSTITUCIÓN    001-002-0001 "]
[null,"11130016-219-00-33-00-000-002-000-031-0115-11-0000-0000"]
[]
[]
[null,"No.","PUESTO ","Titulo Jornal \nDiario ","Ubicación","Empleado","Contrato","Fecha de \nIngreso","Jornal","Días","Renglón 031","Renglón 033","Renglón 033","Total Devengado\n Mensual","Deducciones",null,null,"Total\nDeducciones","Liquido","Número de\nCuenta",null,"0009 / 691 - UC PLANTAS DE TRATAMIENTO (003)"]
[null,null,null,null,null,null,null,null,null,null,null,null,null,null,201,211,120]
[null,null,null,null,null,null,null,null,null,null,"Jornales","Bono 66-2000","complemento específico por nivelación",null,"IGSS","Retenciones \nJudiciales","Decreto \n81-70"]
[null,1,"Operadores PTAR","Constructor de Puentes","Desechos Líquidos","José Filiberto Domingo Domingo","12-2017-031-AMSA","2006-01-02",80.86,31,{"$f":"I69*J69","v":2506.66},250,{"$f":"6.04*J69","v":187.24},{"$f":"SUM(K69:M69)","v":2943.8999999999996},{"$f":"ROUND((K69+M69)*4.83%,2)","v":130.12},0,0,{"$f":"SUM(O69:Q69)","v":130.12},{"$f":"+N69-R69","v":2813.7799999999997},4216005864]
[null,2,"Operadores PTAR","Constructor de Puentes","Desechos Líquidos","Agustín López López","13-2017-031-AMSA","2007-01-02",80.86,31,2506.66,250,{"$f":"6.04*J70","v":187.24},2943.8999999999996,130.12,0,0,130.12,2813.7799999999997,3216004367]
[null,3,"Operadores PTAR","Constructor de Puentes","Desechos Líquidos","Abel Barillas Grajeda","14-2017-031-AMSA","2003-04-01",0,31,0,250,0,250,0,0,0,0,250,3216001443]
[null,4,"Operadores PTAR","Constructor de Puentes","Desechos Líquidos","Nelson Orlando Quiñonez Yohol","15-2017-031-AMSA","2005-02-01",80.86,31,2506.66,250,{"$f":"6.04*J72","v":187.24},2943.8999999999996,130.12,0,0,130.12,2813.7799999999997,3216001475]
[null,5,"Operadores PTAR","Constructor de Puentes","Desechos Líquidos","Herculano Colmenar Estrada","16-2017-031-AMSA","2003-03-01",80.86,31,2506.66,250,187.24,2943.8999999999996,130.12,0,0,130.12,2813.7799999999997,3216001439]
[null,6,"Operadores PTAR","Constructor de Puentes","Desechos Líquidos","Guillermo Apolonio Chuc Mejía","17-2017-031-AMSA","2003-05-01",80.86,31,2506.66,250,187.24,2943.8999999999996,130.12,0,0,130.12,2813.7799999999997,3216001493]
[null,7,"Operadores PTAR","Constructor de Puentes","Desechos Líquidos","Marcelino Gómez Dávila","18-2017-031-AMSA","2003-03-01",80.86,31,2506.66,250,187.24,2943.8999999999996,130.12,0,0,130.12,2813.7799999999997,4216002459]
[null,8,"Peón de Campo","Constructor de Puentes","Desechos Líquidos","Héctor William Martínez Cabrera","19-2017-031-AMSA","2007-01-02",80.86,31,2506.66,250,187.24,2943.8999999999996,130.12,0,0,130.12,2813.7799999999997,3216004486]
[null,9,null,"Constructor de Puentes","Desechos Líquidos","Calixto de Jesús Rodríguez Quintero","20-2017-031-AMSA","2016-01-01",80.86,31,2506.66,250,187.24,2943.8999999999996,130.12,0,null,130.12,2813.7799999999997,3153050750]
[null,null,null,null,null,null,"Totales ",null,null,null,{"$f":"SUM(K69:K77)","v":20053.28},{"$f":"SUM(L69:L77)","v":2250},{"$f":"SUM(M62:M77)","v":1497.92},{"$f":"SUM(N69:N77)","v":23801.199999999997},1040.96,0,0,1040.96,22760.239999999994]
[]
[]
[null,"SUBPRODUCTO: VOLUMEN DE DESECHOS SÓLIDOS FLOTANTES Y PLANTAS ACUÁTICAS EXTRAÍDOS DEL LAGO DE AMATITLÁN    001-002-0002 "]
[null,"11130016-219-00-33-00-000-002-000-031-0115-11-0000-0000"]
[]
[null,"No.","PUESTO ","Titulo Jornal \nDiario ","Ubicación","Empleado","Contrato","Fecha de \nIngreso","Jornal","Días","Renglón 031","Renglón 033","Renglón 033","Total Devengado\n Mensual","Deducciones",null,null,"Total\nDeducciones","Liquido","Número de\nCuenta",null,"0006 / 628 - UC LIMPIEZA DEL LAGO (002)"]
[null,null,null,null,null,null,null,null,null,null,null,null,null,null,201,211,120]
[null,null,null,null,null,null,null,null,null,null,"Jornales","Bono 66-2000","complemento específico por nivelación",null,"IGSS","Retenciones \nJudiciales","Decreto \n81-70"]
[null,1,"Peón de Campo","Constructor de Puentes","Estación Acuática","Flavio Alí Alonso Gil","22-2017-031-AMSA","2002-01-02",80.86,31,{"$f":"I87*J87","v":2506.66},250,{"$f":"6.04*J87","v":187.24},{"$f":"SUM(K87:M87)","v":2943.8999999999996},{"$f":"ROUND((K87+M87)*4.83%,2)","v":130.12},0,0,{"$f":"SUM(O87:Q87)","v":130.12},{"$f":"+N87-R87","v":2813.7799999999997},3216001631]
[null,2,"Operario de Maquinaria","Constructor de Puentes","Estación Acuática","Gerver Oswaldo Suruy Estupe","23-2017-031-AMSA","2007-01-02",80.86,31,2506.66,250,187.24,2943.8999999999996,130.12,0,0,130.12,2813.7799999999997,3216003318]
[null,3,"Lanchero","Constructor de Puentes","Estación Acuática","Andrés Payes Rodríguez","24-2017-031-AMSA","2002-01-02",80.86,31,2506.66,250,187.24,2943.8999999999996,130.12,800,0,930.12,2013.7799999999997,3216001700]
[null,4,"Peón de Campo","Constructor de Puentes","Estación Acuática","Ignacio Seijas Sequen","25-2017-031-AMSA","2006-01-02",80.86,31,2506.66,250,187.24,2943.8999999999996,130.12,0,0,130.12,2813.7799999999997,3234009071]
[null,5,"Peón de Campo","Constructor de Puentes","Estación Acuática","Mario Arturo Sigüenza","26-2017-031-AMSA","2003-08-01",80.86,31,2506.66,250,187.24,2943.8999999999996,130.12,0,0,130.12,2813.7799999999997,3216001801]
[null,6,"Peón de Campo","Constructor de Puentes","Estación Acuática","Carlos Fernando Tello Valdez","27-2017-031-AMSA","2002-01-02",80.86,31,2506.66,250,187.24,2943.8999999999996,130.12,0,0,130.12,2813.7799999999997,4216002514]
[null,7,"Encargado de Oxigenadores","Constructor de Puentes","Estación Acuática","Jesús Antonio Montúfar Mazariegos","28-2017-031-AMSA","2007-05-02",80.86,31,2506.66,250,187.24,2943.8999999999996,130.12,0,0,130.12,2813.7799999999997,3164031580]
[null,8,"Peón de Campo","Constructor de Puentes","Estación Acuática","Carlos Humberto Gatica González","29-2017-031-AMSA","2007-05-16",80.86,31,2506.66,250,187.24,2943.8999999999996,130.12,0,0,130.12,2813.7799999999997,4216002528]
[null,9,"Peón de Campo","Constructor de Puentes","Estación Acuática","Nery Armando Castañeda Avilés","30-2017-031-AMSA","2008-06-09",80.86,31,2506.66,250,187.24,2943.8999999999996,130.12,0,0,130.12,2813.7799999999997,3164034252]
[null,10,"Peón de Campo","Constructor de Puentes","Estación Acuática","Yury Geovani Guzmán Avilés","31-2017-031-AMSA","2010-01-02",80.86,31,2506.66,250,187.24,2943.8999999999996,130.12,0,0,130.12,2813.7799999999997,3216001645]
[null,11,null,"Constructor de Puentes","Estación Acuática","Cosmen Vitalino Obando Montenegro","32-2017-031-AMSA","2007-01-02",80.86,31,2506.66,250,187.24,2943.8999999999996,130.12,0,null,130.12,2813.7799999999997,3216004490]
[null,12,null,"Constructor de Puentes","Estación Acuática","Juan Antonio Roque Dionisio","33-2017-031-AMSA","2007-01-02",80.86,31,2506.66,250,187.24,2943.8999999999996,130.12,0,null,130.12,2813.7799999999997,3216004353]
[null,13,null,"Constructor de Puentes","Estación Acuática","Marlon Geovani Arizandieta Arroyo","34-2017-031-AMSA","2013-02-01",80.86,31,2506.66,250,187.24,2943.8999999999996,130.12,0,null,130.12,2813.7799999999997,3216001627]
[null,14,null,"Constructor de Puentes","Estación Acuática","Erik Leonel Quixaj Ortiz","35-2017-031-AMSA","2017-01-01",80.86,31,2506.66,250,187.24,2943.8999999999996,130.12,0,null,130.12,2813.7799999999997,3164003073]
[null,15,null,"Constructor de Puentes","Estación Acuática","Reyna Elizabeth Toc Choz","36-2017-031-AMSA","2014-07-14",80.86,31,2506.66,250,187.24,2943.8999999999996,130.12,0,null,130.12,2813.7799999999997,3247011971]
[null,16,null,"Constructor de Puentes","Estación Acuática","José Luis Arizandieta Cabrera","37-2017-031-AMSA","2016-01-01",80.86,31,2506.66,250,187.24,2943.8999999999996,130.12,0,null,130.12,2813.7799999999997,3229010497]
[null,null,null,null,null,null,"Totales ",null,null,null,{"$f":"SUM(K87:K102)","v":40106.559999999998},{"$f":"SUM(L87:L102)","v":4000},{"$f":"SUM(M84:M102)","v":2995.8399999999992},{"$f":"SUM(N87:N102)","v":47102.400000000009},{"$f":"SUM(O87:O102)","v":2081.9199999999992},{"$f":"SUM(P87:P102)","v":800},0,2881.9199999999987,44220.479999999989]
[]
[]
[]
[]
[]
[]
[]
[]
[]
[]
[]
[]
[]
[null,"SUBPRODUCTO: REFORESTACIÓN Y MANTENIMIENTO DE ÁREAS EN LA CUENCA DEL LAGO DE AMATITLÁN    001-008-0008  "]
[null,"11130016-219-00-33-00-000-005-000-031-0115-11-0000-0000"]
[]
[null,"No.","PUESTO ","Titulo Jornal \nDiario ","Ubicación","Empleado","Contrato","Fecha de \nIngreso","Jornal","Días","Renglón 031","Renglón 033","Renglón 033","Total Devengado\n Mensual","Deducciones",null,null,"Total\nDeducciones","Liquido","Número de\nCuenta",null,null,"0005 / 346 - UC REFORESTACIÓN (008)"]
[null,null,null,null,null,null,null,null,null,null,null,null,null,null,201,211,120]
[null,null,null,null,null,null,null,null,null,null,"Jornales","Bono 66-2000","complemento específico por nivelación",null,"IGSS","Retenciones \nJudiciales","Decreto \n81-70"]
[null,1,null,"Constructor de Puentes","Forestal ","Esvin Leonel Rivera Pineda","38-2017-031-AMSA","2014-02-17",80.86,31,{"$f":"I123*J123","v":2506.66},250,{"$f":"6.04*J123","v":187.24},{"$f":"SUM(K123:M123)","v":2943.8999999999996},{"$f":"ROUND((K123+M123)*4.83%,2)","v":130.12},0,null,{"$f":"SUM(O123:Q123)","v":130.12},{"$f":"+N123-R123","v":2813.7799999999997},3216001659]
[null,2,"Peón de Campo","Constructor de Puentes","Forestal ","José Alberto Rucal","39-2017-031-AMSA","2002-01-02",80.86,31,2506.66,250,{"$f":"6.04*J124","v":187.24},2943.8999999999996,130.12,0,0,130.12,2813.7799999999997,3216001457,null,"NACIONES UNIDAS"]
[null,3,"Peón de Campo","Constructor de Puentes","Forestal","Julio Roberto Martínez Aguilar","40-2017-031-AMSA","2002-01-02",80.86,31,2506.66,250,187.24,2943.8999999999996,130.12,0,0,130.12,2813.7799999999997,3216001695]
[null,4,"Peón de Campo","Constructor de Puentes","Forestal","Juan Emilio Cruz De León","41-2017-031-AMSA","2015-01-05",80.86,31,2506.66,250,187.24,2943.8999999999996,130.12,0,0,130.12,2813.7799999999997,3216001920]
[null,5,"Peón de Campo","Constructor de Puentes","Forestal","Emilio Taque Carranza","42-2017-031-AMSA","2013-01-02",80.86,31,2506.66,250,187.24,2943.8999999999996,130.12,0,0,130.12,2813.7799999999997,3216004468]
[null,6,"Peón de Campo","Constructor de Puentes","Forestal","Rigoberto de Jesús Osorio Morataya","43-2017-031-AMSA","2007-09-01",80.86,31,2506.66,250,187.24,2943.8999999999996,130.12,0,0,130.12,2813.7799999999997,3164033390]
[null,7,"Peón de Campo","Constructor de Puentes","Forestal","Manuel de Jesús Coy Malín","44-2017-031-AMSA","2002-01-02",80.86,31,2506.66,250,187.24,2943.8999999999996,130.12,0,0,130.12,2813.7799999999997,3216001728]
[null,8,"Peón de Campo","Constructor de Puentes","Forestal","Francisco Javier Rivera Orellana","45-2017-031-AMSA","2004-07-07",80.86,31,2506.66,250,187.24,2943.8999999999996,130.12,0,0,130.12,2813.7799999999997,3216001916,null,"NACIONES UNIDAS"]
[null,9,"Peón de Campo","Constructor de Puentes","Forestal","Fermín Hernández Martinez","46-2017-031-AMSA","2002-02-01",80.86,31,2506.66,250,187.24,2943.8999999999996,130.12,0,0,130.12,2813.7799999999997,4216002596,null,"NACIONES UNIDAS"]
[null,10,"Peón de Campo","Constructor de Puentes","Forestal","Víctor Manuel López Rodríguez","47-2017-031-AMSA","2005-02-01",80.86,31,2506.66,250,187.24,2943.8999999999996,130.12,0,0,130.12,2813.7799999999997,3216001865]
[null,11,"Piloto","Constructor de Puentes","Forestal","Cosme Virgilio Morales Rodríguez","48-2017-031-AMSA","2005-01-03",80.86,31,2506.66,250,187.24,2943.8999999999996,130.12,0,0,130.12,2813.7799999999997,3216001829]
[null,12,"Peón de Campo","Constructor de Puentes","Forestal","Carlos Alberto Morales Contreras","49-2017-031-AMSA","2005-01-03",80.86,31,2506.66,250,187.24,2943.8999999999996,130.12,0,0,130.12,2813.7799999999997,3216001833,null,"NACIONES UNIDAS"]
[null,13,"Peón de Campo","Constructor de Puentes","Forestal","Miguel Ángel Ramos Luis","50-2017-031-AMSA","2002-02-12",80.86,31,2506.66,250,187.24,2943.8999999999996,130.12,0,0,130.12,2813.7799999999997,3216001851,null,"NACIONES UNIDAS"]
[null,14,"Peón de Campo","Constructor de Puentes","Forestal","Felipe Santiago Carreto","51-2017-031-AMSA","2006-01-03",80.86,31,2506.66,250,187.24,2943.8999999999996,130.12,0,0,130.12,2813.7799999999997,4216008623,null,"NACIONES UNIDAS"]
[null,15,null,"Constructor de Puentes","Forestal","Custodio Quiñonez Morataya","52-2017-031-AMSA","2015-11-03",80.86,31,2506.66,250,187.24,2943.8999999999996,130.12,0,null,130.12,2813.7799999999997,3164030412]
[null,16,null,"Constructor de Puentes","Forestal","Matilde Arias Cruz","53-2017-031-AMSA","2016-01-01",80.86,31,2506.66,250,187.24,2943.8999999999996,130.12,0,null,130.12,2813.7799999999997,3229008974]
[null,17,null,"Constructor de Puentes","Forestal","José Muñoz Chávez","54-2017-031-AMSA","2016-01-01",80.86,31,2506.66,250,187.24,2943.8999999999996,130.12,0,null,130.12,2813.7799999999997,3229011973]
[null,18,null,"Constructor de Puentes","Forestal","Víctor Vicente Paredes González","55-2017-031-AMSA","2016-01-01",80.86,31,2506.66,250,187.24,2943.8999999999996,130.12,0,null,130.12,2813.7799999999997,3287008934]
[null,19,null,"Constructor de Puentes","Forestal","Antonio Coy Hernandez","56-2017-031-AMSA","2016-01-01",80.86,31,2506.66,250,187.24,2943.8999999999996,130.12,0,null,130.12,2813.7799999999997,3287036198]
[null,20,null,"Constructor de Puentes","Forestal","Vitelio Catalan Ovando","57-2017-031-AMSA","2016-01-01",80.86,31,2506.66,250,187.24,2943.8999999999996,130.12,0,null,130.12,2813.7799999999997,3164074549]
[null,null,null,null,null,null,"Totales",null,null,null,{"$f":"SUM(K123:K142)","v":50133.200000000012},{"$f":"SUM(L123:L142)","v":5000},3744.7999999999984,58878.000000000015,2602.3999999999987,0,0,2602.3999999999987,56275.599999999984]
[]
[null,null,null,null,null,null,null,null,null,null,"Renglón 031","Renglón 033","Renglón 033","Total Devengado\n Mensual","Deducciones",null,null,"Total\nDeducciones","Liquido"]
[null,null,null,null,null,null,null,null,null,null,null,null,null,null,201,211,120]
[null,"TOTAL NÓMINA",null,null,null,null,null,null,null,null,"Jornales","Bono 66-2000","complemento específico por nivelación",null,"IGSS","Retenciones \nJudiciales","Decreto \n81-70"]
[null,null,null,null,null,null,null,null,null,null,{"$f":"+K39+K54+K78+K103+K143","v":174249.13999999998},{"$f":"+L39+L54+L78+L103+L143","v":18000},15714.260000000002,207963.40000000002,{"$f":"+O39+O54+O78+O103+O143","v":9175.4699999999975},800,0,9975.4699999999975,197987.92999999993]
[]
[]
[]
[]
[]
[]
[]
[]
[null,null,null,null,null,null,"Revisó:",null,null,null,null,null,null,null,"Vo.Bo."]
[null,null,"Realizó:",null,"Yeimy Daleicy Rodriguez González",null,null,"Víctor Anibal López Aquino",null,null,null,null,null,null,null,"Ing. Oscar Amed Juárez Sosa"]
[null,null,null,null,"Encargada de Nómina",null,null,"Jefe Administrativo Financiero",null,null,null,null,null,null,null,"Director Ejecutivo"]
[null,null,null,null,"AMSA",null,null,"AMSA",null,null,null,null,null,null,null,"AMSA"]

{"sheet":"SP 031A (2)","index":4,"n_rows":134,"n_cols":24,"rows_kept":134,"cut":false,"hidden":false,"merged":[[16,5,16,22],[1,0,1,22],[2,1,2,21],[4,0,4,24],[5,0,5,24],[7,5,7,11],[7,18,7,22],[9,1,9,6],[9,7,9,22],[11,4,11,23],[12,18,12,22],[13,1,13,22],[39,18,39,22],[25,3,25,10],[25,14,25,20],[28,0,28,22],[29,1,29,21],[31,0,31,24],[32,0,32,24],[34,5,34,11],[34,18,34,22],[36,1,36,6],[36,7,36,22],[38,4,38,23],[63,4,63,23],[40,1,40,22],[43,5,43,22],[45,6,45,22],[53,0,53,22],[54,1,54,21],[56,0,56,24],[57,0,57,24],[59,5,59,11],[59,18,59,22],[61,1,61,6],[61,7,61,22],[64,18,64,22],[65,1,65,22],[68,5,68,22],[70,6,70,22],[77,3,77,10],[77,14,77,20],[80,0,80,22],[81,1,81,21],[83,0,83,24],[84,0,84,24],[86,5,86,11],[86,18,86,22],[111,0,111,24],[88,1,88,6],[88,7,88,22],[90,4,90,23],[91,18,91,22],[92,1,92,22],[95,5,95,22],[97,6,97,22],[104,3,104,10],[104,14,104,20],[108,0,108,22],[109,1,109,21],[132,3,132,10],[132,14,132,20],[112,0,112,24],[114,5,114,11],[114,18,114,22],[116,1,116,6],[116,7,116,22],[118,4,118,23],[119,1,119,4],[119,18,119,22],[120,1,120,22],[123,5,123,22],[125,6,125,22]]}
[]
["AUTORIDAD PARA EL MANEJO SUSTENTABLE DE LA CUENCA Y DEL LAGO DE AMATITLÁN."]
[null,"PRESIDENCIA DE LA REPÚBLICA."]
[]
[{"$f":"'031'!D7","v":"SOLICITUD DE PAGO "}]
["NOMINA NO. 7-2017"]
[]
[null,"GUATEMALA,",null,null,null,{"$f":"TODAY()","v":"2017-06-05"},null,null,null,null,null,null,null,null,"CANTIDAD:",null,null,null,{"$f":"+'031'!S39+'031'!S54+'031'!S78+'031'!S103+'031'!#REF!+'031'!S143","v":{"$error":"#REF!"}}]
[]
[null,"UNIDAD SOLICITANTE:",null,null,null,null,null,"RECURSOS HUMANOS"]
[]
[null,"CANTIDAD:",null,null,{"$f":"PesosMN(S8)","v":{"$error":"#VALUE!"}}]
[null,"NOMINA: ",null,null,null,null,null,{"$f":"+A6","v":"NOMINA NO. 7-2017"},null,null,null,null,null,null,null,null,"VENCE:"]
[]
[null,"CUR",null,"x",null,"CHEQUE AMSA",null,null,null,"",null,"CAJA CHICA"]
[null,null,null,""]
[null,"A NOMBRE DE:",null,null,null,"AMSA"]
[null,null,null,""]
[null,"OBSERVACIONES:",null,null,null,null,{"$f":"'031'!B3","v":"NOMINA CORRESPONDIENTE AL MES DE MAYO 2017"}]
[null,null,null,null,null,null," 031 \"JORNALES\" "]
[]
[]
[null,null,null,null,null,null,null,null,null,null,null,null,null,null,null,null,null,null,null,null,null,null,null," "]
[null,null,null,null,null,null,null,null,null,null,null,null," "]
[]
[]
[null,"     "]
[]
["AUTORIDAD PARA EL MANEJO SUSTENTABLE DE LA CUENCA Y DEL LAGO DE AMATITLÁN."]
[null,"PRESIDENCIA DE LA REPÚBLICA."]
[]
[{"$f":"'[2]031'!E42","v":"SOLICITUD DE PAGO"}]
[{"$f":"+POLICIAS!B4","v":"           NÚMERO 8-2017"}]
[]
[null,"GUATEMALA,",null,null,null,{"$f":"F8","v":"2017-06-05"},null,null,null,null,null,null,null,null,"CANTIDAD:",null,null,null,{"$f":"+POLICIAS!R17","v":2813.78}]
[]
[null,"UNIDAD SOLICITANTE:",null,null,null,null,null,"RECURSOS HUMANOS"]
[]
[null,"CANTIDAD:",null,null,{"$f":"PesosMN(S35)","v":" -- DOS MIL OCHOCIENTOS TRECE CON 78 /100 -- "}]
[null,"NOMINA: ",null,null,null,null,null,{"$f":"+A33","v":"           NÚMERO 8-2017"},null,null,null,null,null,null,null,null,"VENCE:"]
[]
[null,"CUR",null,"x",null,"CHEQUE AMSA",null,null,null,"",null,"CAJA CHICA"]
[null,null,null,""]
[null,"A NOMBRE DE:",null,null,null,"AMSA"]
[null,null,null,""]
[null,"OBSERVACIONES:",null,null,null,null,{"$f":"G19","v":"NOMINA CORRESPONDIENTE AL MES DE MAYO 2017"}]
[null,null,null,null,null,null,"031 \"JORNALES\" ."]
[]
[]
[]
[]
[null,"     "]
[]
["AUTORIDAD PARA EL MANEJO SUSTENTABLE DE LA CUENCA Y DEL LAGO DE AMATITLÁN."]
[null,"PRESIDENCIA DE LA REPÚBLICA."]
[]
[{"$f":"'[2]031'!E78","v":"SOLICITUD DE PAGO"}]
[{"$f":"+'031'!#REF!","v":{"$error":"#REF!"}}]
[]
[null,"GUATEMALA,",null,null,null,{"$f":"F8","v":"2017-06-05"},null,null,null,null,null,null,null,null,"CANTIDAD:",null,null,null,{"$f":"+'031'!S78","v":22760.239999999994}]
[]
[null,"UNIDAD SOLICITANTE:",null,null,null,null,null,"RECURSOS HUMANOS"]
[]
[null,"CANTIDAD:",null,null,{"$f":"PesosMN(S60)","v":" -- VEINTIDOS MIL SETECIENTOS SESENTA CON 24 /100 -- "}]
[null,"NOMINA:",null,null,null,null,null,{"$f":"A58","v":{"$error":"#REF!"}},null,null,null,null,null,null,null,null,"VENCE:"]
[]
[null,"CUR",null,"x",null,"CHEQUE AMSA",null,null,null,"",null,"CAJA CHICA"]
[null,null,null,""]
[null,"A NOMBRE DE:",null,null,null,"AMSA"]
[null,null,null,""]
[null,"OBSERVACIONES:",null,null,null,null,{"$f":"G19","v":"NOMINA CORRESPONDIENTE AL MES DE MAYO 2017"}]
[null,null,null,null,null,null,"031 \"JORNALES\" DE LA DIVISIÓN DE DESECHOS LÍQUIDOS."]
[]
[]
[null,null,null,null,null,null,null,null,null,null,null,null,null,null,null,null,null,null,null,null,null,null,null," "]
[]
[]
[]
[null,"     "]
[]
["AUTORIDAD PARA EL MANEJO SUSTENTABLE DE LA CUENCA Y DEL LAGO DE AMATITLÁN."]
[null,"PRESIDENCIA DE LA REPÚBLICA."]
[]
[{"$f":"'[2]031'!E116","v":"SOLICITUD DE PAGO "}]
[{"$f":"+'031'!#REF!","v":{"$error":"#REF!"}}]
[]
[null,"GUATEMALA,",null,null,null,{"$f":"F8","v":"2017-06-05"},null,null,null,null,null,null,null,null,"CANTIDAD:",null,null,null,{"$f":"+'031'!S103","v":44220.479999999989}]
[]
[null,"UNIDAD SOLICITANTE:",null,null,null,null,null,"RECURSOS HUMANOS"]
[]
[null,"CANTIDAD:",null,null,{"$f":"PesosMN(S87)","v":" -- CUARENTA Y CUATRO MIL DOSCIENTOS VEINTE CON 48 /100 -- "}]
[null,"NOMINA:",null,null,null,null,null,{"$f":"A85","v":{"$error":"#REF!"}},null,null,null,null,null,null,null,null,"VENCE:"]
[]
[null,"CUR",null,"x",null,"CHEQUE AMSA",null,null,null,"",null,"CAJA CHICA"]
[null,null,null,""]
[null,"A NOMBRE DE:",null,null,null,"AMSA"]
[null,null,null,""]
[null,"OBSERVACIONES:",null,null,null,null,{"$f":"G19","v":"NOMINA CORRESPONDIENTE AL MES DE MAYO 2017"}]
[null,null,null,null,null,null,"031 \"JORNALES\" DE LA DIVISIÓN DE MANTENIMIENTO Y LIMPIEZA DEL LAGO."]
[]
[]
[null,null,null,null,null,null,null,null,null,null,null,null,null,null,null,null,null,null,null,null,null,null,null," "]
[]
[]
[]
[null,"     "]
[]
[]
["AUTORIDAD PARA EL MANEJO SUSTENTABLE DE LA CUENCA Y DEL LAGO DE AMATITLÁN."]
[null,"PRESIDENCIA DE LA REPÚBLICA."]
[]
[{"$f":"'[2]031'!E161","v":"SOLICITUD DE PAGO "}]
[{"$f":"+'031'!#REF!","v":{"$error":"#REF!"}}]
[]
[null,"GUATEMALA,",null,null,null,{"$f":"F8","v":"2017-06-05"},null,null,null,null,null,null,null,null,"CANTIDAD:",null,null,null,{"$f":"+'031'!S143","v":56275.599999999984}]
[]
[null,"UNIDAD SOLICITANTE:",null,null,null,null,null,"RECURSOS HUMANOS"]
[]
[null,"CANTIDAD:",null,null,{"$f":"PesosMN(S115)","v":" -- CINCUENTA Y SEIS MIL DOSCIENTOS SETENTA Y CINCO CON 60 /100 -- "}]
[null,"NOMINA No.",null,null,null,null,null,null,{"$f":"A113","v":{"$error":"#REF!"}},null,null,null,null,null,null,null,"VENCE:"]
[null," "]
[null,"CUR",null,"x",null,"CHEQUE AMSA",null,null,null,"",null,"CAJA CHICA"]
[null,null,null,""]
[null,"A NOMBRE DE:",null,null,null,"AMSA"]
[null,null,null,""]
[null,"OBSERVACIONES:",null,null,null,null,{"$f":"G19","v":"NOMINA CORRESPONDIENTE AL MES DE MAYO 2017"}]
[null,null,null,null,null,null,"031 \"JORNALES\" DE LA DIVISIÓN FORESTAL."]
[]
[]
[null,null,null,null,null,null,null,null,null,null,null,null,null,null,null,null,null,null,null,null,null,null,null," "]
[]
[]
[]
[null,"     "]

{"sheet":"POLICIAS","index":5,"n_rows":26,"n_cols":19,"rows_kept":26,"cut":false,"hidden":false,"merged":[[13,18,15,18],[23,3,23,4],[23,6,23,10],[23,14,23,18],[13,11,14,11],[13,4,15,4],[13,5,15,5],[13,6,15,6],[13,7,15,7],[13,8,15,8],[13,17,15,17],[13,13,13,15],[13,16,15,16],[24,3,24,4],[24,6,24,10],[24,14,24,18],[25,3,25,4],[25,6,25,10],[25,14,25,18],[8,1,8,18],[9,1,9,18],[1,1,1,18],[2,1,2,18],[3,1,3,18],[4,1,4,18],[13,1,15,1],[13,3,15,3],[13,9,14,9],[13,10,14,10],[13,12,15,12],[13,2,15,2]]}
[]
[null,"AUTORIDAD PARA EL MANEJO SUSTENTABLE DE LA CUENCA Y DEL LAGO DE AMATITLÁN"]
[null,"NOMINA CORRESPONDIENTE AL MES DE MAYO 2017"]
[null,"           NÚMERO 8-2017"]
[null," RENGLÓN 031 \"JORNALES\" "]
[]
[null,null,"SOLICITUD DE PAGO ",{"$f":"B4","v":"           NÚMERO 8-2017"}]
[]
[]
[null,"11130016-219-00-33-00-000-002-000-031-0115-11-0000-0000"]
[]
[]
[]
[null,"No.","Titulo Jornal \nDiario ","Ubicación","Empleado","Contrato","Fecha de \nIngreso","Jornal","Días","Renglón 031","Renglón 033","Renglón 033","Total Devengado\n Mensual","Deducciones",null,null,"Total\nDeducciones","Liquido","Número de\nCuenta G&T"]
[null,null,null,null,null,null,null,null,null,null,null,null,null,201,211,120]
[null,null,null,null,null,null,null,null,null,"Jornales","Bono 66-2000","complemento específico por nivelación",null,"IGSS","Retenciones \nJudiciales","Decreto \n81-70"]
[null,1,"Peon Vigilante V","Acuatica","José Luis Perpuac Gómez","69-2017-031-AMSA","2017-02-20",75.64,31,{"$f":"H17*I17","v":2344.84},250,{"$f":"11.26*I17","v":349.06},{"$f":"SUM(J17:L17)","v":2943.9},{"$f":"ROUND((J17+L17)*4.83%,2)","v":130.12},0,0,{"$f":"SUM(N17:P17)","v":130.12},{"$f":"+M17-Q17","v":2813.78},"0430010569-2"]
[]
[]
[]
[]
[]
[null,null,"Realizó:",null,null,"Revisó:",null,null,null,null,null,null,null,"Vo.Bo."]
[null,null,null,"Yeimy Daleicy Rodriguez González",null,null,"Víctor Anibal López Aquino",null,null,null,null,null,null,null,"Ing. Oscar Amed Juárez Sosa"]
[null,null,null,"Encargada de Nómina",null,null,"Jefe Administrativo Financiero",null,null,null,null,null,null,null,"Director Ejecutivo"]
[null,null,null,"AMSA",null,null,"AMSA",null,null,null,null,null,null,null,"AMSA"]

{"sheet":"SP 031A","index":6,"n_rows":134,"n_cols":24,"rows_kept":134,"cut":false,"hidden":false,"merged":[[16,5,16,22],[1,0,1,22],[2,1,2,21],[4,0,4,24],[5,0,5,24],[7,5,7,11],[7,18,7,22],[9,1,9,6],[9,7,9,22],[11,4,11,23],[12,18,12,22],[13,1,13,22],[38,4,38,23],[25,3,25,10],[25,14,25,20],[28,0,28,22],[29,1,29,21],[31,0,31,24],[32,0,32,24],[34,5,34,11],[34,18,34,22],[36,1,36,6],[36,7,36,22],[39,18,39,22],[40,1,40,22],[43,5,43,22],[45,6,45,22],[70,6,70,22],[68,5,68,22],[53,0,53,22],[54,1,54,21],[56,0,56,24],[57,0,57,24],[59,5,59,11],[59,18,59,22],[61,1,61,6],[61,7,61,22],[63,4,63,23],[64,18,64,22],[65,1,65,22],[90,4,90,23],[77,3,77,10],[77,14,77,20],[80,0,80,22],[81,1,81,21],[83,0,83,24],[84,0,84,24],[86,5,86,11],[86,18,86,22],[88,1,88,6],[88,7,88,22],[91,18,91,22],[92,1,92,22],[95,5,95,22],[104,3,104,10],[104,14,104,20],[97,6,97,22],[108,0,108,22],[109,1,109,21],[111,0,111,24],[112,0,112,24],[114,5,114,11],[114,18,114,22],[123,5,123,22],[132,3,132,10],[132,14,132,20],[116,1,116,6],[116,7,116,22],[118,4,118,23],[119,1,119,4],[119,18,119,22],[120,1,120,22],[125,6,125,22]]}
[]
["AUTORIDAD PARA EL MANEJO SUSTENTABLE DE LA CUENCA Y DEL LAGO DE AMATITLÁN."]
[null,"PRESIDENCIA DE LA REPÚBLICA."]
[]
[{"$f":"'031'!D7","v":"SOLICITUD DE PAGO "}]
[{"$f":"POLICIAS!B4","v":"           NÚMERO 8-2017"}]
[]
[null,"GUATEMALA,",null,null,null,{"$f":"TODAY()","v":"2017-06-05"},null,null,null,null,null,null,null,null,"CANTIDAD:",null,null,null,{"$f":"+POLICIAS!R17","v":2813.78}]
[]
[null,"UNIDAD SOLICITANTE:",null,null,null,null,null,"RECURSOS HUMANOS"]
[]
[null,"CANTIDAD:",null,null,{"$f":"PesosMN(S8)","v":" -- DOS MIL OCHOCIENTOS TRECE CON 78 /100 -- "}]
[null,"NOMINA: ",null,null,null,null,null,{"$f":"+A6","v":"           NÚMERO 8-2017"},null,null,null,null,null,null,null,null,"VENCE:"]
[]
[null,"CUR",null,"x",null,"CHEQUE AMSA",null,null,null,"",null,"CAJA CHICA"]
[null,null,null,""]
[null,"A NOMBRE DE:",null,null,null,"AMSA"]
[null,null,null,""]
[null,"OBSERVACIONES:",null,null,null,null,{"$f":"'031'!B3","v":"NOMINA CORRESPONDIENTE AL MES DE MAYO 2017"}]
[null,null,null,null,null,null," 031 \"JORNALES\" "]
[]
[]
[null,null,null,null,null,null,null,null,null,null,null,null,null,null,null,null,null,null,null,null,null,null,null," "]
[null,null,null,null,null,null,null,null,null,null,null,null," "]
[]
[]
[null,"     "]
[]
["AUTORIDAD PARA EL MANEJO SUSTENTABLE DE LA CUENCA Y DEL LAGO DE AMATITLÁN."]
[null,"PRESIDENCIA DE LA REPÚBLICA."]
[]
[{"$f":"'[2]031'!E42","v":"SOLICITUD DE PAGO"}]
[{"$f":"+POLICIAS!B4","v":"           NÚMERO 8-2017"}]
[]
[null,"GUATEMALA,",null,null,null,{"$f":"F8","v":"2017-06-05"},null,null,null,null,null,null,null,null,"CANTIDAD:",null,null,null,{"$f":"+POLICIAS!R17","v":2813.78}]
[]
[null,"UNIDAD SOLICITANTE:",null,null,null,null,null,"RECURSOS HUMANOS"]
[]
[null,"CANTIDAD:",null,null,{"$f":"PesosMN(S35)","v":" -- DOS MIL OCHOCIENTOS TRECE CON 78 /100 -- "}]
[null,"NOMINA: ",null,null,null,null,null,{"$f":"+A33","v":"           NÚMERO 8-2017"},null,null,null,null,null,null,null,null,"VENCE:"]
[]
[null,"CUR",null,"x",null,"CHEQUE AMSA",null,null,null,"",null,"CAJA CHICA"]
[null,null,null,""]
[null,"A NOMBRE DE:",null,null,null,"AMSA"]
[null,null,null,""]
[null,"OBSERVACIONES:",null,null,null,null,{"$f":"G19","v":"NOMINA CORRESPONDIENTE AL MES DE MAYO 2017"}]
[null,null,null,null,null,null,"031 \"JORNALES\" DE LA DIVISIÓN DE DESECHOS SÓLIDOS."]
[]
[]
[]
[]
[null,"     "]
[]
["AUTORIDAD PARA EL MANEJO SUSTENTABLE DE LA CUENCA Y DEL LAGO DE AMATITLÁN."]
[null,"PRESIDENCIA DE LA REPÚBLICA."]
[]
[{"$f":"'[2]031'!E78","v":"SOLICITUD DE PAGO"}]
[{"$f":"+'031'!#REF!","v":{"$error":"#REF!"}}]
[]
[null,"GUATEMALA,",null,null,null,{"$f":"F8","v":"2017-06-05"},null,null,null,null,null,null,null,null,"CANTIDAD:",null,null,null,{"$f":"+'031'!S78","v":22760.239999999994}]
[]
[null,"UNIDAD SOLICITANTE:",null,null,null,null,null,"RECURSOS HUMANOS"]
[]
[null,"CANTIDAD:",null,null,{"$f":"PesosMN(S60)","v":" -- VEINTIDOS MIL SETECIENTOS SESENTA CON 24 /100 -- "}]
[null,"NOMINA:",null,null,null,null,null,{"$f":"A58","v":{"$error":"#REF!"}},null,null,null,null,null,null,null,null,"VENCE:"]
[]
[null,"CUR",null,"x",null,"CHEQUE AMSA",null,null,null,"",null,"CAJA CHICA"]
[null,null,null,""]
[null,"A NOMBRE DE:",null,null,null,"AMSA"]
[null,null,null,""]
[null,"OBSERVACIONES:",null,null,null,null,{"$f":"G19","v":"NOMINA CORRESPONDIENTE AL MES DE MAYO 2017"}]
[null,null,null,null,null,null,"031 \"JORNALES\" DE LA DIVISIÓN DE DESECHOS LÍQUIDOS."]
[]
[]
[null,null,null,null,null,null,null,null,null,null,null,null,null,null,null,null,null,null,null,null,null,null,null," "]
[]
[]
[]
[null,"     "]
[]
["AUTORIDAD PARA EL MANEJO SUSTENTABLE DE LA CUENCA Y DEL LAGO DE AMATITLÁN."]
[null,"PRESIDENCIA DE LA REPÚBLICA."]
[]
[{"$f":"'[2]031'!E116","v":"SOLICITUD DE PAGO "}]
[{"$f":"+'031'!#REF!","v":{"$error":"#REF!"}}]
[]
[null,"GUATEMALA,",null,null,null,{"$f":"F8","v":"2017-06-05"},null,null,null,null,null,null,null,null,"CANTIDAD:",null,null,null,{"$f":"+'031'!S103","v":44220.479999999989}]
[]
[null,"UNIDAD SOLICITANTE:",null,null,null,null,null,"RECURSOS HUMANOS"]
[]
[null,"CANTIDAD:",null,null,{"$f":"PesosMN(S87)","v":" -- CUARENTA Y CUATRO MIL DOSCIENTOS VEINTE CON 48 /100 -- "}]
[null,"NOMINA:",null,null,null,null,null,{"$f":"A85","v":{"$error":"#REF!"}},null,null,null,null,null,null,null,null,"VENCE:"]
[]
[null,"CUR",null,"x",null,"CHEQUE AMSA",null,null,null,"",null,"CAJA CHICA"]
[null,null,null,""]
[null,"A NOMBRE DE:",null,null,null,"AMSA"]
[null,null,null,""]
[null,"OBSERVACIONES:",null,null,null,null,{"$f":"G19","v":"NOMINA CORRESPONDIENTE AL MES DE MAYO 2017"}]
[null,null,null,null,null,null,"031 \"JORNALES\" DE LA DIVISIÓN DE MANTENIMIENTO Y LIMPIEZA DEL LAGO."]
[]
[]
[null,null,null,null,null,null,null,null,null,null,null,null,null,null,null,null,null,null,null,null,null,null,null," "]
[]
[]
[]
[null,"     "]
[]
[]
["AUTORIDAD PARA EL MANEJO SUSTENTABLE DE LA CUENCA Y DEL LAGO DE AMATITLÁN."]
[null,"PRESIDENCIA DE LA REPÚBLICA."]
[]
[{"$f":"'[2]031'!E161","v":"SOLICITUD DE PAGO "}]
[{"$f":"+'031'!#REF!","v":{"$error":"#REF!"}}]
[]
[null,"GUATEMALA,",null,null,null,{"$f":"F8","v":"2017-06-05"},null,null,null,null,null,null,null,null,"CANTIDAD:",null,null,null,{"$f":"+'031'!S143","v":56275.599999999984}]
[]
[null,"UNIDAD SOLICITANTE:",null,null,null,null,null,"RECURSOS HUMANOS"]
[]
[null,"CANTIDAD:",null,null,{"$f":"PesosMN(S115)","v":" -- CINCUENTA Y SEIS MIL DOSCIENTOS SETENTA Y CINCO CON 60 /100 -- "}]
[null,"NOMINA No.",null,null,null,null,null,null,{"$f":"A113","v":{"$error":"#REF!"}},null,null,null,null,null,null,null,"VENCE:"]
[null," "]
[null,"CUR",null,"x",null,"CHEQUE AMSA",null,null,null,"",null,"CAJA CHICA"]
[null,null,null,""]
[null,"A NOMBRE DE:",null,null,null,"AMSA"]
[null,null,null,""]
[null,"OBSERVACIONES:",null,null,null,null,{"$f":"G19","v":"NOMINA CORRESPONDIENTE AL MES DE MAYO 2017"}]
[null,null,null,null,null,null,"031 \"JORNALES\" DE LA DIVISIÓN FORESTAL."]
[]
[]
[null,null,null,null,null,null,null,null,null,null,null,null,null,null,null,null,null,null,null,null,null,null,null," "]
[]
[]
[]
[null,"     "]

{"sheet":"B 031","index":7,"n_rows":3691,"n_cols":19,"rows_kept":3691,"cut":false,"hidden":false,"merged":[[497,0,497,19],[566,12,566,19],[566,0,566,7],[565,12,565,19],[565,0,565,7],[564,12,564,19],[564,0,564,7],[555,12,555,14],[555,10,555,11],[554,16,554,18],[554,12,554,14],[554,10,554,11],[553,16,553,18],[552,16,552,18],[551,16,551,18],[550,12,550,14],[549,12,549,14],[547,16,547,18],[547,12,547,14],[505,0,505,1],[505,2,505,4],[505,5,505,7],[505,8,505,11],[505,12,505,14],[505,15,505,19],[506,0,506,2],[506,3,506,4],[506,5,506,9],[506,10,506,12],[506,13,506,14],[506,15,506,17],[506,18,506,19],[334,12,334,14],[334,16,334,18],[336,12,336,14],[337,12,337,14],[338,16,338,18],[332,0,332,2],[332,3,332,4],[332,5,332,9],[332,10,332,12],[332,13,332,14],[332,15,332,17],[351,0,351,7],[351,12,351,19],[352,0,352,7],[352,12,352,19],[353,0,353,7],[353,12,353,19],[339,16,339,18],[340,16,340,18],[341,10,341,11],[341,12,341,14],[341,16,341,18],[342,10,342,11],[342,12,342,14],[331,0,331,1],[331,2,331,4],[331,5,331,7],[331,8,331,11],[331,12,331,14],[331,15,331,19],[323,0,323,19],[324,0,324,19],[327,0,327,19],[328,0,328,19],[330,0,330,1],[330,2,330,8],[330,10,330,12],[330,13,330,14],[330,15,330,16],[330,17,330,19],[332,18,332,19],[295,12,295,14],[295,16,295,18],[297,12,297,14],[298,12,298,14],[299,16,299,18],[293,0,293,2],[293,3,293,4],[293,5,293,9],[293,10,293,12],[293,13,293,14],[293,15,293,17],[312,0,312,7],[312,12,312,19],[313,0,313,7],[313,12,313,19],[314,0,314,7],[314,12,314,19],[300,16,300,18],[301,16,301,18],[302,10,302,11],[302,12,302,14],[302,16,302,18],[303,10,303,11],[303,12,303,14],[292,0,292,1],[292,2,292,4],[292,5,292,7],[292,8,292,11],[292,12,292,14],[292,15,292,19],[284,0,284,19],[285,0,285,19],[288,0,288,19],[289,0,289,19],[291,0,291,1],[291,2,291,8],[291,10,291,12],[291,13,291,14],[291,15,291,16],[291,17,291,19],[293,18,293,19],[263,12,263,14],[263,16,263,18],[265,12,265,14],[266,12,266,14],[267,16,267,18],[261,0,261,2],[261,3,261,4],[261,5,261,9],[261,10,261,12],[261,13,261,14],[261,15,261,17],[280,0,280,7],[280,12,280,19],[281,0,281,7],[281,12,281,19],[282,0,282,7],[282,12,282,19],[268,16,268,18],[269,16,269,18],[270,10,270,11],[270,12,270,14],[270,16,270,18],[271,10,271,11],[271,12,271,14],[260,0,260,1],[260,2,260,4],[260,5,260,7],[260,8,260,11],[260,12,260,14],[260,15,260,19],[252,0,252,19],[253,0,253,19],[256,0,256,19],[257,0,257,19],[259,0,259,1],[259,2,259,8],[259,10,259,12],[259,13,259,14],[259,15,259,16],[259,17,259,19],[261,18,261,19],[224,12,224,14],[224,16,224,18],[226,12,226,14],[227,12,227,14],[228,16,228,18],[222,0,222,2],[222,3,222,4],[222,5,222,9],[222,10,222,12],[222,13,222,14],[222,15,222,17],[241,0,241,7],[241,12,241,19],[242,0,242,7],[242,12,242,19],[243,0,243,7],[243,12,243,19],[229,16,229,18],[230,16,230,18],[231,10,231,11],[231,12,231,14],[231,16,231,18],[232,10,232,11],[232,12,232,14],[221,0,221,1],[221,2,221,4],[221,5,221,7],[221,8,221,11],[221,12,221,14],[221,15,221,19],[213,0,213,19],[214,0,214,19],[217,0,217,19],[218,0,218,19],[220,0,220,1],[220,2,220,8],[220,10,220,12],[220,13,220,14],[220,15,220,16],[220,17,220,19],[222,18,222,19],[192,12,192,14],[192,16,192,18],[194,12,194,14],[195,12,195,14],[196,16,196,18],[190,0,190,2],[190,3,190,4],[190,5,190,9],[190,10,190,12],[190,13,190,14],[190,15,190,17],[209,0,209,7],[209,12,209,19],[210,0,210,7],[210,12,210,19],[211,0,211,7],[211,12,211,19],[197,16,197,18],[198,16,198,18],[199,10,199,11],[199,12,199,14],[199,16,199,18],[200,10,200,11],[200,12,200,14],[189,0,189,1],[189,2,189,4],[189,5,189,7],[189,8,189,11],[189,12,189,14],[189,15,189,19],[181,0,181,19],[182,0,182,19],[185,0,185,19],[186,0,186,19],[188,0,188,1],[188,2,188,8],[188,10,188,12],[188,13,188,14],[188,15,188,16],[188,17,188,19],[190,18,190,19],[153,12,153,14],[153,16,153,18],[155,12,155,14],[156,12,156,14],[157,16,157,18],[151,0,151,2],[151,3,151,4],[151,5,151,9],[151,10,151,12],[151,13,151,14],[151,15,151,17],[170,0,170,7],[170,12,170,19],[171,0,171,7],[171,12,171,19],[172,0,172,7],[172,12,172,19],[158,16,158,18],[159,16,159,18],[160,10,160,11],[160,12,160,14],[160,16,160,18],[161,10,161,11],[161,12,161,14],[150,0,150,1],[150,2,150,4],[150,5,150,7],[150,8,150,11],[150,12,150,14],[150,15,150,19],[142,0,142,19],[143,0,143,19],[146,0,146,19],[147,0,147,19],[149,0,149,1],[149,2,149,8],[149,10,149,12],[149,13,149,14],[149,15,149,16],[149,17,149,19],[151,18,151,19],[121,12,121,14],[121,16,121,18],[123,12,123,14],[124,12,124,14],[125,16,125,18],[119,0,119,2],[119,3,119,4],[119,5,119,9],[119,10,119,12],[119,13,119,14],[119,15,119,17],[138,0,138,7],[138,12,138,19],[139,0,139,7],[139,12,139,19],[140,0,140,7],[140,12,140,19],[126,16,126,18],[127,16,127,18],[128,10,128,11],[128,12,128,14],[128,16,128,18],[129,10,129,11],[129,12,129,14],[118,0,118,1],[118,2,118,4],[118,5,118,7],[118,8,118,11],[118,12,118,14],[118,15,118,19],[110,0,110,19],[111,0,111,19],[114,0,114,19],[115,0,115,19],[117,0,117,1],[117,2,117,8],[117,10,117,12],[117,13,117,14],[117,15,117,16],[117,17,117,19],[119,18,119,19],[80,18,80,19],[82,12,82,14],[82,16,82,18],[84,12,84,14],[85,12,85,14],[86,16,86,18],[80,0,80,2],[80,3,80,4],[80,5,80,9],[80,10,80,12],[80,13,80,14],[80,15,80,17],[99,0,99,7],[99,12,99,19],[100,0,100,7],[100,12,100,19],[101,0,101,7],[101,12,101,19],[87,16,87,18],[88,16,88,18],[89,10,89,11],[89,12,89,14],[89,16,89,18],[90,10,90,11],[90,12,90,14],[71,0,71,19],[72,0,72,19],[47,12,47,14],[47,15,47,19],[48,3,48,4],[48,5,48,9],[48,10,48,12],[48,13,48,14],[48,15,48,17],[48,18,48,19],[69,0,69,7],[69,12,69,19],[47,8,47,11],[79,0,79,1],[79,2,79,4],[79,5,79,7],[79,8,79,11],[79,12,79,14],[79,15,79,19],[75,0,75,19],[76,0,76,19],[78,0,78,1],[78,2,78,8],[78,10,78,12],[78,13,78,14],[78,15,78,16],[78,17,78,19],[68,0,68,7],[68,12,68,19],[67,0,67,7],[67,12,67,19],[56,16,56,18],[57,16,57,18],[54,16,54,18],[55,16,55,18],[50,12,50,14],[50,16,50,18],[52,12,52,14],[53,12,53,14],[47,0,47,1],[48,0,48,2],[47,2,47,4],[47,5,47,7],[57,10,57,11],[57,12,57,14],[58,10,58,11],[58,12,58,14],[18,10,18,11],[18,12,18,14],[18,16,18,18],[19,10,19,11],[19,12,19,14],[28,0,28,7],[28,12,28,19],[17,16,17,18],[15,16,15,18],[16,16,16,18],[43,0,43,19],[44,0,44,19],[46,0,46,1],[46,2,46,8],[46,10,46,12],[46,13,46,14],[46,15,46,16],[46,17,46,19],[29,0,29,7],[29,12,29,19],[30,0,30,7],[30,12,30,19],[39,0,39,19],[40,0,40,19],[0,0,0,19],[1,0,1,19],[4,0,4,19],[5,0,5,19],[7,0,7,1],[7,2,7,8],[7,10,7,12],[7,13,7,14],[7,15,7,16],[7,17,7,19],[11,12,11,14],[11,16,11,18],[13,12,13,14],[14,12,14,14],[9,13,9,14],[8,0,8,1],[9,0,9,2],[8,8,8,11],[8,12,8,14],[8,15,8,19],[8,2,8,4],[8,5,8,7],[9,15,9,17],[9,18,9,19],[9,3,9,4],[9,5,9,9],[9,10,9,12],[363,0,363,1],[363,2,363,4],[363,5,363,7],[363,8,363,11],[363,12,363,14],[363,15,363,19],[364,0,364,2],[364,3,364,4],[364,5,364,9],[364,10,364,12],[364,13,364,14],[364,15,364,17],[364,18,364,19],[355,0,355,19],[356,0,356,19],[359,0,359,19],[360,0,360,19],[362,0,362,1],[362,2,362,8],[362,10,362,12],[362,13,362,14],[362,15,362,16],[362,17,362,19],[374,10,374,11],[374,12,374,14],[383,0,383,7],[383,12,383,19],[384,0,384,7],[384,12,384,19],[385,0,385,7],[385,12,385,19],[394,0,394,19],[366,12,366,14],[366,16,366,18],[368,12,368,14],[369,12,369,14],[370,16,370,18],[371,16,371,18],[372,16,372,18],[373,10,373,11],[373,12,373,14],[373,16,373,18],[402,0,402,1],[402,2,402,4],[402,5,402,7],[402,8,402,11],[402,12,402,14],[402,15,402,19],[403,0,403,2],[403,3,403,4],[403,5,403,9],[403,10,403,12],[403,13,403,14],[403,15,403,17],[403,18,403,19],[395,0,395,19],[398,0,398,19],[399,0,399,19],[401,0,401,1],[401,2,401,8],[401,10,401,12],[401,13,401,14],[401,15,401,16],[401,17,401,19],[413,10,413,11],[413,12,413,14],[422,0,422,7],[422,12,422,19],[423,0,423,7],[423,12,423,19],[424,0,424,7],[424,12,424,19],[426,0,426,19],[405,12,405,14],[405,16,405,18],[407,12,407,14],[408,12,408,14],[409,16,409,18],[410,16,410,18],[411,16,411,18],[412,10,412,11],[412,12,412,14],[412,16,412,18],[434,0,434,1],[434,2,434,4],[434,5,434,7],[434,8,434,11],[434,12,434,14],[434,15,434,19],[435,0,435,2],[435,3,435,4],[435,5,435,9],[435,10,435,12],[435,13,435,14],[435,15,435,17],[435,18,435,19],[427,0,427,19],[430,0,430,19],[431,0,431,19],[433,0,433,1],[433,2,433,8],[433,10,433,12],[433,13,433,14],[433,15,433,16],[433,17,433,19],[445,10,445,11],[445,12,445,14],[454,0,454,7],[454,12,454,19],[455,0,455,7],[455,12,455,19],[456,0,456,7],[456,12,456,19],[465,0,465,19],[437,12,437,14],[437,16,437,18],[439,12,439,14],[440,12,440,14],[441,16,441,18],[442,16,442,18],[443,16,443,18],[444,10,444,11],[444,12,444,14],[444,16,444,18],[473,0,473,1],[473,2,473,4],[473,5,473,7],[473,8,473,11],[473,12,473,14],[473,15,473,19],[474,0,474,2],[474,3,474,4],[474,5,474,9],[474,10,474,12],[474,13,474,14],[474,15,474,17],[474,18,474,19],[466,0,466,19],[469,0,469,19],[470,0,470,19],[472,0,472,1],[472,2,472,8],[472,10,472,12],[472,13,472,14],[472,15,472,16],[472,17,472,19],[484,10,484,11],[484,12,484,14],[493,0,493,7],[493,12,493,19],[494,0,494,7],[494,12,494,19],[495,0,495,7],[495,12,495,19],[476,12,476,14],[476,16,476,18],[478,12,478,14],[479,12,479,14],[480,16,480,18],[481,16,481,18],[482,16,482,18],[483,10,483,11],[483,12,483,14],[483,16,483,18],[498,0,498,19],[501,0,501,19],[502,0,502,19],[504,0,504,1],[504,2,504,8],[504,10,504,12],[504,13,504,14],[504,15,504,16],[504,17,504,19],[516,10,516,11],[516,12,516,14],[525,0,525,7],[525,12,525,19],[526,0,526,7],[526,12,526,19],[527,0,527,7],[527,12,527,19],[536,0,536,19],[508,12,508,14],[508,16,508,18],[510,12,510,14],[511,12,511,14],[512,16,512,18],[513,16,513,18],[514,16,514,18],[515,10,515,11],[515,12,515,14],[515,16,515,18],[544,0,544,1],[544,2,544,4],[544,5,544,7],[544,8,544,11],[544,12,544,14],[544,15,544,19],[545,0,545,2],[545,3,545,4],[545,5,545,9],[545,10,545,12],[545,13,545,14],[545,15,545,17],[545,18,545,19],[537,0,537,19],[540,0,540,19],[541,0,541,19],[543,0,543,1],[543,2,543,8],[543,10,543,12],[543,13,543,14],[543,15,543,16],[543,17,543,19],[568,0,568,19],[572,0,572,19],[569,0,569,19],[622,16,622,18],[623,16,623,18],[624,16,624,18],[621,12,621,14],[614,0,614,1],[614,2,614,8],[614,10,614,12],[614,13,614,14],[614,15,614,16],[614,17,614,19],[615,0,615,1],[615,2,615,4],[615,5,615,7],[615,8,615,11],[615,12,615,14],[615,15,615,19],[607,0,607,19],[611,0,611,19],[608,0,608,19],[612,0,612,19],[616,10,616,12],[616,13,616,14],[616,15,616,17],[616,18,616,19],[618,12,618,14],[618,16,618,18],[573,0,573,19],[575,2,575,8],[575,10,575,12],[575,13,575,14],[575,15,575,16],[575,17,575,19],[576,0,576,1],[576,2,576,4],[576,5,576,7],[576,8,576,11],[576,12,576,14],[576,15,576,19],[577,0,577,2],[577,3,577,4],[577,5,577,9],[620,12,620,14],[586,10,586,11],[586,12,586,14],[596,0,596,7],[596,12,596,19],[597,0,597,7],[597,12,597,19],[598,0,598,7],[598,12,598,19],[581,12,581,14],[583,16,583,18],[584,16,584,18],[585,16,585,18],[575,0,575,1],[616,0,616,2],[616,3,616,4],[616,5,616,9],[577,10,577,12],[577,13,577,14],[577,15,577,17],[577,18,577,19],[579,12,579,14],[579,16,579,18],[582,12,582,14],[586,16,586,18],[587,10,587,11],[587,12,587,14],[646,0,646,1],[646,2,646,8],[646,10,646,12],[646,13,646,14],[646,15,646,16],[646,17,646,19],[647,0,647,1],[647,2,647,4],[647,5,647,7],[647,8,647,11],[647,12,647,14],[647,15,647,19],[625,16,625,18],[626,10,626,11],[626,12,626,14],[637,0,637,7],[637,12,637,19],[639,0,639,19],[640,0,640,19],[643,0,643,19],[644,0,644,19],[625,10,625,11],[625,12,625,14],[635,0,635,7],[635,12,635,19],[636,0,636,7],[636,12,636,19],[652,12,652,14],[653,12,653,14],[654,16,654,18],[655,16,655,18],[656,16,656,18],[657,10,657,11],[657,12,657,14],[657,16,657,18],[658,10,658,11],[658,12,658,14],[648,0,648,2],[648,3,648,4],[648,5,648,9],[648,10,648,12],[648,13,648,14],[648,15,648,17],[648,18,648,19],[650,12,650,14],[650,16,650,18],[683,0,683,19],[685,0,685,1],[685,2,685,8],[685,10,685,12],[685,13,685,14],[685,15,685,16],[685,17,685,19],[686,0,686,1],[686,2,686,4],[686,5,686,7],[686,8,686,11],[686,12,686,14],[686,15,686,19],[667,0,667,7],[667,12,667,19],[668,0,668,7],[668,12,668,19],[669,0,669,7],[669,12,669,19],[678,0,678,19],[679,0,679,19],[682,0,682,19],[691,12,691,14],[692,12,692,14],[693,16,693,18],[694,16,694,18],[695,16,695,18],[696,10,696,11],[696,12,696,14],[696,16,696,18],[697,10,697,11],[697,12,697,14],[687,0,687,2],[687,3,687,4],[687,5,687,9],[687,10,687,12],[687,13,687,14],[687,15,687,17],[687,18,687,19],[689,12,689,14],[689,16,689,18],[715,0,715,19],[717,0,717,1],[717,2,717,8],[717,10,717,12],[717,13,717,14],[717,15,717,16],[717,17,717,19],[718,0,718,1],[718,2,718,4],[718,5,718,7],[718,8,718,11],[718,12,718,14],[718,15,718,19],[706,0,706,7],[706,12,706,19],[707,0,707,7],[707,12,707,19],[708,0,708,7],[708,12,708,19],[710,0,710,19],[711,0,711,19],[714,0,714,19],[723,12,723,14],[724,12,724,14],[725,16,725,18],[726,16,726,18],[727,16,727,18],[728,10,728,11],[728,12,728,14],[728,16,728,18],[729,10,729,11],[729,12,729,14],[719,0,719,2],[719,3,719,4],[719,5,719,9],[719,10,719,12],[719,13,719,14],[719,15,719,17],[719,18,719,19],[721,12,721,14],[721,16,721,18],[754,0,754,19],[756,0,756,1],[756,2,756,8],[756,10,756,12],[756,13,756,14],[756,15,756,16],[756,17,756,19],[757,0,757,1],[757,2,757,4],[757,5,757,7],[757,8,757,11],[757,12,757,14],[757,15,757,19],[738,0,738,7],[738,12,738,19],[739,0,739,7],[739,12,739,19],[740,0,740,7],[740,12,740,19],[749,0,749,19],[750,0,750,19],[753,0,753,19],[762,12,762,14],[763,12,763,14],[764,16,764,18],[765,16,765,18],[766,16,766,18],[767,10,767,11],[767,12,767,14],[767,16,767,18],[768,10,768,11],[768,12,768,14],[758,0,758,2],[758,3,758,4],[758,5,758,9],[758,10,758,12],[758,13,758,14],[758,15,758,17],[758,18,758,19],[760,12,760,14],[760,16,760,18],[794,12,794,14],[796,16,796,18],[797,16,797,18],[798,16,798,18],[799,10,799,11],[799,12,799,14],[790,15,790,17],[790,18,790,19],[785,0,785,19],[788,0,788,1],[777,0,777,7],[777,12,777,19],[778,0,778,7],[778,12,778,19],[779,0,779,7],[779,12,779,19],[781,0,781,19],[782,0,782,19],[786,0,786,19],[788,2,788,8],[788,10,788,12],[788,13,788,14],[788,15,788,16],[788,17,788,19],[789,0,789,1],[789,2,789,4],[789,5,789,7],[789,8,789,11],[789,12,789,14],[789,15,789,19],[790,0,790,2],[790,3,790,4],[829,0,829,2],[829,3,829,4],[829,5,829,9],[829,10,829,12],[829,13,829,14],[829,15,829,17],[829,18,829,19],[824,0,824,19],[827,0,827,1],[825,0,825,19],[827,2,827,8],[827,10,827,12],[827,13,827,14],[827,15,827,16],[827,17,827,19],[809,0,809,7],[809,12,809,19],[810,0,810,7],[810,12,810,19],[820,0,820,19],[828,2,828,4],[828,5,828,7],[828,8,828,11],[828,12,828,14],[828,15,828,19],[790,5,790,9],[790,10,790,12],[790,13,790,14],[831,12,831,14],[831,16,831,18],[834,12,834,14],[838,16,838,18],[839,10,839,11],[839,12,839,14],[850,0,850,7],[850,12,850,19],[852,0,852,19],[792,12,792,14],[792,16,792,18],[795,12,795,14],[799,16,799,18],[800,10,800,11],[800,12,800,14],[811,0,811,7],[811,12,811,19],[821,0,821,19],[848,0,848,7],[848,12,848,19],[849,0,849,7],[849,12,849,19],[833,12,833,14],[835,16,835,18],[836,16,836,18],[837,16,837,18],[838,10,838,11],[838,12,838,14],[828,0,828,1],[860,0,860,1],[860,2,860,4],[860,5,860,7],[860,8,860,11],[860,12,860,14],[860,15,860,19],[861,0,861,2],[861,3,861,4],[861,5,861,9],[861,10,861,12],[861,13,861,14],[861,15,861,17],[861,18,861,19],[853,0,853,19],[856,0,856,19]],"merged_total":4268,"flags":["merged_cut"]}
["GOBIERNO DE LA REPÚBLICA DE GUATEMALA"]
["AUTORIDAD PARA EL MANEJO SUSTENTABLE DE LA CUENCA Y DEL LAGO DE AMATITLÁN"]
[]
[]
["Boleta de Liquidación Mensual Renglón 031 \"Jornales\"   Correspondiente al mes de septiembre 2014"]
[{"$f":"'031'!B4:T4","v":{"$error":"#VALUE!"}}]
[]
["Empleado:",null,{"$f":"'031'!F16","v":"Gladis Mirtala Ramírez Sánchez"},null,null,null,null,null,null,null,"Certificación No.",null,null,{"$f":"'031'!B16","v":1},null,"Fecha:",null,"2014-08-31"]
["Contrato:",null,{"$f":"'031'!G16","v":"01-2017-031-AMSA"},null,null,"Puesto Funcional:",null,null,{"$f":"'031'!C16","v":"Encargada de Limpieza"},null,null,null,"Titulo Jornal:",null,null,{"$f":"'031'!D16","v":"Constructor de Puentes"}]
["Cuenta / Banco:",null,null,{"$f":"'031'!T16","v":3216012953},null,"Banco de Desarrollo Rural, S.A.",null,null,null,null,"Jornal Diario:",null,null,{"$f":"'031'!I16","v":80.86},null,"Días Trabajados:",null,null,{"$f":"'031'!J16","v":31}]
[]
[null,null,null,null,null,null,null,null,null,null,null,null,"Ingresos",null,null,null,"Deducciones "]
[]
[null,"031","DEVENGADO",null,null,null,null,null,null,null,null,null,{"$f":"'031'!K16","v":2506.66}]
[null,"033","BONO ACUERDO GUBERNATIVO 66-2000",null,null,null,null,null,null,null,null,null,{"$f":"'031'!L16","v":250}]
[null,"201","I.G.S.S",null,null,null,null,null,null,null,null,null,null,null,null,null,{"$f":"'031'!O16","v":130.12}]
[null,"118","MONTEPÍO",null,null,null,null,null,null,null,null,null,null,null,null,null,0]
[null,"211","RETENCIONES JUDICIALES",null,null,null,null,null,null,null,null,null,null,null,null,null,{"$f":"'031'!P16","v":0}]
[null,null,null,null,null,null,null,null,null,null,"Total  :",null,{"$f":"SUM(M14:O18)","v":2756.66},null,null,null,{"$f":"SUM(Q16:S18)","v":130.12}]
[null,null,null,null,null,null,null,null,null,null,"Liquido :",null,{"$f":"M19-Q19","v":2626.54}]
[]
[]
[]
[]
[]
[]
[]
[]
["María José Ceballos López",null,null,null,null,null,null,null,null,null,null,null,{"$f":"C8","v":"Gladis Mirtala Ramírez Sánchez"}]
["Encargada de Nómina",null,null,null,null,null,null,null,null,null,null,null,{"$f":"P9","v":"Constructor de Puentes"}]
["AMSA ",null,null,null,null,null,null,null,null,null,null,null,"AMSA"]
[]
[]
[]
[]
[]
[]
[]
[]
["GOBIERNO DE LA REPÚBLICA DE GUATEMALA"]
["AUTORIDAD PARA EL MANEJO SUSTENTABLE DE LA CUENCA Y DEL LAGO DE AMATITLÁN"]
[]
[]
[{"$f":"A5","v":"Boleta de Liquidación Mensual Renglón 031 \"Jornales\"   Correspondiente al mes de septiembre 2014"}]
[{"$f":"A6","v":{"$error":"#VALUE!"}}]
[]
["Empleado:",null,{"$f":"C8","v":"Gladis Mirtala Ramírez Sánchez"},null,null,null,null,null,null,null,"Certificación No.",null,null,{"$f":"N8","v":1},null,"Fecha:",null,{"$f":"R8","v":"2014-08-31"}]
["Contrato:",null,{"$f":"C9","v":"01-2017-031-AMSA"},null,null,"Puesto Funcional:",null,null,{"$f":"I9","v":"Encargada de Limpieza"},null,null,null,"Titulo Jornal:",null,null,{"$f":"P9","v":"Constructor de Puentes"}]
["Cuenta / Banco:",null,null,{"$f":"D10","v":3216012953},null,"Banco de Desarrollo Rural, S.A.",null,null,null,null,"Jornal Diario:",null,null,{"$f":"N10","v":80.86},null,"Días Trabajados:",null,null,{"$f":"S10","v":31}]
[]
[null,null,null,null,null,null,null,null,null,null,null,null,"Ingresos",null,null,null,"Deducciones "]
[]
[null,"031","DEVENGADO",null,null,null,null,null,null,null,null,null,{"$f":"M14","v":2506.66}]
[null,"033","BONO ACUERDO GUBERNATIVO 66-2000",null,null,null,null,null,null,null,null,null,{"$f":"M15","v":250}]
[null,"201","I.G.S.S",null,null,null,null,null,null,null,null,null,null,null,null,null,{"$f":"Q16","v":130.12}]
[null,"118","MONTEPÍO",null,null,null,null,null,null,null,null,null,null,null,null,null,{"$f":"Q17","v":0}]
[null,"211","RETENCIONES JUDICIALES",null,null,null,null,null,null,null,null,null,null,null,null,null,{"$f":"Q18","v":0}]
[null,null,null,null,null,null,null,null,null,null,"Total  :",null,{"$f":"SUM(M53:O57)","v":2756.66},null,null,null,{"$f":"SUM(Q55:S57)","v":130.12}]
[null,null,null,null,null,null,null,null,null,null,"Liquido :",null,{"$f":"M58-Q58","v":2626.54}]
[]
[]
[]
[]
[]
[]
[]
[]
[{"$f":"A29","v":"María José Ceballos López"},null,null,null,null,null,null,null,null,null,null,null,{"$f":"C47","v":"Gladis Mirtala Ramírez Sánchez"}]
[{"$f":"A30","v":"Encargada de Nómina"},null,null,null,null,null,null,null,null,null,null,null,{"$f":"P48","v":"Constructor de Puentes"}]
[{"$f":"A31","v":"AMSA "},null,null,null,null,null,null,null,null,null,null,null,"AMSA"]
[]
["GOBIERNO DE LA REPÚBLICA DE GUATEMALA"]
["AUTORIDAD PARA EL MANEJO SUSTENTABLE DE LA CUENCA Y DEL LAGO DE AMATITLÁN"]
[]
[]
[{"$f":"A5","v":"Boleta de Liquidación Mensual Renglón 031 \"Jornales\"   Correspondiente al mes de septiembre 2014"}]
[{"$f":"A6","v":{"$error":"#VALUE!"}}]
[]
["Empleado:",null,{"$f":"'031'!#REF!","v":{"$error":"#REF!"}},null,null,null,null,null,null,null,"Certificación No.",null,null,{"$f":"N8+1","v":2},null,"Fecha:",null,{"$f":"R8","v":"2014-08-31"}]
["Contrato:",null,{"$f":"'031'!#REF!","v":{"$error":"#REF!"}},null,null,"Puesto Funcional:",null,null,{"$f":"'031'!#REF!","v":{"$error":"#REF!"}},null,null,null,"Titulo Jornal:",null,null,{"$f":"'031'!#REF!","v":{"$error":"#REF!"}}]
["Cuenta / Banco:",null,null,{"$f":"'031'!#REF!","v":{"$error":"#REF!"}},null,"Banco de Desarrollo Rural, S.A.",null,null,null,null,"Jornal Diario:",null,null,{"$f":"'031'!#REF!","v":{"$error":"#REF!"}},null,"Días Trabajados:",null,null,{"$f":"'031'!#REF!","v":{"$error":"#REF!"}}]
[]
[null,null,null,null,null,null,null,null,null,null,null,null,"Ingresos",null,null,null,"Deducciones "]
[]
[null,"031","DEVENGADO",null,null,null,null,null,null,null,null,null,{"$f":"'031'!#REF!","v":{"$error":"#REF!"}}]
[null,"033","BONO ACUERDO GUBERNATIVO 66-2000",null,null,null,null,null,null,null,null,null,{"$f":"'031'!#REF!","v":{"$error":"#REF!"}}]
[null,"201","I.G.S.S",null,null,null,null,null,null,null,null,null,null,null,null,null,{"$f":"'031'!#REF!","v":{"$error":"#REF!"}}]
[null,"118","MONTEPÍO",null,null,null,null,null,null,null,null,null,null,null,null,null,0]
[null,"211","RETENCIONES JUDICIALES",null,null,null,null,null,null,null,null,null,null,null,null,null,{"$f":"'031'!#REF!","v":{"$error":"#REF!"}}]
[null,null,null,null,null,null,null,null,null,null,"Total  :",null,{"$f":"SUM(M85:O89)","v":{"$error":"#REF!"}},null,null,null,{"$f":"SUM(Q87:S89)","v":{"$error":"#REF!"}}]
[null,null,null,null,null,null,null,null,null,null,"Liquido :",null,{"$f":"M90-Q90","v":{"$error":"#REF!"}}]
[]
[]
[]
[]
[]
[]
[]
[]
["María José Ceballos López",null,null,null,null,null,null,null,null,null,null,null,{"$f":"C79","v":{"$error":"#REF!"}}]
["Encargada de Nómina",null,null,null,null,null,null,null,null,null,null,null,{"$f":"P80","v":{"$error":"#REF!"}}]
["AMSA ",null,null,null,null,null,null,null,null,null,null,null,"AMSA"]
[]
[]
[]
[]
[]
[]
[]
[]
["GOBIERNO DE LA REPÚBLICA DE GUATEMALA"]
["AUTORIDAD PARA EL MANEJO SUSTENTABLE DE LA CUENCA Y DEL LAGO DE AMATITLÁN"]
[]
[]
[{"$f":"A76","v":"Boleta de Liquidación Mensual Renglón 031 \"Jornales\"   Correspondiente al mes de septiembre 2014"}]
[{"$f":"A77","v":{"$error":"#VALUE!"}}]
[]
["Empleado:",null,{"$f":"C79","v":{"$error":"#REF!"}},null,null,null,null,null,null,null,"Certificación No.",null,null,{"$f":"N79","v":2},null,"Fecha:",null,{"$f":"R79","v":"2014-08-31"}]
["Contrato:",null,{"$f":"C80","v":{"$error":"#REF!"}},null,null,"Puesto Funcional:",null,null,{"$f":"I80","v":{"$error":"#REF!"}},null,null,null,"Titulo Jornal:",null,null,{"$f":"P80","v":{"$error":"#REF!"}}]
["Cuenta / Banco:",null,null,{"$f":"D81","v":{"$error":"#REF!"}},null,"Banco de Desarrollo Rural, S.A.",null,null,null,null,"Jornal Diario:",null,null,{"$f":"N81","v":{"$error":"#REF!"}},null,"Días Trabajados:",null,null,{"$f":"S81","v":{"$error":"#REF!"}}]
[]
[null,null,null,null,null,null,null,null,null,null,null,null,"Ingresos",null,null,null,"Deducciones "]
[]
[null,"031","DEVENGADO",null,null,null,null,null,null,null,null,null,{"$f":"M85","v":{"$error":"#REF!"}}]
[null,"033","BONO ACUERDO GUBERNATIVO 66-2000",null,null,null,null,null,null,null,null,null,{"$f":"M86","v":{"$error":"#REF!"}}]
[null,"201","I.G.S.S",null,null,null,null,null,null,null,null,null,null,null,null,null,{"$f":"Q87","v":{"$error":"#REF!"}}]
[null,"118","MONTEPÍO",null,null,null,null,null,null,null,null,null,null,null,null,null,{"$f":"Q88","v":0}]
[null,"211","RETENCIONES JUDICIALES",null,null,null,null,null,null,null,null,null,null,null,null,null,{"$f":"Q89","v":{"$error":"#REF!"}}]
[null,null,null,null,null,null,null,null,null,null,"Total  :",null,{"$f":"SUM(M124:O128)","v":{"$error":"#REF!"}},null,null,null,{"$f":"SUM(Q126:S128)","v":{"$error":"#REF!"}}]
[null,null,null,null,null,null,null,null,null,null,"Liquido :",null,{"$f":"M129-Q129","v":{"$error":"#REF!"}}]
[]
[]
[]
[]
[]
[]
[]
[]
[{"$f":"A100","v":"María José Ceballos López"},null,null,null,null,null,null,null,null,null,null,null,{"$f":"C118","v":{"$error":"#REF!"}}]
[{"$f":"A101","v":"Encargada de Nómina"},null,null,null,null,null,null,null,null,null,null,null,{"$f":"P119","v":{"$error":"#REF!"}}]
[{"$f":"A102","v":"AMSA "},null,null,null,null,null,null,null,null,null,null,null,"AMSA"]
[]
["GOBIERNO DE LA REPÚBLICA DE GUATEMALA"]
["AUTORIDAD PARA EL MANEJO SUSTENTABLE DE LA CUENCA Y DEL LAGO DE AMATITLÁN"]
[]
[]
[{"$f":"A76","v":"Boleta de Liquidación Mensual Renglón 031 \"Jornales\"   Correspondiente al mes de septiembre 2014"}]
[{"$f":"A77","v":{"$error":"#VALUE!"}}]
[]
["Empleado:",null,{"$f":"'031'!F18","v":"Victorina de Jesús Peralta Peralta"},null,null,null,null,null,null,null,"Certificación No.",null,null,{"$f":"N79+1","v":3},null,"Fecha:",null,{"$f":"R8","v":"2014-08-31"}]
["Contrato:",null,{"$f":"'031'!G18","v":"03-2017-031-AMSA"},null,null,"Puesto Funcional:",null,null,{"$f":"'031'!C18","v":"Jardinero"},null,null,null,"Titulo Jornal:",null,null,{"$f":"'031'!D18","v":"Constructor de Puentes"}]
["Cuenta / Banco:",null,null,{"$f":"'031'!T18","v":3393002669},null,"Banco de Desarrollo Rural, S.A.",null,null,null,null,"Jornal Diario:",null,null,{"$f":"'031'!I18","v":80.86},null,"Días Trabajados:",null,null,{"$f":"'031'!J18","v":31}]
[]
[null,null,null,null,null,null,null,null,null,null,null,null,"Ingresos",null,null,null,"Deducciones "]
[]
[null,"031","DEVENGADO",null,null,null,null,null,null,null,null,null,{"$f":"'031'!K18","v":2506.66}]
[null,"033","BONO ACUERDO GUBERNATIVO 66-2000",null,null,null,null,null,null,null,null,null,{"$f":"'031'!L18","v":250}]
[null,"201","I.G.S.S",null,null,null,null,null,null,null,null,null,null,null,null,null,{"$f":"'031'!O18","v":130.12}]
[null,"118","MONTEPÍO",null,null,null,null,null,null,null,null,null,null,null,null,null,0]
[null,"211","RETENCIONES JUDICIALES",null,null,null,null,null,null,null,null,null,null,null,null,null,{"$f":"'031'!P18","v":0}]
[null,null,null,null,null,null,null,null,null,null,"Total  :",null,{"$f":"SUM(M156:O160)","v":2756.66},null,null,null,{"$f":"SUM(Q158:S160)","v":130.12}]
[null,null,null,null,null,null,null,null,null,null,"Liquido :",null,{"$f":"M161-Q161","v":2626.54}]
[]
[]
[]
[]
[]
[]
[]
[]
["María José Ceballos López",null,null,null,null,null,null,null,null,null,null,null,{"$f":"C150","v":"Victorina de Jesús Peralta Peralta"}]
["Encargada de Nómina",null,null,null,null,null,null,null,null,null,null,null,{"$f":"P151","v":"Constructor de Puentes"}]
["AMSA ",null,null,null,null,null,null,null,null,null,null,null,"AMSA"]
[]
[]
[]
[]
[]
[]
[]
[]
["GOBIERNO DE LA REPÚBLICA DE GUATEMALA"]
["AUTORIDAD PARA EL MANEJO SUSTENTABLE DE LA CUENCA Y DEL LAGO DE AMATITLÁN"]
[]
[]
[{"$f":"A147","v":"Boleta de Liquidación Mensual Renglón 031 \"Jornales\"   Correspondiente al mes de septiembre 2014"}]
[{"$f":"A148","v":{"$error":"#VALUE!"}}]
[]
["Empleado:",null,{"$f":"C150","v":"Victorina de Jesús Peralta Peralta"},null,null,null,null,null,null,null,"Certificación No.",null,null,{"$f":"N150","v":3},null,"Fecha:",null,{"$f":"R150","v":"2014-08-31"}]
["Contrato:",null,{"$f":"C151","v":"03-2017-031-AMSA"},null,null,"Puesto Funcional:",null,null,{"$f":"I151","v":"Jardinero"},null,null,null,"Titulo Jornal:",null,null,{"$f":"P151","v":"Constructor de Puentes"}]
["Cuenta / Banco:",null,null,{"$f":"D152","v":3393002669},null,"Banco de Desarrollo Rural, S.A.",null,null,null,null,"Jornal Diario:",null,null,{"$f":"N152","v":80.86},null,"Días Trabajados:",null,null,{"$f":"S152","v":31}]
[]
[null,null,null,null,null,null,null,null,null,null,null,null,"Ingresos",null,null,null,"Deducciones "]
[]
[null,"031","DEVENGADO",null,null,null,null,null,null,null,null,null,{"$f":"M156","v":2506.66}]
[null,"033","BONO ACUERDO GUBERNATIVO 66-2000",null,null,null,null,null,null,null,null,null,{"$f":"M157","v":250}]
[null,"201","I.G.S.S",null,null,null,null,null,null,null,null,null,null,null,null,null,{"$f":"Q158","v":130.12}]
[null,"118","MONTEPÍO",null,null,null,null,null,null,null,null,null,null,null,null,null,{"$f":"Q159","v":0}]
[null,"211","RETENCIONES JUDICIALES",null,null,null,null,null,null,null,null,null,null,null,null,null,{"$f":"Q160","v":0}]
[null,null,null,null,null,null,null,null,null,null,"Total  :",null,{"$f":"SUM(M195:O199)","v":2756.66},null,null,null,{"$f":"SUM(Q197:S199)","v":130.12}]
[null,null,null,null,null,null,null,null,null,null,"Liquido :",null,{"$f":"M200-Q200","v":2626.54}]
[]
[]
[]
[]
[]
[]
[]
[]
[{"$f":"A171","v":"María José Ceballos López"},null,null,null,null,null,null,null,null,null,null,null,{"$f":"C189","v":"Victorina de Jesús Peralta Peralta"}]
[{"$f":"A172","v":"Encargada de Nómina"},null,null,null,null,null,null,null,null,null,null,null,{"$f":"P190","v":"Constructor de Puentes"}]
[{"$f":"A173","v":"AMSA "},null,null,null,null,null,null,null,null,null,null,null,"AMSA"]
[]
["GOBIERNO DE LA REPÚBLICA DE GUATEMALA"]
["AUTORIDAD PARA EL MANEJO SUSTENTABLE DE LA CUENCA Y DEL LAGO DE AMATITLÁN"]
[]
[]
[{"$f":"A147","v":"Boleta de Liquidación Mensual Renglón 031 \"Jornales\"   Correspondiente al mes de septiembre 2014"}]
[{"$f":"A148","v":{"$error":"#VALUE!"}}]
[]
["Empleado:",null,{"$f":"'031'!#REF!","v":{"$error":"#REF!"}},null,null,null,null,null,null,null,"Certificación No.",null,null,{"$f":"N150+1","v":4},null,"Fecha:",null,"2014-09-30"]
["Contrato:",null,{"$f":"'031'!#REF!","v":{"$error":"#REF!"}},null,null,"Puesto Funcional:",null,null,{"$f":"'031'!#REF!","v":{"$error":"#REF!"}},null,null,null,"Titulo Jornal:",null,null,{"$f":"'031'!#REF!","v":{"$error":"#REF!"}}]
["Cuenta / Banco:",null,null,{"$f":"'031'!#REF!","v":{"$error":"#REF!"}},null,"Banco de Desarrollo Rural, S.A.",null,null,null,null,"Jornal Diario:",null,null,{"$f":"'031'!#REF!","v":{"$error":"#REF!"}},null,"Días Trabajados:",null,null,{"$f":"'031'!#REF!","v":{"$error":"#REF!"}}]
[]
[null,null,null,null,null,null,null,null,null,null,null,null,"Ingresos",null,null,null,"Deducciones "]
[]
[null,"031","DEVENGADO",null,null,null,null,null,null,null,null,null,{"$f":"'031'!#REF!","v":{"$error":"#REF!"}}]
[null,"033","BONO ACUERDO GUBERNATIVO 66-2000",null,null,null,null,null,null,null,null,null,{"$f":"'031'!#REF!","v":{"$error":"#REF!"}}]
[null,"201","I.G.S.S",null,null,null,null,null,null,null,null,null,null,null,null,null,{"$f":"'031'!#REF!","v":{"$error":"#REF!"}}]
[null,"118","MONTEPÍO",null,null,null,null,null,null,null,null,null,null,null,null,null,0]
[null,"211","RETENCIONES JUDICIALES",null,null,null,null,null,null,null,null,null,null,null,null,null,{"$f":"'031'!#REF!","v":{"$error":"#REF!"}}]
[null,null,null,null,null,null,null,null,null,null,"Total  :",null,{"$f":"SUM(M227:O231)","v":{"$error":"#REF!"}},null,null,null,{"$f":"SUM(Q229:S231)","v":{"$error":"#REF!"}}]
[null,null,null,null,null,null,null,null,null,null,"Liquido :",null,{"$f":"M232-Q232","v":{"$error":"#REF!"}}]
[]
[]
[]
[]
[]
[]
[]
[]
["María José Ceballos López",null,null,null,null,null,null,null,null,null,null,null,{"$f":"C221","v":{"$error":"#REF!"}}]
["Encargada de Nómina",null,null,null,null,null,null,null,null,null,null,null,{"$f":"P222","v":{"$error":"#REF!"}}]
["AMSA ",null,null,null,null,null,null,null,null,null,null,null,"AMSA"]
[]
[]
[]
[]
[]
[]
[]
[]
["GOBIERNO DE LA REPÚBLICA DE GUATEMALA"]
["AUTORIDAD PARA EL MANEJO SUSTENTABLE DE LA CUENCA Y DEL LAGO DE AMATITLÁN"]
[]
[]
[{"$f":"A218","v":"Boleta de Liquidación Mensual Renglón 031 \"Jornales\"   Correspondiente al mes de septiembre 2014"}]
[{"$f":"A219","v":{"$error":"#VALUE!"}}]
[]
["Empleado:",null,{"$f":"C221","v":{"$error":"#REF!"}},null,null,null,null,null,null,null,"Certificación No.",null,null,{"$f":"N221","v":4},null,"Fecha:",null,{"$f":"R221","v":"2014-09-30"}]
["Contrato:",null,{"$f":"C222","v":{"$error":"#REF!"}},null,null,"Puesto Funcional:",null,null,{"$f":"I222","v":{"$error":"#REF!"}},null,null,null,"Titulo Jornal:",null,null,{"$f":"P222","v":{"$error":"#REF!"}}]
["Cuenta / Banco:",null,null,{"$f":"D223","v":{"$error":"#REF!"}},null,"Banco de Desarrollo Rural, S.A.",null,null,null,null,"Jornal Diario:",null,null,{"$f":"N223","v":{"$error":"#REF!"}},null,"Días Trabajados:",null,null,{"$f":"S223","v":{"$error":"#REF!"}}]
[]
[null,null,null,null,null,null,null,null,null,null,null,null,"Ingresos",null,null,null,"Deducciones "]
[]
[null,"031","DEVENGADO",null,null,null,null,null,null,null,null,null,{"$f":"M227","v":{"$error":"#REF!"}}]
[null,"033","BONO ACUERDO GUBERNATIVO 66-2000",null,null,null,null,null,null,null,null,null,{"$f":"M228","v":{"$error":"#REF!"}}]
[null,"201","I.G.S.S",null,null,null,null,null,null,null,null,null,null,null,null,null,{"$f":"Q229","v":{"$error":"#REF!"}}]
[null,"118","MONTEPÍO",null,null,null,null,null,null,null,null,null,null,null,null,null,{"$f":"Q230","v":0}]
[null,"211","RETENCIONES JUDICIALES",null,null,null,null,null,null,null,null,null,null,null,null,null,{"$f":"Q231","v":{"$error":"#REF!"}}]
[null,null,null,null,null,null,null,null,null,null,"Total  :",null,{"$f":"SUM(M266:O270)","v":{"$error":"#REF!"}},null,null,null,{"$f":"SUM(Q268:S270)","v":{"$error":"#REF!"}}]
[null,null,null,null,null,null,null,null,null,null,"Liquido :",null,{"$f":"M271-Q271","v":{"$error":"#REF!"}}]
[]
[]
[]
[]
[]
[]
[]
[]
[{"$f":"A242","v":"María José Ceballos López"},null,null,null,null,null,null,null,null,null,null,null,{"$f":"C260","v":{"$error":"#REF!"}}]
[{"$f":"A243","v":"Encargada de Nómina"},null,null,null,null,null,null,null,null,null,null,null,{"$f":"P261","v":{"$error":"#REF!"}}]
[{"$f":"A244","v":"AMSA "},null,null,null,null,null,null,null,null,null,null,null,"AMSA"]
[]
["GOBIERNO DE LA REPÚBLICA DE GUATEMALA"]
["AUTORIDAD PARA EL MANEJO SUSTENTABLE DE LA CUENCA Y DEL LAGO DE AMATITLÁN"]
[]
[]
[{"$f":"A218","v":"Boleta de Liquidación Mensual Renglón 031 \"Jornales\"   Correspondiente al mes de septiembre 2014"}]
[{"$f":"A219","v":{"$error":"#VALUE!"}}]
[]
["Empleado:",null,{"$f":"'031'!F20","v":"Elida Etelvina Obando Hernandez"},null,null,null,null,null,null,null,"Certificación No.",null,null,{"$f":"N221+1","v":5},null,"Fecha:",null,{"$f":"R8","v":"2014-08-31"}]
["Contrato:",null,{"$f":"'031'!G20","v":"05-2017-031-AMSA"},null,null,"Puesto Funcional:",null,null,{"$f":"'031'!C20","v":"Encargada de Limpieza"},null,null,null,"Titulo Jornal:",null,null,{"$f":"'031'!D20","v":"Constructor de Puentes"}]
["Cuenta / Banco:",null,null,{"$f":"'031'!T20","v":4654012114},null,"Banco de Desarrollo Rural, S.A.",null,null,null,null,"Jornal Diario:",null,null,{"$f":"'031'!I20","v":80.86},null,"Días Trabajados:",null,null,{"$f":"'031'!J20","v":31}]
[]
[null,null,null,null,null,null,null,null,null,null,null,null,"Ingresos",null,null,null,"Deducciones "]
[]
[null,"031","DEVENGADO",null,null,null,null,null,null,null,null,null,{"$f":"'031'!K20","v":2506.66}]
[null,"033","BONO ACUERDO GUBERNATIVO 66-2000",null,null,null,null,null,null,null,null,null,{"$f":"'031'!L20","v":250}]
[null,"201","I.G.S.S",null,null,null,null,null,null,null,null,null,null,null,null,null,{"$f":"'031'!O20","v":130.12}]
[null,"118","MONTEPÍO",null,null,null,null,null,null,null,null,null,null,null,null,null,0]
[null,"211","RETENCIONES JUDICIALES",null,null,null,null,null,null,null,null,null,null,null,null,null,{"$f":"'031'!P20","v":0}]
[null,null,null,null,null,null,null,null,null,null,"Total  :",null,{"$f":"SUM(M298:O302)","v":2756.66},null,null,null,{"$f":"SUM(Q300:S302)","v":130.12}]
[null,null,null,null,null,null,null,null,null,null,"Liquido :",null,{"$f":"M303-Q303","v":2626.54}]
[]
[]
[]
[]
[]
[]
[]
[]
["María José Ceballos López",null,null,null,null,null,null,null,null,null,null,null,{"$f":"C292","v":"Elida Etelvina Obando Hernandez"}]
["Encargada de Nómina",null,null,null,null,null,null,null,null,null,null,null,{"$f":"P293","v":"Constructor de Puentes"}]
["AMSA ",null,null,null,null,null,null,null,null,null,null,null,"AMSA"]
[]
[]
[]
[]
[]
[]
[]
[]
["GOBIERNO DE LA REPÚBLICA DE GUATEMALA"]
["AUTORIDAD PARA EL MANEJO SUSTENTABLE DE LA CUENCA Y DEL LAGO DE AMATITLÁN"]
[]
[]
[{"$f":"A289","v":"Boleta de Liquidación Mensual Renglón 031 \"Jornales\"   Correspondiente al mes de septiembre 2014"}]
[{"$f":"A290","v":{"$error":"#VALUE!"}}]
[]
["Empleado:",null,{"$f":"C292","v":"Elida Etelvina Obando Hernandez"},null,null,null,null,null,null,null,"Certificación No.",null,null,{"$f":"N292","v":5},null,"Fecha:",null,{"$f":"R292","v":"2014-08-31"}]
["Contrato:",null,{"$f":"C293","v":"05-2017-031-AMSA"},null,null,"Puesto Funcional:",null,null,{"$f":"I293","v":"Encargada de Limpieza"},null,null,null,"Titulo Jornal:",null,null,{"$f":"P293","v":"Constructor de Puentes"}]
["Cuenta / Banco:",null,null,{"$f":"D294","v":4654012114},null,"Banco de Desarrollo Rural, S.A.",null,null,null,null,"Jornal Diario:",null,null,{"$f":"N294","v":80.86},null,"Días Trabajados:",null,null,{"$f":"S294","v":31}]
[]
[null,null,null,null,null,null,null,null,null,null,null,null,"Ingresos",null,null,null,"Deducciones "]
[]
[null,"031","DEVENGADO",null,null,null,null,null,null,null,null,null,{"$f":"M298","v":2506.66}]
[null,"033","BONO ACUERDO GUBERNATIVO 66-2000",null,null,null,null,null,null,null,null,null,{"$f":"M299","v":250}]
[null,"201","I.G.S.S",null,null,null,null,null,null,null,null,null,null,null,null,null,{"$f":"Q300","v":130.12}]
[null,"118","MONTEPÍO",null,null,null,null,null,null,null,null,null,null,null,null,null,{"$f":"Q301","v":0}]
[null,"211","RETENCIONES JUDICIALES",null,null,null,null,null,null,null,null,null,null,null,null,null,{"$f":"Q302","v":0}]
[null,null,null,null,null,null,null,null,null,null,"Total  :",null,{"$f":"SUM(M337:O341)","v":2756.66},null,null,null,{"$f":"SUM(Q339:S341)","v":130.12}]
[null,null,null,null,null,null,null,null,null,null,"Liquido :",null,{"$f":"M342-Q342","v":2626.54}]
[]
[]
[]
[]
[]
[]
[]
[]
[{"$f":"A313","v":"María José Ceballos López"},null,null,null,null,null,null,null,null,null,null,null,{"$f":"C331","v":"Elida Etelvina Obando Hernandez"}]
[{"$f":"A314","v":"Encargada de Nómina"},null,null,null,null,null,null,null,null,null,null,null,{"$f":"P332","v":"Constructor de Puentes"}]
[{"$f":"A315","v":"AMSA "},null,null,null,null,null,null,null,null,null,null,null,"AMSA"]
[]
["GOBIERNO DE LA REPÚBLICA DE GUATEMALA"]
["AUTORIDAD PARA EL MANEJO SUSTENTABLE DE LA CUENCA Y DEL LAGO DE AMATITLÁN"]
[]
[]
["Boleta de Liquidación Mensual Renglón 031 \"Jornales\"   Correspondiente al mes de Agosto 2015"]
["NÚMERO 45-2015"]
[]
["Empleado:",null,"Yomara Ninett Escobar Calderón",null,null,null,null,null,null,null,"Certificación No.",null,null,7,null,"Fecha:",null,"2015-08-31"]
["Contrato:",null,"11-2014-031-AMSA",null,null,"Puesto Funcional:",null,null,{"$f":"'031'!C21","v":"Encargada de Limpieza"},null,null,null,"Titulo Jornal:",null,null,"Peón"]
["Cuenta / Banco:",null,null,3164072096,null,"Banco de Desarrollo Rural, S.A.",null,null,null,null,"Jornal Diario:",null,null,74.97,null,"Días Trabajados:",null,null,{"$f":"'031'!J21","v":31}]
[]
[null,null,null,null,null,null,null,null,null,null,null,null,"Ingresos",null,null,null,"Deducciones "]
[]
[null,"031","DEVENGADO",null,null,null,null,null,null,null,null,null,{"$f":"+N365*S365","v":2324.0700000000002}]
[null,"033","BONO ACUERDO GUBERNATIVO 66-2000",null,null,null,null,null,null,null,null,null,{"$f":"'031'!L21","v":250}]
[null,"201","I.G.S.S",null,null,null,null,null,null,null,null,null,null,null,null,null,{"$f":"ROUND(M369*4.83%,2)","v":112.25}]
[null,"118","MONTEPÍO",null,null,null,null,null,null,null,null,null,null,null,null,null,0]
[null,"211","RETENCIONES JUDICIALES",null,null,null,null,null,null,null,null,null,null,null,null,null,{"$f":"'031'!P21","v":0}]
[null,null,null,null,null,null,null,null,null,null,"Total  :",null,{"$f":"SUM(M369:O373)","v":2574.0700000000002},null,null,null,{"$f":"SUM(Q371:S373)","v":112.25}]
[null,null,null,null,null,null,null,null,null,null,"Liquido :",null,{"$f":"M374-Q374","v":2461.8200000000002}]
[]
[]
[]
[]
[]
[]
[]
[]
["Jonnathan René Pernillo Salazar",null,null,null,null,null,null,null,null,null,null,null,{"$f":"C363","v":"Yomara Ninett Escobar Calderón"}]
["Encargado de Nómina",null,null,null,null,null,null,null,null,null,null,null,{"$f":"P364","v":"Peón"}]
["AMSA ",null,null,null,null,null,null,null,null,null,null,null,"AMSA"]
[]
[]
[]
[]
[]
[]
[]
[]
["GOBIERNO DE LA REPÚBLICA DE GUATEMALA"]
["AUTORIDAD PARA EL MANEJO SUSTENTABLE DE LA CUENCA Y DEL LAGO DE AMATITLÁN"]
[]
[]
["Boleta de Liquidación Mensual Renglón 031 \"Jornales\"   Correspondiente al mes de septiembre 2015"]
["NÚMERO 49-2015"]
[]
["Empleado:",null,{"$f":"C363","v":"Yomara Ninett Escobar Calderón"},null,null,null,null,null,null,null,"Certificación No.",null,null,{"$f":"N363","v":7},null,"Fecha:",null,"2015-09-30"]
["Contrato:",null,{"$f":"C364","v":"11-2014-031-AMSA"},null,null,"Puesto Funcional:",null,null,{"$f":"I364","v":"Encargada de Limpieza"},null,null,null,"Titulo Jornal:",null,null,{"$f":"P364","v":"Peón"}]
["Cuenta / Banco:",null,null,{"$f":"D365","v":3164072096},null,"Banco de Desarrollo Rural, S.A.",null,null,null,null,"Jornal Diario:",null,null,{"$f":"N365","v":74.97},null,"Días Trabajados:",null,null,30]
[]
[null,null,null,null,null,null,null,null,null,null,null,null,"Ingresos",null,null,null,"Deducciones "]
[]
[null,"031","DEVENGADO",null,null,null,null,null,null,null,null,null,{"$f":"+N404*S404","v":2249.1}]
[null,"033","BONO ACUERDO GUBERNATIVO 66-2000",null,null,null,null,null,null,null,null,null,{"$f":"M370","v":250}]
[null,"201","I.G.S.S",null,null,null,null,null,null,null,null,null,null,null,null,null,{"$f":"ROUND(M408*4.83%,2)","v":108.63}]
[null,"118","MONTEPÍO",null,null,null,null,null,null,null,null,null,null,null,null,null,{"$f":"Q372","v":0}]
[null,"211","RETENCIONES JUDICIALES",null,null,null,null,null,null,null,null,null,null,null,null,null,{"$f":"Q373","v":0}]
[null,null,null,null,null,null,null,null,null,null,"Total  :",null,{"$f":"SUM(M408:O412)","v":2499.1},null,null,null,{"$f":"SUM(Q410:S412)","v":108.63}]
[null,null,null,null,null,null,null,null,null,null,"Liquido :",null,{"$f":"M413-Q413","v":2390.4699999999998}]
[]
[]
[]
[]
[]
[]
[]
[]
[{"$f":"A384","v":"Jonnathan René Pernillo Salazar"},null,null,null,null,null,null,null,null,null,null,null,{"$f":"C402","v":"Yomara Ninett Escobar Calderón"}]
[{"$f":"A385","v":"Encargado de Nómina"},null,null,null,null,null,null,null,null,null,null,null,{"$f":"P403","v":"Peón"}]
[{"$f":"A386","v":"AMSA "},null,null,null,null,null,null,null,null,null,null,null,"AMSA"]
[]
["GOBIERNO DE LA REPÚBLICA DE GUATEMALA"]
["AUTORIDAD PARA EL MANEJO SUSTENTABLE DE LA CUENCA Y DEL LAGO DE AMATITLÁN"]
[]
[]
[{"$f":"A360","v":"Boleta de Liquidación Mensual Renglón 031 \"Jornales\"   Correspondiente al mes de Agosto 2015"}]
[{"$f":"A361","v":"NÚMERO 45-2015"}]
[]
["Empleado:",null,{"$f":"'031'!#REF!","v":{"$error":"#REF!"}},null,null,null,null,null,null,null,"Certificación No.",null,null,{"$f":"N363+1","v":8},null,"Fecha:",null,{"$f":"R8","v":"2014-08-31"}]
["Contrato:",null,{"$f":"'031'!#REF!","v":{"$error":"#REF!"}},null,null,"Puesto Funcional:",null,null,{"$f":"'031'!#REF!","v":{"$error":"#REF!"}},null,null,null,"Titulo Jornal:",null,null,{"$f":"'031'!#REF!","v":{"$error":"#REF!"}}]
["Cuenta / Banco:",null,null,{"$f":"'031'!#REF!","v":{"$error":"#REF!"}},null,"Banco de Desarrollo Rural, S.A.",null,null,null,null,"Jornal Diario:",null,null,{"$f":"'031'!#REF!","v":{"$error":"#REF!"}},null,"Días Trabajados:",null,null,{"$f":"'031'!#REF!","v":{"$error":"#REF!"}}]
[]
[null,null,null,null,null,null,null,null,null,null,null,null,"Ingresos",null,null,null,"Deducciones "]
[]
[null,"031","DEVENGADO",null,null,null,null,null,null,null,null,null,{"$f":"'031'!#REF!","v":{"$error":"#REF!"}}]
[null,"033","BONO ACUERDO GUBERNATIVO 66-2000",null,null,null,null,null,null,null,null,null,{"$f":"'031'!#REF!","v":{"$error":"#REF!"}}]
[null,"201","I.G.S.S",null,null,null,null,null,null,null,null,null,null,null,null,null,{"$f":"'031'!#REF!","v":{"$error":"#REF!"}}]
[null,"118","MONTEPÍO",null,null,null,null,null,null,null,null,null,null,null,null,null,0]
[null,"211","RETENCIONES JUDICIALES",null,null,null,null,null,null,null,null,null,null,null,null,null,{"$f":"'031'!#REF!","v":{"$error":"#REF!"}}]
[null,null,null,null,null,null,null,null,null,null,"Total  :",null,{"$f":"SUM(M440:O444)","v":{"$error":"#REF!"}},null,null,null,{"$f":"SUM(Q442:S444)","v":{"$error":"#REF!"}}]
[null,null,null,null,null,null,null,null,null,null,"Liquido :",null,{"$f":"M445-Q445","v":{"$error":"#REF!"}}]
[]
[]
[]
[]
[]
[]
[]
[]
["María José Ceballos López",null,null,null,null,null,null,null,null,null,null,null,{"$f":"C434","v":{"$error":"#REF!"}}]
["Encargada de Nómina",null,null,null,null,null,null,null,null,null,null,null,{"$f":"P435","v":{"$error":"#REF!"}}]
["AMSA ",null,null,null,null,null,null,null,null,null,null,null,"AMSA"]
[]
[]
[]
[]
[]
[]
[]
[]
["GOBIERNO DE LA REPÚBLICA DE GUATEMALA"]
["AUTORIDAD PARA EL MANEJO SUSTENTABLE DE LA CUENCA Y DEL LAGO DE AMATITLÁN"]
[]
[]
[{"$f":"A431","v":"Boleta de Liquidación Mensual Renglón 031 \"Jornales\"   Correspondiente al mes de Agosto 2015"}]
[{"$f":"A432","v":"NÚMERO 45-2015"}]
[]
["Empleado:",null,{"$f":"C434","v":{"$error":"#REF!"}},null,null,null,null,null,null,null,"Certificación No.",null,null,{"$f":"N434","v":8},null,"Fecha:",null,{"$f":"R434","v":"2014-08-31"}]
["Contrato:",null,{"$f":"C435","v":{"$error":"#REF!"}},null,null,"Puesto Funcional:",null,null,{"$f":"I435","v":{"$error":"#REF!"}},null,null,null,"Titulo Jornal:",null,null,{"$f":"P435","v":{"$error":"#REF!"}}]
["Cuenta / Banco:",null,null,{"$f":"D436","v":{"$error":"#REF!"}},null,"Banco de Desarrollo Rural, S.A.",null,null,null,null,"Jornal Diario:",null,null,{"$f":"N436","v":{"$error":"#REF!"}},null,"Días Trabajados:",null,null,{"$f":"S436","v":{"$error":"#REF!"}}]
[]
[null,null,null,null,null,null,null,null,null,null,null,null,"Ingresos",null,null,null,"Deducciones "]
[]
[null,"031","DEVENGADO",null,null,null,null,null,null,null,null,null,{"$f":"M440","v":{"$error":"#REF!"}}]
[null,"033","BONO ACUERDO GUBERNATIVO 66-2000",null,null,null,null,null,null,null,null,null,{"$f":"M441","v":{"$error":"#REF!"}}]
[null,"201","I.G.S.S",null,null,null,null,null,null,null,null,null,null,null,null,null,{"$f":"Q442","v":{"$error":"#REF!"}}]
[null,"118","MONTEPÍO",null,null,null,null,null,null,null,null,null,null,null,null,null,{"$f":"Q443","v":0}]
[null,"211","RETENCIONES JUDICIALES",null,null,null,null,null,null,null,null,null,null,null,null,null,{"$f":"Q444","v":{"$error":"#REF!"}}]
[null,null,null,null,null,null,null,null,null,null,"Total  :",null,{"$f":"SUM(M479:O483)","v":{"$error":"#REF!"}},null,null,null,{"$f":"SUM(Q481:S483)","v":{"$error":"#REF!"}}]
[null,null,null,null,null,null,null,null,null,null,"Liquido :",null,{"$f":"M484-Q484","v":{"$error":"#REF!"}}]
[]
[]
[]
[]
[]
[]
[]
[]
[{"$f":"A455","v":"María José Ceballos López"},null,null,null,null,null,null,null,null,null,null,null,{"$f":"C473","v":{"$error":"#REF!"}}]
[{"$f":"A456","v":"Encargada de Nómina"},null,null,null,null,null,null,null,null,null,null,null,{"$f":"P474","v":{"$error":"#REF!"}}]
[{"$f":"A457","v":"AMSA "},null,null,null,null,null,null,null,null,null,null,null,"AMSA"]
[]
["GOBIERNO DE LA REPÚBLICA DE GUATEMALA"]
["AUTORIDAD PARA EL MANEJO SUSTENTABLE DE LA CUENCA Y DEL LAGO DE AMATITLÁN"]
[]
[]
["Boleta de Liquidación Mensual Renglón 031 \"Jornales\" Correspondiente al mes de junio de 2014"]
[{"$f":"A432","v":"NÚMERO 45-2015"}]
[]
["Empleado:",null,{"$f":"'031'!#REF!","v":{"$error":"#REF!"}},null,null,null,null,null,null,null,"Certificación No.",null,null,{"$f":"N434+1","v":9},null,"Fecha:",null,"2014-06-30"]
["Contrato:",null,{"$f":"'031'!#REF!","v":{"$error":"#REF!"}},null,null,"Puesto Funcional:",null,null,{"$f":"'031'!#REF!","v":{"$error":"#REF!"}},null,null,null,"Titulo Jornal:",null,null,{"$f":"'031'!#REF!","v":{"$error":"#REF!"}}]
["Cuenta / Banco:",null,null,{"$f":"'031'!#REF!","v":{"$error":"#REF!"}},null,"Banco de Desarrollo Rural, S.A.",null,null,null,null,"Jornal Diario:",null,null,{"$f":"'031'!#REF!","v":{"$error":"#REF!"}},null,"Días Trabajados:",null,null,{"$f":"'031'!#REF!","v":{"$error":"#REF!"}}]
[]
[null,null,null,null,null,null,null,null,null,null,null,null,"Ingresos",null,null,null,"Deducciones "]
[]
[null,"031","DEVENGADO",null,null,null,null,null,null,null,null,null,{"$f":"'031'!#REF!","v":{"$error":"#REF!"}}]
[null,"033","BONO ACUERDO GUBERNATIVO 66-2000",null,null,null,null,null,null,null,null,null,{"$f":"'031'!#REF!","v":{"$error":"#REF!"}}]
[null,"201","I.G.S.S",null,null,null,null,null,null,null,null,null,null,null,null,null,{"$f":"'031'!#REF!","v":{"$error":"#REF!"}}]
[null,"118","MONTEPÍO",null,null,null,null,null,null,null,null,null,null,null,null,null,0]
[null,"211","RETENCIONES JUDICIALES",null,null,null,null,null,null,null,null,null,null,null,null,null,{"$f":"'031'!#REF!","v":{"$error":"#REF!"}}]
[null,null,null,null,null,null,null,null,null,null,"Total  :",null,{"$f":"SUM(M511:O515)","v":{"$error":"#REF!"}},null,null,null,{"$f":"SUM(Q513:S515)","v":{"$error":"#REF!"}}]
[null,null,null,null,null,null,null,null,null,null,"Liquido :",null,{"$f":"M516-Q516","v":{"$error":"#REF!"}}]
[]
[]
[]
[]
[]
[]
[]
[]
["María José Ceballos López",null,null,null,null,null,null,null,null,null,null,null,{"$f":"C505","v":{"$error":"#REF!"}}]
["Encargada de Nómina",null,null,null,null,null,null,null,null,null,null,null,{"$f":"P506","v":{"$error":"#REF!"}}]
["AMSA ",null,null,null,null,null,null,null,null,null,null,null,"AMSA"]
[]
[]
[]
[]
[]
[]
[]
[]
["GOBIERNO DE LA REPÚBLICA DE GUATEMALA"]
["AUTORIDAD PARA EL MANEJO SUSTENTABLE DE LA CUENCA Y DEL LAGO DE AMATITLÁN"]
[]
[]
[{"$f":"A502","v":"Boleta de Liquidación Mensual Renglón 031 \"Jornales\" Correspondiente al mes de junio de 2014"}]
[{"$f":"A503","v":"NÚMERO 45-2015"}]
[]
["Empleado:",null,{"$f":"C505","v":{"$error":"#REF!"}},null,null,null,null,null,null,null,"Certificación No.",null,null,{"$f":"N505","v":9},null,"Fecha:",null,"2014-06-30"]
["Contrato:",null,{"$f":"C506","v":{"$error":"#REF!"}},null,null,"Puesto Funcional:",null,null,{"$f":"I506","v":{"$error":"#REF!"}},null,null,null,"Titulo Jornal:",null,null,{"$f":"P506","v":{"$error":"#REF!"}}]
["Cuenta / Banco:",null,null,{"$f":"D507","v":{"$error":"#REF!"}},null,"Banco de Desarrollo Rural, S.A.",null,null,null,null,"Jornal Diario:",null,null,{"$f":"N507","v":{"$error":"#REF!"}},null,"Días Trabajados:",null,null,{"$f":"S507","v":{"$error":"#REF!"}}]
[]
[null,null,null,null,null,null,null,null,null,null,null,null,"Ingresos",null,null,null,"Deducciones "]
[]
[null,"031","DEVENGADO",null,null,null,null,null,null,null,null,null,{"$f":"M511","v":{"$error":"#REF!"}}]
[null,"033","BONO ACUERDO GUBERNATIVO 66-2000",null,null,null,null,null,null,null,null,null,{"$f":"M512","v":{"$error":"#REF!"}}]
[null,"201","I.G.S.S",null,null,null,null,null,null,null,null,null,null,null,null,null,{"$f":"Q513","v":{"$error":"#REF!"}}]
[null,"118","MONTEPÍO",null,null,null,null,null,null,null,null,null,null,null,null,null,{"$f":"Q514","v":0}]
[null,"211","RETENCIONES JUDICIALES",null,null,null,null,null,null,null,null,null,null,null,null,null,{"$f":"Q515","v":{"$error":"#REF!"}}]
[null,null,null,null,null,null,null,null,null,null,"Total  :",null,{"$f":"SUM(M550:O554)","v":{"$error":"#REF!"}},null,null,null,{"$f":"SUM(Q552:S554)","v":{"$error":"#REF!"}}]
[null,null,null,null,null,null,null,null,null,null,"Liquido :",null,{"$f":"M555-Q555","v":{"$error":"#REF!"}}]
[]
[]
[]
[]
[]
[]
[]
[]
[{"$f":"A526","v":"María José Ceballos López"},null,null,null,null,null,null,null,null,null,null,null,{"$f":"C544","v":{"$error":"#REF!"}}]
[{"$f":"A527","v":"Encargada de Nómina"},null,null,null,null,null,null,null,null,null,null,null,{"$f":"P545","v":{"$error":"#REF!"}}]
[{"$f":"A528","v":"AMSA "},null,null,null,null,null,null,null,null,null,null,null,"AMSA"]
[]
["GOBIERNO DE LA REPÚBLICA DE GUATEMALA"]
["AUTORIDAD PARA EL MANEJO SUSTENTABLE DE LA CUENCA Y DEL LAGO DE AMATITLÁN"]
[]
[]
[{"$f":"A5","v":"Boleta de Liquidación Mensual Renglón 031 \"Jornales\"   Correspondiente al mes de septiembre 2014"}]
[{"$f":"A503","v":"NÚMERO 45-2015"}]
[]
["Empleado:",null,{"$f":"'031'!F85","v":0},null,null,null,null,null,null,null,"Certificación No.",null,null,{"$f":"N505+1","v":10},null,"Fecha:",null,{"$f":"R8","v":"2014-08-31"}]
["Contrato:",null,{"$f":"'031'!G85","v":0},null,null,"Puesto Funcional:",null,null,{"$f":"'031'!C85","v":0},null,null,null,"Titulo Jornal:",null,null,{"$f":"'031'!D85","v":0}]
["Cuenta / Banco:",null,null,{"$f":"'031'!T85","v":0},null,"Banco de Desarrollo Rural, S.A.",null,null,null,null,"Jornal Diario:",null,null,{"$f":"'031'!I85","v":0},null,"Días Trabajados:",null,null,{"$f":"'031'!J85","v":0}]
[]
[null,null,null,null,null,null,null,null,null,null,null,null,"Ingresos",null,null,null,"Deducciones "]
[]
[null,"031","DEVENGADO",null,null,null,null,null,null,null,null,null,{"$f":"'031'!K85","v":0}]
[null,"033","BONO ACUERDO GUBERNATIVO 66-2000",null,null,null,null,null,null,null,null,null,{"$f":"'031'!L85","v":0}]
[null,"201","I.G.S.S",null,null,null,null,null,null,null,null,null,null,null,null,null,{"$f":"'031'!O85","v":201}]
[null,"118","MONTEPÍO",null,null,null,null,null,null,null,null,null,null,null,null,null,0]
[null,"211","RETENCIONES JUDICIALES",null,null,null,null,null,null,null,null,null,null,null,null,null,{"$f":"'031'!P85","v":211}]
[null,null,null,null,null,null,null,null,null,null,"Total  :",null,{"$f":"SUM(M582:O586)","v":0},null,null,null,{"$f":"SUM(Q584:S586)","v":412}]
[null,null,null,null,null,null,null,null,null,null,"Liquido :",null,{"$f":"M587-Q587","v":-412}]
[]
[]
[]
[]
[]
[]
[]
[]
["María José Ceballos López",null,null,null,null,null,null,null,null,null,null,null,{"$f":"C576","v":0}]
["Encargada de Nómina",null,null,null,null,null,null,null,null,null,null,null,{"$f":"P577","v":0}]
["AMSA ",null,null,null,null,null,null,null,null,null,null,null,"AMSA"]
[]
[]
[]
[]
[]
[]
[]
[]
["GOBIERNO DE LA REPÚBLICA DE GUATEMALA"]
["AUTORIDAD PARA EL MANEJO SUSTENTABLE DE LA CUENCA Y DEL LAGO DE AMATITLÁN"]
[]
[]
[{"$f":"A573","v":"Boleta de Liquidación Mensual Renglón 031 \"Jornales\"   Correspondiente al mes de septiembre 2014"}]
[{"$f":"A574","v":"NÚMERO 45-2015"}]
[]
["Empleado:",null,{"$f":"C576","v":0},null,null,null,null,null,null,null,"Certificación No.",null,null,{"$f":"N576","v":10},null,"Fecha:",null,{"$f":"R576","v":"2014-08-31"}]
["Contrato:",null,{"$f":"C577","v":0},null,null,"Puesto Funcional:",null,null,{"$f":"I577","v":0},null,null,null,"Titulo Jornal:",null,null,{"$f":"P577","v":0}]
["Cuenta / Banco:",null,null,{"$f":"D578","v":0},null,"Banco de Desarrollo Rural, S.A.",null,null,null,null,"Jornal Diario:",null,null,{"$f":"N578","v":0},null,"Días Trabajados:",null,null,{"$f":"S578","v":0}]
[]
[null,null,null,null,null,null,null,null,null,null,null,null,"Ingresos",null,null,null,"Deducciones "]
[]
[null,"031","DEVENGADO",null,null,null,null,null,null,null,null,null,{"$f":"M582","v":0}]
[null,"033","BONO ACUERDO GUBERNATIVO 66-2000",null,null,null,null,null,null,null,null,null,{"$f":"M583","v":0}]
[null,"201","I.G.S.S",null,null,null,null,null,null,null,null,null,null,null,null,null,{"$f":"Q584","v":201}]
[null,"118","MONTEPÍO",null,null,null,null,null,null,null,null,null,null,null,null,null,{"$f":"Q585","v":0}]
[null,"211","RETENCIONES JUDICIALES",null,null,null,null,null,null,null,null,null,null,null,null,null,{"$f":"Q586","v":211}]
[null,null,null,null,null,null,null,null,null,null,"Total  :",null,{"$f":"SUM(M621:O625)","v":0},null,null,null,{"$f":"SUM(Q623:S625)","v":412}]
[null,null,null,null,null,null,null,null,null,null,"Liquido :",null,{"$f":"M626-Q626","v":-412}]
[]
[]
[]
[]
[]
[]
[]
[]
[{"$f":"A597","v":"María José Ceballos López"},null,null,null,null,null,null,null,null,null,null,null,{"$f":"C615","v":0}]
[{"$f":"A598","v":"Encargada de Nómina"},null,null,null,null,null,null,null,null,null,null,null,{"$f":"P616","v":0}]
[{"$f":"A599","v":"AMSA "},null,null,null,null,null,null,null,null,null,null,null,"AMSA"]
[]
["GOBIERNO DE LA REPÚBLICA DE GUATEMALA"]
["AUTORIDAD PARA EL MANEJO SUSTENTABLE DE LA CUENCA Y DEL LAGO DE AMATITLÁN"]
[]
[]
[{"$f":"A573","v":"Boleta de Liquidación Mensual Renglón 031 \"Jornales\"   Correspondiente al mes de septiembre 2014"}]
[{"$f":"A574","v":"NÚMERO 45-2015"}]
[]
["Empleado:",null,{"$f":"'031'!F86","v":0},null,null,null,null,null,null,null,"Certificación No.",null,null,{"$f":"N576+1","v":11},null,"Fecha:",null,{"$f":"R8","v":"2014-08-31"}]
["Contrato:",null,{"$f":"'031'!G86","v":0},null,null,"Puesto Funcional:",null,null,{"$f":"'031'!C86","v":0},null,null,null,"Titulo Jornal:",null,null,{"$f":"'031'!D86","v":0}]
["Cuenta / Banco:",null,null,{"$f":"'031'!T86","v":0},null,"Banco de Desarrollo Rural, S.A.",null,null,null,null,"Jornal Diario:",null,null,{"$f":"'031'!I86","v":0},null,"Días Trabajados:",null,null,{"$f":"'031'!J86","v":0}]
[]
[null,null,null,null,null,null,null,null,null,null,null,null,"Ingresos",null,null,null,"Deducciones "]
[]
[null,"031","DEVENGADO",null,null,null,null,null,null,null,null,null,{"$f":"'031'!K86","v":"Jornales"}]
[null,"033","BONO ACUERDO GUBERNATIVO 66-2000",null,null,null,null,null,null,null,null,null,{"$f":"'031'!L86","v":"Bono 66-2000"}]
[null,"201","I.G.S.S",null,null,null,null,null,null,null,null,null,null,null,null,null,{"$f":"'031'!O86","v":"IGSS"}]
[null,"118","MONTEPÍO",null,null,null,null,null,null,null,null,null,null,null,null,null,0]
[null,"211","RETENCIONES JUDICIALES",null,null,null,null,null,null,null,null,null,null,null,null,null,{"$f":"'031'!P86","v":"Retenciones \nJudiciales"}]
[null,null,null,null,null,null,null,null,null,null,"Total  :",null,{"$f":"SUM(M653:O657)","v":0},null,null,null,{"$f":"SUM(Q655:S657)","v":0}]
[null,null,null,null,null,null,null,null,null,null,"Liquido :",null,{"$f":"M658-Q658","v":0}]
[]
[]
[]
[]
[]
[]
[]
[]
["María José Ceballos López",null,null,null,null,null,null,null,null,null,null,null,{"$f":"C647","v":0}]
["Encargada de Nómina",null,null,null,null,null,null,null,null,null,null,null,{"$f":"P648","v":0}]
["AMSA ",null,null,null,null,null,null,null,null,null,null,null,"AMSA"]
[]
[]
[]
[]
[]
[]
[]
[]
["GOBIERNO DE LA REPÚBLICA DE GUATEMALA"]
["AUTORIDAD PARA EL MANEJO SUSTENTABLE DE LA CUENCA Y DEL LAGO DE AMATITLÁN"]
[]
[]
[{"$f":"A644","v":"Boleta de Liquidación Mensual Renglón 031 \"Jornales\"   Correspondiente al mes de septiembre 2014"}]
[{"$f":"A645","v":"NÚMERO 45-2015"}]
[]
["Empleado:",null,{"$f":"C647","v":0},null,null,null,null,null,null,null,"Certificación No.",null,null,{"$f":"N647","v":11},null,"Fecha:",null,{"$f":"R647","v":"2014-08-31"}]
["Contrato:",null,{"$f":"C648","v":0},null,null,"Puesto Funcional:",null,null,{"$f":"I648","v":0},null,null,null,"Titulo Jornal:",null,null,{"$f":"P648","v":0}]
["Cuenta / Banco:",null,null,{"$f":"D649","v":0},null,"Banco de Desarrollo Rural, S.A.",null,null,null,null,"Jornal Diario:",null,null,{"$f":"N649","v":0},null,"Días Trabajados:",null,null,{"$f":"S649","v":0}]
[]
[null,null,null,null,null,null,null,null,null,null,null,null,"Ingresos",null,null,null,"Deducciones "]
[]
[null,"031","DEVENGADO",null,null,null,null,null,null,null,null,null,{"$f":"M653","v":"Jornales"}]
[null,"033","BONO ACUERDO GUBERNATIVO 66-2000",null,null,null,null,null,null,null,null,null,{"$f":"M654","v":"Bono 66-2000"}]
[null,"201","I.G.S.S",null,null,null,null,null,null,null,null,null,null,null,null,null,{"$f":"Q655","v":"IGSS"}]
[null,"118","MONTEPÍO",null,null,null,null,null,null,null,null,null,null,null,null,null,{"$f":"Q656","v":0}]
[null,"211","RETENCIONES JUDICIALES",null,null,null,null,null,null,null,null,null,null,null,null,null,{"$f":"Q657","v":"Retenciones \nJudiciales"}]
[null,null,null,null,null,null,null,null,null,null,"Total  :",null,{"$f":"SUM(M692:O696)","v":0},null,null,null,{"$f":"SUM(Q694:S696)","v":0}]
[null,null,null,null,null,null,null,null,null,null,"Liquido :",null,{"$f":"M697-Q697","v":0}]
[]
[]
[]
[]
[]
[]
[]
[]
[{"$f":"A668","v":"María José Ceballos López"},null,null,null,null,null,null,null,null,null,null,null,{"$f":"C686","v":0}]
[{"$f":"A669","v":"Encargada de Nómina"},null,null,null,null,null,null,null,null,null,null,null,{"$f":"P687","v":0}]
[{"$f":"A670","v":"AMSA "},null,null,null,null,null,null,null,null,null,null,null,"AMSA"]
[]
["GOBIERNO DE LA REPÚBLICA DE GUATEMALA"]
["AUTORIDAD PARA EL MANEJO SUSTENTABLE DE LA CUENCA Y DEL LAGO DE AMATITLÁN"]
[]
[]
[{"$f":"A644","v":"Boleta de Liquidación Mensual Renglón 031 \"Jornales\"   Correspondiente al mes de septiembre 2014"}]
[{"$f":"A645","v":"NÚMERO 45-2015"}]
[]
["Empleado:",null,{"$f":"'031'!#REF!","v":{"$error":"#REF!"}},null,null,null,null,null,null,null,"Certificación No.",null,null,{"$f":"N647+1","v":12},null,"Fecha:",null,{"$f":"R8","v":"2014-08-31"}]
["Contrato:",null,{"$f":"'031'!#REF!","v":{"$error":"#REF!"}},null,null,"Puesto Funcional:",null,null,{"$f":"'031'!#REF!","v":{"$error":"#REF!"}},null,null,null,"Titulo Jornal:",null,null,{"$f":"'031'!#REF!","v":{"$error":"#REF!"}}]
["Cuenta / Banco:",null,null,{"$f":"'031'!#REF!","v":{"$error":"#REF!"}},null,"Banco de Desarrollo Rural, S.A.",null,null,null,null,"Jornal Diario:",null,null,{"$f":"'031'!#REF!","v":{"$error":"#REF!"}},null,"Días Trabajados:",null,null,{"$f":"'031'!#REF!","v":{"$error":"#REF!"}}]
[]
[null,null,null,null,null,null,null,null,null,null,null,null,"Ingresos",null,null,null,"Deducciones "]
[]
[null,"031","DEVENGADO",null,null,null,null,null,null,null,null,null,{"$f":"'031'!#REF!","v":{"$error":"#REF!"}}]
[null,"033","BONO ACUERDO GUBERNATIVO 66-2000",null,null,null,null,null,null,null,null,null,{"$f":"'031'!#REF!","v":{"$error":"#REF!"}}]
[null,"201","I.G.S.S",null,null,null,null,null,null,null,null,null,null,null,null,null,{"$f":"'031'!#REF!","v":{"$error":"#REF!"}}]
[null,"118","MONTEPÍO",null,null,null,null,null,null,null,null,null,null,null,null,null,0]
[null,"211","RETENCIONES JUDICIALES",null,null,null,null,null,null,null,null,null,null,null,null,null,{"$f":"'031'!#REF!","v":{"$error":"#REF!"}}]
[null,null,null,null,null,null,null,null,null,null,"Total  :",null,{"$f":"SUM(M724:O728)","v":{"$error":"#REF!"}},null,null,null,{"$f":"SUM(Q726:S728)","v":{"$error":"#REF!"}}]
[null,null,null,null,null,null,null,null,null,null,"Liquido :",null,{"$f":"M729-Q729","v":{"$error":"#REF!"}}]
[]
[]
[]
[]
[]
[]
[]
[]
["María José Ceballos López",null,null,null,null,null,null,null,null,null,null,null,{"$f":"C718","v":{"$error":"#REF!"}}]
["Encargada de Nómina",null,null,null,null,null,null,null,null,null,null,null,{"$f":"P719","v":{"$error":"#REF!"}}]
["AMSA ",null,null,null,null,null,null,null,null,null,null,null,"AMSA"]
[]
[]
[]
[]
[]
[]
[]
[]
["GOBIERNO DE LA REPÚBLICA DE GUATEMALA"]
["AUTORIDAD PARA EL MANEJO SUSTENTABLE DE LA CUENCA Y DEL LAGO DE AMATITLÁN"]
[]
[]
[{"$f":"A715","v":"Boleta de Liquidación Mensual Renglón 031 \"Jornales\"   Correspondiente al mes de septiembre 2014"}]
[{"$f":"A716","v":"NÚMERO 45-2015"}]
[]
["Empleado:",null,{"$f":"C718","v":{"$error":"#REF!"}},null,null,null,null,null,null,null,"Certificación No.",null,null,{"$f":"N718","v":12},null,"Fecha:",null,{"$f":"R718","v":"2014-08-31"}]
["Contrato:",null,{"$f":"C719","v":{"$error":"#REF!"}},null,null,"Puesto Funcional:",null,null,{"$f":"I719","v":{"$error":"#REF!"}},null,null,null,"Titulo Jornal:",null,null,{"$f":"P719","v":{"$error":"#REF!"}}]
["Cuenta / Banco:",null,null,{"$f":"D720","v":{"$error":"#REF!"}},null,"Banco de Desarrollo Rural, S.A.",null,null,null,null,"Jornal Diario:",null,null,{"$f":"N720","v":{"$error":"#REF!"}},null,"Días Trabajados:",null,null,{"$f":"S720","v":{"$error":"#REF!"}}]
[]
[null,null,null,null,null,null,null,null,null,null,null,null,"Ingresos",null,null,null,"Deducciones "]
[]
[null,"031","DEVENGADO",null,null,null,null,null,null,null,null,null,{"$f":"M724","v":{"$error":"#REF!"}}]
[null,"033","BONO ACUERDO GUBERNATIVO 66-2000",null,null,null,null,null,null,null,null,null,{"$f":"M725","v":{"$error":"#REF!"}}]
[null,"201","I.G.S.S",null,null,null,null,null,null,null,null,null,null,null,null,null,{"$f":"Q726","v":{"$error":"#REF!"}}]
[null,"118","MONTEPÍO",null,null,null,null,null,null,null,null,null,null,null,null,null,{"$f":"Q727","v":0}]
[null,"211","RETENCIONES JUDICIALES",null,null,null,null,null,null,null,null,null,null,null,null,null,{"$f":"Q728","v":{"$error":"#REF!"}}]
[null,null,null,null,null,null,null,null,null,null,"Total  :",null,{"$f":"SUM(M763:O767)","v":{"$error":"#REF!"}},null,null,null,{"$f":"SUM(Q765:S767)","v":{"$error":"#REF!"}}]
[null,null,null,null,null,null,null,null,null,null,"Liquido :",null,{"$f":"M768-Q768","v":{"$error":"#REF!"}}]
[]
[]
[]
[]
[]
[]
[]
[]
[{"$f":"A739","v":"María José Ceballos López"},null,null,null,null,null,null,null,null,null,null,null,{"$f":"C757","v":{"$error":"#REF!"}}]
[{"$f":"A740","v":"Encargada de Nómina"},null,null,null,null,null,null,null,null,null,null,null,{"$f":"P758","v":{"$error":"#REF!"}}]
[{"$f":"A741","v":"AMSA "},null,null,null,null,null,null,null,null,null,null,null,"AMSA"]
[]
["GOBIERNO DE LA REPÚBLICA DE GUATEMALA"]
["AUTORIDAD PARA EL MANEJO SUSTENTABLE DE LA CUENCA Y DEL LAGO DE AMATITLÁN"]
[]
[]
[{"$f":"A715","v":"Boleta de Liquidación Mensual Renglón 031 \"Jornales\"   Correspondiente al mes de septiembre 2014"}]
[{"$f":"A716","v":"NÚMERO 45-2015"}]
[]
["Empleado:",null,{"$f":"'031'!#REF!","v":{"$error":"#REF!"}},null,null,null,null,null,null,null,"Certificación No.",null,null,{"$f":"N718+1","v":13},null,"Fecha:",null,{"$f":"R8","v":"2014-08-31"}]
["Contrato:",null,{"$f":"'031'!#REF!","v":{"$error":"#REF!"}},null,null,"Puesto Funcional:",null,null,{"$f":"'031'!#REF!","v":{"$error":"#REF!"}},null,null,null,"Titulo Jornal:",null,null,{"$f":"'031'!#REF!","v":{"$error":"#REF!"}}]
["Cuenta / Banco:",null,null,{"$f":"'031'!#REF!","v":{"$error":"#REF!"}},null,"Banco de Desarrollo Rural, S.A.",null,null,null,null,"Jornal Diario:",null,null,{"$f":"'031'!#REF!","v":{"$error":"#REF!"}},null,"Días Trabajados:",null,null,{"$f":"'031'!#REF!","v":{"$error":"#REF!"}}]
[]
[null,null,null,null,null,null,null,null,null,null,null,null,"Ingresos",null,null,null,"Deducciones "]
[]
[null,"031","DEVENGADO",null,null,null,null,null,null,null,null,null,{"$f":"'031'!#REF!","v":{"$error":"#REF!"}}]
[null,"033","BONO ACUERDO GUBERNATIVO 66-2000",null,null,null,null,null,null,null,null,null,{"$f":"'031'!#REF!","v":{"$error":"#REF!"}}]
[null,"201","I.G.S.S",null,null,null,null,null,null,null,null,null,null,null,null,null,{"$f":"'031'!#REF!","v":{"$error":"#REF!"}}]
[null,"118","MONTEPÍO",null,null,null,null,null,null,null,null,null,null,null,null,null,0]
[null,"211","RETENCIONES JUDICIALES",null,null,null,null,null,null,null,null,null,null,null,null,null,{"$f":"'031'!#REF!","v":{"$error":"#REF!"}}]
[null,null,null,null,null,null,null,null,null,null,"Total  :",null,{"$f":"SUM(M795:O799)","v":{"$error":"#REF!"}},null,null,null,{"$f":"SUM(Q797:S799)","v":{"$error":"#REF!"}}]
[null,null,null,null,null,null,null,null,null,null,"Liquido :",null,{"$f":"M800-Q800","v":{"$error":"#REF!"}}]
[]
[]
[]
[]
[]
[]
[]
[]
["María José Ceballos López",null,null,null,null,null,null,null,null,null,null,null,{"$f":"C789","v":{"$error":"#REF!"}}]
["Encargada de Nómina",null,null,null,null,null,null,null,null,null,null,null,{"$f":"P790","v":{"$error":"#REF!"}}]
["AMSA ",null,null,null,null,null,null,null,null,null,null,null,"AMSA"]
[]
[]
[]
[]
[]
[]
[]
[]
["GOBIERNO DE LA REPÚBLICA DE GUATEMALA"]
["AUTORIDAD PARA EL MANEJO SUSTENTABLE DE LA CUENCA Y DEL LAGO DE AMATITLÁN"]
[]
[]
[{"$f":"A786","v":"Boleta de Liquidación Mensual Renglón 031 \"Jornales\"   Correspondiente al mes de septiembre 2014"}]
[{"$f":"A787","v":"NÚMERO 45-2015"}]
[]
["Empleado:",null,{"$f":"C789","v":{"$error":"#REF!"}},null,null,null,null,null,null,null,"Certificación No.",null,null,{"$f":"N789","v":13},null,"Fecha:",null,{"$f":"R789","v":"2014-08-31"}]
["Contrato:",null,{"$f":"C790","v":{"$error":"#REF!"}},null,null,"Puesto Funcional:",null,null,{"$f":"I790","v":{"$error":"#REF!"}},null,null,null,"Titulo Jornal:",null,null,{"$f":"P790","v":{"$error":"#REF!"}}]
["Cuenta / Banco:",null,null,{"$f":"D791","v":{"$error":"#REF!"}},null,"Banco de Desarrollo Rural, S.A.",null,null,null,null,"Jornal Diario:",null,null,{"$f":"N791","v":{"$error":"#REF!"}},null,"Días Trabajados:",null,null,{"$f":"S791","v":{"$error":"#REF!"}}]
[]
[null,null,null,null,null,null,null,null,null,null,null,null,"Ingresos",null,null,null,"Deducciones "]
[]
[null,"031","DEVENGADO",null,null,null,null,null,null,null,null,null,{"$f":"M795","v":{"$error":"#REF!"}}]
[null,"033","BONO ACUERDO GUBERNATIVO 66-2000",null,null,null,null,null,null,null,null,null,{"$f":"M796","v":{"$error":"#REF!"}}]
[null,"201","I.G.S.S",null,null,null,null,null,null,null,null,null,null,null,null,null,{"$f":"Q797","v":{"$error":"#REF!"}}]
[null,"118","MONTEPÍO",null,null,null,null,null,null,null,null,null,null,null,null,null,{"$f":"Q798","v":0}]
[null,"211","RETENCIONES JUDICIALES",null,null,null,null,null,null,null,null,null,null,null,null,null,{"$f":"Q799","v":{"$error":"#REF!"}}]
[null,null,null,null,null,null,null,null,null,null,"Total  :",null,{"$f":"SUM(M834:O838)","v":{"$error":"#REF!"}},null,null,null,{"$f":"SUM(Q836:S838)","v":{"$error":"#REF!"}}]
[null,null,null,null,null,null,null,null,null,null,"Liquido :",null,{"$f":"M839-Q839","v":{"$error":"#REF!"}}]
[]
[]
[]
[]
[]
[]
[]
[]
[{"$f":"A810","v":"María José Ceballos López"},null,null,null,null,null,null,null,null,null,null,null,{"$f":"C828","v":{"$error":"#REF!"}}]
[{"$f":"A811","v":"Encargada de Nómina"},null,null,null,null,null,null,null,null,null,null,null,{"$f":"P829","v":{"$error":"#REF!"}}]
[{"$f":"A812","v":"AMSA "},null,null,null,null,null,null,null,null,null,null,null,"AMSA"]
[]
["GOBIERNO DE LA REPÚBLICA DE GUATEMALA"]
["AUTORIDAD PARA EL MANEJO SUSTENTABLE DE LA CUENCA Y DEL LAGO DE AMATITLÁN"]
[]
[]
[{"$f":"A5","v":"Boleta de Liquidación Mensual Renglón 031 \"Jornales\"   Correspondiente al mes de septiembre 2014"}]
[{"$f":"A787","v":"NÚMERO 45-2015"}]
[]
["Empleado:",null,{"$f":"'031'!#REF!","v":{"$error":"#REF!"}},null,null,null,null,null,null,null,"Certificación No.",null,null,{"$f":"N789+1","v":14},null,"Fecha:",null,{"$f":"R8","v":"2014-08-31"}]
["Contrato:",null,{"$f":"'031'!#REF!","v":{"$error":"#REF!"}},null,null,"Puesto Funcional:",null,null,{"$f":"'031'!#REF!","v":{"$error":"#REF!"}},null,null,null,"Titulo Jornal:",null,null,{"$f":"'031'!#REF!","v":{"$error":"#REF!"}}]
["Cuenta / Banco:",null,null,{"$f":"'031'!#REF!","v":{"$error":"#REF!"}},null,"Banco de Desarrollo Rural, S.A.",null,null,null,null,"Jornal Diario:",null,null,{"$f":"'031'!#REF!","v":{"$error":"#REF!"}},null,"Días Trabajados:",null,null,{"$f":"'031'!#REF!","v":{"$error":"#REF!"}}]
[]
[null,null,null,null,null,null,null,null,null,null,null,null,"Ingresos",null,null,null,"Deducciones "]
[]
[null,"031","DEVENGADO",null,null,null,null,null,null,null,null,null,{"$f":"'031'!#REF!","v":{"$error":"#REF!"}}]
[null,"033","BONO ACUERDO GUBERNATIVO 66-2000",null,null,null,null,null,null,null,null,null,{"$f":"'031'!#REF!","v":{"$error":"#REF!"}}]
[null,"201","I.G.S.S",null,null,null,null,null,null,null,null,null,null,null,null,null,{"$f":"'031'!#REF!","v":{"$error":"#REF!"}}]
[null,"118","MONTEPÍO",null,null,null,null,null,null,null,null,null,null,null,null,null,0]
[null,"211","RETENCIONES JUDICIALES",null,null,null,null,null,null,null,null,null,null,null,null,null,{"$f":"'031'!#REF!","v":{"$error":"#REF!"}}]
[null,null,null,null,null,null,null,null,null,null,"Total  :",null,{"$f":"SUM(M866:O870)","v":{"$error":"#REF!"}},null,null,null,{"$f":"SUM(Q868:S870)","v":{"$error":"#REF!"}}]
[null,null,null,null,null,null,null,null,null,null,"Liquido :",null,{"$f":"M871-Q871","v":{"$error":"#REF!"}}]
[]
[]
[]
[]
[]
[]
[]
[]
["María José Ceballos López",null,null,null,null,null,null,null,null,null,null,null,{"$f":"C860","v":{"$error":"#REF!"}}]
["Encargada de Nómina",null,null,null,null,null,null,null,null,null,null,null,{"$f":"P861","v":{"$error":"#REF!"}}]
["AMSA ",null,null,null,null,null,null,null,null,null,null,null,"AMSA"]
[]
[]
[]
[]
[]
[]
[]
[]
["GOBIERNO DE LA REPÚBLICA DE GUATEMALA"]
["AUTORIDAD PARA EL MANEJO SUSTENTABLE DE LA CUENCA Y DEL LAGO DE AMATITLÁN"]
[]
[]
[{"$f":"A857","v":"Boleta de Liquidación Mensual Renglón 031 \"Jornales\"   Correspondiente al mes de septiembre 2014"}]
[{"$f":"A858","v":"NÚMERO 45-2015"}]
[]
["Empleado:",null,{"$f":"C860","v":{"$error":"#REF!"}},null,null,null,null,null,null,null,"Certificación No.",null,null,{"$f":"N860","v":14},null,"Fecha:",null,{"$f":"R860","v":"2014-08-31"}]
["Contrato:",null,{"$f":"C861","v":{"$error":"#REF!"}},null,null,"Puesto Funcional:",null,null,{"$f":"I861","v":{"$error":"#REF!"}},null,null,null,"Titulo Jornal:",null,null,{"$f":"P861","v":{"$error":"#REF!"}}]
["Cuenta / Banco:",null,null,{"$f":"D862","v":{"$error":"#REF!"}},null,"Banco de Desarrollo Rural, S.A.",null,null,null,null,"Jornal Diario:",null,null,{"$f":"N862","v":{"$error":"#REF!"}},null,"Días Trabajados:",null,null,{"$f":"S862","v":{"$error":"#REF!"}}]
[]
[null,null,null,null,null,null,null,null,null,null,null,null,"Ingresos",null,null,null,"Deducciones "]
[]
[null,"031","DEVENGADO",null,null,null,null,null,null,null,null,null,{"$f":"M866","v":{"$error":"#REF!"}}]
[null,"033","BONO ACUERDO GUBERNATIVO 66-2000",null,null,null,null,null,null,null,null,null,{"$f":"M867","v":{"$error":"#REF!"}}]
[null,"201","I.G.S.S",null,null,null,null,null,null,null,null,null,null,null,null,null,{"$f":"Q868","v":{"$error":"#REF!"}}]
[null,"118","MONTEPÍO",null,null,null,null,null,null,null,null,null,null,null,null,null,{"$f":"Q869","v":0}]
[null,"211","RETENCIONES JUDICIALES",null,null,null,null,null,null,null,null,null,null,null,null,null,{"$f":"Q870","v":{"$error":"#REF!"}}]
[null,null,null,null,null,null,null,null,null,null,"Total  :",null,{"$f":"SUM(M905:O909)","v":{"$error":"#REF!"}},null,null,null,{"$f":"SUM(Q907:S909)","v":{"$error":"#REF!"}}]
[null,null,null,null,null,null,null,null,null,null,"Liquido :",null,{"$f":"M910-Q910","v":{"$error":"#REF!"}}]
[]
[]
[]
[]
[]
[]
[]
[]
[{"$f":"A881","v":"María José Ceballos López"},null,null,null,null,null,null,null,null,null,null,null,{"$f":"C899","v":{"$error":"#REF!"}}]
[{"$f":"A882","v":"Encargada de Nómina"},null,null,null,null,null,null,null,null,null,null,null,{"$f":"P900","v":{"$error":"#REF!"}}]
[{"$f":"A883","v":"AMSA "},null,null,null,null,null,null,null,null,null,null,null,"AMSA"]
[]
["GOBIERNO DE LA REPÚBLICA DE GUATEMALA"]
["AUTORIDAD PARA EL MANEJO SUSTENTABLE DE LA CUENCA Y DEL LAGO DE AMATITLÁN"]
[]
[]
["Boleta de Liquidación Mensual Renglón 031 \"Jornales\"   Correspondiente al mes de octubre 2015"]
[{"$f":"'031'!#REF!","v":{"$error":"#REF!"}}]
[]
["Empleado:",null,{"$f":"'031'!F87","v":"Flavio Alí Alonso Gil"},null,null,null,null,null,null,null,"Certificación No.",null,null,{"$f":"N860+1","v":15},null,"Fecha:",null,"2015-10-31"]
["Contrato:",null,{"$f":"'031'!G87","v":"22-2017-031-AMSA"},null,null,"Puesto Funcional:",null,null,{"$f":"'031'!C87","v":"Peón de Campo"},null,null,null,"Titulo Jornal:",null,null,{"$f":"'031'!D87","v":"Constructor de Puentes"}]
["Cuenta / Banco:",null,null,{"$f":"'031'!T87","v":3216001631},null,"Banco de Desarrollo Rural, S.A.",null,null,null,null,"Jornal Diario:",null,null,{"$f":"'031'!I87","v":80.86},null,"Días Trabajados:",null,null,{"$f":"'031'!J87","v":31}]
[]
[null,null,null,null,null,null,null,null,null,null,null,null,"Ingresos",null,null,null,"Deducciones "]
[]
[null,"031","DEVENGADO",null,null,null,null,null,null,null,null,null,{"$f":"'031'!K87","v":2506.66}]
[null,"033","BONO ACUERDO GUBERNATIVO 66-2000",null,null,null,null,null,null,null,null,null,{"$f":"'031'!L87","v":250}]
[null,"201","I.G.S.S",null,null,null,null,null,null,null,null,null,null,null,null,null,{"$f":"'031'!O87","v":130.12}]
[null,"118","MONTEPÍO",null,null,null,null,null,null,null,null,null,null,null,null,null,0]
[null,"211","RETENCIONES JUDICIALES",null,null,null,null,null,null,null,null,null,null,null,null,null,{"$f":"'031'!P87","v":0}]
[null,null,null,null,null,null,null,null,null,null,"Total  :",null,{"$f":"SUM(M937:O941)","v":2756.66},null,null,null,{"$f":"SUM(Q939:S941)","v":130.12}]
[null,null,null,null,null,null,null,null,null,null,"Liquido :",null,{"$f":"M942-Q942","v":2626.54}]
[]
[]
[]
[]
[]
[]
[]
[]
["Jonnathan René Pernillo Salazar",null,null,null,null,null,null,null,null,null,null,null,{"$f":"C931","v":"Flavio Alí Alonso Gil"}]
["Encargado de Nómina",null,null,null,null,null,null,null,null,null,null,null,{"$f":"P932","v":"Constructor de Puentes"}]
["AMSA ",null,null,null,null,null,null,null,null,null,null,null,"AMSA"]
[]
[]
[]
[]
[]
[]
[]
[]
["GOBIERNO DE LA REPÚBLICA DE GUATEMALA"]
["AUTORIDAD PARA EL MANEJO SUSTENTABLE DE LA CUENCA Y DEL LAGO DE AMATITLÁN"]
[]
[]
["Boleta de Liquidación Mensual Renglón 031 \"Jornales\"   Correspondiente al mes de septiembre 2015"]
[" NÚMERO 52-2015"]
[]
["Empleado:",null,{"$f":"C931","v":"Flavio Alí Alonso Gil"},null,null,null,null,null,null,null,"Certificación No.",null,null,{"$f":"N931","v":15},null,"Fecha:",null,"2015-09-30"]
["Contrato:",null,{"$f":"C932","v":"22-2017-031-AMSA"},null,null,"Puesto Funcional:",null,null,{"$f":"I932","v":"Peón de Campo"},null,null,null,"Titulo Jornal:",null,null,{"$f":"P932","v":"Constructor de Puentes"}]
["Cuenta / Banco:",null,null,{"$f":"D933","v":3216001631},null,"Banco de Desarrollo Rural, S.A.",null,null,null,null,"Jornal Diario:",null,null,{"$f":"N933","v":80.86},null,"Días Trabajados:",null,null,30]
[]
[null,null,null,null,null,null,null,null,null,null,null,null,"Ingresos",null,null,null,"Deducciones "]
[]
[null,"031","DEVENGADO",null,null,null,null,null,null,null,null,null,{"$f":"84.43*S972","v":2532.9}]
[null,"033","BONO ACUERDO GUBERNATIVO 66-2000",null,null,null,null,null,null,null,null,null,{"$f":"M938","v":250}]
[null,"201","I.G.S.S",null,null,null,null,null,null,null,null,null,null,null,null,null,{"$f":"ROUND(M976*4.83%,2)","v":122.34}]
[null,"118","MONTEPÍO",null,null,null,null,null,null,null,null,null,null,null,null,null,{"$f":"Q940","v":0}]
[null,"211","RETENCIONES JUDICIALES",null,null,null,null,null,null,null,null,null,null,null,null,null,{"$f":"Q941","v":0}]
[null,null,null,null,null,null,null,null,null,null,"Total  :",null,{"$f":"SUM(M976:O980)","v":2782.9},null,null,null,{"$f":"SUM(Q978:S980)","v":122.34}]
[null,null,null,null,null,null,null,null,null,null,"Liquido :",null,{"$f":"M981-Q981","v":2660.56}]
[]
[]
[]
[]
[]
[]
[]
[]
[{"$f":"A952","v":"Jonnathan René Pernillo Salazar"},null,null,null,null,null,null,null,null,null,null,null,{"$f":"C970","v":"Flavio Alí Alonso Gil"}]
[{"$f":"A953","v":"Encargado de Nómina"},null,null,null,null,null,null,null,null,null,null,null,{"$f":"P971","v":"Constructor de Puentes"}]
[{"$f":"A954","v":"AMSA "},null,null,null,null,null,null,null,null,null,null,null,"AMSA"]
[]
["GOBIERNO DE LA REPÚBLICA DE GUATEMALA"]
["AUTORIDAD PARA EL MANEJO SUSTENTABLE DE LA CUENCA Y DEL LAGO DE AMATITLÁN"]
[]
[]
[{"$f":"A928","v":"Boleta de Liquidación Mensual Renglón 031 \"Jornales\"   Correspondiente al mes de octubre 2015"}]
[{"$f":"A929","v":{"$error":"#REF!"}}]
[]
["Empleado:",null,{"$f":"'031'!F88","v":"Gerver Oswaldo Suruy Estupe"},null,null,null,null,null,null,null,"Certificación No.",null,null,{"$f":"N931+1","v":16},null,"Fecha:",null,{"$f":"R8","v":"2014-08-31"}]
["Contrato:",null,{"$f":"'031'!G88","v":"23-2017-031-AMSA"},null,null,"Puesto Funcional:",null,null,{"$f":"'031'!C88","v":"Operario de Maquinaria"},null,null,null,"Titulo Jornal:",null,null,{"$f":"'031'!D88","v":"Constructor de Puentes"}]
["Cuenta / Banco:",null,null,{"$f":"'031'!T88","v":3216003318},null,"Banco de Desarrollo Rural, S.A.",null,null,null,null,"Jornal Diario:",null,null,{"$f":"'031'!I88","v":80.86},null,"Días Trabajados:",null,null,{"$f":"'031'!J88","v":31}]
[]
[null,null,null,null,null,null,null,null,null,null,null,null,"Ingresos",null,null,null,"Deducciones "]
[]
[null,"031","DEVENGADO",null,null,null,null,null,null,null,null,null,{"$f":"'031'!K88","v":2506.66}]
[null,"033","BONO ACUERDO GUBERNATIVO 66-2000",null,null,null,null,null,null,null,null,null,{"$f":"'031'!L88","v":250}]
[null,"201","I.G.S.S",null,null,null,null,null,null,null,null,null,null,null,null,null,{"$f":"'031'!O88","v":130.12}]
[null,"118","MONTEPÍO",null,null,null,null,null,null,null,null,null,null,null,null,null,0]
[null,"211","RETENCIONES JUDICIALES",null,null,null,null,null,null,null,null,null,null,null,null,null,{"$f":"'031'!P88","v":0}]
[null,null,null,null,null,null,null,null,null,null,"Total  :",null,{"$f":"SUM(M1008:O1012)","v":2756.66},null,null,null,{"$f":"SUM(Q1010:S1012)","v":130.12}]
[null,null,null,null,null,null,null,null,null,null,"Liquido :",null,{"$f":"M1013-Q1013","v":2626.54}]
[]
[]
[]
[]
[]
[]
[]
[]
["María José Ceballos López",null,null,null,null,null,null,null,null,null,null,null,{"$f":"C1002","v":"Gerver Oswaldo Suruy Estupe"}]
["Encargada de Nómina",null,null,null,null,null,null,null,null,null,null,null,{"$f":"P1003","v":"Constructor de Puentes"}]
["AMSA ",null,null,null,null,null,null,null,null,null,null,null,"AMSA"]
[]
[]
[]
[]
[]
[]
[]
[]
["GOBIERNO DE LA REPÚBLICA DE GUATEMALA"]
["AUTORIDAD PARA EL MANEJO SUSTENTABLE DE LA CUENCA Y DEL LAGO DE AMATITLÁN"]
[]
[]
[{"$f":"A999","v":"Boleta de Liquidación Mensual Renglón 031 \"Jornales\"   Correspondiente al mes de octubre 2015"}]
[{"$f":"A1000","v":{"$error":"#REF!"}}]
[]
["Empleado:",null,{"$f":"C1002","v":"Gerver Oswaldo Suruy Estupe"},null,null,null,null,null,null,null,"Certificación No.",null,null,{"$f":"N1002","v":16},null,"Fecha:",null,{"$f":"R1002","v":"2014-08-31"}]
["Contrato:",null,{"$f":"C1003","v":"23-2017-031-AMSA"},null,null,"Puesto Funcional:",null,null,{"$f":"I1003","v":"Operario de Maquinaria"},null,null,null,"Titulo Jornal:",null,null,{"$f":"P1003","v":"Constructor de Puentes"}]
["Cuenta / Banco:",null,null,{"$f":"D1004","v":3216003318},null,"Banco de Desarrollo Rural, S.A.",null,null,null,null,"Jornal Diario:",null,null,{"$f":"N1004","v":80.86},null,"Días Trabajados:",null,null,{"$f":"S1004","v":31}]
[]
[null,null,null,null,null,null,null,null,null,null,null,null,"Ingresos",null,null,null,"Deducciones "]
[]
[null,"031","DEVENGADO",null,null,null,null,null,null,null,null,null,{"$f":"M1008","v":2506.66}]
[null,"033","BONO ACUERDO GUBERNATIVO 66-2000",null,null,null,null,null,null,null,null,null,{"$f":"M1009","v":250}]
[null,"201","I.G.S.S",null,null,null,null,null,null,null,null,null,null,null,null,null,{"$f":"Q1010","v":130.12}]
[null,"118","MONTEPÍO",null,null,null,null,null,null,null,null,null,null,null,null,null,{"$f":"Q1011","v":0}]
[null,"211","RETENCIONES JUDICIALES",null,null,null,null,null,null,null,null,null,null,null,null,null,{"$f":"Q1012","v":0}]
[null,null,null,null,null,null,null,null,null,null,"Total  :",null,{"$f":"SUM(M1047:O1051)","v":2756.66},null,null,null,{"$f":"SUM(Q1049:S1051)","v":130.12}]
[null,null,null,null,null,null,null,null,null,null,"Liquido :",null,{"$f":"M1052-Q1052","v":2626.54}]
[]
[]
[]
[]
[]
[]
[]
[]
[{"$f":"A1023","v":"María José Ceballos López"},null,null,null,null,null,null,null,null,null,null,null,{"$f":"C1041","v":"Gerver Oswaldo Suruy Estupe"}]
[{"$f":"A1024","v":"Encargada de Nómina"},null,null,null,null,null,null,null,null,null,null,null,{"$f":"P1042","v":"Constructor de Puentes"}]
[{"$f":"A1025","v":"AMSA "},null,null,null,null,null,null,null,null,null,null,null,"AMSA"]
[]
["GOBIERNO DE LA REPÚBLICA DE GUATEMALA"]
["AUTORIDAD PARA EL MANEJO SUSTENTABLE DE LA CUENCA Y DEL LAGO DE AMATITLÁN"]
[]
[]
[{"$f":"A999","v":"Boleta de Liquidación Mensual Renglón 031 \"Jornales\"   Correspondiente al mes de octubre 2015"}]
[{"$f":"A1000","v":{"$error":"#REF!"}}]
[]
["Empleado:",null,{"$f":"'031'!F89","v":"Andrés Payes Rodríguez"},null,null,null,null,null,null,null,"Certificación No.",null,null,{"$f":"N1002+1","v":17},null,"Fecha:",null,{"$f":"R8","v":"2014-08-31"}]
["Contrato:",null,{"$f":"'031'!G89","v":"24-2017-031-AMSA"},null,null,"Puesto Funcional:",null,null,{"$f":"'031'!C89","v":"Lanchero"},null,null,null,"Titulo Jornal:",null,null,{"$f":"'031'!D89","v":"Constructor de Puentes"}]
["Cuenta / Banco:",null,null,{"$f":"'031'!T89","v":3216001700},null,"Banco de Desarrollo Rural, S.A.",null,null,null,null,"Jornal Diario:",null,null,{"$f":"'031'!I89","v":80.86},null,"Días Trabajados:",null,null,{"$f":"'031'!J89","v":31}]
[]
[null,null,null,null,null,null,null,null,null,null,null,null,"Ingresos",null,null,null,"Deducciones "]
[]
[null,"031","DEVENGADO",null,null,null,null,null,null,null,null,null,{"$f":"'031'!K89","v":2506.66}]
[null,"033","BONO ACUERDO GUBERNATIVO 66-2000",null,null,null,null,null,null,null,null,null,{"$f":"'031'!L89","v":250}]
[null,"201","I.G.S.S",null,null,null,null,null,null,null,null,null,null,null,null,null,{"$f":"'031'!O89","v":130.12}]
[null,"118","MONTEPÍO",null,null,null,null,null,null,null,null,null,null,null,null,null,0]
[null,"211","RETENCIONES JUDICIALES",null,null,null,null,null,null,null,null,null,null,null,null,null,{"$f":"'031'!P89","v":800}]
[null,null,null,null,null,null,null,null,null,null,"Total  :",null,{"$f":"SUM(M1079:O1083)","v":2756.66},null,null,null,{"$f":"SUM(Q1081:S1083)","v":930.12}]
[null,null,null,null,null,null,null,null,null,null,"Liquido :",null,{"$f":"M1084-Q1084","v":1826.54}]
[]
[]
[]
[]
[]
[]
[]
[]
["María José Ceballos López",null,null,null,null,null,null,null,null,null,null,null,{"$f":"C1073","v":"Andrés Payes Rodríguez"}]
["Encargada de Nómina",null,null,null,null,null,null,null,null,null,null,null,{"$f":"P1074","v":"Constructor de Puentes"}]
["AMSA ",null,null,null,null,null,null,null,null,null,null,null,"AMSA"]
[]
[]
[]
[]
[]
[]
[]
[]
["GOBIERNO DE LA REPÚBLICA DE GUATEMALA"]
["AUTORIDAD PARA EL MANEJO SUSTENTABLE DE LA CUENCA Y DEL LAGO DE AMATITLÁN"]
[]
[]
[{"$f":"A1070","v":"Boleta de Liquidación Mensual Renglón 031 \"Jornales\"   Correspondiente al mes de octubre 2015"}]
[{"$f":"A1071","v":{"$error":"#REF!"}}]
[]
["Empleado:",null,{"$f":"C1073","v":"Andrés Payes Rodríguez"},null,null,null,null,null,null,null,"Certificación No.",null,null,{"$f":"N1073","v":17},null,"Fecha:",null,{"$f":"R1073","v":"2014-08-31"}]
["Contrato:",null,{"$f":"C1074","v":"24-2017-031-AMSA"},null,null,"Puesto Funcional:",null,null,{"$f":"I1074","v":"Lanchero"},null,null,null,"Titulo Jornal:",null,null,{"$f":"P1074","v":"Constructor de Puentes"}]
["Cuenta / Banco:",null,null,{"$f":"D1075","v":3216001700},null,"Banco de Desarrollo Rural, S.A.",null,null,null,null,"Jornal Diario:",null,null,{"$f":"N1075","v":80.86},null,"Días Trabajados:",null,null,{"$f":"S1075","v":31}]
[]
[null,null,null,null,null,null,null,null,null,null,null,null,"Ingresos",null,null,null,"Deducciones "]
[]
[null,"031","DEVENGADO",null,null,null,null,null,null,null,null,null,{"$f":"M1079","v":2506.66}]
[null,"033","BONO ACUERDO GUBERNATIVO 66-2000",null,null,null,null,null,null,null,null,null,{"$f":"M1080","v":250}]
[null,"201","I.G.S.S",null,null,null,null,null,null,null,null,null,null,null,null,null,{"$f":"Q1081","v":130.12}]
[null,"118","MONTEPÍO",null,null,null,null,null,null,null,null,null,null,null,null,null,{"$f":"Q1082","v":0}]
[null,"211","RETENCIONES JUDICIALES",null,null,null,null,null,null,null,null,null,null,null,null,null,{"$f":"Q1083","v":800}]
[null,null,null,null,null,null,null,null,null,null,"Total  :",null,{"$f":"SUM(M1118:O1122)","v":2756.66},null,null,null,{"$f":"SUM(Q1120:S1122)","v":930.12}]
[null,null,null,null,null,null,null,null,null,null,"Liquido :",null,{"$f":"M1123-Q1123","v":1826.54}]
[]
[]
[]
[]
[]
[]
[]
[]
[{"$f":"A1094","v":"María José Ceballos López"},null,null,null,null,null,null,null,null,null,null,null,{"$f":"C1112","v":"Andrés Payes Rodríguez"}]
[{"$f":"A1095","v":"Encargada de Nómina"},null,null,null,null,null,null,null,null,null,null,null,{"$f":"P1113","v":"Constructor de Puentes"}]
[{"$f":"A1096","v":"AMSA "},null,null,null,null,null,null,null,null,null,null,null,"AMSA"]
[]
["GOBIERNO DE LA REPÚBLICA DE GUATEMALA"]
["AUTORIDAD PARA EL MANEJO SUSTENTABLE DE LA CUENCA Y DEL LAGO DE AMATITLÁN"]
[]
[]
[{"$f":"A1070","v":"Boleta de Liquidación Mensual Renglón 031 \"Jornales\"   Correspondiente al mes de octubre 2015"}]
[{"$f":"A1071","v":{"$error":"#REF!"}}]
[]
["Empleado:",null,{"$f":"'031'!F90","v":"Ignacio Seijas Sequen"},null,null,null,null,null,null,null,"Certificación No.",null,null,{"$f":"N1073+1","v":18},null,"Fecha:",null,{"$f":"R79","v":"2014-08-31"}]
["Contrato:",null,{"$f":"'031'!G90","v":"25-2017-031-AMSA"},null,null,"Puesto Funcional:",null,null,{"$f":"'031'!C90","v":"Peón de Campo"},null,null,null,"Titulo Jornal:",null,null,{"$f":"'031'!D90","v":"Constructor de Puentes"}]
["Cuenta / Banco:",null,null,{"$f":"'031'!T90","v":3234009071},null,"Banco de Desarrollo Rural, S.A.",null,null,null,null,"Jornal Diario:",null,null,{"$f":"'031'!I90","v":80.86},null,"Días Trabajados:",null,null,{"$f":"'031'!J90","v":31}]
[]
[null,null,null,null,null,null,null,null,null,null,null,null,"Ingresos",null,null,null,"Deducciones "]
[]
[null,"031","DEVENGADO",null,null,null,null,null,null,null,null,null,{"$f":"'031'!K90","v":2506.66}]
[null,"033","BONO ACUERDO GUBERNATIVO 66-2000",null,null,null,null,null,null,null,null,null,{"$f":"'031'!L90","v":250}]
[null,"201","I.G.S.S",null,null,null,null,null,null,null,null,null,null,null,null,null,{"$f":"'031'!O90","v":130.12}]
[null,"118","MONTEPÍO",null,null,null,null,null,null,null,null,null,null,null,null,null,0]
[null,"211","RETENCIONES JUDICIALES",null,null,null,null,null,null,null,null,null,null,null,null,null,{"$f":"'031'!P90","v":0}]
[null,null,null,null,null,null,null,null,null,null,"Total  :",null,{"$f":"SUM(M1150:O1154)","v":2756.66},null,null,null,{"$f":"SUM(Q1152:S1154)","v":130.12}]
[null,null,null,null,null,null,null,null,null,null,"Liquido :",null,{"$f":"M1155-Q1155","v":2626.54}]
[]
[]
[]
[]
[]
[]
[]
[]
["María José Ceballos López",null,null,null,null,null,null,null,null,null,null,null,{"$f":"C1144","v":"Ignacio Seijas Sequen"}]
["Encargada de Nómina",null,null,null,null,null,null,null,null,null,null,null,{"$f":"P1145","v":"Constructor de Puentes"}]
["AMSA ",null,null,null,null,null,null,null,null,null,null,null,"AMSA"]
[]
[]
[]
[]
[]
[]
[]
[]
["GOBIERNO DE LA REPÚBLICA DE GUATEMALA"]
["AUTORIDAD PARA EL MANEJO SUSTENTABLE DE LA CUENCA Y DEL LAGO DE AMATITLÁN"]
[]
[]
[{"$f":"A1141","v":"Boleta de Liquidación Mensual Renglón 031 \"Jornales\"   Correspondiente al mes de octubre 2015"}]
[{"$f":"A1142","v":{"$error":"#REF!"}}]
[]
["Empleado:",null,{"$f":"C1144","v":"Ignacio Seijas Sequen"},null,null,null,null,null,null,null,"Certificación No.",null,null,{"$f":"N1144","v":18},null,"Fecha:",null,{"$f":"R1144","v":"2014-08-31"}]
["Contrato:",null,{"$f":"C1145","v":"25-2017-031-AMSA"},null,null,"Puesto Funcional:",null,null,{"$f":"I1145","v":"Peón de Campo"},null,null,null,"Titulo Jornal:",null,null,{"$f":"P1145","v":"Constructor de Puentes"}]
["Cuenta / Banco:",null,null,{"$f":"D1146","v":3234009071},null,"Banco de Desarrollo Rural, S.A.",null,null,null,null,"Jornal Diario:",null,null,{"$f":"N1146","v":80.86},null,"Días Trabajados:",null,null,{"$f":"S1146","v":31}]
[]
[null,null,null,null,null,null,null,null,null,null,null,null,"Ingresos",null,null,null,"Deducciones "]
[]
[null,"031","DEVENGADO",null,null,null,null,null,null,null,null,null,{"$f":"M1150","v":2506.66}]
[null,"033","BONO ACUERDO GUBERNATIVO 66-2000",null,null,null,null,null,null,null,null,null,{"$f":"M1151","v":250}]
[null,"201","I.G.S.S",null,null,null,null,null,null,null,null,null,null,null,null,null,{"$f":"Q1152","v":130.12}]
[null,"118","MONTEPÍO",null,null,null,null,null,null,null,null,null,null,null,null,null,{"$f":"Q1153","v":0}]
[null,"211","RETENCIONES JUDICIALES",null,null,null,null,null,null,null,null,null,null,null,null,null,{"$f":"Q1154","v":0}]
[null,null,null,null,null,null,null,null,null,null,"Total  :",null,{"$f":"SUM(M1189:O1193)","v":2756.66},null,null,null,{"$f":"SUM(Q1191:S1193)","v":130.12}]
[null,null,null,null,null,null,null,null,null,null,"Liquido :",null,{"$f":"M1194-Q1194","v":2626.54}]
[]
[]
[]
[]
[]
[]
[]
[]
[{"$f":"A1165","v":"María José Ceballos López"},null,null,null,null,null,null,null,null,null,null,null,{"$f":"C1183","v":"Ignacio Seijas Sequen"}]
[{"$f":"A1166","v":"Encargada de Nómina"},null,null,null,null,null,null,null,null,null,null,null,{"$f":"P1184","v":"Constructor de Puentes"}]
[{"$f":"A1167","v":"AMSA "},null,null,null,null,null,null,null,null,null,null,null,"AMSA"]
[]
["GOBIERNO DE LA REPÚBLICA DE GUATEMALA"]
["AUTORIDAD PARA EL MANEJO SUSTENTABLE DE LA CUENCA Y DEL LAGO DE AMATITLÁN"]
[]
[]
[{"$f":"A1141","v":"Boleta de Liquidación Mensual Renglón 031 \"Jornales\"   Correspondiente al mes de octubre 2015"}]
[{"$f":"A1142","v":{"$error":"#REF!"}}]
[]
["Empleado:",null,{"$f":"'031'!#REF!","v":{"$error":"#REF!"}},null,null,null,null,null,null,null,"Certificación No.",null,null,{"$f":"N1144+1","v":19},null,"Fecha:",null,{"$f":"R150","v":"2014-08-31"}]
["Contrato:",null,{"$f":"'031'!#REF!","v":{"$error":"#REF!"}},null,null,"Puesto Funcional:",null,null,{"$f":"'031'!#REF!","v":{"$error":"#REF!"}},null,null,null,"Titulo Jornal:",null,null,{"$f":"'031'!#REF!","v":{"$error":"#REF!"}}]
["Cuenta / Banco:",null,null,{"$f":"'031'!#REF!","v":{"$error":"#REF!"}},null,"Banco de Desarrollo Rural, S.A.",null,null,null,null,"Jornal Diario:",null,null,{"$f":"'031'!#REF!","v":{"$error":"#REF!"}},null,"Días Trabajados:",null,null,{"$f":"'031'!#REF!","v":{"$error":"#REF!"}}]
[]
[null,null,null,null,null,null,null,null,null,null,null,null,"Ingresos",null,null,null,"Deducciones "]
[]
[null,"031","DEVENGADO",null,null,null,null,null,null,null,null,null,{"$f":"'031'!#REF!","v":{"$error":"#REF!"}}]
[null,"033","BONO ACUERDO GUBERNATIVO 66-2000",null,null,null,null,null,null,null,null,null,{"$f":"'031'!#REF!","v":{"$error":"#REF!"}}]
[null,"201","I.G.S.S",null,null,null,null,null,null,null,null,null,null,null,null,null,{"$f":"'031'!#REF!","v":{"$error":"#REF!"}}]
[null,"118","MONTEPÍO",null,null,null,null,null,null,null,null,null,null,null,null,null,0]
[null,"211","RETENCIONES JUDICIALES",null,null,null,null,null,null,null,null,null,null,null,null,null,{"$f":"'031'!#REF!","v":{"$error":"#REF!"}}]
[null,null,null,null,null,null,null,null,null,null,"Total  :",null,{"$f":"SUM(M1221:O1225)","v":{"$error":"#REF!"}},null,null,null,{"$f":"SUM(Q1223:S1225)","v":{"$error":"#REF!"}}]
[null,null,null,null,null,null,null,null,null,null,"Liquido :",null,{"$f":"M1226-Q1226","v":{"$error":"#REF!"}}]
[]
[]
[]
[]
[]
[]
[]
[]
["María José Ceballos López",null,null,null,null,null,null,null,null,null,null,null,{"$f":"C1215","v":{"$error":"#REF!"}}]
["Encargada de Nómina",null,null,null,null,null,null,null,null,null,null,null,{"$f":"P1216","v":{"$error":"#REF!"}}]
["AMSA ",null,null,null,null,null,null,null,null,null,null,null,"AMSA"]
[]
[]
[]
[]
[]
[]
[]
[]
["GOBIERNO DE LA REPÚBLICA DE GUATEMALA"]
["AUTORIDAD PARA EL MANEJO SUSTENTABLE DE LA CUENCA Y DEL LAGO DE AMATITLÁN"]
[]
[]
[{"$f":"A1212","v":"Boleta de Liquidación Mensual Renglón 031 \"Jornales\"   Correspondiente al mes de octubre 2015"}]
[{"$f":"A1213","v":{"$error":"#REF!"}}]
[]
["Empleado:",null,{"$f":"C1215","v":{"$error":"#REF!"}},null,null,null,null,null,null,null,"Certificación No.",null,null,{"$f":"N1215","v":19},null,"Fecha:",null,{"$f":"R1215","v":"2014-08-31"}]
["Contrato:",null,{"$f":"C1216","v":{"$error":"#REF!"}},null,null,"Puesto Funcional:",null,null,{"$f":"I1216","v":{"$error":"#REF!"}},null,null,null,"Titulo Jornal:",null,null,{"$f":"P1216","v":{"$error":"#REF!"}}]
["Cuenta / Banco:",null,null,{"$f":"D1217","v":{"$error":"#REF!"}},null,"Banco de Desarrollo Rural, S.A.",null,null,null,null,"Jornal Diario:",null,null,{"$f":"N1217","v":{"$error":"#REF!"}},null,"Días Trabajados:",null,null,{"$f":"S1217","v":{"$error":"#REF!"}}]
[]
[null,null,null,null,null,null,null,null,null,null,null,null,"Ingresos",null,null,null,"Deducciones "]
[]
[null,"031","DEVENGADO",null,null,null,null,null,null,null,null,null,{"$f":"M1221","v":{"$error":"#REF!"}}]
[null,"033","BONO ACUERDO GUBERNATIVO 66-2000",null,null,null,null,null,null,null,null,null,{"$f":"M1222","v":{"$error":"#REF!"}}]
[null,"201","I.G.S.S",null,null,null,null,null,null,null,null,null,null,null,null,null,{"$f":"Q1223","v":{"$error":"#REF!"}}]
[null,"118","MONTEPÍO",null,null,null,null,null,null,null,null,null,null,null,null,null,{"$f":"Q1224","v":0}]
[null,"211","RETENCIONES JUDICIALES",null,null,null,null,null,null,null,null,null,null,null,null,null,{"$f":"Q1225","v":{"$error":"#REF!"}}]
[null,null,null,null,null,null,null,null,null,null,"Total  :",null,{"$f":"SUM(M1260:O1264)","v":{"$error":"#REF!"}},null,null,null,{"$f":"SUM(Q1262:S1264)","v":{"$error":"#REF!"}}]
[null,null,null,null,null,null,null,null,null,null,"Liquido :",null,{"$f":"M1265-Q1265","v":{"$error":"#REF!"}}]
[]
[]
[]
[]
[]
[]
[]
[]
[{"$f":"A1236","v":"María José Ceballos López"},null,null,null,null,null,null,null,null,null,null,null,{"$f":"C1254","v":{"$error":"#REF!"}}]
[{"$f":"A1237","v":"Encargada de Nómina"},null,null,null,null,null,null,null,null,null,null,null,{"$f":"P1255","v":{"$error":"#REF!"}}]
[{"$f":"A1238","v":"AMSA "},null,null,null,null,null,null,null,null,null,null,null,"AMSA"]
[]
["GOBIERNO DE LA REPÚBLICA DE GUATEMALA"]
["AUTORIDAD PARA EL MANEJO SUSTENTABLE DE LA CUENCA Y DEL LAGO DE AMATITLÁN"]
[]
[]
[{"$f":"A1212","v":"Boleta de Liquidación Mensual Renglón 031 \"Jornales\"   Correspondiente al mes de octubre 2015"}]
[{"$f":"A1213","v":{"$error":"#REF!"}}]
[]
["Empleado:",null,{"$f":"'031'!F91","v":"Mario Arturo Sigüenza"},null,null,null,null,null,null,null,"Certificación No.",null,null,{"$f":"N1215+1","v":20},null,"Fecha:",null,{"$f":"R221","v":"2014-09-30"}]
["Contrato:",null,{"$f":"'031'!G91","v":"26-2017-031-AMSA"},null,null,"Puesto Funcional:",null,null,{"$f":"'031'!C91","v":"Peón de Campo"},null,null,null,"Titulo Jornal:",null,null,{"$f":"'031'!D91","v":"Constructor de Puentes"}]
["Cuenta / Banco:",null,null,{"$f":"'031'!T91","v":3216001801},null,"Banco de Desarrollo Rural, S.A.",null,null,null,null,"Jornal Diario:",null,null,{"$f":"'031'!I91","v":80.86},null,"Días Trabajados:",null,null,{"$f":"'031'!J91","v":31}]
[]
[null,null,null,null,null,null,null,null,null,null,null,null,"Ingresos",null,null,null,"Deducciones "]
[]
[null,"031","DEVENGADO",null,null,null,null,null,null,null,null,null,{"$f":"'031'!K91","v":2506.66}]
[null,"033","BONO ACUERDO GUBERNATIVO 66-2000",null,null,null,null,null,null,null,null,null,{"$f":"'031'!L91","v":250}]
[null,"201","I.G.S.S",null,null,null,null,null,null,null,null,null,null,null,null,null,{"$f":"'031'!O91","v":130.12}]
[null,"118","MONTEPÍO",null,null,null,null,null,null,null,null,null,null,null,null,null,0]
[null,"211","RETENCIONES JUDICIALES",null,null,null,null,null,null,null,null,null,null,null,null,null,{"$f":"'031'!P91","v":0}]
[null,null,null,null,null,null,null,null,null,null,"Total  :",null,{"$f":"SUM(M1292:O1296)","v":2756.66},null,null,null,{"$f":"SUM(Q1294:S1296)","v":130.12}]
[null,null,null,null,null,null,null,null,null,null,"Liquido :",null,{"$f":"M1297-Q1297","v":2626.54}]
[]
[]
[]
[]
[]
[]
[]
[]
["María José Ceballos López",null,null,null,null,null,null,null,null,null,null,null,{"$f":"C1286","v":"Mario Arturo Sigüenza"}]
["Encargada de Nómina",null,null,null,null,null,null,null,null,null,null,null,{"$f":"P1287","v":"Constructor de Puentes"}]
["AMSA ",null,null,null,null,null,null,null,null,null,null,null,"AMSA"]
[]
[]
[]
[]
[]
[]
[]
[]
["GOBIERNO DE LA REPÚBLICA DE GUATEMALA"]
["AUTORIDAD PARA EL MANEJO SUSTENTABLE DE LA CUENCA Y DEL LAGO DE AMATITLÁN"]
[]
[]
[{"$f":"A1283","v":"Boleta de Liquidación Mensual Renglón 031 \"Jornales\"   Correspondiente al mes de octubre 2015"}]
[{"$f":"A1284","v":{"$error":"#REF!"}}]
[]
["Empleado:",null,{"$f":"C1286","v":"Mario Arturo Sigüenza"},null,null,null,null,null,null,null,"Certificación No.",null,null,{"$f":"N1286","v":20},null,"Fecha:",null,{"$f":"R1286","v":"2014-09-30"}]
["Contrato:",null,{"$f":"C1287","v":"26-2017-031-AMSA"},null,null,"Puesto Funcional:",null,null,{"$f":"I1287","v":"Peón de Campo"},null,null,null,"Titulo Jornal:",null,null,{"$f":"P1287","v":"Constructor de Puentes"}]
["Cuenta / Banco:",null,null,{"$f":"D1288","v":3216001801},null,"Banco de Desarrollo Rural, S.A.",null,null,null,null,"Jornal Diario:",null,null,{"$f":"N1288","v":80.86},null,"Días Trabajados:",null,null,{"$f":"S1288","v":31}]
[]
[null,null,null,null,null,null,null,null,null,null,null,null,"Ingresos",null,null,null,"Deducciones "]
[]
[null,"031","DEVENGADO",null,null,null,null,null,null,null,null,null,{"$f":"M1292","v":2506.66}]
[null,"033","BONO ACUERDO GUBERNATIVO 66-2000",null,null,null,null,null,null,null,null,null,{"$f":"M1293","v":250}]
[null,"201","I.G.S.S",null,null,null,null,null,null,null,null,null,null,null,null,null,{"$f":"Q1294","v":130.12}]
[null,"118","MONTEPÍO",null,null,null,null,null,null,null,null,null,null,null,null,null,{"$f":"Q1295","v":0}]
[null,"211","RETENCIONES JUDICIALES",null,null,null,null,null,null,null,null,null,null,null,null,null,{"$f":"Q1296","v":0}]
[null,null,null,null,null,null,null,null,null,null,"Total  :",null,{"$f":"SUM(M1331:O1335)","v":2756.66},null,null,null,{"$f":"SUM(Q1333:S1335)","v":130.12}]
[null,null,null,null,null,null,null,null,null,null,"Liquido :",null,{"$f":"M1336-Q1336","v":2626.54}]
[]
[]
[]
[]
[]
[]
[]
[]
[{"$f":"A1307","v":"María José Ceballos López"},null,null,null,null,null,null,null,null,null,null,null,{"$f":"C1325","v":"Mario Arturo Sigüenza"}]
[{"$f":"A1308","v":"Encargada de Nómina"},null,null,null,null,null,null,null,null,null,null,null,{"$f":"P1326","v":"Constructor de Puentes"}]
[{"$f":"A1309","v":"AMSA "},null,null,null,null,null,null,null,null,null,null,null,"AMSA"]
[]
["GOBIERNO DE LA REPÚBLICA DE GUATEMALA"]
["AUTORIDAD PARA EL MANEJO SUSTENTABLE DE LA CUENCA Y DEL LAGO DE AMATITLÁN"]
[]
[]
[{"$f":"A1283","v":"Boleta de Liquidación Mensual Renglón 031 \"Jornales\"   Correspondiente al mes de octubre 2015"}]
[{"$f":"A1284","v":{"$error":"#REF!"}}]
[]
["Empleado:",null,{"$f":"'031'!F92","v":"Carlos Fernando Tello Valdez"},null,null,null,null,null,null,null,"Certificación No.",null,null,{"$f":"N1286+1","v":21},null,"Fecha:",null,{"$f":"R292","v":"2014-08-31"}]
["Contrato:",null,{"$f":"'031'!G92","v":"27-2017-031-AMSA"},null,null,"Puesto Funcional:",null,null,{"$f":"'031'!C92","v":"Peón de Campo"},null,null,null,"Titulo Jornal:",null,null,{"$f":"'031'!D92","v":"Constructor de Puentes"}]
["Cuenta / Banco:",null,null,{"$f":"'031'!T92","v":4216002514},null,"Banco de Desarrollo Rural, S.A.",null,null,null,null,"Jornal Diario:",null,null,{"$f":"'031'!I92","v":80.86},null,"Días Trabajados:",null,null,{"$f":"'031'!J92","v":31}]
[]
[null,null,null,null,null,null,null,null,null,null,null,null,"Ingresos",null,null,null,"Deducciones "]
[]
[null,"031","DEVENGADO",null,null,null,null,null,null,null,null,null,{"$f":"'031'!K92","v":2506.66}]
[null,"033","BONO ACUERDO GUBERNATIVO 66-2000",null,null,null,null,null,null,null,null,null,{"$f":"'031'!L92","v":250}]
[null,"201","I.G.S.S",null,null,null,null,null,null,null,null,null,null,null,null,null,{"$f":"'031'!O92","v":130.12}]
[null,"118","MONTEPÍO",null,null,null,null,null,null,null,null,null,null,null,null,null,0]
[null,"211","RETENCIONES JUDICIALES",null,null,null,null,null,null,null,null,null,null,null,null,null,{"$f":"'031'!P92","v":0}]
[null,null,null,null,null,null,null,null,null,null,"Total  :",null,{"$f":"SUM(M1363:O1367)","v":2756.66},null,null,null,{"$f":"SUM(Q1365:S1367)","v":130.12}]
[null,null,null,null,null,null,null,null,null,null,"Liquido :",null,{"$f":"M1368-Q1368","v":2626.54}]
[]
[]
[]
[]
[]
[]
[]
[]
["María José Ceballos López",null,null,null,null,null,null,null,null,null,null,null,{"$f":"C1357","v":"Carlos Fernando Tello Valdez"}]
["Encargada de Nómina",null,null,null,null,null,null,null,null,null,null,null,{"$f":"P1358","v":"Constructor de Puentes"}]
["AMSA ",null,null,null,null,null,null,null,null,null,null,null,"AMSA"]
[]
[]
[]
[]
[]
[]
[]
[]
["GOBIERNO DE LA REPÚBLICA DE GUATEMALA"]
["AUTORIDAD PARA EL MANEJO SUSTENTABLE DE LA CUENCA Y DEL LAGO DE AMATITLÁN"]
[]
[]
[{"$f":"A1354","v":"Boleta de Liquidación Mensual Renglón 031 \"Jornales\"   Correspondiente al mes de octubre 2015"}]
[{"$f":"A1355","v":{"$error":"#REF!"}}]
[]
["Empleado:",null,{"$f":"C1357","v":"Carlos Fernando Tello Valdez"},null,null,null,null,null,null,null,"Certificación No.",null,null,{"$f":"N1357","v":21},null,"Fecha:",null,{"$f":"R1357","v":"2014-08-31"}]
["Contrato:",null,{"$f":"C1358","v":"27-2017-031-AMSA"},null,null,"Puesto Funcional:",null,null,{"$f":"I1358","v":"Peón de Campo"},null,null,null,"Titulo Jornal:",null,null,{"$f":"P1358","v":"Constructor de Puentes"}]
["Cuenta / Banco:",null,null,{"$f":"D1359","v":4216002514},null,"Banco de Desarrollo Rural, S.A.",null,null,null,null,"Jornal Diario:",null,null,{"$f":"N1359","v":80.86},null,"Días Trabajados:",null,null,{"$f":"S1359","v":31}]
[]
[null,null,null,null,null,null,null,null,null,null,null,null,"Ingresos",null,null,null,"Deducciones "]
[]
[null,"031","DEVENGADO",null,null,null,null,null,null,null,null,null,{"$f":"M1363","v":2506.66}]
[null,"033","BONO ACUERDO GUBERNATIVO 66-2000",null,null,null,null,null,null,null,null,null,{"$f":"M1364","v":250}]
[null,"201","I.G.S.S",null,null,null,null,null,null,null,null,null,null,null,null,null,{"$f":"Q1365","v":130.12}]
[null,"118","MONTEPÍO",null,null,null,null,null,null,null,null,null,null,null,null,null,{"$f":"Q1366","v":0}]
[null,"211","RETENCIONES JUDICIALES",null,null,null,null,null,null,null,null,null,null,null,null,null,{"$f":"Q1367","v":0}]
[null,null,null,null,null,null,null,null,null,null,"Total  :",null,{"$f":"SUM(M1402:O1406)","v":2756.66},null,null,null,{"$f":"SUM(Q1404:S1406)","v":130.12}]
[null,null,null,null,null,null,null,null,null,null,"Liquido :",null,{"$f":"M1407-Q1407","v":2626.54}]
[]
[]
[]
[]
[]
[]
[]
[]
[{"$f":"A1378","v":"María José Ceballos López"},null,null,null,null,null,null,null,null,null,null,null,{"$f":"C1396","v":"Carlos Fernando Tello Valdez"}]
[{"$f":"A1379","v":"Encargada de Nómina"},null,null,null,null,null,null,null,null,null,null,null,{"$f":"P1397","v":"Constructor de Puentes"}]
[{"$f":"A1380","v":"AMSA "},null,null,null,null,null,null,null,null,null,null,null,"AMSA"]
[]
["GOBIERNO DE LA REPÚBLICA DE GUATEMALA"]
["AUTORIDAD PARA EL MANEJO SUSTENTABLE DE LA CUENCA Y DEL LAGO DE AMATITLÁN"]
[]
[]
[{"$f":"A1354","v":"Boleta de Liquidación Mensual Renglón 031 \"Jornales\"   Correspondiente al mes de octubre 2015"}]
[{"$f":"A1355","v":{"$error":"#REF!"}}]
[]
["Empleado:",null,{"$f":"'031'!F97","v":"Cosmen Vitalino Obando Montenegro"},null,null,null,null,null,null,null,"Certificación No.",null,null,{"$f":"N1357+1","v":22},null,"Fecha:",null,{"$f":"R363","v":"2015-08-31"}]
["Contrato:",null,{"$f":"'031'!G97","v":"32-2017-031-AMSA"},null,null,"Puesto Funcional:",null,null,"Peón de Campo",null,null,null,"Titulo Jornal:",null,null,{"$f":"'031'!D97","v":"Constructor de Puentes"}]
["Cuenta / Banco:",null,null,{"$f":"'031'!T97","v":3216004490},null,"Banco de Desarrollo Rural, S.A.",null,null,null,null,"Jornal Diario:",null,null,{"$f":"'031'!I97","v":80.86},null,"Días Trabajados:",null,null,{"$f":"'031'!J97","v":31}]
[]
[null,null,null,null,null,null,null,null,null,null,null,null,"Ingresos",null,null,null,"Deducciones "]
[]
[null,"031","DEVENGADO",null,null,null,null,null,null,null,null,null,{"$f":"'031'!K97","v":2506.66}]
[null,"033","BONO ACUERDO GUBERNATIVO 66-2000",null,null,null,null,null,null,null,null,null,{"$f":"'031'!L97","v":250}]
[null,"201","I.G.S.S",null,null,null,null,null,null,null,null,null,null,null,null,null,{"$f":"'031'!O97","v":130.12}]
[null,"118","MONTEPÍO",null,null,null,null,null,null,null,null,null,null,null,null,null,0]
[null,"211","RETENCIONES JUDICIALES",null,null,null,null,null,null,null,null,null,null,null,null,null,{"$f":"'031'!P97","v":0}]
[null,null,null,null,null,null,null,null,null,null,"Total  :",null,{"$f":"SUM(M1434:O1438)","v":2756.66},null,null,null,{"$f":"SUM(Q1436:S1438)","v":130.12}]
[null,null,null,null,null,null,null,null,null,null,"Liquido :",null,{"$f":"M1439-Q1439","v":2626.54}]
[]
[]
[]
[]
[]
[]
[]
[]
["María José Ceballos López",null,null,null,null,null,null,null,null,null,null,null,{"$f":"C1428","v":"Cosmen Vitalino Obando Montenegro"}]
["Encargada de Nómina",null,null,null,null,null,null,null,null,null,null,null,{"$f":"P1429","v":"Constructor de Puentes"}]
["AMSA ",null,null,null,null,null,null,null,null,null,null,null,"AMSA"]
[]
[]
[]
[]
[]
[]
[]
[]
["GOBIERNO DE LA REPÚBLICA DE GUATEMALA"]
["AUTORIDAD PARA EL MANEJO SUSTENTABLE DE LA CUENCA Y DEL LAGO DE AMATITLÁN"]
[]
[]
[{"$f":"A1425","v":"Boleta de Liquidación Mensual Renglón 031 \"Jornales\"   Correspondiente al mes de octubre 2015"}]
[{"$f":"A1426","v":{"$error":"#REF!"}}]
[]
["Empleado:",null,{"$f":"C1428","v":"Cosmen Vitalino Obando Montenegro"},null,null,null,null,null,null,null,"Certificación No.",null,null,{"$f":"N1428","v":22},null,"Fecha:",null,{"$f":"R1428","v":"2015-08-31"}]
["Contrato:",null,{"$f":"C1429","v":"32-2017-031-AMSA"},null,null,"Puesto Funcional:",null,null,{"$f":"I1429","v":"Peón de Campo"},null,null,null,"Titulo Jornal:",null,null,{"$f":"P1429","v":"Constructor de Puentes"}]
["Cuenta / Banco:",null,null,{"$f":"D1430","v":3216004490},null,"Banco de Desarrollo Rural, S.A.",null,null,null,null,"Jornal Diario:",null,null,{"$f":"N1430","v":80.86},null,"Días Trabajados:",null,null,{"$f":"S1430","v":31}]
[]
[null,null,null,null,null,null,null,null,null,null,null,null,"Ingresos",null,null,null,"Deducciones "]
[]
[null,"031","DEVENGADO",null,null,null,null,null,null,null,null,null,{"$f":"M1434","v":2506.66}]
[null,"033","BONO ACUERDO GUBERNATIVO 66-2000",null,null,null,null,null,null,null,null,null,{"$f":"M1435","v":250}]
[null,"201","I.G.S.S",null,null,null,null,null,null,null,null,null,null,null,null,null,{"$f":"Q1436","v":130.12}]
[null,"118","MONTEPÍO",null,null,null,null,null,null,null,null,null,null,null,null,null,{"$f":"Q1437","v":0}]
[null,"211","RETENCIONES JUDICIALES",null,null,null,null,null,null,null,null,null,null,null,null,null,{"$f":"Q1438","v":0}]
[null,null,null,null,null,null,null,null,null,null,"Total  :",null,{"$f":"SUM(M1473:O1477)","v":2756.66},null,null,null,{"$f":"SUM(Q1475:S1477)","v":130.12}]
[null,null,null,null,null,null,null,null,null,null,"Liquido :",null,{"$f":"M1478-Q1478","v":2626.54}]
[]
[]
[]
[]
[]
[]
[]
[]
[{"$f":"A1449","v":"María José Ceballos López"},null,null,null,null,null,null,null,null,null,null,null,{"$f":"C1467","v":"Cosmen Vitalino Obando Montenegro"}]
[{"$f":"A1450","v":"Encargada de Nómina"},null,null,null,null,null,null,null,null,null,null,null,{"$f":"P1468","v":"Constructor de Puentes"}]
[{"$f":"A1451","v":"AMSA "},null,null,null,null,null,null,null,null,null,null,null,"AMSA"]
[]
["GOBIERNO DE LA REPÚBLICA DE GUATEMALA"]
["AUTORIDAD PARA EL MANEJO SUSTENTABLE DE LA CUENCA Y DEL LAGO DE AMATITLÁN"]
[]
[]
[{"$f":"A1425","v":"Boleta de Liquidación Mensual Renglón 031 \"Jornales\"   Correspondiente al mes de octubre 2015"}]
[{"$f":"A1426","v":{"$error":"#REF!"}}]
[]
["Empleado:",null,{"$f":"'031'!F93","v":"Jesús Antonio Montúfar Mazariegos"},null,null,null,null,null,null,null,"Certificación No.",null,null,{"$f":"N1428+1","v":23},null,"Fecha:",null,{"$f":"R434","v":"2014-08-31"}]
["Contrato:",null,{"$f":"'031'!G93","v":"28-2017-031-AMSA"},null,null,"Puesto Funcional:",null,null,{"$f":"'031'!C93","v":"Encargado de Oxigenadores"},null,null,null,"Titulo Jornal:",null,null,{"$f":"'031'!D93","v":"Constructor de Puentes"}]
["Cuenta / Banco:",null,null,{"$f":"'031'!T93","v":3164031580},null,"Banco de Desarrollo Rural, S.A.",null,null,null,null,"Jornal Diario:",null,null,{"$f":"'031'!I93","v":80.86},null,"Días Trabajados:",null,null,{"$f":"'031'!J93","v":31}]
[]
[null,null,null,null,null,null,null,null,null,null,null,null,"Ingresos",null,null,null,"Deducciones "]
[]
[null,"031","DEVENGADO",null,null,null,null,null,null,null,null,null,{"$f":"'031'!K93","v":2506.66}]
[null,"033","BONO ACUERDO GUBERNATIVO 66-2000",null,null,null,null,null,null,null,null,null,{"$f":"'031'!L93","v":250}]
[null,"201","I.G.S.S",null,null,null,null,null,null,null,null,null,null,null,null,null,{"$f":"'031'!O93","v":130.12}]
[null,"118","MONTEPÍO",null,null,null,null,null,null,null,null,null,null,null,null,null,0]
[null,"211","RETENCIONES JUDICIALES",null,null,null,null,null,null,null,null,null,null,null,null,null,{"$f":"'031'!P93","v":0}]
[null,null,null,null,null,null,null,null,null,null,"Total  :",null,{"$f":"SUM(M1505:O1509)","v":2756.66},null,null,null,{"$f":"SUM(Q1507:S1509)","v":130.12}]
[null,null,null,null,null,null,null,null,null,null,"Liquido :",null,{"$f":"M1510-Q1510","v":2626.54}]
[]
[]
[]
[]
[]
[]
[]
[]
["María José Ceballos López",null,null,null,null,null,null,null,null,null,null,null,{"$f":"C1499","v":"Jesús Antonio Montúfar Mazariegos"}]
["Encargada de Nómina",null,null,null,null,null,null,null,null,null,null,null,{"$f":"P1500","v":"Constructor de Puentes"}]
["AMSA ",null,null,null,null,null,null,null,null,null,null,null,"AMSA"]
[]
[]
[]
[]
[]
[]
[]
[]
["GOBIERNO DE LA REPÚBLICA DE GUATEMALA"]
["AUTORIDAD PARA EL MANEJO SUSTENTABLE DE LA CUENCA Y DEL LAGO DE AMATITLÁN"]
[]
[]
[{"$f":"A1496","v":"Boleta de Liquidación Mensual Renglón 031 \"Jornales\"   Correspondiente al mes de octubre 2015"}]
[{"$f":"A1497","v":{"$error":"#REF!"}}]
[]
["Empleado:",null,{"$f":"C1499","v":"Jesús Antonio Montúfar Mazariegos"},null,null,null,null,null,null,null,"Certificación No.",null,null,{"$f":"N1499","v":23},null,"Fecha:",null,{"$f":"R1499","v":"2014-08-31"}]
["Contrato:",null,{"$f":"C1500","v":"28-2017-031-AMSA"},null,null,"Puesto Funcional:",null,null,{"$f":"I1500","v":"Encargado de Oxigenadores"},null,null,null,"Titulo Jornal:",null,null,{"$f":"P1500","v":"Constructor de Puentes"}]
["Cuenta / Banco:",null,null,{"$f":"D1501","v":3164031580},null,"Banco de Desarrollo Rural, S.A.",null,null,null,null,"Jornal Diario:",null,null,{"$f":"N1501","v":80.86},null,"Días Trabajados:",null,null,{"$f":"S1501","v":31}]
[]
[null,null,null,null,null,null,null,null,null,null,null,null,"Ingresos",null,null,null,"Deducciones "]
[]
[null,"031","DEVENGADO",null,null,null,null,null,null,null,null,null,{"$f":"M1505","v":2506.66}]
[null,"033","BONO ACUERDO GUBERNATIVO 66-2000",null,null,null,null,null,null,null,null,null,{"$f":"M1506","v":250}]
[null,"201","I.G.S.S",null,null,null,null,null,null,null,null,null,null,null,null,null,{"$f":"Q1507","v":130.12}]
[null,"118","MONTEPÍO",null,null,null,null,null,null,null,null,null,null,null,null,null,{"$f":"Q1508","v":0}]
[null,"211","RETENCIONES JUDICIALES",null,null,null,null,null,null,null,null,null,null,null,null,null,{"$f":"Q1509","v":0}]
[null,null,null,null,null,null,null,null,null,null,"Total  :",null,{"$f":"SUM(M1544:O1548)","v":2756.66},null,null,null,{"$f":"SUM(Q1546:S1548)","v":130.12}]
[null,null,null,null,null,null,null,null,null,null,"Liquido :",null,{"$f":"M1549-Q1549","v":2626.54}]
[]
[]
[]
[]
[]
[]
[]
[]
[{"$f":"A1520","v":"María José Ceballos López"},null,null,null,null,null,null,null,null,null,null,null,{"$f":"C1538","v":"Jesús Antonio Montúfar Mazariegos"}]
[{"$f":"A1521","v":"Encargada de Nómina"},null,null,null,null,null,null,null,null,null,null,null,{"$f":"P1539","v":"Constructor de Puentes"}]
[{"$f":"A1522","v":"AMSA "},null,null,null,null,null,null,null,null,null,null,null,"AMSA"]
[]
["GOBIERNO DE LA REPÚBLICA DE GUATEMALA"]
["AUTORIDAD PARA EL MANEJO SUSTENTABLE DE LA CUENCA Y DEL LAGO DE AMATITLÁN"]
[]
[]
[{"$f":"A1496","v":"Boleta de Liquidación Mensual Renglón 031 \"Jornales\"   Correspondiente al mes de octubre 2015"}]
[{"$f":"A1497","v":{"$error":"#REF!"}}]
[]
["Empleado:",null,{"$f":"'031'!F94","v":"Carlos Humberto Gatica González"},null,null,null,null,null,null,null,"Certificación No.",null,null,{"$f":"N1499+1","v":24},null,"Fecha:",null,{"$f":"R8","v":"2014-08-31"}]
["Contrato:",null,{"$f":"'031'!G94","v":"29-2017-031-AMSA"},null,null,"Puesto Funcional:",null,null,{"$f":"'031'!C94","v":"Peón de Campo"},null,null,null,"Titulo Jornal:",null,null,{"$f":"'031'!D94","v":"Constructor de Puentes"}]
["Cuenta / Banco:",null,null,{"$f":"'031'!T94","v":4216002528},null,"Banco de Desarrollo Rural, S.A.",null,null,null,null,"Jornal Diario:",null,null,{"$f":"'031'!I94","v":80.86},null,"Días Trabajados:",null,null,{"$f":"'031'!J94","v":31}]
[]
[null,null,null,null,null,null,null,null,null,null,null,null,"Ingresos",null,null,null,"Deducciones "]
[]
[null,"031","DEVENGADO",null,null,null,null,null,null,null,null,null,{"$f":"'031'!K94","v":2506.66}]
[null,"033","BONO ACUERDO GUBERNATIVO 66-2000",null,null,null,null,null,null,null,null,null,{"$f":"'031'!L94","v":250}]
[null,"201","I.G.S.S",null,null,null,null,null,null,null,null,null,null,null,null,null,{"$f":"'031'!O94","v":130.12}]
[null,"118","MONTEPÍO",null,null,null,null,null,null,null,null,null,null,null,null,null,0]
[null,"211","RETENCIONES JUDICIALES",null,null,null,null,null,null,null,null,null,null,null,null,null,{"$f":"'031'!P94","v":0}]
[null,null,null,null,null,null,null,null,null,null,"Total  :",null,{"$f":"SUM(M1576:O1580)","v":2756.66},null,null,null,{"$f":"SUM(Q1578:S1580)","v":130.12}]
[null,null,null,null,null,null,null,null,null,null,"Liquido :",null,{"$f":"M1581-Q1581","v":2626.54}]
[]
[]
[]
[]
[]
[]
[]
[]
["María José Ceballos López",null,null,null,null,null,null,null,null,null,null,null,{"$f":"C1570","v":"Carlos Humberto Gatica González"}]
["Encargada de Nómina",null,null,null,null,null,null,null,null,null,null,null,{"$f":"P1571","v":"Constructor de Puentes"}]
["AMSA ",null,null,null,null,null,null,null,null,null,null,null,"AMSA"]
[]
[]
[]
[]
[]
[]
[]
[]
["GOBIERNO DE LA REPÚBLICA DE GUATEMALA"]
["AUTORIDAD PARA EL MANEJO SUSTENTABLE DE LA CUENCA Y DEL LAGO DE AMATITLÁN"]
[]
[]
[{"$f":"A1567","v":"Boleta de Liquidación Mensual Renglón 031 \"Jornales\"   Correspondiente al mes de octubre 2015"}]
[{"$f":"A1568","v":{"$error":"#REF!"}}]
[]
["Empleado:",null,{"$f":"C1570","v":"Carlos Humberto Gatica González"},null,null,null,null,null,null,null,"Certificación No.",null,null,{"$f":"N1570","v":24},null,"Fecha:",null,{"$f":"R1570","v":"2014-08-31"}]
["Contrato:",null,{"$f":"C1571","v":"29-2017-031-AMSA"},null,null,"Puesto Funcional:",null,null,{"$f":"I1571","v":"Peón de Campo"},null,null,null,"Titulo Jornal:",null,null,{"$f":"P1571","v":"Constructor de Puentes"}]
["Cuenta / Banco:",null,null,{"$f":"D1572","v":4216002528},null,"Banco de Desarrollo Rural, S.A.",null,null,null,null,"Jornal Diario:",null,null,{"$f":"N1572","v":80.86},null,"Días Trabajados:",null,null,{"$f":"S1572","v":31}]
[]
[null,null,null,null,null,null,null,null,null,null,null,null,"Ingresos",null,null,null,"Deducciones "]
[]
[null,"031","DEVENGADO",null,null,null,null,null,null,null,null,null,{"$f":"M1576","v":2506.66}]
[null,"033","BONO ACUERDO GUBERNATIVO 66-2000",null,null,null,null,null,null,null,null,null,{"$f":"M1577","v":250}]
[null,"201","I.G.S.S",null,null,null,null,null,null,null,null,null,null,null,null,null,{"$f":"Q1578","v":130.12}]
[null,"118","MONTEPÍO",null,null,null,null,null,null,null,null,null,null,null,null,null,{"$f":"Q1579","v":0}]
[null,"211","RETENCIONES JUDICIALES",null,null,null,null,null,null,null,null,null,null,null,null,null,{"$f":"Q1580","v":0}]
[null,null,null,null,null,null,null,null,null,null,"Total  :",null,{"$f":"SUM(M1615:O1619)","v":2756.66},null,null,null,{"$f":"SUM(Q1617:S1619)","v":130.12}]
[null,null,null,null,null,null,null,null,null,null,"Liquido :",null,{"$f":"M1620-Q1620","v":2626.54}]
[]
[]
[]
[]
[]
[]
[]
[]
[{"$f":"A1591","v":"María José Ceballos López"},null,null,null,null,null,null,null,null,null,null,null,{"$f":"C1609","v":"Carlos Humberto Gatica González"}]
[{"$f":"A1592","v":"Encargada de Nómina"},null,null,null,null,null,null,null,null,null,null,null,{"$f":"P1610","v":"Constructor de Puentes"}]
[{"$f":"A1593","v":"AMSA "},null,null,null,null,null,null,null,null,null,null,null,"AMSA"]
[]
["GOBIERNO DE LA REPÚBLICA DE GUATEMALA"]
["AUTORIDAD PARA EL MANEJO SUSTENTABLE DE LA CUENCA Y DEL LAGO DE AMATITLÁN"]
[]
[]
[{"$f":"A1567","v":"Boleta de Liquidación Mensual Renglón 031 \"Jornales\"   Correspondiente al mes de octubre 2015"}]
[{"$f":"A1568","v":{"$error":"#REF!"}}]
[]
["Empleado:",null,{"$f":"'031'!F95","v":"Nery Armando Castañeda Avilés"},null,null,null,null,null,null,null,"Certificación No.",null,null,{"$f":"N1570+1","v":25},null,"Fecha:",null,{"$f":"R576","v":"2014-08-31"}]
["Contrato:",null,{"$f":"'031'!G95","v":"30-2017-031-AMSA"},null,null,"Puesto Funcional:",null,null,{"$f":"'031'!C95","v":"Peón de Campo"},null,null,null,"Titulo Jornal:",null,null,{"$f":"'031'!D95","v":"Constructor de Puentes"}]
["Cuenta / Banco:",null,null,{"$f":"'031'!T95","v":3164034252},null,"Banco de Desarrollo Rural, S.A.",null,null,null,null,"Jornal Diario:",null,null,{"$f":"'031'!I95","v":80.86},null,"Días Trabajados:",null,null,{"$f":"'031'!J95","v":31}]
[]
[null,null,null,null,null,null,null,null,null,null,null,null,"Ingresos",null,null,null,"Deducciones "]
[]
[null,"031","DEVENGADO",null,null,null,null,null,null,null,null,null,{"$f":"'031'!K95","v":2506.66}]
[null,"033","BONO ACUERDO GUBERNATIVO 66-2000",null,null,null,null,null,null,null,null,null,{"$f":"'031'!L95","v":250}]
[null,"201","I.G.S.S",null,null,null,null,null,null,null,null,null,null,null,null,null,{"$f":"'031'!O95","v":130.12}]
[null,"118","MONTEPÍO",null,null,null,null,null,null,null,null,null,null,null,null,null,0]
[null,"211","RETENCIONES JUDICIALES",null,null,null,null,null,null,null,null,null,null,null,null,null,{"$f":"'031'!P95","v":0}]
[null,null,null,null,null,null,null,null,null,null,"Total  :",null,{"$f":"SUM(M1647:O1651)","v":2756.66},null,null,null,{"$f":"SUM(Q1649:S1651)","v":130.12}]
[null,null,null,null,null,null,null,null,null,null,"Liquido :",null,{"$f":"M1652-Q1652","v":2626.54}]
[]
[]
[]
[]
[]
[]
[]
[]
["María José Ceballos López",null,null,null,null,null,null,null,null,null,null,null,{"$f":"C1641","v":"Nery Armando Castañeda Avilés"}]
["Encargada de Nómina",null,null,null,null,null,null,null,null,null,null,null,{"$f":"P1642","v":"Constructor de Puentes"}]
["AMSA ",null,null,null,null,null,null,null,null,null,null,null,"AMSA"]
[]
[]
[]
[]
[]
[]
[]
[]
["GOBIERNO DE LA REPÚBLICA DE GUATEMALA"]
["AUTORIDAD PARA EL MANEJO SUSTENTABLE DE LA CUENCA Y DEL LAGO DE AMATITLÁN"]
[]
[]
[{"$f":"A1638","v":"Boleta de Liquidación Mensual Renglón 031 \"Jornales\"   Correspondiente al mes de octubre 2015"}]
[{"$f":"A1639","v":{"$error":"#REF!"}}]
[]
["Empleado:",null,{"$f":"C1641","v":"Nery Armando Castañeda Avilés"},null,null,null,null,null,null,null,"Certificación No.",null,null,{"$f":"N1641","v":25},null,"Fecha:",null,{"$f":"R1641","v":"2014-08-31"}]
["Contrato:",null,{"$f":"C1642","v":"30-2017-031-AMSA"},null,null,"Puesto Funcional:",null,null,{"$f":"I1642","v":"Peón de Campo"},null,null,null,"Titulo Jornal:",null,null,{"$f":"P1642","v":"Constructor de Puentes"}]
["Cuenta / Banco:",null,null,{"$f":"D1643","v":3164034252},null,"Banco de Desarrollo Rural, S.A.",null,null,null,null,"Jornal Diario:",null,null,{"$f":"N1643","v":80.86},null,"Días Trabajados:",null,null,{"$f":"S1643","v":31}]
[]
[null,null,null,null,null,null,null,null,null,null,null,null,"Ingresos",null,null,null,"Deducciones "]
[]
[null,"031","DEVENGADO",null,null,null,null,null,null,null,null,null,{"$f":"M1647","v":2506.66}]
[null,"033","BONO ACUERDO GUBERNATIVO 66-2000",null,null,null,null,null,null,null,null,null,{"$f":"M1648","v":250}]
[null,"201","I.G.S.S",null,null,null,null,null,null,null,null,null,null,null,null,null,{"$f":"Q1649","v":130.12}]
[null,"118","MONTEPÍO",null,null,null,null,null,null,null,null,null,null,null,null,null,{"$f":"Q1650","v":0}]
[null,"211","RETENCIONES JUDICIALES",null,null,null,null,null,null,null,null,null,null,null,null,null,{"$f":"Q1651","v":0}]
[null,null,null,null,null,null,null,null,null,null,"Total  :",null,{"$f":"SUM(M1686:O1690)","v":2756.66},null,null,null,{"$f":"SUM(Q1688:S1690)","v":130.12}]
[null,null,null,null,null,null,null,null,null,null,"Liquido :",null,{"$f":"M1691-Q1691","v":2626.54}]
[]
[]
[]
[]
[]
[]
[]
[]
[{"$f":"A1662","v":"María José Ceballos López"},null,null,null,null,null,null,null,null,null,null,null,{"$f":"C1680","v":"Nery Armando Castañeda Avilés"}]
[{"$f":"A1663","v":"Encargada de Nómina"},null,null,null,null,null,null,null,null,null,null,null,{"$f":"P1681","v":"Constructor de Puentes"}]
[{"$f":"A1664","v":"AMSA "},null,null,null,null,null,null,null,null,null,null,null,"AMSA"]
[]
["GOBIERNO DE LA REPÚBLICA DE GUATEMALA"]
["AUTORIDAD PARA EL MANEJO SUSTENTABLE DE LA CUENCA Y DEL LAGO DE AMATITLÁN"]
[]
[]
[{"$f":"A1638","v":"Boleta de Liquidación Mensual Renglón 031 \"Jornales\"   Correspondiente al mes de octubre 2015"}]
[{"$f":"A1639","v":{"$error":"#REF!"}}]
[]
["Empleado:",null,{"$f":"'031'!F96","v":"Yury Geovani Guzmán Avilés"},null,null,null,null,null,null,null,"Certificación No.",null,null,{"$f":"N1641+1","v":26},null,"Fecha:",null,{"$f":"R647","v":"2014-08-31"}]
["Contrato:",null,{"$f":"'031'!G96","v":"31-2017-031-AMSA"},null,null,"Puesto Funcional:",null,null,{"$f":"'031'!C96","v":"Peón de Campo"},null,null,null,"Titulo Jornal:",null,null,{"$f":"'031'!D96","v":"Constructor de Puentes"}]
["Cuenta / Banco:",null,null,{"$f":"'031'!T96","v":3216001645},null,"Banco de Desarrollo Rural, S.A.",null,null,null,null,"Jornal Diario:",null,null,{"$f":"'031'!I96","v":80.86},null,"Días Trabajados:",null,null,{"$f":"'031'!J96","v":31}]
[]
[null,null,null,null,null,null,null,null,null,null,null,null,"Ingresos",null,null,null,"Deducciones "]
[]
[null,"031","DEVENGADO",null,null,null,null,null,null,null,null,null,{"$f":"'031'!K96","v":2506.66}]
[null,"033","BONO ACUERDO GUBERNATIVO 66-2000",null,null,null,null,null,null,null,null,null,{"$f":"'031'!L96","v":250}]
[null,"201","I.G.S.S",null,null,null,null,null,null,null,null,null,null,null,null,null,{"$f":"'031'!O96","v":130.12}]
[null,"118","MONTEPÍO",null,null,null,null,null,null,null,null,null,null,null,null,null,0]
[null,"211","RETENCIONES JUDICIALES",null,null,null,null,null,null,null,null,null,null,null,null,null,{"$f":"'031'!P96","v":0}]
[null,null,null,null,null,null,null,null,null,null,"Total  :",null,{"$f":"SUM(M1718:O1722)","v":2756.66},null,null,null,{"$f":"SUM(Q1720:S1722)","v":130.12}]
[null,null,null,null,null,null,null,null,null,null,"Liquido :",null,{"$f":"M1723-Q1723","v":2626.54}]
[]
[]
[]
[]
[]
[]
[]
[]
["María José Ceballos López",null,null,null,null,null,null,null,null,null,null,null,{"$f":"C1712","v":"Yury Geovani Guzmán Avilés"}]
["Encargada de Nómina",null,null,null,null,null,null,null,null,null,null,null,{"$f":"P1713","v":"Constructor de Puentes"}]
["AMSA ",null,null,null,null,null,null,null,null,null,null,null,"AMSA"]
[]
[]
[]
[]
[]
[]
[]
[]
["GOBIERNO DE LA REPÚBLICA DE GUATEMALA"]
["AUTORIDAD PARA EL MANEJO SUSTENTABLE DE LA CUENCA Y DEL LAGO DE AMATITLÁN"]
[]
[]
[{"$f":"A1709","v":"Boleta de Liquidación Mensual Renglón 031 \"Jornales\"   Correspondiente al mes de octubre 2015"}]
[{"$f":"A1710","v":{"$error":"#REF!"}}]
[]
["Empleado:",null,{"$f":"C1712","v":"Yury Geovani Guzmán Avilés"},null,null,null,null,null,null,null,"Certificación No.",null,null,{"$f":"N1712","v":26},null,"Fecha:",null,{"$f":"R1712","v":"2014-08-31"}]
["Contrato:",null,{"$f":"C1713","v":"31-2017-031-AMSA"},null,null,"Puesto Funcional:",null,null,{"$f":"I1713","v":"Peón de Campo"},null,null,null,"Titulo Jornal:",null,null,{"$f":"P1713","v":"Constructor de Puentes"}]
["Cuenta / Banco:",null,null,{"$f":"D1714","v":3216001645},null,"Banco de Desarrollo Rural, S.A.",null,null,null,null,"Jornal Diario:",null,null,{"$f":"N1714","v":80.86},null,"Días Trabajados:",null,null,{"$f":"S1714","v":31}]
[]
[null,null,null,null,null,null,null,null,null,null,null,null,"Ingresos",null,null,null,"Deducciones "]
[]
[null,"031","DEVENGADO",null,null,null,null,null,null,null,null,null,{"$f":"M1718","v":2506.66}]
[null,"033","BONO ACUERDO GUBERNATIVO 66-2000",null,null,null,null,null,null,null,null,null,{"$f":"M1719","v":250}]
[null,"201","I.G.S.S",null,null,null,null,null,null,null,null,null,null,null,null,null,{"$f":"Q1720","v":130.12}]
[null,"118","MONTEPÍO",null,null,null,null,null,null,null,null,null,null,null,null,null,{"$f":"Q1721","v":0}]
[null,"211","RETENCIONES JUDICIALES",null,null,null,null,null,null,null,null,null,null,null,null,null,{"$f":"Q1722","v":0}]
[null,null,null,null,null,null,null,null,null,null,"Total  :",null,{"$f":"SUM(M1757:O1761)","v":2756.66},null,null,null,{"$f":"SUM(Q1759:S1761)","v":130.12}]
[null,null,null,null,null,null,null,null,null,null,"Liquido :",null,{"$f":"M1762-Q1762","v":2626.54}]
[]
[]
[]
[]
[]
[]
[]
[]
[{"$f":"A1733","v":"María José Ceballos López"},null,null,null,null,null,null,null,null,null,null,null,{"$f":"C1751","v":"Yury Geovani Guzmán Avilés"}]
[{"$f":"A1734","v":"Encargada de Nómina"},null,null,null,null,null,null,null,null,null,null,null,{"$f":"P1752","v":"Constructor de Puentes"}]
[{"$f":"A1735","v":"AMSA "},null,null,null,null,null,null,null,null,null,null,null,"AMSA"]
[]
["GOBIERNO DE LA REPÚBLICA DE GUATEMALA"]
["AUTORIDAD PARA EL MANEJO SUSTENTABLE DE LA CUENCA Y DEL LAGO DE AMATITLÁN"]
[]
[]
[{"$f":"A1748","v":"Boleta de Liquidación Mensual Renglón 031 \"Jornales\"   Correspondiente al mes de octubre 2015"}]
[{"$f":"A1749","v":{"$error":"#REF!"}}]
[]
["Empleado:",null,{"$f":"'031'!F98","v":"Juan Antonio Roque Dionisio"},null,null,null,null,null,null,null,"Certificación No.",null,null,{"$f":"N1712+1","v":27},null,"Fecha:",null,{"$f":"R789","v":"2014-08-31"}]
["Contrato:",null,{"$f":"'031'!G98","v":"33-2017-031-AMSA"},null,null,"Puesto Funcional:",null,null,"Peón de Campo",null,null,null,"Titulo Jornal:",null,null,{"$f":"'031'!D98","v":"Constructor de Puentes"}]
["Cuenta / Banco:",null,null,{"$f":"'031'!T98","v":3216004353},null,"Banco de Desarrollo Rural, S.A.",null,null,null,null,"Jornal Diario:",null,null,{"$f":"'031'!I100","v":80.86},null,"Días Trabajados:",null,null,{"$f":"'031'!J98","v":31}]
[]
[null,null,null,null,null,null,null,null,null,null,null,null,"Ingresos",null,null,null,"Deducciones "]
[]
[null,"031","DEVENGADO",null,null,null,null,null,null,null,null,null,{"$f":"'031'!K98","v":2506.66}]
[null,"033","BONO ACUERDO GUBERNATIVO 66-2000",null,null,null,null,null,null,null,null,null,{"$f":"'031'!L98","v":250}]
[null,"201","I.G.S.S",null,null,null,null,null,null,null,null,null,null,null,null,null,{"$f":"'031'!O98","v":130.12}]
[null,"118","MONTEPÍO",null,null,null,null,null,null,null,null,null,null,null,null,null,0]
[null,"211","RETENCIONES JUDICIALES",null,null,null,null,null,null,null,null,null,null,null,null,null,{"$f":"'031'!P98","v":0}]
[null,null,null,null,null,null,null,null,null,null,"Total  :",null,{"$f":"SUM(M1789:O1793)","v":2756.66},null,null,null,{"$f":"SUM(Q1791:S1793)","v":130.12}]
[null,null,null,null,null,null,null,null,null,null,"Liquido :",null,{"$f":"M1794-Q1794","v":2626.54}]
[]
[]
[]
[]
[]
[]
[]
[]
["María José Ceballos López",null,null,null,null,null,null,null,null,null,null,null,{"$f":"C1783","v":"Juan Antonio Roque Dionisio"}]
["Encargada de Nómina",null,null,null,null,null,null,null,null,null,null,null,{"$f":"P1784","v":"Constructor de Puentes"}]
["AMSA ",null,null,null,null,null,null,null,null,null,null,null,"AMSA"]
[]
[]
[]
[]
[]
[]
[]
[]
["GOBIERNO DE LA REPÚBLICA DE GUATEMALA"]
["AUTORIDAD PARA EL MANEJO SUSTENTABLE DE LA CUENCA Y DEL LAGO DE AMATITLÁN"]
[]
[]
[{"$f":"A1780","v":"Boleta de Liquidación Mensual Renglón 031 \"Jornales\"   Correspondiente al mes de octubre 2015"}]
[{"$f":"A1781","v":{"$error":"#REF!"}}]
[]
["Empleado:",null,{"$f":"C1783","v":"Juan Antonio Roque Dionisio"},null,null,null,null,null,null,null,"Certificación No.",null,null,{"$f":"N1783","v":27},null,"Fecha:",null,{"$f":"R1783","v":"2014-08-31"}]
["Contrato:",null,{"$f":"C1784","v":"33-2017-031-AMSA"},null,null,"Puesto Funcional:",null,null,{"$f":"I1784","v":"Peón de Campo"},null,null,null,"Titulo Jornal:",null,null,{"$f":"P1784","v":"Constructor de Puentes"}]
["Cuenta / Banco:",null,null,{"$f":"D1785","v":3216004353},null,"Banco de Desarrollo Rural, S.A.",null,null,null,null,"Jornal Diario:",null,null,{"$f":"N1785","v":80.86},null,"Días Trabajados:",null,null,{"$f":"S1785","v":31}]
[]
[null,null,null,null,null,null,null,null,null,null,null,null,"Ingresos",null,null,null,"Deducciones "]
[]
[null,"031","DEVENGADO",null,null,null,null,null,null,null,null,null,{"$f":"M1789","v":2506.66}]
[null,"033","BONO ACUERDO GUBERNATIVO 66-2000",null,null,null,null,null,null,null,null,null,{"$f":"M1790","v":250}]
[null,"201","I.G.S.S",null,null,null,null,null,null,null,null,null,null,null,null,null,{"$f":"Q1791","v":130.12}]
[null,"118","MONTEPÍO",null,null,null,null,null,null,null,null,null,null,null,null,null,{"$f":"Q1792","v":0}]
[null,"211","RETENCIONES JUDICIALES",null,null,null,null,null,null,null,null,null,null,null,null,null,{"$f":"Q1793","v":0}]
[null,null,null,null,null,null,null,null,null,null,"Total  :",null,{"$f":"SUM(M1828:O1832)","v":2756.66},null,null,null,{"$f":"SUM(Q1830:S1832)","v":130.12}]
[null,null,null,null,null,null,null,null,null,null,"Liquido :",null,{"$f":"M1833-Q1833","v":2626.54}]
[]
[]
[]
[]
[]
[]
[]
[]
[{"$f":"A1804","v":"María José Ceballos López"},null,null,null,null,null,null,null,null,null,null,null,{"$f":"C1822","v":"Juan Antonio Roque Dionisio"}]
[{"$f":"A1805","v":"Encargada de Nómina"},null,null,null,null,null,null,null,null,null,null,null,{"$f":"P1823","v":"Constructor de Puentes"}]
[{"$f":"A1806","v":"AMSA "},null,null,null,null,null,null,null,null,null,null,null,"AMSA"]
[]
["GOBIERNO DE LA REPÚBLICA DE GUATEMALA"]
["AUTORIDAD PARA EL MANEJO SUSTENTABLE DE LA CUENCA Y DEL LAGO DE AMATITLÁN"]
[]
[]
[{"$f":"A1780","v":"Boleta de Liquidación Mensual Renglón 031 \"Jornales\"   Correspondiente al mes de octubre 2015"}]
[{"$f":"A1781","v":{"$error":"#REF!"}}]
[]
["Empleado:",null,{"$f":"'031'!F69","v":"José Filiberto Domingo Domingo"},null,null,null,null,null,null,null,"Certificación No.",null,null,{"$f":"N1783+1","v":28},null,"Fecha:",null,{"$f":"R860","v":"2014-08-31"}]
["Contrato:",null,{"$f":"'031'!G69","v":"12-2017-031-AMSA"},null,null,"Puesto Funcional:",null,null,{"$f":"'031'!C69","v":"Operadores PTAR"},null,null,null,"Titulo Jornal:",null,null,{"$f":"'031'!D69","v":"Constructor de Puentes"}]
["Cuenta / Banco:",null,null,{"$f":"'031'!T69","v":4216005864},null,"Banco de Desarrollo Rural, S.A.",null,null,null,null,"Jornal Diario:",null,null,{"$f":"'031'!I69","v":80.86},null,"Días Trabajados:",null,null,{"$f":"'031'!J69","v":31}]
[]
[null,null,null,null,null,null,null,null,null,null,null,null,"Ingresos",null,null,null,"Deducciones "]
[]
[null,"031","DEVENGADO",null,null,null,null,null,null,null,null,null,{"$f":"'031'!K69","v":2506.66}]
[null,"033","BONO ACUERDO GUBERNATIVO 66-2000",null,null,null,null,null,null,null,null,null,{"$f":"'031'!L69","v":250}]
[null,"201","I.G.S.S",null,null,null,null,null,null,null,null,null,null,null,null,null,{"$f":"'031'!O69","v":130.12}]
[null,"118","MONTEPÍO",null,null,null,null,null,null,null,null,null,null,null,null,null,0]
[null,"211","RETENCIONES JUDICIALES",null,null,null,null,null,null,null,null,null,null,null,null,null,{"$f":"'031'!P69","v":0}]
[null,null,null,null,null,null,null,null,null,null,"Total  :",null,{"$f":"SUM(M1860:O1864)","v":2756.66},null,null,null,{"$f":"SUM(Q1862:S1864)","v":130.12}]
[null,null,null,null,null,null,null,null,null,null,"Liquido :",null,{"$f":"M1865-Q1865","v":2626.54}]
[]
[]
[]
[]
[]
[]
[]
[]
["María José Ceballos López",null,null,null,null,null,null,null,null,null,null,null,{"$f":"C1854","v":"José Filiberto Domingo Domingo"}]
["Encargada de Nómina",null,null,null,null,null,null,null,null,null,null,null,{"$f":"P1855","v":"Constructor de Puentes"}]
["AMSA ",null,null,null,null,null,null,null,null,null,null,null,"AMSA"]
[]
[]
[]
[]
[]
[]
[]
[]
["GOBIERNO DE LA REPÚBLICA DE GUATEMALA"]
["AUTORIDAD PARA EL MANEJO SUSTENTABLE DE LA CUENCA Y DEL LAGO DE AMATITLÁN"]
[]
[]
[{"$f":"A1851","v":"Boleta de Liquidación Mensual Renglón 031 \"Jornales\"   Correspondiente al mes de octubre 2015"}]
[{"$f":"A1852","v":{"$error":"#REF!"}}]
[]
["Empleado:",null,{"$f":"C1854","v":"José Filiberto Domingo Domingo"},null,null,null,null,null,null,null,"Certificación No.",null,null,{"$f":"N1854","v":28},null,"Fecha:",null,{"$f":"R1854","v":"2014-08-31"}]
["Contrato:",null,{"$f":"C1855","v":"12-2017-031-AMSA"},null,null,"Puesto Funcional:",null,null,{"$f":"I1855","v":"Operadores PTAR"},null,null,null,"Titulo Jornal:",null,null,{"$f":"P1855","v":"Constructor de Puentes"}]
["Cuenta / Banco:",null,null,{"$f":"D1856","v":4216005864},null,"Banco de Desarrollo Rural, S.A.",null,null,null,null,"Jornal Diario:",null,null,{"$f":"N1856","v":80.86},null,"Días Trabajados:",null,null,{"$f":"S1856","v":31}]
[]
[null,null,null,null,null,null,null,null,null,null,null,null,"Ingresos",null,null,null,"Deducciones "]
[]
[null,"031","DEVENGADO",null,null,null,null,null,null,null,null,null,{"$f":"M1860","v":2506.66}]
[null,"033","BONO ACUERDO GUBERNATIVO 66-2000",null,null,null,null,null,null,null,null,null,{"$f":"M1861","v":250}]
[null,"201","I.G.S.S",null,null,null,null,null,null,null,null,null,null,null,null,null,{"$f":"Q1862","v":130.12}]
[null,"118","MONTEPÍO",null,null,null,null,null,null,null,null,null,null,null,null,null,{"$f":"Q1863","v":0}]
[null,"211","RETENCIONES JUDICIALES",null,null,null,null,null,null,null,null,null,null,null,null,null,{"$f":"Q1864","v":0}]
[null,null,null,null,null,null,null,null,null,null,"Total  :",null,{"$f":"SUM(M1899:O1903)","v":2756.66},null,null,null,{"$f":"SUM(Q1901:S1903)","v":130.12}]
[null,null,null,null,null,null,null,null,null,null,"Liquido :",null,{"$f":"M1904-Q1904","v":2626.54}]
[]
[]
[]
[]
[]
[]
[]
[]
[{"$f":"A1875","v":"María José Ceballos López"},null,null,null,null,null,null,null,null,null,null,null,{"$f":"C1893","v":"José Filiberto Domingo Domingo"}]
[{"$f":"A1876","v":"Encargada de Nómina"},null,null,null,null,null,null,null,null,null,null,null,{"$f":"P1894","v":"Constructor de Puentes"}]
[{"$f":"A1877","v":"AMSA "},null,null,null,null,null,null,null,null,null,null,null,"AMSA"]
[]
["GOBIERNO DE LA REPÚBLICA DE GUATEMALA"]
["AUTORIDAD PARA EL MANEJO SUSTENTABLE DE LA CUENCA Y DEL LAGO DE AMATITLÁN"]
[]
[]
[{"$f":"A1851","v":"Boleta de Liquidación Mensual Renglón 031 \"Jornales\"   Correspondiente al mes de octubre 2015"}]
[{"$f":"A1852","v":{"$error":"#REF!"}}]
[]
["Empleado:",null,{"$f":"'031'!F70","v":"Agustín López López"},null,null,null,null,null,null,null,"Certificación No.",null,null,{"$f":"N1854+1","v":29},null,"Fecha:",null,{"$f":"R931","v":"2015-10-31"}]
["Contrato:",null,{"$f":"'031'!G70","v":"13-2017-031-AMSA"},null,null,"Puesto Funcional:",null,null,{"$f":"'031'!C70","v":"Operadores PTAR"},null,null,null,"Titulo Jornal:",null,null,{"$f":"'031'!D70","v":"Constructor de Puentes"}]
["Cuenta / Banco:",null,null,{"$f":"'031'!T70","v":3216004367},null,"Banco de Desarrollo Rural, S.A.",null,null,null,null,"Jornal Diario:",null,null,{"$f":"'031'!I70","v":80.86},null,"Días Trabajados:",null,null,{"$f":"'031'!J70","v":31}]
[]
[null,null,null,null,null,null,null,null,null,null,null,null,"Ingresos",null,null,null,"Deducciones "]
[]
[null,"031","DEVENGADO",null,null,null,null,null,null,null,null,null,{"$f":"'031'!K70","v":2506.66}]
[null,"033","BONO ACUERDO GUBERNATIVO 66-2000",null,null,null,null,null,null,null,null,null,{"$f":"'031'!L70","v":250}]
[null,"201","I.G.S.S",null,null,null,null,null,null,null,null,null,null,null,null,null,{"$f":"'031'!O70","v":130.12}]
[null,"118","MONTEPÍO",null,null,null,null,null,null,null,null,null,null,null,null,null,0]
[null,"211","RETENCIONES JUDICIALES",null,null,null,null,null,null,null,null,null,null,null,null,null,{"$f":"'031'!P70","v":0}]
[null,null,null,null,null,null,null,null,null,null,"Total  :",null,{"$f":"SUM(M1931:O1935)","v":2756.66},null,null,null,{"$f":"SUM(Q1933:S1935)","v":130.12}]
[null,null,null,null,null,null,null,null,null,null,"Liquido :",null,{"$f":"M1936-Q1936","v":2626.54}]
[]
[]
[]
[]
[]
[]
[]
[]
["María José Ceballos López",null,null,null,null,null,null,null,null,null,null,null,{"$f":"C1925","v":"Agustín López López"}]
["Encargada de Nómina",null,null,null,null,null,null,null,null,null,null,null,{"$f":"P1926","v":"Constructor de Puentes"}]
["AMSA ",null,null,null,null,null,null,null,null,null,null,null,"AMSA"]
[]
[]
[]
[]
[]
[]
[]
[]
["GOBIERNO DE LA REPÚBLICA DE GUATEMALA"]
["AUTORIDAD PARA EL MANEJO SUSTENTABLE DE LA CUENCA Y DEL LAGO DE AMATITLÁN"]
[]
[]
[{"$f":"A1922","v":"Boleta de Liquidación Mensual Renglón 031 \"Jornales\"   Correspondiente al mes de octubre 2015"}]
[{"$f":"A1923","v":{"$error":"#REF!"}}]
[]
["Empleado:",null,{"$f":"C1925","v":"Agustín López López"},null,null,null,null,null,null,null,"Certificación No.",null,null,{"$f":"N1925","v":29},null,"Fecha:",null,{"$f":"R1925","v":"2015-10-31"}]
["Contrato:",null,{"$f":"C1926","v":"13-2017-031-AMSA"},null,null,"Puesto Funcional:",null,null,{"$f":"I1926","v":"Operadores PTAR"},null,null,null,"Titulo Jornal:",null,null,{"$f":"P1926","v":"Constructor de Puentes"}]
["Cuenta / Banco:",null,null,{"$f":"D1927","v":3216004367},null,"Banco de Desarrollo Rural, S.A.",null,null,null,null,"Jornal Diario:",null,null,{"$f":"N1927","v":80.86},null,"Días Trabajados:",null,null,{"$f":"S1927","v":31}]
[]
[null,null,null,null,null,null,null,null,null,null,null,null,"Ingresos",null,null,null,"Deducciones "]
[]
[null,"031","DEVENGADO",null,null,null,null,null,null,null,null,null,{"$f":"M1931","v":2506.66}]
[null,"033","BONO ACUERDO GUBERNATIVO 66-2000",null,null,null,null,null,null,null,null,null,{"$f":"M1932","v":250}]
[null,"201","I.G.S.S",null,null,null,null,null,null,null,null,null,null,null,null,null,{"$f":"Q1933","v":130.12}]
[null,"118","MONTEPÍO",null,null,null,null,null,null,null,null,null,null,null,null,null,{"$f":"Q1934","v":0}]
[null,"211","RETENCIONES JUDICIALES",null,null,null,null,null,null,null,null,null,null,null,null,null,{"$f":"Q1935","v":0}]
[null,null,null,null,null,null,null,null,null,null,"Total  :",null,{"$f":"SUM(M1970:O1974)","v":2756.66},null,null,null,{"$f":"SUM(Q1972:S1974)","v":130.12}]
[null,null,null,null,null,null,null,null,null,null,"Liquido :",null,{"$f":"M1975-Q1975","v":2626.54}]
[]
[]
[]
[]
[]
[]
[]
[]
[{"$f":"A1946","v":"María José Ceballos López"},null,null,null,null,null,null,null,null,null,null,null,{"$f":"C1964","v":"Agustín López López"}]
[{"$f":"A1947","v":"Encargada de Nómina"},null,null,null,null,null,null,null,null,null,null,null,{"$f":"P1965","v":"Constructor de Puentes"}]
[{"$f":"A1948","v":"AMSA "},null,null,null,null,null,null,null,null,null,null,null,"AMSA"]
[]
["GOBIERNO DE LA REPÚBLICA DE GUATEMALA"]
["AUTORIDAD PARA EL MANEJO SUSTENTABLE DE LA CUENCA Y DEL LAGO DE AMATITLÁN"]
[]
[]
[{"$f":"A1922","v":"Boleta de Liquidación Mensual Renglón 031 \"Jornales\"   Correspondiente al mes de octubre 2015"}]
[{"$f":"A1923","v":{"$error":"#REF!"}}]
[]
["Empleado:",null,{"$f":"'031'!F71","v":"Abel Barillas Grajeda"},null,null,null,null,null,null,null,"Certificación No.",null,null,{"$f":"N1925+1","v":30},null,"Fecha:",null,{"$f":"R1002","v":"2014-08-31"}]
["Contrato:",null,{"$f":"'031'!G71","v":"14-2017-031-AMSA"},null,null,"Puesto Funcional:",null,null,{"$f":"'031'!C71","v":"Operadores PTAR"},null,null,null,"Titulo Jornal:",null,null,{"$f":"'031'!D71","v":"Constructor de Puentes"}]
["Cuenta / Banco:",null,null,{"$f":"'031'!T71","v":3216001443},null,"Banco de Desarrollo Rural, S.A.",null,null,null,null,"Jornal Diario:",null,null,{"$f":"'031'!I71","v":0},null,"Días Trabajados:",null,null,{"$f":"'031'!J71","v":31}]
[]
[null,null,null,null,null,null,null,null,null,null,null,null,"Ingresos",null,null,null,"Deducciones "]
[]
[null,"031","DEVENGADO",null,null,null,null,null,null,null,null,null,{"$f":"'031'!K71","v":0}]
[null,"033","BONO ACUERDO GUBERNATIVO 66-2000",null,null,null,null,null,null,null,null,null,{"$f":"'031'!L71","v":250}]
[null,"201","I.G.S.S",null,null,null,null,null,null,null,null,null,null,null,null,null,{"$f":"'031'!O71","v":0}]
[null,"118","MONTEPÍO",null,null,null,null,null,null,null,null,null,null,null,null,null,0]
[null,"211","RETENCIONES JUDICIALES",null,null,null,null,null,null,null,null,null,null,null,null,null,{"$f":"'031'!P71","v":0}]
[null,null,null,null,null,null,null,null,null,null,"Total  :",null,{"$f":"SUM(M2002:O2006)","v":250},null,null,null,{"$f":"SUM(Q2004:S2006)","v":0}]
[null,null,null,null,null,null,null,null,null,null,"Liquido :",null,{"$f":"M2007-Q2007","v":250}]
[]
[]
[]
[]
[]
[]
[]
[]
["María José Ceballos López",null,null,null,null,null,null,null,null,null,null,null,{"$f":"C1996","v":"Abel Barillas Grajeda"}]
["Encargada de Nómina",null,null,null,null,null,null,null,null,null,null,null,{"$f":"P1997","v":"Constructor de Puentes"}]
["AMSA ",null,null,null,null,null,null,null,null,null,null,null,"AMSA"]
[]
[]
[]
[]
[]
[]
[]
[]
["GOBIERNO DE LA REPÚBLICA DE GUATEMALA"]
["AUTORIDAD PARA EL MANEJO SUSTENTABLE DE LA CUENCA Y DEL LAGO DE AMATITLÁN"]
[]
[]
[{"$f":"A1993","v":"Boleta de Liquidación Mensual Renglón 031 \"Jornales\"   Correspondiente al mes de octubre 2015"}]
[{"$f":"A1994","v":{"$error":"#REF!"}}]
[]
["Empleado:",null,{"$f":"C1996","v":"Abel Barillas Grajeda"},null,null,null,null,null,null,null,"Certificación No.",null,null,{"$f":"N1996","v":30},null,"Fecha:",null,{"$f":"R1996","v":"2014-08-31"}]
["Contrato:",null,{"$f":"C1997","v":"14-2017-031-AMSA"},null,null,"Puesto Funcional:",null,null,{"$f":"I1997","v":"Operadores PTAR"},null,null,null,"Titulo Jornal:",null,null,{"$f":"P1997","v":"Constructor de Puentes"}]
["Cuenta / Banco:",null,null,{"$f":"D1998","v":3216001443},null,"Banco de Desarrollo Rural, S.A.",null,null,null,null,"Jornal Diario:",null,null,{"$f":"N1998","v":0},null,"Días Trabajados:",null,null,{"$f":"S1998","v":31}]
[]
[null,null,null,null,null,null,null,null,null,null,null,null,"Ingresos",null,null,null,"Deducciones "]
[]
[null,"031","DEVENGADO",null,null,null,null,null,null,null,null,null,{"$f":"M2002","v":0}]
[null,"033","BONO ACUERDO GUBERNATIVO 66-2000",null,null,null,null,null,null,null,null,null,{"$f":"M2003","v":250}]
[null,"201","I.G.S.S",null,null,null,null,null,null,null,null,null,null,null,null,null,{"$f":"Q2004","v":0}]
[null,"118","MONTEPÍO",null,null,null,null,null,null,null,null,null,null,null,null,null,{"$f":"Q2005","v":0}]
[null,"211","RETENCIONES JUDICIALES",null,null,null,null,null,null,null,null,null,null,null,null,null,{"$f":"Q2006","v":0}]
[null,null,null,null,null,null,null,null,null,null,"Total  :",null,{"$f":"SUM(M2041:O2045)","v":250},null,null,null,{"$f":"SUM(Q2043:S2045)","v":0}]
[null,null,null,null,null,null,null,null,null,null,"Liquido :",null,{"$f":"M2046-Q2046","v":250}]
[]
[]
[]
[]
[]
[]
[]
[]
[{"$f":"A2017","v":"María José Ceballos López"},null,null,null,null,null,null,null,null,null,null,null,{"$f":"C2035","v":"Abel Barillas Grajeda"}]
[{"$f":"A2018","v":"Encargada de Nómina"},null,null,null,null,null,null,null,null,null,null,null,{"$f":"P2036","v":"Constructor de Puentes"}]
[{"$f":"A2019","v":"AMSA "},null,null,null,null,null,null,null,null,null,null,null,"AMSA"]
[]
["GOBIERNO DE LA REPÚBLICA DE GUATEMALA"]
["AUTORIDAD PARA EL MANEJO SUSTENTABLE DE LA CUENCA Y DEL LAGO DE AMATITLÁN"]
[]
[]
[{"$f":"A1993","v":"Boleta de Liquidación Mensual Renglón 031 \"Jornales\"   Correspondiente al mes de octubre 2015"}]
[{"$f":"A1994","v":{"$error":"#REF!"}}]
[]
["Empleado:",null,{"$f":"'031'!#REF!","v":{"$error":"#REF!"}},null,null,null,null,null,null,null,"Certificación No.",null,null,{"$f":"N1996+1","v":31},null,"Fecha:",null,{"$f":"R1073","v":"2014-08-31"}]
["Contrato:",null,{"$f":"'031'!#REF!","v":{"$error":"#REF!"}},null,null,"Puesto Funcional:",null,null,{"$f":"'031'!#REF!","v":{"$error":"#REF!"}},null,null,null,"Titulo Jornal:",null,null,{"$f":"'031'!#REF!","v":{"$error":"#REF!"}}]
["Cuenta / Banco:",null,null,{"$f":"'031'!#REF!","v":{"$error":"#REF!"}},null,"Banco de Desarrollo Rural, S.A.",null,null,null,null,"Jornal Diario:",null,null,{"$f":"'031'!#REF!","v":{"$error":"#REF!"}},null,"Días Trabajados:",null,null,{"$f":"'031'!#REF!","v":{"$error":"#REF!"}}]
[]
[null,null,null,null,null,null,null,null,null,null,null,null,"Ingresos",null,null,null,"Deducciones "]
[]
[null,"031","DEVENGADO",null,null,null,null,null,null,null,null,null,{"$f":"'031'!#REF!","v":{"$error":"#REF!"}}]
[null,"033","BONO ACUERDO GUBERNATIVO 66-2000",null,null,null,null,null,null,null,null,null,{"$f":"'031'!#REF!","v":{"$error":"#REF!"}}]
[null,"201","I.G.S.S",null,null,null,null,null,null,null,null,null,null,null,null,null,{"$f":"'031'!#REF!","v":{"$error":"#REF!"}}]
[null,"118","MONTEPÍO",null,null,null,null,null,null,null,null,null,null,null,null,null,0]
[null,"211","RETENCIONES JUDICIALES",null,null,null,null,null,null,null,null,null,null,null,null,null,{"$f":"'031'!#REF!","v":{"$error":"#REF!"}}]
[null,null,null,null,null,null,null,null,null,null,"Total  :",null,{"$f":"SUM(M2073:O2077)","v":{"$error":"#REF!"}},null,null,null,{"$f":"SUM(Q2075:S2077)","v":{"$error":"#REF!"}}]
[null,null,null,null,null,null,null,null,null,null,"Liquido :",null,{"$f":"M2078-Q2078","v":{"$error":"#REF!"}}]
[]
[]
[]
[]
[]
[]
[]
[]
["María José Ceballos López",null,null,null,null,null,null,null,null,null,null,null,{"$f":"C2067","v":{"$error":"#REF!"}}]
["Encargada de Nómina",null,null,null,null,null,null,null,null,null,null,null,{"$f":"P2068","v":{"$error":"#REF!"}}]
["AMSA ",null,null,null,null,null,null,null,null,null,null,null,"AMSA"]
[]
[]
[]
[]
[]
[]
[]
[]
["GOBIERNO DE LA REPÚBLICA DE GUATEMALA"]
["AUTORIDAD PARA EL MANEJO SUSTENTABLE DE LA CUENCA Y DEL LAGO DE AMATITLÁN"]
[]
[]
[{"$f":"A2064","v":"Boleta de Liquidación Mensual Renglón 031 \"Jornales\"   Correspondiente al mes de octubre 2015"}]
[{"$f":"A2065","v":{"$error":"#REF!"}}]
[]
["Empleado:",null,{"$f":"C2067","v":{"$error":"#REF!"}},null,null,null,null,null,null,null,"Certificación No.",null,null,{"$f":"N2067","v":31},null,"Fecha:",null,{"$f":"R2067","v":"2014-08-31"}]
["Contrato:",null,{"$f":"C2068","v":{"$error":"#REF!"}},null,null,"Puesto Funcional:",null,null,{"$f":"I2068","v":{"$error":"#REF!"}},null,null,null,"Titulo Jornal:",null,null,{"$f":"P2068","v":{"$error":"#REF!"}}]
["Cuenta / Banco:",null,null,{"$f":"D2069","v":{"$error":"#REF!"}},null,"Banco de Desarrollo Rural, S.A.",null,null,null,null,"Jornal Diario:",null,null,{"$f":"N2069","v":{"$error":"#REF!"}},null,"Días Trabajados:",null,null,{"$f":"S2069","v":{"$error":"#REF!"}}]
[]
[null,null,null,null,null,null,null,null,null,null,null,null,"Ingresos",null,null,null,"Deducciones "]
[]
[null,"031","DEVENGADO",null,null,null,null,null,null,null,null,null,{"$f":"M2073","v":{"$error":"#REF!"}}]
[null,"033","BONO ACUERDO GUBERNATIVO 66-2000",null,null,null,null,null,null,null,null,null,{"$f":"M2074","v":{"$error":"#REF!"}}]
[null,"201","I.G.S.S",null,null,null,null,null,null,null,null,null,null,null,null,null,{"$f":"Q2075","v":{"$error":"#REF!"}}]
[null,"118","MONTEPÍO",null,null,null,null,null,null,null,null,null,null,null,null,null,{"$f":"Q2076","v":0}]
[null,"211","RETENCIONES JUDICIALES",null,null,null,null,null,null,null,null,null,null,null,null,null,{"$f":"Q2077","v":{"$error":"#REF!"}}]
[null,null,null,null,null,null,null,null,null,null,"Total  :",null,{"$f":"SUM(M2112:O2116)","v":{"$error":"#REF!"}},null,null,null,{"$f":"SUM(Q2114:S2116)","v":{"$error":"#REF!"}}]
[null,null,null,null,null,null,null,null,null,null,"Liquido :",null,{"$f":"M2117-Q2117","v":{"$error":"#REF!"}}]
[]
[]
[]
[]
[]
[]
[]
[]
[{"$f":"A2088","v":"María José Ceballos López"},null,null,null,null,null,null,null,null,null,null,null,{"$f":"C2106","v":{"$error":"#REF!"}}]
[{"$f":"A2089","v":"Encargada de Nómina"},null,null,null,null,null,null,null,null,null,null,null,{"$f":"P2107","v":{"$error":"#REF!"}}]
[{"$f":"A2090","v":"AMSA "},null,null,null,null,null,null,null,null,null,null,null,"AMSA"]
[]
["GOBIERNO DE LA REPÚBLICA DE GUATEMALA"]
["AUTORIDAD PARA EL MANEJO SUSTENTABLE DE LA CUENCA Y DEL LAGO DE AMATITLÁN"]
[]
[]
[{"$f":"A2064","v":"Boleta de Liquidación Mensual Renglón 031 \"Jornales\"   Correspondiente al mes de octubre 2015"}]
[{"$f":"A2065","v":{"$error":"#REF!"}}]
[]
["Empleado:",null,{"$f":"'031'!#REF!","v":{"$error":"#REF!"}},null,null,null,null,null,null,null,"Certificación No.",null,null,{"$f":"N2067+1","v":32},null,"Fecha:",null,{"$f":"R1144","v":"2014-08-31"}]
["Contrato:",null,{"$f":"'031'!#REF!","v":{"$error":"#REF!"}},null,null,"Puesto Funcional:",null,null,{"$f":"'031'!#REF!","v":{"$error":"#REF!"}},null,null,null,"Titulo Jornal:",null,null,{"$f":"'031'!#REF!","v":{"$error":"#REF!"}}]
["Cuenta / Banco:",null,null,{"$f":"'031'!#REF!","v":{"$error":"#REF!"}},null,"Banco de Desarrollo Rural, S.A.",null,null,null,null,"Jornal Diario:",null,null,{"$f":"'031'!#REF!","v":{"$error":"#REF!"}},null,"Días Trabajados:",null,null,{"$f":"'031'!#REF!","v":{"$error":"#REF!"}}]
[]
[null,null,null,null,null,null,null,null,null,null,null,null,"Ingresos",null,null,null,"Deducciones "]
[]
[null,"031","DEVENGADO",null,null,null,null,null,null,null,null,null,{"$f":"'031'!#REF!","v":{"$error":"#REF!"}}]
[null,"033","BONO ACUERDO GUBERNATIVO 66-2000",null,null,null,null,null,null,null,null,null,{"$f":"'031'!#REF!","v":{"$error":"#REF!"}}]
[null,"201","I.G.S.S",null,null,null,null,null,null,null,null,null,null,null,null,null,{"$f":"'031'!#REF!","v":{"$error":"#REF!"}}]
[null,"118","MONTEPÍO",null,null,null,null,null,null,null,null,null,null,null,null,null,0]
[null,"211","RETENCIONES JUDICIALES",null,null,null,null,null,null,null,null,null,null,null,null,null,{"$f":"'031'!#REF!","v":{"$error":"#REF!"}}]
[null,null,null,null,null,null,null,null,null,null,"Total  :",null,{"$f":"SUM(M2144:O2148)","v":{"$error":"#REF!"}},null,null,null,{"$f":"SUM(Q2146:S2148)","v":{"$error":"#REF!"}}]
[null,null,null,null,null,null,null,null,null,null,"Liquido :",null,{"$f":"M2149-Q2149","v":{"$error":"#REF!"}}]
[]
[]
[]
[]
[]
[]
[]
[]
["María José Ceballos López",null,null,null,null,null,null,null,null,null,null,null,{"$f":"C2138","v":{"$error":"#REF!"}}]
["Encargada de Nómina",null,null,null,null,null,null,null,null,null,null,null,{"$f":"P2139","v":{"$error":"#REF!"}}]
["AMSA ",null,null,null,null,null,null,null,null,null,null,null,"AMSA"]
[]
[]
[]
[]
[]
[]
[]
[]
["GOBIERNO DE LA REPÚBLICA DE GUATEMALA"]
["AUTORIDAD PARA EL MANEJO SUSTENTABLE DE LA CUENCA Y DEL LAGO DE AMATITLÁN"]
[]
[]
[{"$f":"A2135","v":"Boleta de Liquidación Mensual Renglón 031 \"Jornales\"   Correspondiente al mes de octubre 2015"}]
[{"$f":"A2136","v":{"$error":"#REF!"}}]
[]
["Empleado:",null,{"$f":"C2138","v":{"$error":"#REF!"}},null,null,null,null,null,null,null,"Certificación No.",null,null,{"$f":"N2138","v":32},null,"Fecha:",null,{"$f":"R2138","v":"2014-08-31"}]
["Contrato:",null,{"$f":"C2139","v":{"$error":"#REF!"}},null,null,"Puesto Funcional:",null,null,{"$f":"I2139","v":{"$error":"#REF!"}},null,null,null,"Titulo Jornal:",null,null,{"$f":"P2139","v":{"$error":"#REF!"}}]
["Cuenta / Banco:",null,null,{"$f":"D2140","v":{"$error":"#REF!"}},null,"Banco de Desarrollo Rural, S.A.",null,null,null,null,"Jornal Diario:",null,null,{"$f":"N2140","v":{"$error":"#REF!"}},null,"Días Trabajados:",null,null,{"$f":"S2140","v":{"$error":"#REF!"}}]
[]
[null,null,null,null,null,null,null,null,null,null,null,null,"Ingresos",null,null,null,"Deducciones "]
[]
[null,"031","DEVENGADO",null,null,null,null,null,null,null,null,null,{"$f":"M2144","v":{"$error":"#REF!"}}]
[null,"033","BONO ACUERDO GUBERNATIVO 66-2000",null,null,null,null,null,null,null,null,null,{"$f":"M2145","v":{"$error":"#REF!"}}]
[null,"201","I.G.S.S",null,null,null,null,null,null,null,null,null,null,null,null,null,{"$f":"Q2146","v":{"$error":"#REF!"}}]
[null,"118","MONTEPÍO",null,null,null,null,null,null,null,null,null,null,null,null,null,{"$f":"Q2147","v":0}]
[null,"211","RETENCIONES JUDICIALES",null,null,null,null,null,null,null,null,null,null,null,null,null,{"$f":"Q2148","v":{"$error":"#REF!"}}]
[null,null,null,null,null,null,null,null,null,null,"Total  :",null,{"$f":"SUM(M2183:O2187)","v":{"$error":"#REF!"}},null,null,null,{"$f":"SUM(Q2185:S2187)","v":{"$error":"#REF!"}}]
[null,null,null,null,null,null,null,null,null,null,"Liquido :",null,{"$f":"M2188-Q2188","v":{"$error":"#REF!"}}]
[]
[]
[]
[]
[]
[]
[]
[]
[{"$f":"A2159","v":"María José Ceballos López"},null,null,null,null,null,null,null,null,null,null,null,{"$f":"C2177","v":{"$error":"#REF!"}}]
[{"$f":"A2160","v":"Encargada de Nómina"},null,null,null,null,null,null,null,null,null,null,null,{"$f":"P2178","v":{"$error":"#REF!"}}]
[{"$f":"A2161","v":"AMSA "},null,null,null,null,null,null,null,null,null,null,null,"AMSA"]
[]
["GOBIERNO DE LA REPÚBLICA DE GUATEMALA"]
["AUTORIDAD PARA EL MANEJO SUSTENTABLE DE LA CUENCA Y DEL LAGO DE AMATITLÁN"]
[]
[]
[{"$f":"A2135","v":"Boleta de Liquidación Mensual Renglón 031 \"Jornales\"   Correspondiente al mes de octubre 2015"}]
[{"$f":"A2136","v":{"$error":"#REF!"}}]
[]
["Empleado:",null,{"$f":"'031'!F72","v":"Nelson Orlando Quiñonez Yohol"},null,null,null,null,null,null,null,"Certificación No.",null,null,{"$f":"N2138+1","v":33},null,"Fecha:",null,{"$f":"R1215","v":"2014-08-31"}]
["Contrato:",null,{"$f":"'031'!G72","v":"15-2017-031-AMSA"},null,null,"Puesto Funcional:",null,null,{"$f":"'031'!C72","v":"Operadores PTAR"},null,null,null,"Titulo Jornal:",null,null,{"$f":"'031'!D72","v":"Constructor de Puentes"}]
["Cuenta / Banco:",null,null,{"$f":"'031'!T72","v":3216001475},null,"Banco de Desarrollo Rural, S.A.",null,null,null,null,"Jornal Diario:",null,null,{"$f":"'031'!I72","v":80.86},null,"Días Trabajados:",null,null,{"$f":"'031'!J72","v":31}]
[]
[null,null,null,null,null,null,null,null,null,null,null,null,"Ingresos",null,null,null,"Deducciones "]
[]
[null,"031","DEVENGADO",null,null,null,null,null,null,null,null,null,{"$f":"'031'!K72","v":2506.66}]
[null,"033","BONO ACUERDO GUBERNATIVO 66-2000",null,null,null,null,null,null,null,null,null,{"$f":"'031'!L72","v":250}]
[null,"201","I.G.S.S",null,null,null,null,null,null,null,null,null,null,null,null,null,{"$f":"'031'!O72","v":130.12}]
[null,"118","MONTEPÍO",null,null,null,null,null,null,null,null,null,null,null,null,null,0]
[null,"211","RETENCIONES JUDICIALES",null,null,null,null,null,null,null,null,null,null,null,null,null,{"$f":"'031'!P72","v":0}]
[null,null,null,null,null,null,null,null,null,null,"Total  :",null,{"$f":"SUM(M2215:O2219)","v":2756.66},null,null,null,{"$f":"SUM(Q2217:S2219)","v":130.12}]
[null,null,null,null,null,null,null,null,null,null,"Liquido :",null,{"$f":"M2220-Q2220","v":2626.54}]
[]
[]
[]
[]
[]
[]
[]
[]
["María José Ceballos López",null,null,null,null,null,null,null,null,null,null,null,{"$f":"C2209","v":"Nelson Orlando Quiñonez Yohol"}]
["Encargada de Nómina",null,null,null,null,null,null,null,null,null,null,null,{"$f":"P2210","v":"Constructor de Puentes"}]
["AMSA ",null,null,null,null,null,null,null,null,null,null,null,"AMSA"]
[]
[]
[]
[]
[]
[]
[]
[]
["GOBIERNO DE LA REPÚBLICA DE GUATEMALA"]
["AUTORIDAD PARA EL MANEJO SUSTENTABLE DE LA CUENCA Y DEL LAGO DE AMATITLÁN"]
[]
[]
[{"$f":"A2206","v":"Boleta de Liquidación Mensual Renglón 031 \"Jornales\"   Correspondiente al mes de octubre 2015"}]
[{"$f":"A2207","v":{"$error":"#REF!"}}]
[]
["Empleado:",null,{"$f":"C2209","v":"Nelson Orlando Quiñonez Yohol"},null,null,null,null,null,null,null,"Certificación No.",null,null,{"$f":"N2209","v":33},null,"Fecha:",null,{"$f":"R2209","v":"2014-08-31"}]
["Contrato:",null,{"$f":"C2210","v":"15-2017-031-AMSA"},null,null,"Puesto Funcional:",null,null,{"$f":"I2210","v":"Operadores PTAR"},null,null,null,"Titulo Jornal:",null,null,{"$f":"P2210","v":"Constructor de Puentes"}]
["Cuenta / Banco:",null,null,{"$f":"D2211","v":3216001475},null,"Banco de Desarrollo Rural, S.A.",null,null,null,null,"Jornal Diario:",null,null,{"$f":"N2211","v":80.86},null,"Días Trabajados:",null,null,{"$f":"S2211","v":31}]
[]
[null,null,null,null,null,null,null,null,null,null,null,null,"Ingresos",null,null,null,"Deducciones "]
[]
[null,"031","DEVENGADO",null,null,null,null,null,null,null,null,null,{"$f":"M2215","v":2506.66}]
[null,"033","BONO ACUERDO GUBERNATIVO 66-2000",null,null,null,null,null,null,null,null,null,{"$f":"M2216","v":250}]
[null,"201","I.G.S.S",null,null,null,null,null,null,null,null,null,null,null,null,null,{"$f":"Q2217","v":130.12}]
[null,"118","MONTEPÍO",null,null,null,null,null,null,null,null,null,null,null,null,null,{"$f":"Q2218","v":0}]
[null,"211","RETENCIONES JUDICIALES",null,null,null,null,null,null,null,null,null,null,null,null,null,{"$f":"Q2219","v":0}]
[null,null,null,null,null,null,null,null,null,null,"Total  :",null,{"$f":"SUM(M2254:O2258)","v":2756.66},null,null,null,{"$f":"SUM(Q2256:S2258)","v":130.12}]
[null,null,null,null,null,null,null,null,null,null,"Liquido :",null,{"$f":"M2259-Q2259","v":2626.54}]
[]
[]
[]
[]
[]
[]
[]
[]
[{"$f":"A2230","v":"María José Ceballos López"},null,null,null,null,null,null,null,null,null,null,null,{"$f":"C2248","v":"Nelson Orlando Quiñonez Yohol"}]
[{"$f":"A2231","v":"Encargada de Nómina"},null,null,null,null,null,null,null,null,null,null,null,{"$f":"P2249","v":"Constructor de Puentes"}]
[{"$f":"A2232","v":"AMSA "},null,null,null,null,null,null,null,null,null,null,null,"AMSA"]
[]
["GOBIERNO DE LA REPÚBLICA DE GUATEMALA"]
["AUTORIDAD PARA EL MANEJO SUSTENTABLE DE LA CUENCA Y DEL LAGO DE AMATITLÁN"]
[]
[]
[{"$f":"A2206","v":"Boleta de Liquidación Mensual Renglón 031 \"Jornales\"   Correspondiente al mes de octubre 2015"}]
[{"$f":"A2207","v":{"$error":"#REF!"}}]
[]
["Empleado:",null,{"$f":"'031'!F73","v":"Herculano Colmenar Estrada"},null,null,null,null,null,null,null,"Certificación No.",null,null,{"$f":"N2209+1","v":34},null,"Fecha:",null,{"$f":"R1286","v":"2014-09-30"}]
["Contrato:",null,{"$f":"'031'!G73","v":"16-2017-031-AMSA"},null,null,"Puesto Funcional:",null,null,{"$f":"'031'!C73","v":"Operadores PTAR"},null,null,null,"Titulo Jornal:",null,null,{"$f":"'031'!D73","v":"Constructor de Puentes"}]
["Cuenta / Banco:",null,null,{"$f":"'031'!T73","v":3216001439},null,"Banco de Desarrollo Rural, S.A.",null,null,null,null,"Jornal Diario:",null,null,{"$f":"'031'!I73","v":80.86},null,"Días Trabajados:",null,null,{"$f":"'031'!J73","v":31}]
[]
[null,null,null,null,null,null,null,null,null,null,null,null,"Ingresos",null,null,null,"Deducciones "]
[]
[null,"031","DEVENGADO",null,null,null,null,null,null,null,null,null,{"$f":"'031'!K73","v":2506.66}]
[null,"033","BONO ACUERDO GUBERNATIVO 66-2000",null,null,null,null,null,null,null,null,null,{"$f":"'031'!L73","v":250}]
[null,"201","I.G.S.S",null,null,null,null,null,null,null,null,null,null,null,null,null,{"$f":"'031'!O73","v":130.12}]
[null,"118","MONTEPÍO",null,null,null,null,null,null,null,null,null,null,null,null,null,0]
[null,"211","RETENCIONES JUDICIALES",null,null,null,null,null,null,null,null,null,null,null,null,null,{"$f":"'031'!P73","v":0}]
[null,null,null,null,null,null,null,null,null,null,"Total  :",null,{"$f":"SUM(M2286:O2290)","v":2756.66},null,null,null,{"$f":"SUM(Q2288:S2290)","v":130.12}]
[null,null,null,null,null,null,null,null,null,null,"Liquido :",null,{"$f":"M2291-Q2291","v":2626.54}]
[]
[]
[]
[]
[]
[]
[]
[]
["María José Ceballos López",null,null,null,null,null,null,null,null,null,null,null,{"$f":"C2280","v":"Herculano Colmenar Estrada"}]
["Encargada de Nómina",null,null,null,null,null,null,null,null,null,null,null,{"$f":"P2281","v":"Constructor de Puentes"}]
["AMSA ",null,null,null,null,null,null,null,null,null,null,null,"AMSA"]
[]
[]
[]
[]
[]
[]
[]
[]
["GOBIERNO DE LA REPÚBLICA DE GUATEMALA"]
["AUTORIDAD PARA EL MANEJO SUSTENTABLE DE LA CUENCA Y DEL LAGO DE AMATITLÁN"]
[]
[]
[{"$f":"A2277","v":"Boleta de Liquidación Mensual Renglón 031 \"Jornales\"   Correspondiente al mes de octubre 2015"}]
[{"$f":"A2278","v":{"$error":"#REF!"}}]
[]
["Empleado:",null,{"$f":"C2280","v":"Herculano Colmenar Estrada"},null,null,null,null,null,null,null,"Certificación No.",null,null,{"$f":"N2280","v":34},null,"Fecha:",null,{"$f":"R2280","v":"2014-09-30"}]
["Contrato:",null,{"$f":"C2281","v":"16-2017-031-AMSA"},null,null,"Puesto Funcional:",null,null,{"$f":"I2281","v":"Operadores PTAR"},null,null,null,"Titulo Jornal:",null,null,{"$f":"P2281","v":"Constructor de Puentes"}]
["Cuenta / Banco:",null,null,{"$f":"D2282","v":3216001439},null,"Banco de Desarrollo Rural, S.A.",null,null,null,null,"Jornal Diario:",null,null,{"$f":"N2282","v":80.86},null,"Días Trabajados:",null,null,{"$f":"S2282","v":31}]
[]
[null,null,null,null,null,null,null,null,null,null,null,null,"Ingresos",null,null,null,"Deducciones "]
[]
[null,"031","DEVENGADO",null,null,null,null,null,null,null,null,null,{"$f":"M2286","v":2506.66}]
[null,"033","BONO ACUERDO GUBERNATIVO 66-2000",null,null,null,null,null,null,null,null,null,{"$f":"M2287","v":250}]
[null,"201","I.G.S.S",null,null,null,null,null,null,null,null,null,null,null,null,null,{"$f":"Q2288","v":130.12}]
[null,"118","MONTEPÍO",null,null,null,null,null,null,null,null,null,null,null,null,null,{"$f":"Q2289","v":0}]
[null,"211","RETENCIONES JUDICIALES",null,null,null,null,null,null,null,null,null,null,null,null,null,{"$f":"Q2290","v":0}]
[null,null,null,null,null,null,null,null,null,null,"Total  :",null,{"$f":"SUM(M2325:O2329)","v":2756.66},null,null,null,{"$f":"SUM(Q2327:S2329)","v":130.12}]
[null,null,null,null,null,null,null,null,null,null,"Liquido :",null,{"$f":"M2330-Q2330","v":2626.54}]
[]
[]
[]
[]
[]
[]
[]
[]
[{"$f":"A2301","v":"María José Ceballos López"},null,null,null,null,null,null,null,null,null,null,null,{"$f":"C2319","v":"Herculano Colmenar Estrada"}]
[{"$f":"A2302","v":"Encargada de Nómina"},null,null,null,null,null,null,null,null,null,null,null,{"$f":"P2320","v":"Constructor de Puentes"}]
[{"$f":"A2303","v":"AMSA "},null,null,null,null,null,null,null,null,null,null,null,"AMSA"]
[]
["GOBIERNO DE LA REPÚBLICA DE GUATEMALA"]
["AUTORIDAD PARA EL MANEJO SUSTENTABLE DE LA CUENCA Y DEL LAGO DE AMATITLÁN"]
[]
[]
[{"$f":"A2277","v":"Boleta de Liquidación Mensual Renglón 031 \"Jornales\"   Correspondiente al mes de octubre 2015"}]
[{"$f":"A2278","v":{"$error":"#REF!"}}]
[]
["Empleado:",null,{"$f":"'031'!F74","v":"Guillermo Apolonio Chuc Mejía"},null,null,null,null,null,null,null,"Certificación No.",null,null,{"$f":"N2280+1","v":35},null,"Fecha:",null,{"$f":"R1357","v":"2014-08-31"}]
["Contrato:",null,{"$f":"'031'!G74","v":"17-2017-031-AMSA"},null,null,"Puesto Funcional:",null,null,{"$f":"'031'!C74","v":"Operadores PTAR"},null,null,null,"Titulo Jornal:",null,null,{"$f":"'031'!D74","v":"Constructor de Puentes"}]
["Cuenta / Banco:",null,null,{"$f":"'031'!T74","v":3216001493},null,"Banco de Desarrollo Rural, S.A.",null,null,null,null,"Jornal Diario:",null,null,{"$f":"'031'!I74","v":80.86},null,"Días Trabajados:",null,null,{"$f":"'031'!J74","v":31}]
[]
[null,null,null,null,null,null,null,null,null,null,null,null,"Ingresos",null,null,null,"Deducciones "]
[]
[null,"031","DEVENGADO",null,null,null,null,null,null,null,null,null,{"$f":"'031'!K74","v":2506.66}]
[null,"033","BONO ACUERDO GUBERNATIVO 66-2000",null,null,null,null,null,null,null,null,null,{"$f":"'031'!L74","v":250}]
[null,"201","I.G.S.S",null,null,null,null,null,null,null,null,null,null,null,null,null,{"$f":"'031'!O74","v":130.12}]
[null,"118","MONTEPÍO",null,null,null,null,null,null,null,null,null,null,null,null,null,0]
[null,"211","RETENCIONES JUDICIALES",null,null,null,null,null,null,null,null,null,null,null,null,null,{"$f":"'031'!P74","v":0}]
[null,null,null,null,null,null,null,null,null,null,"Total  :",null,{"$f":"SUM(M2357:O2361)","v":2756.66},null,null,null,{"$f":"SUM(Q2359:S2361)","v":130.12}]
[null,null,null,null,null,null,null,null,null,null,"Liquido :",null,{"$f":"M2362-Q2362","v":2626.54}]
[]
[]
[]
[]
[]
[]
[]
[]
["María José Ceballos López",null,null,null,null,null,null,null,null,null,null,null,{"$f":"C2351","v":"Guillermo Apolonio Chuc Mejía"}]
["Encargada de Nómina",null,null,null,null,null,null,null,null,null,null,null,{"$f":"P2352","v":"Constructor de Puentes"}]
["AMSA ",null,null,null,null,null,null,null,null,null,null,null,"AMSA"]
[]
[]
[]
[]
[]
[]
[]
[]
["GOBIERNO DE LA REPÚBLICA DE GUATEMALA"]
["AUTORIDAD PARA EL MANEJO SUSTENTABLE DE LA CUENCA Y DEL LAGO DE AMATITLÁN"]
[]
[]
[{"$f":"A2348","v":"Boleta de Liquidación Mensual Renglón 031 \"Jornales\"   Correspondiente al mes de octubre 2015"}]
[{"$f":"A2349","v":{"$error":"#REF!"}}]
[]
["Empleado:",null,{"$f":"C2351","v":"Guillermo Apolonio Chuc Mejía"},null,null,null,null,null,null,null,"Certificación No.",null,null,{"$f":"N2351","v":35},null,"Fecha:",null,{"$f":"R2351","v":"2014-08-31"}]
["Contrato:",null,{"$f":"C2352","v":"17-2017-031-AMSA"},null,null,"Puesto Funcional:",null,null,{"$f":"I2352","v":"Operadores PTAR"},null,null,null,"Titulo Jornal:",null,null,{"$f":"P2352","v":"Constructor de Puentes"}]
["Cuenta / Banco:",null,null,{"$f":"D2353","v":3216001493},null,"Banco de Desarrollo Rural, S.A.",null,null,null,null,"Jornal Diario:",null,null,{"$f":"N2353","v":80.86},null,"Días Trabajados:",null,null,{"$f":"S2353","v":31}]
[]
[null,null,null,null,null,null,null,null,null,null,null,null,"Ingresos",null,null,null,"Deducciones "]
[]
[null,"031","DEVENGADO",null,null,null,null,null,null,null,null,null,{"$f":"M2357","v":2506.66}]
[null,"033","BONO ACUERDO GUBERNATIVO 66-2000",null,null,null,null,null,null,null,null,null,{"$f":"M2358","v":250}]
[null,"201","I.G.S.S",null,null,null,null,null,null,null,null,null,null,null,null,null,{"$f":"Q2359","v":130.12}]
[null,"118","MONTEPÍO",null,null,null,null,null,null,null,null,null,null,null,null,null,{"$f":"Q2360","v":0}]
[null,"211","RETENCIONES JUDICIALES",null,null,null,null,null,null,null,null,null,null,null,null,null,{"$f":"Q2361","v":0}]
[null,null,null,null,null,null,null,null,null,null,"Total  :",null,{"$f":"SUM(M2396:O2400)","v":2756.66},null,null,null,{"$f":"SUM(Q2398:S2400)","v":130.12}]
[null,null,null,null,null,null,null,null,null,null,"Liquido :",null,{"$f":"M2401-Q2401","v":2626.54}]
[]
[]
[]
[]
[]
[]
[]
[]
[{"$f":"A2372","v":"María José Ceballos López"},null,null,null,null,null,null,null,null,null,null,null,{"$f":"C2390","v":"Guillermo Apolonio Chuc Mejía"}]
[{"$f":"A2373","v":"Encargada de Nómina"},null,null,null,null,null,null,null,null,null,null,null,{"$f":"P2391","v":"Constructor de Puentes"}]
[{"$f":"A2374","v":"AMSA "},null,null,null,null,null,null,null,null,null,null,null,"AMSA"]
[]
["GOBIERNO DE LA REPÚBLICA DE GUATEMALA"]
["AUTORIDAD PARA EL MANEJO SUSTENTABLE DE LA CUENCA Y DEL LAGO DE AMATITLÁN"]
[]
[]
[{"$f":"A2348","v":"Boleta de Liquidación Mensual Renglón 031 \"Jornales\"   Correspondiente al mes de octubre 2015"}]
[{"$f":"A2349","v":{"$error":"#REF!"}}]
[]
["Empleado:",null,{"$f":"'031'!F75","v":"Marcelino Gómez Dávila"},null,null,null,null,null,null,null,"Certificación No.",null,null,{"$f":"N2351+1","v":36},null,"Fecha:",null,{"$f":"R1428","v":"2015-08-31"}]
["Contrato:",null,{"$f":"'031'!G75","v":"18-2017-031-AMSA"},null,null,"Puesto Funcional:",null,null,{"$f":"'031'!C75","v":"Operadores PTAR"},null,null,null,"Titulo Jornal:",null,null,{"$f":"'031'!D75","v":"Constructor de Puentes"}]
["Cuenta / Banco:",null,null,{"$f":"'031'!T75","v":4216002459},null,"Banco de Desarrollo Rural, S.A.",null,null,null,null,"Jornal Diario:",null,null,{"$f":"'031'!I75","v":80.86},null,"Días Trabajados:",null,null,{"$f":"'031'!J75","v":31}]
[]
[null,null,null,null,null,null,null,null,null,null,null,null,"Ingresos",null,null,null,"Deducciones "]
[]
[null,"031","DEVENGADO",null,null,null,null,null,null,null,null,null,{"$f":"'031'!K75","v":2506.66}]
[null,"033","BONO ACUERDO GUBERNATIVO 66-2000",null,null,null,null,null,null,null,null,null,{"$f":"'031'!L75","v":250}]
[null,"201","I.G.S.S",null,null,null,null,null,null,null,null,null,null,null,null,null,{"$f":"'031'!O75","v":130.12}]
[null,"118","MONTEPÍO",null,null,null,null,null,null,null,null,null,null,null,null,null,0]
[null,"211","RETENCIONES JUDICIALES",null,null,null,null,null,null,null,null,null,null,null,null,null,{"$f":"'031'!P75","v":0}]
[null,null,null,null,null,null,null,null,null,null,"Total  :",null,{"$f":"SUM(M2428:O2432)","v":2756.66},null,null,null,{"$f":"SUM(Q2430:S2432)","v":130.12}]
[null,null,null,null,null,null,null,null,null,null,"Liquido :",null,{"$f":"M2433-Q2433","v":2626.54}]
[]
[]
[]
[]
[]
[]
[]
[]
["María José Ceballos López",null,null,null,null,null,null,null,null,null,null,null,{"$f":"C2422","v":"Marcelino Gómez Dávila"}]
["Encargada de Nómina",null,null,null,null,null,null,null,null,null,null,null,{"$f":"P2423","v":"Constructor de Puentes"}]
["AMSA ",null,null,null,null,null,null,null,null,null,null,null,"AMSA"]
[]
[]
[]
[]
[]
[]
[]
[]
["GOBIERNO DE LA REPÚBLICA DE GUATEMALA"]
["AUTORIDAD PARA EL MANEJO SUSTENTABLE DE LA CUENCA Y DEL LAGO DE AMATITLÁN"]
[]
[]
[{"$f":"A2419","v":"Boleta de Liquidación Mensual Renglón 031 \"Jornales\"   Correspondiente al mes de octubre 2015"}]
[{"$f":"A2420","v":{"$error":"#REF!"}}]
[]
["Empleado:",null,{"$f":"C2422","v":"Marcelino Gómez Dávila"},null,null,null,null,null,null,null,"Certificación No.",null,null,{"$f":"N2422","v":36},null,"Fecha:",null,{"$f":"R2422","v":"2015-08-31"}]
["Contrato:",null,{"$f":"C2423","v":"18-2017-031-AMSA"},null,null,"Puesto Funcional:",null,null,{"$f":"I2423","v":"Operadores PTAR"},null,null,null,"Titulo Jornal:",null,null,{"$f":"P2423","v":"Constructor de Puentes"}]
["Cuenta / Banco:",null,null,{"$f":"D2424","v":4216002459},null,"Banco de Desarrollo Rural, S.A.",null,null,null,null,"Jornal Diario:",null,null,{"$f":"N2424","v":80.86},null,"Días Trabajados:",null,null,{"$f":"S2424","v":31}]
[]
[null,null,null,null,null,null,null,null,null,null,null,null,"Ingresos",null,null,null,"Deducciones "]
[]
[null,"031","DEVENGADO",null,null,null,null,null,null,null,null,null,{"$f":"M2428","v":2506.66}]
[null,"033","BONO ACUERDO GUBERNATIVO 66-2000",null,null,null,null,null,null,null,null,null,{"$f":"M2429","v":250}]
[null,"201","I.G.S.S",null,null,null,null,null,null,null,null,null,null,null,null,null,{"$f":"Q2430","v":130.12}]
[null,"118","MONTEPÍO",null,null,null,null,null,null,null,null,null,null,null,null,null,{"$f":"Q2431","v":0}]
[null,"211","RETENCIONES JUDICIALES",null,null,null,null,null,null,null,null,null,null,null,null,null,{"$f":"Q2432","v":0}]
[null,null,null,null,null,null,null,null,null,null,"Total  :",null,{"$f":"SUM(M2467:O2471)","v":2756.66},null,null,null,{"$f":"SUM(Q2469:S2471)","v":130.12}]
[null,null,null,null,null,null,null,null,null,null,"Liquido :",null,{"$f":"M2472-Q2472","v":2626.54}]
[]
[]
[]
[]
[]
[]
[]
[]
[{"$f":"A2443","v":"María José Ceballos López"},null,null,null,null,null,null,null,null,null,null,null,{"$f":"C2461","v":"Marcelino Gómez Dávila"}]
[{"$f":"A2444","v":"Encargada de Nómina"},null,null,null,null,null,null,null,null,null,null,null,{"$f":"P2462","v":"Constructor de Puentes"}]
[{"$f":"A2445","v":"AMSA "},null,null,null,null,null,null,null,null,null,null,null,"AMSA"]
[]
["GOBIERNO DE LA REPÚBLICA DE GUATEMALA"]
["AUTORIDAD PARA EL MANEJO SUSTENTABLE DE LA CUENCA Y DEL LAGO DE AMATITLÁN"]
[]
[]
[{"$f":"A2419","v":"Boleta de Liquidación Mensual Renglón 031 \"Jornales\"   Correspondiente al mes de octubre 2015"}]
[{"$f":"A2420","v":{"$error":"#REF!"}}]
[]
["Empleado:",null,{"$f":"'031'!#REF!","v":{"$error":"#REF!"}},null,null,null,null,null,null,null,"Certificación No.",null,null,{"$f":"N2422+1","v":37},null,"Fecha:",null,{"$f":"R1499","v":"2014-08-31"}]
["Contrato:",null,{"$f":"'031'!#REF!","v":{"$error":"#REF!"}},null,null,"Puesto Funcional:",null,null,{"$f":"'031'!#REF!","v":{"$error":"#REF!"}},null,null,null,"Titulo Jornal:",null,null,{"$f":"'031'!#REF!","v":{"$error":"#REF!"}}]
["Cuenta / Banco:",null,null,{"$f":"'031'!#REF!","v":{"$error":"#REF!"}},null,"Banco de Desarrollo Rural, S.A.",null,null,null,null,"Jornal Diario:",null,null,{"$f":"'031'!#REF!","v":{"$error":"#REF!"}},null,"Días Trabajados:",null,null,{"$f":"'031'!#REF!","v":{"$error":"#REF!"}}]
[]
[null,null,null,null,null,null,null,null,null,null,null,null,"Ingresos",null,null,null,"Deducciones "]
[]
[null,"031","DEVENGADO",null,null,null,null,null,null,null,null,null,{"$f":"'031'!#REF!","v":{"$error":"#REF!"}}]
[null,"033","BONO ACUERDO GUBERNATIVO 66-2000",null,null,null,null,null,null,null,null,null,{"$f":"'031'!#REF!","v":{"$error":"#REF!"}}]
[null,"201","I.G.S.S",null,null,null,null,null,null,null,null,null,null,null,null,null,{"$f":"'031'!#REF!","v":{"$error":"#REF!"}}]
[null,"118","MONTEPÍO",null,null,null,null,null,null,null,null,null,null,null,null,null,0]
[null,"211","RETENCIONES JUDICIALES",null,null,null,null,null,null,null,null,null,null,null,null,null,{"$f":"'031'!#REF!","v":{"$error":"#REF!"}}]
[null,null,null,null,null,null,null,null,null,null,"Total  :",null,{"$f":"SUM(M2499:O2503)","v":{"$error":"#REF!"}},null,null,null,{"$f":"SUM(Q2501:S2503)","v":{"$error":"#REF!"}}]
[null,null,null,null,null,null,null,null,null,null,"Liquido :",null,{"$f":"M2504-Q2504","v":{"$error":"#REF!"}}]
[]
[]
[]
[]
[]
[]
[]
[]
["María José Ceballos López",null,null,null,null,null,null,null,null,null,null,null,{"$f":"C2493","v":{"$error":"#REF!"}}]
["Encargada de Nómina",null,null,null,null,null,null,null,null,null,null,null,{"$f":"P2494","v":{"$error":"#REF!"}}]
["AMSA ",null,null,null,null,null,null,null,null,null,null,null,"AMSA"]
[]
[]
[]
[]
[]
[]
[]
[]
["GOBIERNO DE LA REPÚBLICA DE GUATEMALA"]
["AUTORIDAD PARA EL MANEJO SUSTENTABLE DE LA CUENCA Y DEL LAGO DE AMATITLÁN"]
[]
[]
[{"$f":"A2490","v":"Boleta de Liquidación Mensual Renglón 031 \"Jornales\"   Correspondiente al mes de octubre 2015"}]
[{"$f":"A2491","v":{"$error":"#REF!"}}]
[]
["Empleado:",null,{"$f":"C2493","v":{"$error":"#REF!"}},null,null,null,null,null,null,null,"Certificación No.",null,null,{"$f":"N2493","v":37},null,"Fecha:",null,{"$f":"R2493","v":"2014-08-31"}]
["Contrato:",null,{"$f":"C2494","v":{"$error":"#REF!"}},null,null,"Puesto Funcional:",null,null,{"$f":"I2494","v":{"$error":"#REF!"}},null,null,null,"Titulo Jornal:",null,null,{"$f":"P2494","v":{"$error":"#REF!"}}]
["Cuenta / Banco:",null,null,{"$f":"D2495","v":{"$error":"#REF!"}},null,"Banco de Desarrollo Rural, S.A.",null,null,null,null,"Jornal Diario:",null,null,{"$f":"N2495","v":{"$error":"#REF!"}},null,"Días Trabajados:",null,null,{"$f":"S2495","v":{"$error":"#REF!"}}]
[]
[null,null,null,null,null,null,null,null,null,null,null,null,"Ingresos",null,null,null,"Deducciones "]
[]
[null,"031","DEVENGADO",null,null,null,null,null,null,null,null,null,{"$f":"M2499","v":{"$error":"#REF!"}}]
[null,"033","BONO ACUERDO GUBERNATIVO 66-2000",null,null,null,null,null,null,null,null,null,{"$f":"M2500","v":{"$error":"#REF!"}}]
[null,"201","I.G.S.S",null,null,null,null,null,null,null,null,null,null,null,null,null,{"$f":"Q2501","v":{"$error":"#REF!"}}]
[null,"118","MONTEPÍO",null,null,null,null,null,null,null,null,null,null,null,null,null,{"$f":"Q2502","v":0}]
[null,"211","RETENCIONES JUDICIALES",null,null,null,null,null,null,null,null,null,null,null,null,null,{"$f":"Q2503","v":{"$error":"#REF!"}}]
[null,null,null,null,null,null,null,null,null,null,"Total  :",null,{"$f":"SUM(M2538:O2542)","v":{"$error":"#REF!"}},null,null,null,{"$f":"SUM(Q2540:S2542)","v":{"$error":"#REF!"}}]
[null,null,null,null,null,null,null,null,null,null,"Liquido :",null,{"$f":"M2543-Q2543","v":{"$error":"#REF!"}}]
[]
[]
[]
[]
[]
[]
[]
[]
[{"$f":"A2514","v":"María José Ceballos López"},null,null,null,null,null,null,null,null,null,null,null,{"$f":"C2532","v":{"$error":"#REF!"}}]
[{"$f":"A2515","v":"Encargada de Nómina"},null,null,null,null,null,null,null,null,null,null,null,{"$f":"P2533","v":{"$error":"#REF!"}}]
[{"$f":"A2516","v":"AMSA "},null,null,null,null,null,null,null,null,null,null,null,"AMSA"]
[]
["GOBIERNO DE LA REPÚBLICA DE GUATEMALA"]
["AUTORIDAD PARA EL MANEJO SUSTENTABLE DE LA CUENCA Y DEL LAGO DE AMATITLÁN"]
[]
[]
[{"$f":"A2490","v":"Boleta de Liquidación Mensual Renglón 031 \"Jornales\"   Correspondiente al mes de octubre 2015"}]
[{"$f":"A2491","v":{"$error":"#REF!"}}]
[]
["Empleado:",null,{"$f":"'031'!F76","v":"Héctor William Martínez Cabrera"},null,null,null,null,null,null,null,"Certificación No.",null,null,{"$f":"N2493+1","v":38},null,"Fecha:",null,{"$f":"R1570","v":"2014-08-31"}]
["Contrato:",null,{"$f":"'031'!G76","v":"19-2017-031-AMSA"},null,null,"Puesto Funcional:",null,null,{"$f":"'031'!C76","v":"Peón de Campo"},null,null,null,"Titulo Jornal:",null,null,{"$f":"'031'!D76","v":"Constructor de Puentes"}]
["Cuenta / Banco:",null,null,{"$f":"'031'!T76","v":3216004486},null,"Banco de Desarrollo Rural, S.A.",null,null,null,null,"Jornal Diario:",null,null,{"$f":"'031'!I76","v":80.86},null,"Días Trabajados:",null,null,{"$f":"'031'!J76","v":31}]
[]
[null,null,null,null,null,null,null,null,null,null,null,null,"Ingresos",null,null,null,"Deducciones "]
[]
[null,"031","DEVENGADO",null,null,null,null,null,null,null,null,null,{"$f":"'031'!K76","v":2506.66}]
[null,"033","BONO ACUERDO GUBERNATIVO 66-2000",null,null,null,null,null,null,null,null,null,{"$f":"'031'!L76","v":250}]
[null,"201","I.G.S.S",null,null,null,null,null,null,null,null,null,null,null,null,null,{"$f":"'031'!O76","v":130.12}]
[null,"118","MONTEPÍO",null,null,null,null,null,null,null,null,null,null,null,null,null,0]
[null,"211","RETENCIONES JUDICIALES",null,null,null,null,null,null,null,null,null,null,null,null,null,{"$f":"'031'!P76","v":0}]
[null,null,null,null,null,null,null,null,null,null,"Total  :",null,{"$f":"SUM(M2570:O2574)","v":2756.66},null,null,null,{"$f":"SUM(Q2572:S2574)","v":130.12}]
[null,null,null,null,null,null,null,null,null,null,"Liquido :",null,{"$f":"M2575-Q2575","v":2626.54}]
[]
[]
[]
[]
[]
[]
[]
[]
["María José Ceballos López",null,null,null,null,null,null,null,null,null,null,null,{"$f":"C2564","v":"Héctor William Martínez Cabrera"}]
["Encargada de Nómina",null,null,null,null,null,null,null,null,null,null,null,{"$f":"P2565","v":"Constructor de Puentes"}]
["AMSA ",null,null,null,null,null,null,null,null,null,null,null,"AMSA"]
[]
[]
[]
[]
[]
[]
[]
[]
["GOBIERNO DE LA REPÚBLICA DE GUATEMALA"]
["AUTORIDAD PARA EL MANEJO SUSTENTABLE DE LA CUENCA Y DEL LAGO DE AMATITLÁN"]
[]
[]
[{"$f":"A2561","v":"Boleta de Liquidación Mensual Renglón 031 \"Jornales\"   Correspondiente al mes de octubre 2015"}]
[{"$f":"A2562","v":{"$error":"#REF!"}}]
[]
["Empleado:",null,{"$f":"C2564","v":"Héctor William Martínez Cabrera"},null,null,null,null,null,null,null,"Certificación No.",null,null,{"$f":"N2564","v":38},null,"Fecha:",null,{"$f":"R2564","v":"2014-08-31"}]
["Contrato:",null,{"$f":"C2565","v":"19-2017-031-AMSA"},null,null,"Puesto Funcional:",null,null,{"$f":"I2565","v":"Peón de Campo"},null,null,null,"Titulo Jornal:",null,null,{"$f":"P2565","v":"Constructor de Puentes"}]
["Cuenta / Banco:",null,null,{"$f":"D2566","v":3216004486},null,"Banco de Desarrollo Rural, S.A.",null,null,null,null,"Jornal Diario:",null,null,{"$f":"N2566","v":80.86},null,"Días Trabajados:",null,null,{"$f":"S2566","v":31}]
[]
[null,null,null,null,null,null,null,null,null,null,null,null,"Ingresos",null,null,null,"Deducciones "]
[]
[null,"031","DEVENGADO",null,null,null,null,null,null,null,null,null,{"$f":"M2570","v":2506.66}]
[null,"033","BONO ACUERDO GUBERNATIVO 66-2000",null,null,null,null,null,null,null,null,null,{"$f":"M2571","v":250}]
[null,"201","I.G.S.S",null,null,null,null,null,null,null,null,null,null,null,null,null,{"$f":"Q2572","v":130.12}]
[null,"118","MONTEPÍO",null,null,null,null,null,null,null,null,null,null,null,null,null,{"$f":"Q2573","v":0}]
[null,"211","RETENCIONES JUDICIALES",null,null,null,null,null,null,null,null,null,null,null,null,null,{"$f":"Q2574","v":0}]
[null,null,null,null,null,null,null,null,null,null,"Total  :",null,{"$f":"SUM(M2609:O2613)","v":2756.66},null,null,null,{"$f":"SUM(Q2611:S2613)","v":130.12}]
[null,null,null,null,null,null,null,null,null,null,"Liquido :",null,{"$f":"M2614-Q2614","v":2626.54}]
[]
[]
[]
[]
[]
[]
[]
[]
[{"$f":"A2585","v":"María José Ceballos López"},null,null,null,null,null,null,null,null,null,null,null,{"$f":"C2603","v":"Héctor William Martínez Cabrera"}]
[{"$f":"A2586","v":"Encargada de Nómina"},null,null,null,null,null,null,null,null,null,null,null,{"$f":"P2604","v":"Constructor de Puentes"}]
[{"$f":"A2587","v":"AMSA "},null,null,null,null,null,null,null,null,null,null,null,"AMSA"]
[]
["GOBIERNO DE LA REPÚBLICA DE GUATEMALA"]
["AUTORIDAD PARA EL MANEJO SUSTENTABLE DE LA CUENCA Y DEL LAGO DE AMATITLÁN"]
[]
[]
[{"$f":"A2561","v":"Boleta de Liquidación Mensual Renglón 031 \"Jornales\"   Correspondiente al mes de octubre 2015"}]
[{"$f":"A2562","v":{"$error":"#REF!"}}]
[]
["Empleado:",null,{"$f":"'031'!F123","v":"Esvin Leonel Rivera Pineda"},null,null,null,null,null,null,null,"Certificación No.",null,null,{"$f":"N2564+1","v":39},null,"Fecha:",null,{"$f":"R1641","v":"2014-08-31"}]
["Contrato:",null,{"$f":"'031'!G123","v":"38-2017-031-AMSA"},null,null,"Puesto Funcional:",null,null,"Peón de Campo",null,null,null,"Titulo Jornal:",null,null,{"$f":"'031'!D123","v":"Constructor de Puentes"}]
["Cuenta / Banco:",null,null,{"$f":"'031'!T123","v":3216001659},null,"Banco de Desarrollo Rural, S.A.",null,null,null,null,"Jornal Diario:",null,null,{"$f":"'031'!I123","v":80.86},null,"Días Trabajados:",null,null,{"$f":"'031'!J123","v":31}]
[]
[null,null,null,null,null,null,null,null,null,null,null,null,"Ingresos",null,null,null,"Deducciones "]
[]
[null,"031","DEVENGADO",null,null,null,null,null,null,null,null,null,{"$f":"'031'!K123","v":2506.66}]
[null,"033","BONO ACUERDO GUBERNATIVO 66-2000",null,null,null,null,null,null,null,null,null,{"$f":"'031'!L123","v":250}]
[null,"201","I.G.S.S",null,null,null,null,null,null,null,null,null,null,null,null,null,{"$f":"'031'!O123","v":130.12}]
[null,"118","MONTEPÍO",null,null,null,null,null,null,null,null,null,null,null,null,null,0]
[null,"211","RETENCIONES JUDICIALES",null,null,null,null,null,null,null,null,null,null,null,null,null,{"$f":"'031'!P123","v":0}]
[null,null,null,null,null,null,null,null,null,null,"Total  :",null,{"$f":"SUM(M2641:O2645)","v":2756.66},null,null,null,{"$f":"SUM(Q2643:S2645)","v":130.12}]
[null,null,null,null,null,null,null,null,null,null,"Liquido :",null,{"$f":"M2646-Q2646","v":2626.54}]
[]
[]
[]
[]
[]
[]
[]
[]
["María José Ceballos López",null,null,null,null,null,null,null,null,null,null,null,{"$f":"C2635","v":"Esvin Leonel Rivera Pineda"}]
["Encargada de Nómina",null,null,null,null,null,null,null,null,null,null,null,{"$f":"P2636","v":"Constructor de Puentes"}]
["AMSA ",null,null,null,null,null,null,null,null,null,null,null,"AMSA"]
[]
[]
[]
[]
[]
[]
[]
[]
["GOBIERNO DE LA REPÚBLICA DE GUATEMALA"]
["AUTORIDAD PARA EL MANEJO SUSTENTABLE DE LA CUENCA Y DEL LAGO DE AMATITLÁN"]
[]
[]
[{"$f":"A2632","v":"Boleta de Liquidación Mensual Renglón 031 \"Jornales\"   Correspondiente al mes de octubre 2015"}]
[{"$f":"A2633","v":{"$error":"#REF!"}}]
[]
["Empleado:",null,{"$f":"C2635","v":"Esvin Leonel Rivera Pineda"},null,null,null,null,null,null,null,"Certificación No.",null,null,{"$f":"N2635","v":39},null,"Fecha:",null,{"$f":"R2635","v":"2014-08-31"}]
["Contrato:",null,{"$f":"C2636","v":"38-2017-031-AMSA"},null,null,"Puesto Funcional:",null,null,{"$f":"I2636","v":"Peón de Campo"},null,null,null,"Titulo Jornal:",null,null,{"$f":"P2636","v":"Constructor de Puentes"}]
["Cuenta / Banco:",null,null,{"$f":"D2637","v":3216001659},null,"Banco de Desarrollo Rural, S.A.",null,null,null,null,"Jornal Diario:",null,null,{"$f":"N2637","v":80.86},null,"Días Trabajados:",null,null,{"$f":"S2637","v":31}]
[]
[null,null,null,null,null,null,null,null,null,null,null,null,"Ingresos",null,null,null,"Deducciones "]
[]
[null,"031","DEVENGADO",null,null,null,null,null,null,null,null,null,{"$f":"M2641","v":2506.66}]
[null,"033","BONO ACUERDO GUBERNATIVO 66-2000",null,null,null,null,null,null,null,null,null,{"$f":"M2642","v":250}]
[null,"201","I.G.S.S",null,null,null,null,null,null,null,null,null,null,null,null,null,{"$f":"Q2643","v":130.12}]
[null,"118","MONTEPÍO",null,null,null,null,null,null,null,null,null,null,null,null,null,{"$f":"Q2644","v":0}]
[null,"211","RETENCIONES JUDICIALES",null,null,null,null,null,null,null,null,null,null,null,null,null,{"$f":"Q2645","v":0}]
[null,null,null,null,null,null,null,null,null,null,"Total  :",null,{"$f":"SUM(M2680:O2684)","v":2756.66},null,null,null,{"$f":"SUM(Q2682:S2684)","v":130.12}]
[null,null,null,null,null,null,null,null,null,null,"Liquido :",null,{"$f":"M2685-Q2685","v":2626.54}]
[]
[]
[]
[]
[]
[]
[]
[]
[{"$f":"A2656","v":"María José Ceballos López"},null,null,null,null,null,null,null,null,null,null,null,{"$f":"C2674","v":"Esvin Leonel Rivera Pineda"}]
[{"$f":"A2657","v":"Encargada de Nómina"},null,null,null,null,null,null,null,null,null,null,null,{"$f":"P2675","v":"Constructor de Puentes"}]
[{"$f":"A2658","v":"AMSA "},null,null,null,null,null,null,null,null,null,null,null,"AMSA"]
[]
["GOBIERNO DE LA REPÚBLICA DE GUATEMALA"]
["AUTORIDAD PARA EL MANEJO SUSTENTABLE DE LA CUENCA Y DEL LAGO DE AMATITLÁN"]
[]
[]
[{"$f":"A2632","v":"Boleta de Liquidación Mensual Renglón 031 \"Jornales\"   Correspondiente al mes de octubre 2015"}]
[{"$f":"A2633","v":{"$error":"#REF!"}}]
[]
["Empleado:",null,{"$f":"'031'!F124","v":"José Alberto Rucal"},null,null,null,null,null,null,null,"Certificación No.",null,null,{"$f":"N2635+1","v":40},null,"Fecha:",null,{"$f":"R1712","v":"2014-08-31"}]
["Contrato:",null,{"$f":"'031'!G124","v":"39-2017-031-AMSA"},null,null,"Puesto Funcional:",null,null,{"$f":"'031'!C124","v":"Peón de Campo"},null,null,null,"Titulo Jornal:",null,null,{"$f":"'031'!D124","v":"Constructor de Puentes"}]
["Cuenta / Banco:",null,null,{"$f":"'031'!T124","v":3216001457},null,"Banco de Desarrollo Rural, S.A.",null,null,null,null,"Jornal Diario:",null,null,{"$f":"'031'!I124","v":80.86},null,"Días Trabajados:",null,null,{"$f":"'031'!J124","v":31}]
[]
[null,null,null,null,null,null,null,null,null,null,null,null,"Ingresos",null,null,null,"Deducciones "]
[]
[null,"031","DEVENGADO",null,null,null,null,null,null,null,null,null,{"$f":"'031'!K124","v":2506.66}]
[null,"033","BONO ACUERDO GUBERNATIVO 66-2000",null,null,null,null,null,null,null,null,null,{"$f":"'031'!L124","v":250}]
[null,"201","I.G.S.S",null,null,null,null,null,null,null,null,null,null,null,null,null,{"$f":"'031'!O124","v":130.12}]
[null,"120","DECRETO 81-70",null,null,null,null,null,null,null,null,null,null,null,null,null,0]
[null,"118","MONTEPÍO",null,null,null,null,null,null,null,null,null,null,null,null,null,0]
[null,"211","RETENCIONES JUDICIALES",null,null,null,null,null,null,null,null,null,null,null,null,null,{"$f":"'031'!P124","v":0}]
[null,null,null,null,null,null,null,null,null,null,"Total  :",null,{"$f":"SUM(M2712:O2717)","v":2756.66},null,null,null,{"$f":"SUM(Q2714:S2717)","v":130.12}]
[null,null,null,null,null,null,null,null,null,null,"Liquido :",null,{"$f":"M2718-Q2718","v":2626.54}]
[]
[]
[]
[]
[]
[]
[]
[]
["María José Ceballos López",null,null,null,null,null,null,null,null,null,null,null,{"$f":"C2706","v":"José Alberto Rucal"}]
["Encargada de Nómina",null,null,null,null,null,null,null,null,null,null,null,{"$f":"P2707","v":"Constructor de Puentes"}]
["AMSA ",null,null,null,null,null,null,null,null,null,null,null,"AMSA"]
[]
[]
[]
[]
[]
[]
[]
["GOBIERNO DE LA REPÚBLICA DE GUATEMALA"]
["AUTORIDAD PARA EL MANEJO SUSTENTABLE DE LA CUENCA Y DEL LAGO DE AMATITLÁN"]
[]
[]
[{"$f":"A2703","v":"Boleta de Liquidación Mensual Renglón 031 \"Jornales\"   Correspondiente al mes de octubre 2015"}]
[{"$f":"A2704","v":{"$error":"#REF!"}}]
[]
["Empleado:",null,{"$f":"C2706","v":"José Alberto Rucal"},null,null,null,null,null,null,null,"Certificación No.",null,null,{"$f":"N2706","v":40},null,"Fecha:",null,{"$f":"R2706","v":"2014-08-31"}]
["Contrato:",null,{"$f":"C2707","v":"39-2017-031-AMSA"},null,null,"Puesto Funcional:",null,null,{"$f":"I2707","v":"Peón de Campo"},null,null,null,"Titulo Jornal:",null,null,{"$f":"P2707","v":"Constructor de Puentes"}]
["Cuenta / Banco:",null,null,{"$f":"D2708","v":3216001457},null,"Banco de Desarrollo Rural, S.A.",null,null,null,null,"Jornal Diario:",null,null,{"$f":"N2708","v":80.86},null,"Días Trabajados:",null,null,{"$f":"S2708","v":31}]
[]
[null,null,null,null,null,null,null,null,null,null,null,null,"Ingresos",null,null,null,"Deducciones "]
[]
[null,"031","DEVENGADO",null,null,null,null,null,null,null,null,null,{"$f":"M2712","v":2506.66}]
[null,"033","BONO ACUERDO GUBERNATIVO 66-2000",null,null,null,null,null,null,null,null,null,{"$f":"M2713","v":250}]
[null,"201","I.G.S.S",null,null,null,null,null,null,null,null,null,null,null,null,null,{"$f":"Q2714","v":130.12}]
[null,"120","DECRETO 81-70",null,null,null,null,null,null,null,null,null,null,null,null,null,0]
[null,"118","MONTEPÍO",null,null,null,null,null,null,null,null,null,null,null,null,null,{"$f":"Q2716","v":0}]
[null,"211","RETENCIONES JUDICIALES",null,null,null,null,null,null,null,null,null,null,null,null,null,{"$f":"Q2717","v":0}]
[null,null,null,null,null,null,null,null,null,null,"Total  :",null,{"$f":"SUM(M2751:O2756)","v":2756.66},null,null,null,{"$f":"SUM(Q2753:S2756)","v":130.12}]
[null,null,null,null,null,null,null,null,null,null,"Liquido :",null,{"$f":"M2757-Q2757","v":2626.54}]
[]
[]
[]
[]
[]
[]
[]
[{"$f":"A2728","v":"María José Ceballos López"},null,null,null,null,null,null,null,null,null,null,null,{"$f":"C2745","v":"José Alberto Rucal"}]
[{"$f":"A2729","v":"Encargada de Nómina"},null,null,null,null,null,null,null,null,null,null,null,{"$f":"P2746","v":"Constructor de Puentes"}]
[{"$f":"A2730","v":"AMSA "},null,null,null,null,null,null,null,null,null,null,null,"AMSA"]
[]
["GOBIERNO DE LA REPÚBLICA DE GUATEMALA"]
["AUTORIDAD PARA EL MANEJO SUSTENTABLE DE LA CUENCA Y DEL LAGO DE AMATITLÁN"]
[]
[]
[{"$f":"A2703","v":"Boleta de Liquidación Mensual Renglón 031 \"Jornales\"   Correspondiente al mes de octubre 2015"}]
[{"$f":"A2704","v":{"$error":"#REF!"}}]
[]
["Empleado:",null,{"$f":"'031'!F125","v":"Julio Roberto Martínez Aguilar"},null,null,null,null,null,null,null,"Certificación No.",null,null,{"$f":"N2706+1","v":41},null,"Fecha:",null,{"$f":"R8","v":"2014-08-31"}]
["Contrato:",null,{"$f":"'031'!G125","v":"40-2017-031-AMSA"},null,null,"Puesto Funcional:",null,null,{"$f":"'031'!C125","v":"Peón de Campo"},null,null,null,"Titulo Jornal:",null,null,{"$f":"'031'!D125","v":"Constructor de Puentes"}]
["Cuenta / Banco:",null,null,{"$f":"'031'!T125","v":3216001695},null,"Banco de Desarrollo Rural, S.A.",null,null,null,null,"Jornal Diario:",null,null,{"$f":"'031'!I125","v":80.86},null,"Días Trabajados:",null,null,{"$f":"'031'!J125","v":31}]
[]
[null,null,null,null,null,null,null,null,null,null,null,null,"Ingresos",null,null,null,"Deducciones "]
[]
[null,"031","DEVENGADO",null,null,null,null,null,null,null,null,null,{"$f":"'031'!K125","v":2506.66}]
[null,"033","BONO ACUERDO GUBERNATIVO 66-2000",null,null,null,null,null,null,null,null,null,{"$f":"'031'!L125","v":250}]
[null,"201","I.G.S.S",null,null,null,null,null,null,null,null,null,null,null,null,null,{"$f":"'031'!O125","v":130.12}]
[null,"118","MONTEPÍO",null,null,null,null,null,null,null,null,null,null,null,null,null,0]
[null,"211","RETENCIONES JUDICIALES",null,null,null,null,null,null,null,null,null,null,null,null,null,{"$f":"'031'!P125","v":0}]
[null,null,null,null,null,null,null,null,null,null,"Total  :",null,{"$f":"SUM(M2783:O2787)","v":2756.66},null,null,null,{"$f":"SUM(Q2785:S2787)","v":130.12}]
[null,null,null,null,null,null,null,null,null,null,"Liquido :",null,{"$f":"M2788-Q2788","v":2626.54}]
[]
[]
[]
[]
[]
[]
[]
[]
["María José Ceballos López",null,null,null,null,null,null,null,null,null,null,null,{"$f":"C2777","v":"Julio Roberto Martínez Aguilar"}]
["Encargada de Nómina",null,null,null,null,null,null,null,null,null,null,null,{"$f":"P2778","v":"Constructor de Puentes"}]
["AMSA ",null,null,null,null,null,null,null,null,null,null,null,"AMSA"]
[]
[]
[]
[]
[]
[]
[]
[]
["GOBIERNO DE LA REPÚBLICA DE GUATEMALA"]
["AUTORIDAD PARA EL MANEJO SUSTENTABLE DE LA CUENCA Y DEL LAGO DE AMATITLÁN"]
[]
[]
[{"$f":"A2774","v":"Boleta de Liquidación Mensual Renglón 031 \"Jornales\"   Correspondiente al mes de octubre 2015"}]
[{"$f":"A2775","v":{"$error":"#REF!"}}]
[]
["Empleado:",null,{"$f":"C2777","v":"Julio Roberto Martínez Aguilar"},null,null,null,null,null,null,null,"Certificación No.",null,null,{"$f":"N2777","v":41},null,"Fecha:",null,{"$f":"R2777","v":"2014-08-31"}]
["Contrato:",null,{"$f":"C2778","v":"40-2017-031-AMSA"},null,null,"Puesto Funcional:",null,null,{"$f":"I2778","v":"Peón de Campo"},null,null,null,"Titulo Jornal:",null,null,{"$f":"P2778","v":"Constructor de Puentes"}]
["Cuenta / Banco:",null,null,{"$f":"D2779","v":3216001695},null,"Banco de Desarrollo Rural, S.A.",null,null,null,null,"Jornal Diario:",null,null,{"$f":"N2779","v":80.86},null,"Días Trabajados:",null,null,{"$f":"S2779","v":31}]
[]
[null,null,null,null,null,null,null,null,null,null,null,null,"Ingresos",null,null,null,"Deducciones "]
[]
[null,"031","DEVENGADO",null,null,null,null,null,null,null,null,null,{"$f":"M2783","v":2506.66}]
[null,"033","BONO ACUERDO GUBERNATIVO 66-2000",null,null,null,null,null,null,null,null,null,{"$f":"M2784","v":250}]
[null,"201","I.G.S.S",null,null,null,null,null,null,null,null,null,null,null,null,null,{"$f":"Q2785","v":130.12}]
[null,"118","MONTEPÍO",null,null,null,null,null,null,null,null,null,null,null,null,null,{"$f":"Q2786","v":0}]
[null,"211","RETENCIONES JUDICIALES",null,null,null,null,null,null,null,null,null,null,null,null,null,{"$f":"Q2787","v":0}]
[null,null,null,null,null,null,null,null,null,null,"Total  :",null,{"$f":"SUM(M2822:O2826)","v":2756.66},null,null,null,{"$f":"SUM(Q2824:S2826)","v":130.12}]
[null,null,null,null,null,null,null,null,null,null,"Liquido :",null,{"$f":"M2827-Q2827","v":2626.54}]
[]
[]
[]
[]
[]
[]
[]
[]
[{"$f":"A2798","v":"María José Ceballos López"},null,null,null,null,null,null,null,null,null,null,null,{"$f":"C2816","v":"Julio Roberto Martínez Aguilar"}]
[{"$f":"A2799","v":"Encargada de Nómina"},null,null,null,null,null,null,null,null,null,null,null,{"$f":"P2817","v":"Constructor de Puentes"}]
[{"$f":"A2800","v":"AMSA "},null,null,null,null,null,null,null,null,null,null,null,"AMSA"]
[]
["GOBIERNO DE LA REPÚBLICA DE GUATEMALA"]
["AUTORIDAD PARA EL MANEJO SUSTENTABLE DE LA CUENCA Y DEL LAGO DE AMATITLÁN"]
[]
[]
[{"$f":"A2774","v":"Boleta de Liquidación Mensual Renglón 031 \"Jornales\"   Correspondiente al mes de octubre 2015"}]
[{"$f":"A2775","v":{"$error":"#REF!"}}]
[]
["Empleado:",null,{"$f":"'031'!F126","v":"Juan Emilio Cruz De León"},null,null,null,null,null,null,null,"Certificación No.",null,null,{"$f":"N2777+1","v":42},null,"Fecha:",null,{"$f":"R1783","v":"2014-08-31"}]
["Contrato:",null,{"$f":"'031'!G126","v":"41-2017-031-AMSA"},null,null,"Puesto Funcional:",null,null,{"$f":"'031'!C126","v":"Peón de Campo"},null,null,null,"Titulo Jornal:",null,null,{"$f":"'031'!D126","v":"Constructor de Puentes"}]
["Cuenta / Banco:",null,null,{"$f":"'031'!T126","v":3216001920},null,"Banco de Desarrollo Rural, S.A.",null,null,null,null,"Jornal Diario:",null,null,{"$f":"'031'!I126","v":80.86},null,"Días Trabajados:",null,null,{"$f":"'031'!J126","v":31}]
[]
[null,null,null,null,null,null,null,null,null,null,null,null,"Ingresos",null,null,null,"Deducciones "]
[]
[null,"031","DEVENGADO",null,null,null,null,null,null,null,null,null,{"$f":"'031'!K126","v":2506.66}]
[null,"033","BONO ACUERDO GUBERNATIVO 66-2000",null,null,null,null,null,null,null,null,null,{"$f":"'031'!L126","v":250}]
[null,"201","I.G.S.S",null,null,null,null,null,null,null,null,null,null,null,null,null,{"$f":"'031'!O126","v":130.12}]
[null,"118","MONTEPÍO",null,null,null,null,null,null,null,null,null,null,null,null,null,0]
[null,"211","RETENCIONES JUDICIALES",null,null,null,null,null,null,null,null,null,null,null,null,null,{"$f":"'031'!P126","v":0}]
[null,null,null,null,null,null,null,null,null,null,"Total  :",null,{"$f":"SUM(M2854:O2858)","v":2756.66},null,null,null,{"$f":"SUM(Q2856:S2858)","v":130.12}]
[null,null,null,null,null,null,null,null,null,null,"Liquido :",null,{"$f":"M2859-Q2859","v":2626.54}]
[]
[]
[]
[]
[]
[]
[]
[]
["María José Ceballos López",null,null,null,null,null,null,null,null,null,null,null,{"$f":"C2848","v":"Juan Emilio Cruz De León"}]
["Encargada de Nómina",null,null,null,null,null,null,null,null,null,null,null,{"$f":"P2849","v":"Constructor de Puentes"}]
["AMSA ",null,null,null,null,null,null,null,null,null,null,null,"AMSA"]
[]
[]
[]
[]
[]
[]
[]
[]
["GOBIERNO DE LA REPÚBLICA DE GUATEMALA"]
["AUTORIDAD PARA EL MANEJO SUSTENTABLE DE LA CUENCA Y DEL LAGO DE AMATITLÁN"]
[]
[]
[{"$f":"A2845","v":"Boleta de Liquidación Mensual Renglón 031 \"Jornales\"   Correspondiente al mes de octubre 2015"}]
[{"$f":"A2846","v":{"$error":"#REF!"}}]
[]
["Empleado:",null,{"$f":"C2848","v":"Juan Emilio Cruz De León"},null,null,null,null,null,null,null,"Certificación No.",null,null,{"$f":"N2848","v":42},null,"Fecha:",null,{"$f":"R2848","v":"2014-08-31"}]
["Contrato:",null,{"$f":"C2849","v":"41-2017-031-AMSA"},null,null,"Puesto Funcional:",null,null,{"$f":"I2849","v":"Peón de Campo"},null,null,null,"Titulo Jornal:",null,null,{"$f":"P2849","v":"Constructor de Puentes"}]
["Cuenta / Banco:",null,null,{"$f":"D2850","v":3216001920},null,"Banco de Desarrollo Rural, S.A.",null,null,null,null,"Jornal Diario:",null,null,{"$f":"N2850","v":80.86},null,"Días Trabajados:",null,null,{"$f":"S2850","v":31}]
[]
[null,null,null,null,null,null,null,null,null,null,null,null,"Ingresos",null,null,null,"Deducciones "]
[]
[null,"031","DEVENGADO",null,null,null,null,null,null,null,null,null,{"$f":"M2854","v":2506.66}]
[null,"033","BONO ACUERDO GUBERNATIVO 66-2000",null,null,null,null,null,null,null,null,null,{"$f":"M2855","v":250}]
[null,"201","I.G.S.S",null,null,null,null,null,null,null,null,null,null,null,null,null,{"$f":"Q2856","v":130.12}]
[null,"118","MONTEPÍO",null,null,null,null,null,null,null,null,null,null,null,null,null,{"$f":"Q2857","v":0}]
[null,"211","RETENCIONES JUDICIALES",null,null,null,null,null,null,null,null,null,null,null,null,null,{"$f":"Q2858","v":0}]
[null,null,null,null,null,null,null,null,null,null,"Total  :",null,{"$f":"SUM(M2893:O2897)","v":2756.66},null,null,null,{"$f":"SUM(Q2895:S2897)","v":130.12}]
[null,null,null,null,null,null,null,null,null,null,"Liquido :",null,{"$f":"M2898-Q2898","v":2626.54}]
[]
[]
[]
[]
[]
[]
[]
[]
[{"$f":"A2869","v":"María José Ceballos López"},null,null,null,null,null,null,null,null,null,null,null,{"$f":"C2887","v":"Juan Emilio Cruz De León"}]
[{"$f":"A2870","v":"Encargada de Nómina"},null,null,null,null,null,null,null,null,null,null,null,{"$f":"P2888","v":"Constructor de Puentes"}]
[{"$f":"A2871","v":"AMSA "},null,null,null,null,null,null,null,null,null,null,null,"AMSA"]
[]
["GOBIERNO DE LA REPÚBLICA DE GUATEMALA"]
["AUTORIDAD PARA EL MANEJO SUSTENTABLE DE LA CUENCA Y DEL LAGO DE AMATITLÁN"]
[]
[]
[{"$f":"A2845","v":"Boleta de Liquidación Mensual Renglón 031 \"Jornales\"   Correspondiente al mes de octubre 2015"}]
[{"$f":"A2846","v":{"$error":"#REF!"}}]
[]
["Empleado:",null,{"$f":"'031'!F127","v":"Emilio Taque Carranza"},null,null,null,null,null,null,null,"Certificación No.",null,null,{"$f":"N2848+1","v":43},null,"Fecha:",null,{"$f":"R1854","v":"2014-08-31"}]
["Contrato:",null,{"$f":"'031'!G127","v":"42-2017-031-AMSA"},null,null,"Puesto Funcional:",null,null,{"$f":"'031'!C127","v":"Peón de Campo"},null,null,null,"Titulo Jornal:",null,null,{"$f":"'031'!D127","v":"Constructor de Puentes"}]
["Cuenta / Banco:",null,null,{"$f":"'031'!T127","v":3216004468},null,"Banco de Desarrollo Rural, S.A.",null,null,null,null,"Jornal Diario:",null,null,{"$f":"'031'!I127","v":80.86},null,"Días Trabajados:",null,null,{"$f":"'031'!J127","v":31}]
[]
[null,null,null,null,null,null,null,null,null,null,null,null,"Ingresos",null,null,null,"Deducciones "]
[]
[null,"031","DEVENGADO",null,null,null,null,null,null,null,null,null,{"$f":"'031'!K127","v":2506.66}]
[null,"033","BONO ACUERDO GUBERNATIVO 66-2000",null,null,null,null,null,null,null,null,null,{"$f":"'031'!L127","v":250}]
[null,"201","I.G.S.S",null,null,null,null,null,null,null,null,null,null,null,null,null,{"$f":"'031'!O127","v":130.12}]
[null,"118","MONTEPÍO",null,null,null,null,null,null,null,null,null,null,null,null,null,0]
[null,"211","RETENCIONES JUDICIALES",null,null,null,null,null,null,null,null,null,null,null,null,null,{"$f":"'031'!P127","v":0}]
[null,null,null,null,null,null,null,null,null,null,"Total  :",null,{"$f":"SUM(M2925:O2929)","v":2756.66},null,null,null,{"$f":"SUM(Q2927:S2929)","v":130.12}]
[null,null,null,null,null,null,null,null,null,null,"Liquido :",null,{"$f":"M2930-Q2930","v":2626.54}]
[]
[]
[]
[]
[]
[]
[]
[]
["María José Ceballos López",null,null,null,null,null,null,null,null,null,null,null,{"$f":"C2919","v":"Emilio Taque Carranza"}]
["Encargada de Nómina",null,null,null,null,null,null,null,null,null,null,null,{"$f":"P2920","v":"Constructor de Puentes"}]
["AMSA ",null,null,null,null,null,null,null,null,null,null,null,"AMSA"]
[]
[]
[]
[]
[]
[]
[]
[]
["GOBIERNO DE LA REPÚBLICA DE GUATEMALA"]
["AUTORIDAD PARA EL MANEJO SUSTENTABLE DE LA CUENCA Y DEL LAGO DE AMATITLÁN"]
[]
[]
[{"$f":"A2916","v":"Boleta de Liquidación Mensual Renglón 031 \"Jornales\"   Correspondiente al mes de octubre 2015"}]
[{"$f":"A2917","v":{"$error":"#REF!"}}]
[]
["Empleado:",null,{"$f":"C2919","v":"Emilio Taque Carranza"},null,null,null,null,null,null,null,"Certificación No.",null,null,{"$f":"N2919","v":43},null,"Fecha:",null,{"$f":"R2919","v":"2014-08-31"}]
["Contrato:",null,{"$f":"C2920","v":"42-2017-031-AMSA"},null,null,"Puesto Funcional:",null,null,{"$f":"I2920","v":"Peón de Campo"},null,null,null,"Titulo Jornal:",null,null,{"$f":"P2920","v":"Constructor de Puentes"}]
["Cuenta / Banco:",null,null,{"$f":"D2921","v":3216004468},null,"Banco de Desarrollo Rural, S.A.",null,null,null,null,"Jornal Diario:",null,null,{"$f":"N2921","v":80.86},null,"Días Trabajados:",null,null,{"$f":"S2921","v":31}]
[]
[null,null,null,null,null,null,null,null,null,null,null,null,"Ingresos",null,null,null,"Deducciones "]
[]
[null,"031","DEVENGADO",null,null,null,null,null,null,null,null,null,{"$f":"M2925","v":2506.66}]
[null,"033","BONO ACUERDO GUBERNATIVO 66-2000",null,null,null,null,null,null,null,null,null,{"$f":"M2926","v":250}]
[null,"201","I.G.S.S",null,null,null,null,null,null,null,null,null,null,null,null,null,{"$f":"Q2927","v":130.12}]
[null,"118","MONTEPÍO",null,null,null,null,null,null,null,null,null,null,null,null,null,{"$f":"Q2928","v":0}]
[null,"211","RETENCIONES JUDICIALES",null,null,null,null,null,null,null,null,null,null,null,null,null,{"$f":"Q2929","v":0}]
[null,null,null,null,null,null,null,null,null,null,"Total  :",null,{"$f":"SUM(M2964:O2968)","v":2756.66},null,null,null,{"$f":"SUM(Q2966:S2968)","v":130.12}]
[null,null,null,null,null,null,null,null,null,null,"Liquido :",null,{"$f":"M2969-Q2969","v":2626.54}]
[]
[]
[]
[]
[]
[]
[]
[]
[{"$f":"A2940","v":"María José Ceballos López"},null,null,null,null,null,null,null,null,null,null,null,{"$f":"C2958","v":"Emilio Taque Carranza"}]
[{"$f":"A2941","v":"Encargada de Nómina"},null,null,null,null,null,null,null,null,null,null,null,{"$f":"P2959","v":"Constructor de Puentes"}]
[{"$f":"A2942","v":"AMSA "},null,null,null,null,null,null,null,null,null,null,null,"AMSA"]
[]
["GOBIERNO DE LA REPÚBLICA DE GUATEMALA"]
["AUTORIDAD PARA EL MANEJO SUSTENTABLE DE LA CUENCA Y DEL LAGO DE AMATITLÁN"]
[]
[]
[{"$f":"A2916","v":"Boleta de Liquidación Mensual Renglón 031 \"Jornales\"   Correspondiente al mes de octubre 2015"}]
[{"$f":"A2917","v":{"$error":"#REF!"}}]
[]
["Empleado:",null,{"$f":"'031'!#REF!","v":{"$error":"#REF!"}},null,null,null,null,null,null,null,"Certificación No.",null,null,{"$f":"N2919+1","v":44},null,"Fecha:",null,{"$f":"R1925","v":"2015-10-31"}]
["Contrato:",null,{"$f":"'031'!#REF!","v":{"$error":"#REF!"}},null,null,"Puesto Funcional:",null,null,{"$f":"'031'!#REF!","v":{"$error":"#REF!"}},null,null,null,"Titulo Jornal:",null,null,{"$f":"'031'!#REF!","v":{"$error":"#REF!"}}]
["Cuenta / Banco:",null,null,{"$f":"'031'!#REF!","v":{"$error":"#REF!"}},null,"Banco de Desarrollo Rural, S.A.",null,null,null,null,"Jornal Diario:",null,null,{"$f":"'031'!#REF!","v":{"$error":"#REF!"}},null,"Días Trabajados:",null,null,{"$f":"'031'!#REF!","v":{"$error":"#REF!"}}]
[]
[null,null,null,null,null,null,null,null,null,null,null,null,"Ingresos",null,null,null,"Deducciones "]
[]
[null,"031","DEVENGADO",null,null,null,null,null,null,null,null,null,{"$f":"'031'!#REF!","v":{"$error":"#REF!"}}]
[null,"033","BONO ACUERDO GUBERNATIVO 66-2000",null,null,null,null,null,null,null,null,null,{"$f":"'031'!#REF!","v":{"$error":"#REF!"}}]
[null,"201","I.G.S.S",null,null,null,null,null,null,null,null,null,null,null,null,null,{"$f":"'031'!#REF!","v":{"$error":"#REF!"}}]
[null,"118","MONTEPÍO",null,null,null,null,null,null,null,null,null,null,null,null,null,0]
[null,"211","RETENCIONES JUDICIALES",null,null,null,null,null,null,null,null,null,null,null,null,null,{"$f":"'031'!#REF!","v":{"$error":"#REF!"}}]
[null,null,null,null,null,null,null,null,null,null,"Total  :",null,{"$f":"SUM(M2996:O3000)","v":{"$error":"#REF!"}},null,null,null,{"$f":"SUM(Q2998:S3000)","v":{"$error":"#REF!"}}]
[null,null,null,null,null,null,null,null,null,null,"Liquido :",null,{"$f":"M3001-Q3001","v":{"$error":"#REF!"}}]
[]
[]
[]
[]
[]
[]
[]
[]
["María José Ceballos López",null,null,null,null,null,null,null,null,null,null,null,{"$f":"C2990","v":{"$error":"#REF!"}}]
["Encargada de Nómina",null,null,null,null,null,null,null,null,null,null,null,{"$f":"P2991","v":{"$error":"#REF!"}}]
["AMSA ",null,null,null,null,null,null,null,null,null,null,null,"AMSA"]
[]
[]
[]
[]
[]
[]
[]
[]
["GOBIERNO DE LA REPÚBLICA DE GUATEMALA"]
["AUTORIDAD PARA EL MANEJO SUSTENTABLE DE LA CUENCA Y DEL LAGO DE AMATITLÁN"]
[]
[]
[{"$f":"A2987","v":"Boleta de Liquidación Mensual Renglón 031 \"Jornales\"   Correspondiente al mes de octubre 2015"}]
[{"$f":"A2988","v":{"$error":"#REF!"}}]
[]
["Empleado:",null,{"$f":"C2990","v":{"$error":"#REF!"}},null,null,null,null,null,null,null,"Certificación No.",null,null,{"$f":"N2990","v":44},null,"Fecha:",null,{"$f":"R2990","v":"2015-10-31"}]
["Contrato:",null,{"$f":"C2991","v":{"$error":"#REF!"}},null,null,"Puesto Funcional:",null,null,{"$f":"I2991","v":{"$error":"#REF!"}},null,null,null,"Titulo Jornal:",null,null,{"$f":"P2991","v":{"$error":"#REF!"}}]
["Cuenta / Banco:",null,null,{"$f":"D2992","v":{"$error":"#REF!"}},null,"Banco de Desarrollo Rural, S.A.",null,null,null,null,"Jornal Diario:",null,null,{"$f":"N2992","v":{"$error":"#REF!"}},null,"Días Trabajados:",null,null,{"$f":"S2992","v":{"$error":"#REF!"}}]
[]
[null,null,null,null,null,null,null,null,null,null,null,null,"Ingresos",null,null,null,"Deducciones "]
[]
[null,"031","DEVENGADO",null,null,null,null,null,null,null,null,null,{"$f":"M2996","v":{"$error":"#REF!"}}]
[null,"033","BONO ACUERDO GUBERNATIVO 66-2000",null,null,null,null,null,null,null,null,null,{"$f":"M2997","v":{"$error":"#REF!"}}]
[null,"201","I.G.S.S",null,null,null,null,null,null,null,null,null,null,null,null,null,{"$f":"Q2998","v":{"$error":"#REF!"}}]
[null,"118","MONTEPÍO",null,null,null,null,null,null,null,null,null,null,null,null,null,{"$f":"Q2999","v":0}]
[null,"211","RETENCIONES JUDICIALES",null,null,null,null,null,null,null,null,null,null,null,null,null,{"$f":"Q3000","v":{"$error":"#REF!"}}]
[null,null,null,null,null,null,null,null,null,null,"Total  :",null,{"$f":"SUM(M3035:O3039)","v":{"$error":"#REF!"}},null,null,null,{"$f":"SUM(Q3037:S3039)","v":{"$error":"#REF!"}}]
[null,null,null,null,null,null,null,null,null,null,"Liquido :",null,{"$f":"M3040-Q3040","v":{"$error":"#REF!"}}]
[]
[]
[]
[]
[]
[]
[]
[]
[{"$f":"A3011","v":"María José Ceballos López"},null,null,null,null,null,null,null,null,null,null,null,{"$f":"C3029","v":{"$error":"#REF!"}}]
[{"$f":"A3012","v":"Encargada de Nómina"},null,null,null,null,null,null,null,null,null,null,null,{"$f":"P3030","v":{"$error":"#REF!"}}]
[{"$f":"A3013","v":"AMSA "},null,null,null,null,null,null,null,null,null,null,null,"AMSA"]
[]
["GOBIERNO DE LA REPÚBLICA DE GUATEMALA"]
["AUTORIDAD PARA EL MANEJO SUSTENTABLE DE LA CUENCA Y DEL LAGO DE AMATITLÁN"]
[]
[]
[{"$f":"A2987","v":"Boleta de Liquidación Mensual Renglón 031 \"Jornales\"   Correspondiente al mes de octubre 2015"}]
[{"$f":"A2988","v":{"$error":"#REF!"}}]
[]
["Empleado:",null,{"$f":"'031'!F128","v":"Rigoberto de Jesús Osorio Morataya"},null,null,null,null,null,null,null,"Certificación No.",null,null,{"$f":"N2990+1","v":45},null,"Fecha:",null,{"$f":"R1996","v":"2014-08-31"}]
["Contrato:",null,{"$f":"'031'!G128","v":"43-2017-031-AMSA"},null,null,"Puesto Funcional:",null,null,{"$f":"'031'!C128","v":"Peón de Campo"},null,null,null,"Titulo Jornal:",null,null,{"$f":"'031'!D128","v":"Constructor de Puentes"}]
["Cuenta / Banco:",null,null,{"$f":"'031'!T128","v":3164033390},null,"Banco de Desarrollo Rural, S.A.",null,null,null,null,"Jornal Diario:",null,null,{"$f":"'031'!I128","v":80.86},null,"Días Trabajados:",null,null,{"$f":"'031'!J128","v":31}]
[]
[null,null,null,null,null,null,null,null,null,null,null,null,"Ingresos",null,null,null,"Deducciones "]
[]
[null,"031","DEVENGADO",null,null,null,null,null,null,null,null,null,{"$f":"'031'!K128","v":2506.66}]
[null,"033","BONO ACUERDO GUBERNATIVO 66-2000",null,null,null,null,null,null,null,null,null,{"$f":"'031'!L128","v":250}]
[null,"201","I.G.S.S",null,null,null,null,null,null,null,null,null,null,null,null,null,{"$f":"'031'!O128","v":130.12}]
[null,"118","MONTEPÍO",null,null,null,null,null,null,null,null,null,null,null,null,null,0]
[null,"211","RETENCIONES JUDICIALES",null,null,null,null,null,null,null,null,null,null,null,null,null,{"$f":"'031'!P128","v":0}]
[null,null,null,null,null,null,null,null,null,null,"Total  :",null,{"$f":"SUM(M3067:O3071)","v":2756.66},null,null,null,{"$f":"SUM(Q3069:S3071)","v":130.12}]
[null,null,null,null,null,null,null,null,null,null,"Liquido :",null,{"$f":"M3072-Q3072","v":2626.54}]
[]
[]
[]
[]
[]
[]
[]
[]
["María José Ceballos López",null,null,null,null,null,null,null,null,null,null,null,{"$f":"C3061","v":"Rigoberto de Jesús Osorio Morataya"}]
["Encargada de Nómina",null,null,null,null,null,null,null,null,null,null,null,{"$f":"P3062","v":"Constructor de Puentes"}]
["AMSA ",null,null,null,null,null,null,null,null,null,null,null,"AMSA"]
[]
[]
[]
[]
[]
[]
[]
[]
["GOBIERNO DE LA REPÚBLICA DE GUATEMALA"]
["AUTORIDAD PARA EL MANEJO SUSTENTABLE DE LA CUENCA Y DEL LAGO DE AMATITLÁN"]
[]
[]
[{"$f":"A3058","v":"Boleta de Liquidación Mensual Renglón 031 \"Jornales\"   Correspondiente al mes de octubre 2015"}]
[{"$f":"A3059","v":{"$error":"#REF!"}}]
[]
["Empleado:",null,{"$f":"C3061","v":"Rigoberto de Jesús Osorio Morataya"},null,null,null,null,null,null,null,"Certificación No.",null,null,{"$f":"N3061","v":45},null,"Fecha:",null,{"$f":"R3061","v":"2014-08-31"}]
["Contrato:",null,{"$f":"C3062","v":"43-2017-031-AMSA"},null,null,"Puesto Funcional:",null,null,{"$f":"I3062","v":"Peón de Campo"},null,null,null,"Titulo Jornal:",null,null,{"$f":"P3062","v":"Constructor de Puentes"}]
["Cuenta / Banco:",null,null,{"$f":"D3063","v":3164033390},null,"Banco de Desarrollo Rural, S.A.",null,null,null,null,"Jornal Diario:",null,null,{"$f":"N3063","v":80.86},null,"Días Trabajados:",null,null,{"$f":"S3063","v":31}]
[]
[null,null,null,null,null,null,null,null,null,null,null,null,"Ingresos",null,null,null,"Deducciones "]
[]
[null,"031","DEVENGADO",null,null,null,null,null,null,null,null,null,{"$f":"M3067","v":2506.66}]
[null,"033","BONO ACUERDO GUBERNATIVO 66-2000",null,null,null,null,null,null,null,null,null,{"$f":"M3068","v":250}]
[null,"201","I.G.S.S",null,null,null,null,null,null,null,null,null,null,null,null,null,{"$f":"Q3069","v":130.12}]
[null,"118","MONTEPÍO",null,null,null,null,null,null,null,null,null,null,null,null,null,{"$f":"Q3070","v":0}]
[null,"211","RETENCIONES JUDICIALES",null,null,null,null,null,null,null,null,null,null,null,null,null,{"$f":"Q3071","v":0}]
[null,null,null,null,null,null,null,null,null,null,"Total  :",null,{"$f":"SUM(M3106:O3110)","v":2756.66},null,null,null,{"$f":"SUM(Q3108:S3110)","v":130.12}]
[null,null,null,null,null,null,null,null,null,null,"Liquido :",null,{"$f":"M3111-Q3111","v":2626.54}]
[]
[]
[]
[]
[]
[]
[]
[]
[{"$f":"A3082","v":"María José Ceballos López"},null,null,null,null,null,null,null,null,null,null,null,{"$f":"C3100","v":"Rigoberto de Jesús Osorio Morataya"}]
[{"$f":"A3083","v":"Encargada de Nómina"},null,null,null,null,null,null,null,null,null,null,null,{"$f":"P3101","v":"Constructor de Puentes"}]
[{"$f":"A3084","v":"AMSA "},null,null,null,null,null,null,null,null,null,null,null,"AMSA"]
[]
["GOBIERNO DE LA REPÚBLICA DE GUATEMALA"]
["AUTORIDAD PARA EL MANEJO SUSTENTABLE DE LA CUENCA Y DEL LAGO DE AMATITLÁN"]
[]
[]
[{"$f":"A3058","v":"Boleta de Liquidación Mensual Renglón 031 \"Jornales\"   Correspondiente al mes de octubre 2015"}]
[{"$f":"A3059","v":{"$error":"#REF!"}}]
[]
["Empleado:",null,{"$f":"'031'!F129","v":"Manuel de Jesús Coy Malín"},null,null,null,null,null,null,null,"Certificación No.",null,null,{"$f":"N3061+1","v":46},null,"Fecha:",null,{"$f":"R2067","v":"2014-08-31"}]
["Contrato:",null,{"$f":"'031'!G129","v":"44-2017-031-AMSA"},null,null,"Puesto Funcional:",null,null,{"$f":"'031'!C129","v":"Peón de Campo"},null,null,null,"Titulo Jornal:",null,null,{"$f":"'031'!D129","v":"Constructor de Puentes"}]
["Cuenta / Banco:",null,null,{"$f":"'031'!T129","v":3216001728},null,"Banco de Desarrollo Rural, S.A.",null,null,null,null,"Jornal Diario:",null,null,{"$f":"'031'!I129","v":80.86},null,"Días Trabajados:",null,null,{"$f":"'031'!J129","v":31}]
[]
[null,null,null,null,null,null,null,null,null,null,null,null,"Ingresos",null,null,null,"Deducciones "]
[]
[null,"031","DEVENGADO",null,null,null,null,null,null,null,null,null,{"$f":"'031'!K129","v":2506.66}]
[null,"033","BONO ACUERDO GUBERNATIVO 66-2000",null,null,null,null,null,null,null,null,null,{"$f":"'031'!L129","v":250}]
[null,"201","I.G.S.S",null,null,null,null,null,null,null,null,null,null,null,null,null,{"$f":"'031'!O129","v":130.12}]
[null,"118","MONTEPÍO",null,null,null,null,null,null,null,null,null,null,null,null,null,0]
[null,"211","RETENCIONES JUDICIALES",null,null,null,null,null,null,null,null,null,null,null,null,null,{"$f":"'031'!P129","v":0}]
[null,null,null,null,null,null,null,null,null,null,"Total  :",null,{"$f":"SUM(M3138:O3142)","v":2756.66},null,null,null,{"$f":"SUM(Q3140:S3142)","v":130.12}]
[null,null,null,null,null,null,null,null,null,null,"Liquido :",null,{"$f":"M3143-Q3143","v":2626.54}]
[]
[]
[]
[]
[]
[]
[]
[]
["María José Ceballos López",null,null,null,null,null,null,null,null,null,null,null,{"$f":"C3132","v":"Manuel de Jesús Coy Malín"}]
["Encargada de Nómina",null,null,null,null,null,null,null,null,null,null,null,{"$f":"P3133","v":"Constructor de Puentes"}]
["AMSA ",null,null,null,null,null,null,null,null,null,null,null,"AMSA"]
[]
[]
[]
[]
[]
[]
[]
[]
["GOBIERNO DE LA REPÚBLICA DE GUATEMALA"]
["AUTORIDAD PARA EL MANEJO SUSTENTABLE DE LA CUENCA Y DEL LAGO DE AMATITLÁN"]
[]
[]
[{"$f":"A3129","v":"Boleta de Liquidación Mensual Renglón 031 \"Jornales\"   Correspondiente al mes de octubre 2015"}]
[{"$f":"A3130","v":{"$error":"#REF!"}}]
[]
["Empleado:",null,{"$f":"C3132","v":"Manuel de Jesús Coy Malín"},null,null,null,null,null,null,null,"Certificación No.",null,null,{"$f":"N3132","v":46},null,"Fecha:",null,{"$f":"R3132","v":"2014-08-31"}]
["Contrato:",null,{"$f":"C3133","v":"44-2017-031-AMSA"},null,null,"Puesto Funcional:",null,null,{"$f":"I3133","v":"Peón de Campo"},null,null,null,"Titulo Jornal:",null,null,{"$f":"P3133","v":"Constructor de Puentes"}]
["Cuenta / Banco:",null,null,{"$f":"D3134","v":3216001728},null,"Banco de Desarrollo Rural, S.A.",null,null,null,null,"Jornal Diario:",null,null,{"$f":"N3134","v":80.86},null,"Días Trabajados:",null,null,{"$f":"S3134","v":31}]
[]
[null,null,null,null,null,null,null,null,null,null,null,null,"Ingresos",null,null,null,"Deducciones "]
[]
[null,"031","DEVENGADO",null,null,null,null,null,null,null,null,null,{"$f":"M3138","v":2506.66}]
[null,"033","BONO ACUERDO GUBERNATIVO 66-2000",null,null,null,null,null,null,null,null,null,{"$f":"M3139","v":250}]
[null,"201","I.G.S.S",null,null,null,null,null,null,null,null,null,null,null,null,null,{"$f":"Q3140","v":130.12}]
[null,"118","MONTEPÍO",null,null,null,null,null,null,null,null,null,null,null,null,null,{"$f":"Q3141","v":0}]
[null,"211","RETENCIONES JUDICIALES",null,null,null,null,null,null,null,null,null,null,null,null,null,{"$f":"Q3142","v":0}]
[null,null,null,null,null,null,null,null,null,null,"Total  :",null,{"$f":"SUM(M3177:O3181)","v":2756.66},null,null,null,{"$f":"SUM(Q3179:S3181)","v":130.12}]
[null,null,null,null,null,null,null,null,null,null,"Liquido :",null,{"$f":"M3182-Q3182","v":2626.54}]
[]
[]
[]
[]
[]
[]
[]
[]
[{"$f":"A3153","v":"María José Ceballos López"},null,null,null,null,null,null,null,null,null,null,null,{"$f":"C3171","v":"Manuel de Jesús Coy Malín"}]
[{"$f":"A3154","v":"Encargada de Nómina"},null,null,null,null,null,null,null,null,null,null,null,{"$f":"P3172","v":"Constructor de Puentes"}]
[{"$f":"A3155","v":"AMSA "},null,null,null,null,null,null,null,null,null,null,null,"AMSA"]
[]
["GOBIERNO DE LA REPÚBLICA DE GUATEMALA"]
["AUTORIDAD PARA EL MANEJO SUSTENTABLE DE LA CUENCA Y DEL LAGO DE AMATITLÁN"]
[]
[]
[{"$f":"A3129","v":"Boleta de Liquidación Mensual Renglón 031 \"Jornales\"   Correspondiente al mes de octubre 2015"}]
[{"$f":"A3130","v":{"$error":"#REF!"}}]
[]
["Empleado:",null,{"$f":"'031'!F130","v":"Francisco Javier Rivera Orellana"},null,null,null,null,null,null,null,"Certificación No.",null,null,{"$f":"N3132+1","v":47},null,"Fecha:",null,{"$f":"R2138","v":"2014-08-31"}]
["Contrato:",null,{"$f":"'031'!G130","v":"45-2017-031-AMSA"},null,null,"Puesto Funcional:",null,null,{"$f":"'031'!C130","v":"Peón de Campo"},null,null,null,"Titulo Jornal:",null,null,{"$f":"'031'!D130","v":"Constructor de Puentes"}]
["Cuenta / Banco:",null,null,{"$f":"'031'!T130","v":3216001916},null,"Banco de Desarrollo Rural, S.A.",null,null,null,null,"Jornal Diario:",null,null,{"$f":"'031'!I130","v":80.86},null,"Días Trabajados:",null,null,{"$f":"'031'!J130","v":31}]
[]
[null,null,null,null,null,null,null,null,null,null,null,null,"Ingresos",null,null,null,"Deducciones "]
[]
[null,"031","DEVENGADO",null,null,null,null,null,null,null,null,null,{"$f":"'031'!K130","v":2506.66}]
[null,"033","BONO ACUERDO GUBERNATIVO 66-2000",null,null,null,null,null,null,null,null,null,{"$f":"'031'!L130","v":250}]
[null,"201","I.G.S.S",null,null,null,null,null,null,null,null,null,null,null,null,null,{"$f":"'031'!O130","v":130.12}]
[null,"118","MONTEPÍO",null,null,null,null,null,null,null,null,null,null,null,null,null,0]
[null,"211","RETENCIONES JUDICIALES",null,null,null,null,null,null,null,null,null,null,null,null,null,{"$f":"'031'!P130","v":0}]
[null,null,null,null,null,null,null,null,null,null,"Total  :",null,{"$f":"SUM(M3209:O3213)","v":2756.66},null,null,null,{"$f":"SUM(Q3211:S3213)","v":130.12}]
[null,null,null,null,null,null,null,null,null,null,"Liquido :",null,{"$f":"M3214-Q3214","v":2626.54}]
[]
[]
[]
[]
[]
[]
[]
[]
["María José Ceballos López",null,null,null,null,null,null,null,null,null,null,null,{"$f":"C3203","v":"Francisco Javier Rivera Orellana"}]
["Encargada de Nómina",null,null,null,null,null,null,null,null,null,null,null,{"$f":"P3204","v":"Constructor de Puentes"}]
["AMSA ",null,null,null,null,null,null,null,null,null,null,null,"AMSA"]
[]
[]
[]
[]
[]
[]
[]
[]
["GOBIERNO DE LA REPÚBLICA DE GUATEMALA"]
["AUTORIDAD PARA EL MANEJO SUSTENTABLE DE LA CUENCA Y DEL LAGO DE AMATITLÁN"]
[]
[]
[{"$f":"A3200","v":"Boleta de Liquidación Mensual Renglón 031 \"Jornales\"   Correspondiente al mes de octubre 2015"}]
[{"$f":"A3201","v":{"$error":"#REF!"}}]
[]
["Empleado:",null,{"$f":"C3203","v":"Francisco Javier Rivera Orellana"},null,null,null,null,null,null,null,"Certificación No.",null,null,{"$f":"N3203","v":47},null,"Fecha:",null,{"$f":"R3203","v":"2014-08-31"}]
["Contrato:",null,{"$f":"C3204","v":"45-2017-031-AMSA"},null,null,"Puesto Funcional:",null,null,{"$f":"I3204","v":"Peón de Campo"},null,null,null,"Titulo Jornal:",null,null,{"$f":"P3204","v":"Constructor de Puentes"}]
["Cuenta / Banco:",null,null,{"$f":"D3205","v":3216001916},null,"Banco de Desarrollo Rural, S.A.",null,null,null,null,"Jornal Diario:",null,null,{"$f":"N3205","v":80.86},null,"Días Trabajados:",null,null,{"$f":"S3205","v":31}]
[]
[null,null,null,null,null,null,null,null,null,null,null,null,"Ingresos",null,null,null,"Deducciones "]
[]
[null,"031","DEVENGADO",null,null,null,null,null,null,null,null,null,{"$f":"M3209","v":2506.66}]
[null,"033","BONO ACUERDO GUBERNATIVO 66-2000",null,null,null,null,null,null,null,null,null,{"$f":"M3210","v":250}]
[null,"201","I.G.S.S",null,null,null,null,null,null,null,null,null,null,null,null,null,{"$f":"Q3211","v":130.12}]
[null,"118","MONTEPÍO",null,null,null,null,null,null,null,null,null,null,null,null,null,{"$f":"Q3212","v":0}]
[null,"211","RETENCIONES JUDICIALES",null,null,null,null,null,null,null,null,null,null,null,null,null,{"$f":"Q3213","v":0}]
[null,null,null,null,null,null,null,null,null,null,"Total  :",null,{"$f":"SUM(M3248:O3252)","v":2756.66},null,null,null,{"$f":"SUM(Q3250:S3252)","v":130.12}]
[null,null,null,null,null,null,null,null,null,null,"Liquido :",null,{"$f":"M3253-Q3253","v":2626.54}]
[]
[]
[]
[]
[]
[]
[]
[]
[{"$f":"A3224","v":"María José Ceballos López"},null,null,null,null,null,null,null,null,null,null,null,{"$f":"C3242","v":"Francisco Javier Rivera Orellana"}]
[{"$f":"A3225","v":"Encargada de Nómina"},null,null,null,null,null,null,null,null,null,null,null,{"$f":"P3243","v":"Constructor de Puentes"}]
[{"$f":"A3226","v":"AMSA "},null,null,null,null,null,null,null,null,null,null,null,"AMSA"]
[]
["GOBIERNO DE LA REPÚBLICA DE GUATEMALA"]
["AUTORIDAD PARA EL MANEJO SUSTENTABLE DE LA CUENCA Y DEL LAGO DE AMATITLÁN"]
[]
[]
[{"$f":"A3200","v":"Boleta de Liquidación Mensual Renglón 031 \"Jornales\"   Correspondiente al mes de octubre 2015"}]
[{"$f":"A3201","v":{"$error":"#REF!"}}]
[]
["Empleado:",null,{"$f":"'031'!F131","v":"Fermín Hernández Martinez"},null,null,null,null,null,null,null,"Certificación No.",null,null,{"$f":"N3203+1","v":48},null,"Fecha:",null,{"$f":"R2209","v":"2014-08-31"}]
["Contrato:",null,{"$f":"'031'!G131","v":"46-2017-031-AMSA"},null,null,"Puesto Funcional:",null,null,{"$f":"'031'!C131","v":"Peón de Campo"},null,null,null,"Titulo Jornal:",null,null,{"$f":"'031'!D131","v":"Constructor de Puentes"}]
["Cuenta / Banco:",null,null,{"$f":"'031'!T131","v":4216002596},null,"Banco de Desarrollo Rural, S.A.",null,null,null,null,"Jornal Diario:",null,null,{"$f":"'031'!I131","v":80.86},null,"Días Trabajados:",null,null,{"$f":"'031'!J131","v":31}]
[]
[null,null,null,null,null,null,null,null,null,null,null,null,"Ingresos",null,null,null,"Deducciones "]
[]
[null,"031","DEVENGADO",null,null,null,null,null,null,null,null,null,{"$f":"'031'!K131","v":2506.66}]
[null,"033","BONO ACUERDO GUBERNATIVO 66-2000",null,null,null,null,null,null,null,null,null,{"$f":"'031'!L131","v":250}]
[null,"201","I.G.S.S",null,null,null,null,null,null,null,null,null,null,null,null,null,{"$f":"'031'!O131","v":130.12}]
[null,"120","DECRETO 81-70",null,null,null,null,null,null,null,null,null,null,null,null,null,0]
[null,"118","MONTEPÍO",null,null,null,null,null,null,null,null,null,null,null,null,null,0]
[null,"211","RETENCIONES JUDICIALES",null,null,null,null,null,null,null,null,null,null,null,null,null,{"$f":"'031'!P131","v":0}]
[null,null,null,null,null,null,null,null,null,null,"Total  :",null,{"$f":"SUM(M3280:O3285)","v":2756.66},null,null,null,{"$f":"SUM(Q3282:S3285)","v":130.12}]
[null,null,null,null,null,null,null,null,null,null,"Liquido :",null,{"$f":"M3286-Q3286","v":2626.54}]
[]
[]
[]
[]
[]
[]
[]
["María José Ceballos López",null,null,null,null,null,null,null,null,null,null,null,{"$f":"C3274","v":"Fermín Hernández Martinez"}]
["Encargada de Nómina",null,null,null,null,null,null,null,null,null,null,null,{"$f":"P3275","v":"Constructor de Puentes"}]
["AMSA ",null,null,null,null,null,null,null,null,null,null,null,"AMSA"]
[]
[]
[]
[]
[]
[]
[]
[]
["GOBIERNO DE LA REPÚBLICA DE GUATEMALA"]
["AUTORIDAD PARA EL MANEJO SUSTENTABLE DE LA CUENCA Y DEL LAGO DE AMATITLÁN"]
[]
[]
[{"$f":"A3271","v":"Boleta de Liquidación Mensual Renglón 031 \"Jornales\"   Correspondiente al mes de octubre 2015"}]
[{"$f":"A3272","v":{"$error":"#REF!"}}]
[]
["Empleado:",null,{"$f":"C3274","v":"Fermín Hernández Martinez"},null,null,null,null,null,null,null,"Certificación No.",null,null,{"$f":"N3274","v":48},null,"Fecha:",null,{"$f":"R3274","v":"2014-08-31"}]
["Contrato:",null,{"$f":"C3275","v":"46-2017-031-AMSA"},null,null,"Puesto Funcional:",null,null,{"$f":"I3275","v":"Peón de Campo"},null,null,null,"Titulo Jornal:",null,null,{"$f":"P3275","v":"Constructor de Puentes"}]
["Cuenta / Banco:",null,null,{"$f":"D3276","v":4216002596},null,"Banco de Desarrollo Rural, S.A.",null,null,null,null,"Jornal Diario:",null,null,{"$f":"N3276","v":80.86},null,"Días Trabajados:",null,null,{"$f":"S3276","v":31}]
[]
[null,null,null,null,null,null,null,null,null,null,null,null,"Ingresos",null,null,null,"Deducciones "]
[]
[null,"031","DEVENGADO",null,null,null,null,null,null,null,null,null,{"$f":"M3280","v":2506.66}]
[null,"033","BONO ACUERDO GUBERNATIVO 66-2000",null,null,null,null,null,null,null,null,null,{"$f":"M3281","v":250}]
[null,"201","I.G.S.S",null,null,null,null,null,null,null,null,null,null,null,null,null,{"$f":"Q3282","v":130.12}]
[null,"120","DECRETO 81-70",null,null,null,null,null,null,null,null,null,null,null,null,null,{"$f":"Q3283","v":0}]
[null,"118","MONTEPÍO",null,null,null,null,null,null,null,null,null,null,null,null,null,{"$f":"Q3284","v":0}]
[null,"211","RETENCIONES JUDICIALES",null,null,null,null,null,null,null,null,null,null,null,null,null,{"$f":"Q3285","v":0}]
[null,null,null,null,null,null,null,null,null,null,"Total  :",null,{"$f":"SUM(M3319:O3324)","v":2756.66},null,null,null,{"$f":"SUM(Q3321:S3324)","v":130.12}]
[null,null,null,null,null,null,null,null,null,null,"Liquido :",null,{"$f":"M3325-Q3325","v":2626.54}]
[]
[]
[]
[]
[]
[]
[]
[{"$f":"A3295","v":"María José Ceballos López"},null,null,null,null,null,null,null,null,null,null,null,{"$f":"C3313","v":"Fermín Hernández Martinez"}]
[{"$f":"A3296","v":"Encargada de Nómina"},null,null,null,null,null,null,null,null,null,null,null,{"$f":"P3314","v":"Constructor de Puentes"}]
[{"$f":"A3297","v":"AMSA "},null,null,null,null,null,null,null,null,null,null,null,"AMSA"]
[]
["GOBIERNO DE LA REPÚBLICA DE GUATEMALA"]
["AUTORIDAD PARA EL MANEJO SUSTENTABLE DE LA CUENCA Y DEL LAGO DE AMATITLÁN"]
[]
[]
[{"$f":"A3271","v":"Boleta de Liquidación Mensual Renglón 031 \"Jornales\"   Correspondiente al mes de octubre 2015"}]
[{"$f":"A3272","v":{"$error":"#REF!"}}]
[]
["Empleado:",null,{"$f":"'031'!F132","v":"Víctor Manuel López Rodríguez"},null,null,null,null,null,null,null,"Certificación No.",null,null,{"$f":"N3274+1","v":49},null,"Fecha:",null,{"$f":"R2280","v":"2014-09-30"}]
["Contrato:",null,{"$f":"'031'!G132","v":"47-2017-031-AMSA"},null,null,"Puesto Funcional:",null,null,{"$f":"'031'!C132","v":"Peón de Campo"},null,null,null,"Titulo Jornal:",null,null,{"$f":"'031'!D132","v":"Constructor de Puentes"}]
["Cuenta / Banco:",null,null,{"$f":"'031'!T132","v":3216001865},null,"Banco de Desarrollo Rural, S.A.",null,null,null,null,"Jornal Diario:",null,null,{"$f":"'031'!I132","v":80.86},null,"Días Trabajados:",null,null,{"$f":"'031'!J132","v":31}]
[]
[null,null,null,null,null,null,null,null,null,null,null,null,"Ingresos",null,null,null,"Deducciones "]
[]
[null,"031","DEVENGADO",null,null,null,null,null,null,null,null,null,{"$f":"'031'!K132","v":2506.66}]
[null,"033","BONO ACUERDO GUBERNATIVO 66-2000",null,null,null,null,null,null,null,null,null,{"$f":"'031'!L132","v":250}]
[null,"201","I.G.S.S",null,null,null,null,null,null,null,null,null,null,null,null,null,{"$f":"'031'!O132","v":130.12}]
[null,"118","MONTEPÍO",null,null,null,null,null,null,null,null,null,null,null,null,null,0]
[null,"211","RETENCIONES JUDICIALES",null,null,null,null,null,null,null,null,null,null,null,null,null,{"$f":"'031'!P132","v":0}]
[null,null,null,null,null,null,null,null,null,null,"Total  :",null,{"$f":"SUM(M3351:O3355)","v":2756.66},null,null,null,{"$f":"SUM(Q3353:S3355)","v":130.12}]
[null,null,null,null,null,null,null,null,null,null,"Liquido :",null,{"$f":"M3356-Q3356","v":2626.54}]
[]
[]
[]
[]
[]
[]
[]
[]
["María José Ceballos López",null,null,null,null,null,null,null,null,null,null,null,{"$f":"C3345","v":"Víctor Manuel López Rodríguez"}]
["Encargada de Nómina",null,null,null,null,null,null,null,null,null,null,null,{"$f":"P3346","v":"Constructor de Puentes"}]
["AMSA ",null,null,null,null,null,null,null,null,null,null,null,"AMSA"]
[]
[]
[]
[]
[]
[]
[]
[]
["GOBIERNO DE LA REPÚBLICA DE GUATEMALA"]
["AUTORIDAD PARA EL MANEJO SUSTENTABLE DE LA CUENCA Y DEL LAGO DE AMATITLÁN"]
[]
[]
[{"$f":"A3342","v":"Boleta de Liquidación Mensual Renglón 031 \"Jornales\"   Correspondiente al mes de octubre 2015"}]
[{"$f":"A3343","v":{"$error":"#REF!"}}]
[]
["Empleado:",null,{"$f":"C3345","v":"Víctor Manuel López Rodríguez"},null,null,null,null,null,null,null,"Certificación No.",null,null,{"$f":"N3345","v":49},null,"Fecha:",null,{"$f":"R3345","v":"2014-09-30"}]
["Contrato:",null,{"$f":"C3346","v":"47-2017-031-AMSA"},null,null,"Puesto Funcional:",null,null,{"$f":"I3346","v":"Peón de Campo"},null,null,null,"Titulo Jornal:",null,null,{"$f":"P3346","v":"Constructor de Puentes"}]
["Cuenta / Banco:",null,null,{"$f":"D3347","v":3216001865},null,"Banco de Desarrollo Rural, S.A.",null,null,null,null,"Jornal Diario:",null,null,{"$f":"N3347","v":80.86},null,"Días Trabajados:",null,null,{"$f":"S3347","v":31}]
[]
[null,null,null,null,null,null,null,null,null,null,null,null,"Ingresos",null,null,null,"Deducciones "]
[]
[null,"031","DEVENGADO",null,null,null,null,null,null,null,null,null,{"$f":"M3351","v":2506.66}]
[null,"033","BONO ACUERDO GUBERNATIVO 66-2000",null,null,null,null,null,null,null,null,null,{"$f":"M3352","v":250}]
[null,"201","I.G.S.S",null,null,null,null,null,null,null,null,null,null,null,null,null,{"$f":"Q3353","v":130.12}]
[null,"118","MONTEPÍO",null,null,null,null,null,null,null,null,null,null,null,null,null,{"$f":"Q3354","v":0}]
[null,"211","RETENCIONES JUDICIALES",null,null,null,null,null,null,null,null,null,null,null,null,null,{"$f":"Q3355","v":0}]
[null,null,null,null,null,null,null,null,null,null,"Total  :",null,{"$f":"SUM(M3390:O3394)","v":2756.66},null,null,null,{"$f":"SUM(Q3392:S3394)","v":130.12}]
[null,null,null,null,null,null,null,null,null,null,"Liquido :",null,{"$f":"M3395-Q3395","v":2626.54}]
[]
[]
[]
[]
[]
[]
[]
[]
[{"$f":"A3366","v":"María José Ceballos López"},null,null,null,null,null,null,null,null,null,null,null,{"$f":"C3384","v":"Víctor Manuel López Rodríguez"}]
[{"$f":"A3367","v":"Encargada de Nómina"},null,null,null,null,null,null,null,null,null,null,null,{"$f":"P3385","v":"Constructor de Puentes"}]
[{"$f":"A3368","v":"AMSA "},null,null,null,null,null,null,null,null,null,null,null,"AMSA"]
[]
["GOBIERNO DE LA REPÚBLICA DE GUATEMALA"]
["AUTORIDAD PARA EL MANEJO SUSTENTABLE DE LA CUENCA Y DEL LAGO DE AMATITLÁN"]
[]
[]
[{"$f":"A3342","v":"Boleta de Liquidación Mensual Renglón 031 \"Jornales\"   Correspondiente al mes de octubre 2015"}]
[{"$f":"A3343","v":{"$error":"#REF!"}}]
[]
["Empleado:",null,{"$f":"'031'!F133","v":"Cosme Virgilio Morales Rodríguez"},null,null,null,null,null,null,null,"Certificación No.",null,null,{"$f":"N3345+1","v":50},null,"Fecha:",null,{"$f":"R2351","v":"2014-08-31"}]
["Contrato:",null,{"$f":"'031'!G133","v":"48-2017-031-AMSA"},null,null,"Puesto Funcional:",null,null,{"$f":"'031'!C133","v":"Piloto"},null,null,null,"Titulo Jornal:",null,null,{"$f":"'031'!D133","v":"Constructor de Puentes"}]
["Cuenta / Banco:",null,null,{"$f":"'031'!T133","v":3216001829},null,"Banco de Desarrollo Rural, S.A.",null,null,null,null,"Jornal Diario:",null,null,{"$f":"'031'!I133","v":80.86},null,"Días Trabajados:",null,null,{"$f":"'031'!J133","v":31}]
[]
[null,null,null,null,null,null,null,null,null,null,null,null,"Ingresos",null,null,null,"Deducciones "]
[]
[null,"031","DEVENGADO",null,null,null,null,null,null,null,null,null,{"$f":"'031'!K133","v":2506.66}]
[null,"033","BONO ACUERDO GUBERNATIVO 66-2000",null,null,null,null,null,null,null,null,null,{"$f":"'031'!L133","v":250}]
[null,"201","I.G.S.S",null,null,null,null,null,null,null,null,null,null,null,null,null,{"$f":"'031'!O133","v":130.12}]
[null,"118","MONTEPÍO",null,null,null,null,null,null,null,null,null,null,null,null,null,0]
[null,"211","RETENCIONES JUDICIALES",null,null,null,null,null,null,null,null,null,null,null,null,null,{"$f":"'031'!P133","v":0}]
[null,null,null,null,null,null,null,null,null,null,"Total  :",null,{"$f":"SUM(M3422:O3426)","v":2756.66},null,null,null,{"$f":"SUM(Q3424:S3426)","v":130.12}]
[null,null,null,null,null,null,null,null,null,null,"Liquido :",null,{"$f":"M3427-Q3427","v":2626.54}]
[]
[]
[]
[]
[]
[]
[]
[]
["María José Ceballos López",null,null,null,null,null,null,null,null,null,null,null,{"$f":"C3416","v":"Cosme Virgilio Morales Rodríguez"}]
["Encargada de Nómina",null,null,null,null,null,null,null,null,null,null,null,{"$f":"P3417","v":"Constructor de Puentes"}]
["AMSA ",null,null,null,null,null,null,null,null,null,null,null,"AMSA"]
[]
[]
[]
[]
[]
[]
[]
[]
["GOBIERNO DE LA REPÚBLICA DE GUATEMALA"]
["AUTORIDAD PARA EL MANEJO SUSTENTABLE DE LA CUENCA Y DEL LAGO DE AMATITLÁN"]
[]
[]
[{"$f":"A3413","v":"Boleta de Liquidación Mensual Renglón 031 \"Jornales\"   Correspondiente al mes de octubre 2015"}]
[{"$f":"A3414","v":{"$error":"#REF!"}}]
[]
["Empleado:",null,{"$f":"C3416","v":"Cosme Virgilio Morales Rodríguez"},null,null,null,null,null,null,null,"Certificación No.",null,null,{"$f":"N3416","v":50},null,"Fecha:",null,{"$f":"R3416","v":"2014-08-31"}]
["Contrato:",null,{"$f":"C3417","v":"48-2017-031-AMSA"},null,null,"Puesto Funcional:",null,null,{"$f":"I3417","v":"Piloto"},null,null,null,"Titulo Jornal:",null,null,{"$f":"P3417","v":"Constructor de Puentes"}]
["Cuenta / Banco:",null,null,{"$f":"D3418","v":3216001829},null,"Banco de Desarrollo Rural, S.A.",null,null,null,null,"Jornal Diario:",null,null,{"$f":"N3418","v":80.86},null,"Días Trabajados:",null,null,{"$f":"S3418","v":31}]
[]
[null,null,null,null,null,null,null,null,null,null,null,null,"Ingresos",null,null,null,"Deducciones "]
[]
[null,"031","DEVENGADO",null,null,null,null,null,null,null,null,null,{"$f":"M3422","v":2506.66}]
[null,"033","BONO ACUERDO GUBERNATIVO 66-2000",null,null,null,null,null,null,null,null,null,{"$f":"M3423","v":250}]
[null,"201","I.G.S.S",null,null,null,null,null,null,null,null,null,null,null,null,null,{"$f":"Q3424","v":130.12}]
[null,"118","MONTEPÍO",null,null,null,null,null,null,null,null,null,null,null,null,null,{"$f":"Q3425","v":0}]
[null,"211","RETENCIONES JUDICIALES",null,null,null,null,null,null,null,null,null,null,null,null,null,{"$f":"Q3426","v":0}]
[null,null,null,null,null,null,null,null,null,null,"Total  :",null,{"$f":"SUM(M3461:O3465)","v":2756.66},null,null,null,{"$f":"SUM(Q3463:S3465)","v":130.12}]
[null,null,null,null,null,null,null,null,null,null,"Liquido :",null,{"$f":"M3466-Q3466","v":2626.54}]
[]
[]
[]
[]
[]
[]
[]
[]
[{"$f":"A3437","v":"María José Ceballos López"},null,null,null,null,null,null,null,null,null,null,null,{"$f":"C3455","v":"Cosme Virgilio Morales Rodríguez"}]
[{"$f":"A3438","v":"Encargada de Nómina"},null,null,null,null,null,null,null,null,null,null,null,{"$f":"P3456","v":"Constructor de Puentes"}]
[{"$f":"A3439","v":"AMSA "},null,null,null,null,null,null,null,null,null,null,null,"AMSA"]
[]
["GOBIERNO DE LA REPÚBLICA DE GUATEMALA"]
["AUTORIDAD PARA EL MANEJO SUSTENTABLE DE LA CUENCA Y DEL LAGO DE AMATITLÁN"]
[]
[]
[{"$f":"A3413","v":"Boleta de Liquidación Mensual Renglón 031 \"Jornales\"   Correspondiente al mes de octubre 2015"}]
[{"$f":"A3414","v":{"$error":"#REF!"}}]
[]
["Empleado:",null,{"$f":"'031'!F134","v":"Carlos Alberto Morales Contreras"},null,null,null,null,null,null,null,"Certificación No.",null,null,{"$f":"N3416+1","v":51},null,"Fecha:",null,{"$f":"R2422","v":"2015-08-31"}]
["Contrato:",null,{"$f":"'031'!G134","v":"49-2017-031-AMSA"},null,null,"Puesto Funcional:",null,null,{"$f":"'031'!C134","v":"Peón de Campo"},null,null,null,"Titulo Jornal:",null,null,{"$f":"'031'!D134","v":"Constructor de Puentes"}]
["Cuenta / Banco:",null,null,{"$f":"'031'!T134","v":3216001833},null,"Banco de Desarrollo Rural, S.A.",null,null,null,null,"Jornal Diario:",null,null,{"$f":"'031'!I134","v":80.86},null,"Días Trabajados:",null,null,{"$f":"'031'!J134","v":31}]
[]
[null,null,null,null,null,null,null,null,null,null,null,null,"Ingresos",null,null,null,"Deducciones "]
[]
[null,"031","DEVENGADO",null,null,null,null,null,null,null,null,null,{"$f":"'031'!K134","v":2506.66}]
[null,"033","BONO ACUERDO GUBERNATIVO 66-2000",null,null,null,null,null,null,null,null,null,{"$f":"'031'!L134","v":250}]
[null,"201","I.G.S.S",null,null,null,null,null,null,null,null,null,null,null,null,null,{"$f":"'031'!O134","v":130.12}]
[null,"118","MONTEPÍO",null,null,null,null,null,null,null,null,null,null,null,null,null,0]
[null,"211","RETENCIONES JUDICIALES",null,null,null,null,null,null,null,null,null,null,null,null,null,{"$f":"'031'!P134","v":0}]
[null,null,null,null,null,null,null,null,null,null,"Total  :",null,{"$f":"SUM(M3493:O3497)","v":2756.66},null,null,null,{"$f":"SUM(Q3495:S3497)","v":130.12}]
[null,null,null,null,null,null,null,null,null,null,"Liquido :",null,{"$f":"M3498-Q3498","v":2626.54}]
[]
[]
[]
[]
[]
[]
[]
[]
["María José Ceballos López",null,null,null,null,null,null,null,null,null,null,null,{"$f":"C3487","v":"Carlos Alberto Morales Contreras"}]
["Encargada de Nómina",null,null,null,null,null,null,null,null,null,null,null,{"$f":"P3488","v":"Constructor de Puentes"}]
["AMSA ",null,null,null,null,null,null,null,null,null,null,null,"AMSA"]
[]
[]
[]
[]
[]
[]
[]
[]
["GOBIERNO DE LA REPÚBLICA DE GUATEMALA"]
["AUTORIDAD PARA EL MANEJO SUSTENTABLE DE LA CUENCA Y DEL LAGO DE AMATITLÁN"]
[]
[]
[{"$f":"A3484","v":"Boleta de Liquidación Mensual Renglón 031 \"Jornales\"   Correspondiente al mes de octubre 2015"}]
[{"$f":"A3485","v":{"$error":"#REF!"}}]
[]
["Empleado:",null,{"$f":"C3487","v":"Carlos Alberto Morales Contreras"},null,null,null,null,null,null,null,"Certificación No.",null,null,{"$f":"N3487","v":51},null,"Fecha:",null,{"$f":"R3487","v":"2015-08-31"}]
["Contrato:",null,{"$f":"C3488","v":"49-2017-031-AMSA"},null,null,"Puesto Funcional:",null,null,{"$f":"I3488","v":"Peón de Campo"},null,null,null,"Titulo Jornal:",null,null,{"$f":"P3488","v":"Constructor de Puentes"}]
["Cuenta / Banco:",null,null,{"$f":"D3489","v":3216001833},null,"Banco de Desarrollo Rural, S.A.",null,null,null,null,"Jornal Diario:",null,null,{"$f":"N3489","v":80.86},null,"Días Trabajados:",null,null,{"$f":"S3489","v":31}]
[]
[null,null,null,null,null,null,null,null,null,null,null,null,"Ingresos",null,null,null,"Deducciones "]
[]
[null,"031","DEVENGADO",null,null,null,null,null,null,null,null,null,{"$f":"M3493","v":2506.66}]
[null,"033","BONO ACUERDO GUBERNATIVO 66-2000",null,null,null,null,null,null,null,null,null,{"$f":"M3494","v":250}]
[null,"201","I.G.S.S",null,null,null,null,null,null,null,null,null,null,null,null,null,{"$f":"Q3495","v":130.12}]
[null,"118","MONTEPÍO",null,null,null,null,null,null,null,null,null,null,null,null,null,{"$f":"Q3496","v":0}]
[null,"211","RETENCIONES JUDICIALES",null,null,null,null,null,null,null,null,null,null,null,null,null,{"$f":"Q3497","v":0}]
[null,null,null,null,null,null,null,null,null,null,"Total  :",null,{"$f":"SUM(M3532:O3536)","v":2756.66},null,null,null,{"$f":"SUM(Q3534:S3536)","v":130.12}]
[null,null,null,null,null,null,null,null,null,null,"Liquido :",null,{"$f":"M3537-Q3537","v":2626.54}]
[]
[]
[]
[]
[]
[]
[]
[]
[{"$f":"A3508","v":"María José Ceballos López"},null,null,null,null,null,null,null,null,null,null,null,{"$f":"C3526","v":"Carlos Alberto Morales Contreras"}]
[{"$f":"A3509","v":"Encargada de Nómina"},null,null,null,null,null,null,null,null,null,null,null,{"$f":"P3527","v":"Constructor de Puentes"}]
[{"$f":"A3510","v":"AMSA "},null,null,null,null,null,null,null,null,null,null,null,"AMSA"]
[]
["GOBIERNO DE LA REPÚBLICA DE GUATEMALA"]
["AUTORIDAD PARA EL MANEJO SUSTENTABLE DE LA CUENCA Y DEL LAGO DE AMATITLÁN"]
[]
[]
[{"$f":"A3484","v":"Boleta de Liquidación Mensual Renglón 031 \"Jornales\"   Correspondiente al mes de octubre 2015"}]
[{"$f":"A3485","v":{"$error":"#REF!"}}]
[]
["Empleado:",null,{"$f":"'031'!F135","v":"Miguel Ángel Ramos Luis"},null,null,null,null,null,null,null,"Certificación No.",null,null,{"$f":"N3487+1","v":52},null,"Fecha:",null,{"$f":"R2493","v":"2014-08-31"}]
["Contrato:",null,{"$f":"'031'!G135","v":"50-2017-031-AMSA"},null,null,"Puesto Funcional:",null,null,{"$f":"'031'!C135","v":"Peón de Campo"},null,null,null,"Titulo Jornal:",null,null,{"$f":"'031'!D135","v":"Constructor de Puentes"}]
["Cuenta / Banco:",null,null,{"$f":"'031'!T135","v":3216001851},null,"Banco de Desarrollo Rural, S.A.",null,null,null,null,"Jornal Diario:",null,null,{"$f":"'031'!I135","v":80.86},null,"Días Trabajados:",null,null,{"$f":"'031'!J135","v":31}]
[]
[null,null,null,null,null,null,null,null,null,null,null,null,"Ingresos",null,null,null,"Deducciones "]
[]
[null,"031","DEVENGADO",null,null,null,null,null,null,null,null,null,{"$f":"'031'!K135","v":2506.66}]
[null,"033","BONO ACUERDO GUBERNATIVO 66-2000",null,null,null,null,null,null,null,null,null,{"$f":"'031'!L135","v":250}]
[null,"201","I.G.S.S",null,null,null,null,null,null,null,null,null,null,null,null,null,{"$f":"'031'!O135","v":130.12}]
[null,"118","MONTEPÍO",null,null,null,null,null,null,null,null,null,null,null,null,null,0]
[null,"211","RETENCIONES JUDICIALES",null,null,null,null,null,null,null,null,null,null,null,null,null,{"$f":"'031'!#REF!","v":{"$error":"#REF!"}}]
[null,null,null,null,null,null,null,null,null,null,"Total  :",null,{"$f":"SUM(M3564:O3568)","v":2756.66},null,null,null,{"$f":"SUM(Q3566:S3568)","v":{"$error":"#REF!"}}]
[null,null,null,null,null,null,null,null,null,null,"Liquido :",null,{"$f":"M3569-Q3569","v":{"$error":"#REF!"}}]
[]
[]
[]
[]
[]
[]
[]
[]
["María José Ceballos López",null,null,null,null,null,null,null,null,null,null,null,{"$f":"C3558","v":"Miguel Ángel Ramos Luis"}]
["Encargada de Nómina",null,null,null,null,null,null,null,null,null,null,null,{"$f":"P3559","v":"Constructor de Puentes"}]
["AMSA ",null,null,null,null,null,null,null,null,null,null,null,"AMSA"]
[]
[]
[]
[]
[]
[]
[]
[]
["GOBIERNO DE LA REPÚBLICA DE GUATEMALA"]
["AUTORIDAD PARA EL MANEJO SUSTENTABLE DE LA CUENCA Y DEL LAGO DE AMATITLÁN"]
[]
[]
[{"$f":"A3555","v":"Boleta de Liquidación Mensual Renglón 031 \"Jornales\"   Correspondiente al mes de octubre 2015"}]
[{"$f":"A3556","v":{"$error":"#REF!"}}]
[]
["Empleado:",null,{"$f":"C3558","v":"Miguel Ángel Ramos Luis"},null,null,null,null,null,null,null,"Certificación No.",null,null,{"$f":"N3558","v":52},null,"Fecha:",null,{"$f":"R3558","v":"2014-08-31"}]
["Contrato:",null,{"$f":"C3559","v":"50-2017-031-AMSA"},null,null,"Puesto Funcional:",null,null,{"$f":"I3559","v":"Peón de Campo"},null,null,null,"Titulo Jornal:",null,null,{"$f":"P3559","v":"Constructor de Puentes"}]
["Cuenta / Banco:",null,null,{"$f":"D3560","v":3216001851},null,"Banco de Desarrollo Rural, S.A.",null,null,null,null,"Jornal Diario:",null,null,{"$f":"N3560","v":80.86},null,"Días Trabajados:",null,null,{"$f":"S3560","v":31}]
[]
[null,null,null,null,null,null,null,null,null,null,null,null,"Ingresos",null,null,null,"Deducciones "]
[]
[null,"031","DEVENGADO",null,null,null,null,null,null,null,null,null,{"$f":"M3564","v":2506.66}]
[null,"033","BONO ACUERDO GUBERNATIVO 66-2000",null,null,null,null,null,null,null,null,null,{"$f":"M3565","v":250}]
[null,"201","I.G.S.S",null,null,null,null,null,null,null,null,null,null,null,null,null,{"$f":"Q3566","v":130.12}]
[null,"118","MONTEPÍO",null,null,null,null,null,null,null,null,null,null,null,null,null,{"$f":"Q3567","v":0}]
[null,"211","RETENCIONES JUDICIALES",null,null,null,null,null,null,null,null,null,null,null,null,null,{"$f":"Q3568","v":{"$error":"#REF!"}}]
[null,null,null,null,null,null,null,null,null,null,"Total  :",null,{"$f":"SUM(M3603:O3607)","v":2756.66},null,null,null,{"$f":"SUM(Q3605:S3607)","v":{"$error":"#REF!"}}]
[null,null,null,null,null,null,null,null,null,null,"Liquido :",null,{"$f":"M3608-Q3608","v":{"$error":"#REF!"}}]
[]
[]
[]
[]
[]
[]
[]
[]
[{"$f":"A3579","v":"María José Ceballos López"},null,null,null,null,null,null,null,null,null,null,null,{"$f":"C3597","v":"Miguel Ángel Ramos Luis"}]
[{"$f":"A3580","v":"Encargada de Nómina"},null,null,null,null,null,null,null,null,null,null,null,{"$f":"P3598","v":"Constructor de Puentes"}]
[{"$f":"A3581","v":"AMSA "},null,null,null,null,null,null,null,null,null,null,null,"AMSA"]
[]
["GOBIERNO DE LA REPÚBLICA DE GUATEMALA"]
["AUTORIDAD PARA EL MANEJO SUSTENTABLE DE LA CUENCA Y DEL LAGO DE AMATITLÁN"]
[]
[]
[{"$f":"A3555","v":"Boleta de Liquidación Mensual Renglón 031 \"Jornales\"   Correspondiente al mes de octubre 2015"}]
[{"$f":"A3556","v":{"$error":"#REF!"}}]
[]
["Empleado:",null,{"$f":"'031'!#REF!","v":{"$error":"#REF!"}},null,null,null,null,null,null,null,"Certificación No.",null,null,{"$f":"N3558+1","v":53},null,"Fecha:",null,{"$f":"R8","v":"2014-08-31"}]
["Contrato:",null,{"$f":"'031'!#REF!","v":{"$error":"#REF!"}},null,null,"Puesto Funcional:",null,null,{"$f":"'031'!#REF!","v":{"$error":"#REF!"}},null,null,null,"Titulo Jornal:",null,null,{"$f":"'031'!#REF!","v":{"$error":"#REF!"}}]
["Cuenta / Banco:",null,null,{"$f":"'031'!#REF!","v":{"$error":"#REF!"}},null,"Banco de Desarrollo Rural, S.A.",null,null,null,null,"Jornal Diario:",null,null,{"$f":"'031'!#REF!","v":{"$error":"#REF!"}},null,"Días Trabajados:",null,null,{"$f":"'031'!#REF!","v":{"$error":"#REF!"}}]
[]
[null,null,null,null,null,null,null,null,null,null,null,null,"Ingresos",null,null,null,"Deducciones "]
[]
[null,"031","DEVENGADO",null,null,null,null,null,null,null,null,null,{"$f":"'031'!#REF!","v":{"$error":"#REF!"}}]
[null,"033","BONO ACUERDO GUBERNATIVO 66-2000",null,null,null,null,null,null,null,null,null,{"$f":"'031'!#REF!","v":{"$error":"#REF!"}}]
[null,"201","I.G.S.S",null,null,null,null,null,null,null,null,null,null,null,null,null,{"$f":"'031'!#REF!","v":{"$error":"#REF!"}}]
[null,"118","MONTEPÍO",null,null,null,null,null,null,null,null,null,null,null,null,null,0]
[null,"211","RETENCIONES JUDICIALES",null,null,null,null,null,null,null,null,null,null,null,null,null,{"$f":"'031'!#REF!","v":{"$error":"#REF!"}}]
[null,null,null,null,null,null,null,null,null,null,"Total  :",null,{"$f":"SUM(M3635:O3639)","v":{"$error":"#REF!"}},null,null,null,{"$f":"SUM(Q3637:S3639)","v":{"$error":"#REF!"}}]
[null,null,null,null,null,null,null,null,null,null,"Liquido :",null,{"$f":"M3640-Q3640","v":{"$error":"#REF!"}}]
[]
[]
[]
[]
[]
[]
[]
[]
["María José Ceballos López",null,null,null,null,null,null,null,null,null,null,null,{"$f":"C3629","v":{"$error":"#REF!"}}]
["Encargada de Nómina",null,null,null,null,null,null,null,null,null,null,null,{"$f":"P3630","v":{"$error":"#REF!"}}]
["AMSA ",null,null,null,null,null,null,null,null,null,null,null,"AMSA"]
[]
[]
[]
[]
[]
[]
[]
[]
["GOBIERNO DE LA REPÚBLICA DE GUATEMALA"]
["AUTORIDAD PARA EL MANEJO SUSTENTABLE DE LA CUENCA Y DEL LAGO DE AMATITLÁN"]
[]
[]
[{"$f":"A3626","v":"Boleta de Liquidación Mensual Renglón 031 \"Jornales\"   Correspondiente al mes de octubre 2015"}]
[{"$f":"A3627","v":{"$error":"#REF!"}}]
[]
["Empleado:",null,{"$f":"C3629","v":{"$error":"#REF!"}},null,null,null,null,null,null,null,"Certificación No.",null,null,{"$f":"N3629","v":53},null,"Fecha:",null,{"$f":"R3629","v":"2014-08-31"}]
["Contrato:",null,{"$f":"C3630","v":{"$error":"#REF!"}},null,null,"Puesto Funcional:",null,null,{"$f":"I3630","v":{"$error":"#REF!"}},null,null,null,"Titulo Jornal:",null,null,{"$f":"P3630","v":{"$error":"#REF!"}}]
["Cuenta / Banco:",null,null,{"$f":"D3631","v":{"$error":"#REF!"}},null,"Banco de Desarrollo Rural, S.A.",null,null,null,null,"Jornal Diario:",null,null,{"$f":"N3631","v":{"$error":"#REF!"}},null,"Días Trabajados:",null,null,{"$f":"S3631","v":{"$error":"#REF!"}}]
[]
[null,null,null,null,null,null,null,null,null,null,null,null,"Ingresos",null,null,null,"Deducciones "]
[]
[null,"031","DEVENGADO",null,null,null,null,null,null,null,null,null,{"$f":"M3635","v":{"$error":"#REF!"}}]
[null,"033","BONO ACUERDO GUBERNATIVO 66-2000",null,null,null,null,null,null,null,null,null,{"$f":"M3636","v":{"$error":"#REF!"}}]
[null,"201","I.G.S.S",null,null,null,null,null,null,null,null,null,null,null,null,null,{"$f":"Q3637","v":{"$error":"#REF!"}}]
[null,"118","MONTEPÍO",null,null,null,null,null,null,null,null,null,null,null,null,null,{"$f":"Q3638","v":0}]
[null,"211","RETENCIONES JUDICIALES",null,null,null,null,null,null,null,null,null,null,null,null,null,{"$f":"Q3639","v":{"$error":"#REF!"}}]
[null,null,null,null,null,null,null,null,null,null,"Total  :",null,{"$f":"SUM(M3674:O3678)","v":{"$error":"#REF!"}},null,null,null,{"$f":"SUM(Q3676:S3678)","v":{"$error":"#REF!"}}]
[null,null,null,null,null,null,null,null,null,null,"Liquido :",null,{"$f":"M3679-Q3679","v":{"$error":"#REF!"}}]
[]
[]
[]
[]
[]
[]
[]
[]
[{"$f":"A3650","v":"María José Ceballos López"},null,null,null,null,null,null,null,null,null,null,null,{"$f":"C3668","v":{"$error":"#REF!"}}]
[{"$f":"A3651","v":"Encargada de Nómina"},null,null,null,null,null,null,null,null,null,null,null,{"$f":"P3669","v":{"$error":"#REF!"}}]
[{"$f":"A3652","v":"AMSA "},null,null,null,null,null,null,null,null,null,null,null,"AMSA"]